Workbook

Sheet MENU
A13: Observaciones al Correo Electrónico
A14: dejecutiva@tse.go.cr

Sheet C2.1
A2: CUADRO 2.1 COSTA RICA: JUNTAS, ELECTORADO, VOTOS POR PARTIDO, NULOS Y BLANCOS, PARA DIPUTACIONES A
A3: LA ASAMBLEA LEGISLATIVA, POR PROVINCIA, ELECCIONES 7 DE FEBRERO 2010
A5: JUNTAS, ELECTORADO, VOTOS POR PARTIDO, NULOS Y BLANCOS | B5: COSTA RICA | C5: PROVINCIA
C6: SAN JOSÉ | D6: ALAJUELA | E6: CARTAGO | F6: HEREDIA | G6: GUANACASTE | H6: PUNTARENAS | I6: LIMÓN
A9: JUNTAS | B9: =SUM(C9:I9) -> 6617 | C9: 2232 | D9: 1252 | E9: 746 | F9: 604 | G9: 550 | H9: 702 | I9: 531
A11: ELECTORADO | B11: =SUM(C11:I11) -> 2822491 | C11: 1008177 | D11: 524215 | E11: 328782 | F11: 278544 | G11: 199237 | H11: 259408 | I11: 224128
A13: VOTOS RECIBIDOS | B13: =SUM(C13:I13) -> 1950708 | C13: =+C15+C35+C36 -> 704257 | D13: 374912 | E13: 243682 | F13: 203697 | G13: 131931 | H13: 154529 | I13: 137700
A15: VOTOS VÁLIDOS | B15: =SUM(C15:I15) -> 1899825 | C15: =SUM(C16:C33) -> 690336 | D15: 365548 | E15: 237267 | F15: 199698 | G15: 126828 | H15: 148527 | I15: 131621
A16: UNIDAD SOCIAL CRISTIANA | B16: 155047 | C16: 50880 | D16: 23746 | E16: 18121 | F16: 14510 | G16: 13951 | H16: 20444 | I16: 13395
A17: FUERZA FAMILIAR ALAJUELENSE | B17: 1609 | C17: 0 | D17: 1609 | E17: 0 | F17: 0 | G17: 0 | H17: 0 | I17: 0
A18: INTEGRACIÓN NACIONAL | B18: 14643 | C18: 8537 | D18: 1314 | E18: 851 | F18: 950 | G18: 418 | H18: 1428 | I18: 1145
A19: VERDE ECOLOGISTA | B19: 2901 | C19: 0 | D19: 0 | E19: 2901 | F19: 0 | G19: 0 | H19: 0 | I19: 0
A20: ALIANZA PATRIÓTICA | B20: 28349 | C20: 7510 | D20: 6922 | E20: 2898 | F20: 3785 | G20: 3971 | H20: 1624 | I20: 1639
A21: RENOVACIÓN COSTARRICENSE | B21: 73150 | C21: 20563 | D21: 16156 | E21: 6664 | F21: 5724 | G21: 6433 | H21: 6336 | I21: 11274
A22: FRENTE AMPLIO | B22: 68987 | C22: 32247 | D22: 4835 | E22: 6685 | F22: 9523 | G22: 2778 | H22: 3303 | I22: 9616
A23: LIBERACIÓN NACIONAL | B23: 708043 | C23: 244763 | D23: 139515 | E23: 92286 | F23: 73929 | G23: 54676 | H23: 58985 | I23: 43889
A24: UNIÓN AGRÍCOLA CARTAGINÉS | B24: 11862 | C24: 0 | D24: 0 | E24: 11862 | F24: 0 | G24: 0 | H24: 0 | I24: 0
A25: RESTAURACIÓN ALAJUELENSE | B25: 7298 | C25: 0 | D25: 7298 | E25: 0 | F25: 0 | G25: 0 | H25: 0 | I25: 0
A26: MOVIMIENTO LIBERTARIO | B26: 275518 | C26: 85139 | D26: 60198 | E26: 31197 | F26: 27766 | G26: 17162 | H26: 27645 | I26: 26411
A27: RESTAURACIÓN NACIONAL | B27: 29530 | C27: 29530 | D27: 0 | E27: 0 | F27: 0 | G27: 0 | H27: 0 | I27: 0
A28: MOVIMIENTO DE TRABAJADORES Y CAMPESINOS | B28: 1127 | C28: 0 | D28: 0 | E28: 0 | F28: 0 | G28: 0 | H28: 0 | I28: 1127
A29: ALIANZA MAYOR | B29: 2724 | C29: 2724 | D29: 0 | E29: 0 | F29: 0 | G29: 0 | H29: 0 | I29: 0
A30: ACCIÓN CIUDADANA | B30: 334636 | C30: 131476 | D30: 72880 | E30: 40437 | F30: 38143 | G30: 14729 | H30: 21181 | I30: 15790
A31: TRANSPARENCIA CARTAGINÉS | B31: 4590 | C31: 0 | D31: 0 | E31: 4590 | F31: 0 | G31: 0 | H31: 0 | I31: 0
A32: RESTAURACIÓN HEREDIANA | B32: 7953 | C32: 0 | D32: 0 | E32: 0 | F32: 7953 | G32: 0 | H32: 0 | I32: 0
A33: ACCESIBILIDAD SIN EXCLUSIÓN | B33: 171858 | C33: 76967 | D33: 31075 | E33: 18775 | F33: 17415 | G33: 12710 | H33: 7581 | I33: 7335
A35: VOTOS NULOS | B35: =SUM(C35:I35) -> 30806 | C35: 8637 | D35: 5412 | E35: 3960 | F35: 2466 | G35: 3162 | H35: 3371 | I35: 3798
A36: VOTOS BLANCOS | B36: =SUM(C36:I36) -> 20077 | C36: 5284 | D36: 3952 | E36: 2455 | F36: 1533 | G36: 1941 | H36: 2631 | I36: 2281

Sheet C2.2
A2: CUADRO 2.2 COSTA RICA: JUNTAS, ELECTORADO, VOTOS POR PARTIDO, NULOS Y BLANCOS PARA DIPUTACIONES A LA ASAMBLEA LEGISLATIVA, SEGÚN PROVINCIA Y CANTÓN ELECCIONES 7 DE FEBRERO 2010
A4: PROVINCIA Y CANTÓN | B4: JUNTAS | C4: ELECTORADO | D4: VOTOS RECIBIDOS
D5: TOTAL GENERAL | E5: VOTOS VÁLIDOS | X5: NULOS | Y5: BLANCOS
E6: TOTAL | F6: UNIDAD SOCIAL CRISTIANA | G6: FUERZA FAMILIAR ALAJUELENSE | H6: INTEGRACIÓN NACIONAL | I6: VERDE ECOLOGISTA | J6: ALIANZA PATRIÓTICA | K6: RENOVACIÓN COSTARRICENSE | L6: FRENTE AMPLIO | M6: LIBERACIÓN NACIONAL | N6: UNIÓN AGRÍCOLA CARTAGINÉS | O6: RESTAURACIÓN ALAJUELENSE | P6: MOVIMIENTO LIBERTARIO | Q6: RESTAURACIÓN NACIONAL | R6: MOVIMIENTO DE TRABAJADORES Y CAMPESINOS | S6: ALIANZA MAYOR | T6: ACCIÓN CIUDADANA | U6: TRANSPARENCIA CARTAGINÉS | V6: RESTAURACIÓN HEREDIANA | W6: ACCESIBILIDAD SIN EXCLUSIÓN
A8: COSTA RICA | B8: =+B10+B33+B51+B62+B75+B89+B103 -> 6617 | C8: =+C10+C33+C51+C62+C75+C89+C103 -> 2822491 | D8: =+D10+D33+D51+D62+D75+D89+D103 -> 1950708 | E8: =+E10+E33+E51+E62+E75+E89+E103 -> 1899825 | F8: =+F10+F33+F51+F62+F75+F89+F103 -> 155047 | G8: =+G10+G33+G51+G62+G75+G89+G103 -> 1609 | H8: 14643 | I8: 2901 | J8: 28349 | K8: 73150 | L8: 68987 | M8: 708043 | N8: 11862 | O8: 7298 | P8: 275518 | Q8: 29530 | R8: 1127 | S8: 2724 | T8: 334636 | U8: 4590 | V8: 7953 | W8: 171858 | X8: 30806 | Y8: 20077
A10: PROVINCIA SAN JOSÉ | B10: 2232 | C10: 1008177 | D10: 704257 | E10: 690336 | F10: 50880 | G10: 0 | H10: 8537 | I10: 0 | J10: 7510 | K10: 20563 | L10: 32247 | M10: 244763 | N10: 0 | O10: 0 | P10: 85139 | Q10: 29530 | R10: 0 | S10: 2724 | T10: 131476 | U10: 0 | V10: 0 | W10: 76967 | X10: 8637 | Y10: 5284
A12: SAN JOSÉ | B12: 469 | C12: 226027 | D12: 153344 | E12: 150879 | F12: 11899 | G12: 0 | H12: 1696 | I12: 0 | J12: 1363 | K12: 6164 | L12: 7807 | M12: 52480 | N12: 0 | O12: 0 | P12: 19109 | Q12: 6074 | R12: 0 | S12: 766 | T12: 25569 | U12: 0 | V12: 0 | W12: 17952 | X12: 1709 | Y12: 756
A13: ESCAZÚ | B13: 82 | C13: 39855 | D13: 28965 | E13: 28506 | F13: 1364 | G13: 0 | H13: 135 | I13: 0 | J13: 287 | K13: 625 | L13: 1294 | M13: 11910 | N13: 0 | O13: 0 | P13: 4925 | Q13: 607 | R13: 0 | S13: 69 | T13: 4326 | U13: 0 | V13: 0 | W13: 2964 | X13: 299 | Y13: 160
A14: DESAMPARADOS | B14: 308 | C14: 143636 | D14: 99988 | E14: 98082 | F14: 6555 | G14: 0 | H14: 1774 | I14: 0 | J14: 1331 | K14: 3233 | L14: 4525 | M14: 33280 | N14: 0 | O14: 0 | P14: 12758 | Q14: 4855 | R14: 0 | S14: 413 | T14: 16184 | U14: 0 | V14: 0 | W14: 13174 | X14: 1272 | Y14: 634
A15: PURISCAL | B15: 70 | C15: 24260 | D15: 17623 | E15: 17093 | F15: 1683 | G15: 0 | H15: 48 | I15: 0 | J15: 145 | K15: 167 | L15: 330 | M15: 7479 | N15: 0 | O15: 0 | P15: 2065 | Q15: 410 | R15: 0 | S15: 86 | T15: 3242 | U15: 0 | V15: 0 | W15: 1438 | X15: 208 | Y15: 322
A16: TARRAZÚ | B16: 28 | C16: 10376 | D16: 6954 | E16: 6671 | F16: 1030 | G16: 0 | H16: 126 | I16: 0 | J16: 34 | K16: 100 | L16: 197 | M16: 2757 | N16: 0 | O16: 0 | P16: 752 | Q16: 89 | R16: 0 | S16: 26 | T16: 1179 | U16: 0 | V16: 0 | W16: 381 | X16: 121 | Y16: 162
A17: ASERRÍ | B17: 86 | C17: 36900 | D17: 25386 | E17: 24658 | F17: 1657 | G17: 0 | H17: 998 | I17: 0 | J17: 219 | K17: 539 | L17: 1122 | M17: 8448 | N17: 0 | O17: 0 | P17: 3171 | Q17: 698 | R17: 0 | S17: 86 | T17: 4506 | U17: 0 | V17: 0 | W17: 3214 | X17: 433 | Y17: 295
A18: MORA | B18: 43 | C18: 17043 | D18: 12351 | E18: 11974 | F18: 1179 | G18: 0 | H18: 67 | I18: 0 | J18: 74 | K18: 318 | L18: 387 | M18: 4564 | N18: 0 | O18: 0 | P18: 1725 | Q18: 401 | R18: 0 | S18: 34 | T18: 1997 | U18: 0 | V18: 0 | W18: 1228 | X18: 221 | Y18: 156
A19: GOICOECHEA | B19: 179 | C19: 85706 | D19: 59757 | E19: 58764 | F19: 3895 | G19: 0 | H19: 1249 | I19: 0 | J19: 626 | K19: 2072 | L19: 3649 | M19: 18080 | N19: 0 | O19: 0 | P19: 7468 | Q19: 3301 | R19: 0 | S19: 267 | T19: 11687 | U19: 0 | V19: 0 | W19: 6470 | X19: 668 | Y19: 325
A20: SANTA ANA | B20: 58 | C20: 27313 | D20: 19968 | E20: 19553 | F20: 1679 | G20: 0 | H20: 95 | I20: 0 | J20: 326 | K20: 580 | L20: 627 | M20: 7736 | N20: 0 | O20: 0 | P20: 2868 | Q20: 618 | R20: 0 | S20: 68 | T20: 3096 | U20: 0 | V20: 0 | W20: 1860 | X20: 272 | Y20: 143
A21: ALAJUELITA | B21: 93 | C21: 44270 | D21: 29153 | E21: 28482 | F21: 2298 | G21: 0 | H21: 256 | I21: 0 | J21: 295 | K21: 1169 | L21: 1035 | M21: 8620 | N21: 0 | O21: 0 | P21: 4342 | Q21: 1314 | R21: 0 | S21: 166 | T21: 4264 | U21: 0 | V21: 0 | W21: 4723 | X21: 458 | Y21: 213
A22: VÁZQUEZ DE CORONADO | B22: 91 | C22: 44773 | D22: 33078 | E22: 32593 | F22: 2136 | G22: 0 | H22: 335 | I22: 0 | J22: 255 | K22: 1123 | L22: 1741 | M22: 10689 | N22: 0 | O22: 0 | P22: 3927 | Q22: 1453 | R22: 0 | S22: 122 | T22: 6781 | U22: 0 | V22: 0 | W22: 4031 | X22: 324 | Y22: 161
A23: ACOSTA | B23: 44 | C23: 14081 | D23: 10029 | E23: 9687 | F23: 1027 | G23: 0 | H23: 46 | I23: 0 | J23: 390 | K23: 123 | L23: 160 | M23: 3893 | N23: 0 | O23: 0 | P23: 1096 | Q23: 156 | R23: 0 | S23: 73 | T23: 2009 | U23: 0 | V23: 0 | W23: 714 | X23: 177 | Y23: 165
A24: TIBÁS | B24: 115 | C24: 55673 | D24: 39543 | E24: 38992 | F24: 2715 | G24: 0 | H24: 364 | I24: 0 | J24: 330 | K24: 1268 | L24: 1834 | M24: 13615 | N24: 0 | O24: 0 | P24: 5165 | Q24: 1763 | R24: 0 | S24: 100 | T24: 7767 | U24: 0 | V24: 0 | W24: 4071 | X24: 382 | Y24: 169
A25: MORAVIA | B25: 83 | C25: 39778 | D25: 29170 | E25: 28805 | F25: 1788 | G25: 0 | H25: 318 | I25: 0 | J25: 520 | K25: 741 | L25: 1615 | M25: 10011 | N25: 0 | O25: 0 | P25: 3348 | Q25: 1495 | R25: 0 | S25: 69 | T25: 6205 | U25: 0 | V25: 0 | W25: 2695 | X25: 234 | Y25: 131
A26: MONTES DE OCA | B26: 85 | C26: 41139 | D26: 30587 | E26: 30230 | F26: 1856 | G26: 0 | H26: 432 | I26: 0 | J26: 395 | K26: 573 | L26: 2916 | M26: 10524 | N26: 0 | O26: 0 | P26: 3028 | Q26: 842 | R26: 0 | S26: 88 | T26: 7075 | U26: 0 | V26: 0 | W26: 2501 | X26: 252 | Y26: 105
A27: TURRUBARES | B27: 16 | C27: 3963 | D27: 2980 | E27: 2894 | F27: 950 | G27: 0 | H27: 4 | I27: 0 | J27: 9 | K27: 33 | L27: 24 | M27: 1355 | N27: 0 | O27: 0 | P27: 204 | Q27: 15 | R27: 0 | S27: 25 | T27: 212 | U27: 0 | V27: 0 | W27: 63 | X27: 43 | Y27: 43
A28: DOTA | B28: 14 | C28: 4789 | D28: 3215 | E28: 3100 | F28: 207 | G28: 0 | H28: 36 | I28: 0 | J28: 48 | K28: 43 | L28: 67 | M28: 1197 | N28: 0 | O28: 0 | P28: 262 | Q28: 22 | R28: 0 | S28: 16 | T28: 1036 | U28: 0 | V28: 0 | W28: 166 | X28: 37 | Y28: 78
A29: CURRIDABAT | B29: 91 | C29: 43957 | D29: 31958 | E29: 31371 | F29: 1992 | G29: 0 | H29: 333 | I29: 0 | J29: 283 | K29: 998 | L29: 1696 | M29: 11651 | N29: 0 | O29: 0 | P29: 3957 | Q29: 1186 | R29: 0 | S29: 74 | T29: 5663 | U29: 0 | V29: 0 | W29: 3538 | X29: 378 | Y29: 209
A30: PÉREZ ZELEDÓN | B30: 251 | C30: 96629 | D30: 64799 | E30: 62846 | F30: 4361 | G30: 0 | H30: 209 | I30: 0 | J30: 518 | K30: 619 | L30: 1053 | M30: 23899 | N30: 0 | O30: 0 | P30: 4462 | Q30: 4147 | R30: 0 | S30: 150 | T30: 17929 | U30: 0 | V30: 0 | W30: 5499 | X30: 1072 | Y30: 881
A31: LEÓN CORTÉS | B31: 26 | C31: 8009 | D31: 5409 | E31: 5156 | F31: 609 | G31: 0 | H31: 16 | I31: 0 | J31: 62 | K31: 75 | L31: 168 | M31: 2575 | N31: 0 | O31: 0 | P31: 507 | Q31: 84 | R31: 0 | S31: 26 | T31: 749 | U31: 0 | V31: 0 | W31: 285 | X31: 77 | Y31: 176
A33: PROVINCIA ALAJUELA | B33: 1252 | C33: 524215 | D33: 374912 | E33: 365548 | F33: 23746 | G33: 1609 | H33: 1314 | I33: 0 | J33: 6922 | K33: 16156 | L33: 4835 | M33: 139515 | N33: 0 | O33: 7298 | P33: 60198 | Q33: 0 | R33: 0 | S33: 0 | T33: 72880 | U33: 0 | V33: 0 | W33: 31075 | X33: 5412 | Y33: 3952
A35: ALAJUELA | B35: 376 | C35: 170966 | D35: 119817 | E35: 117283 | F35: 8020 | G35: 553 | H35: 600 | I35: 0 | J35: 1144 | K35: 3679 | L35: 1809 | M35: 43565 | N35: 0 | O35: 2590 | P35: 20442 | Q35: 0 | R35: 0 | S35: 0 | T35: 20680 | U35: 0 | V35: 0 | W35: 14201 | X35: 1619 | Y35: 915
A36: SAN RAMÓN | B36: 126 | C36: 52853 | D36: 38828 | E36: 37787 | F36: 1787 | G36: 118 | H36: 147 | I36: 0 | J36: 2062 | K36: 3422 | L36: 628 | M36: 12914 | N36: 0 | O36: 221 | P36: 3611 | Q36: 0 | R36: 0 | S36: 0 | T36: 10697 | U36: 0 | V36: 0 | W36: 2180 | X36: 535 | Y36: 506
A37: GRECIA | B37: 119 | C37: 50109 | D37: 36833 | E37: 36002 | F37: 2180 | G37: 170 | H37: 127 | I37: 0 | J37: 678 | K37: 1442 | L37: 463 | M37: 13860 | N37: 0 | O37: 861 | P37: 5800 | Q37: 0 | R37: 0 | S37: 0 | T37: 6906 | U37: 0 | V37: 0 | W37: 3515 | X37: 437 | Y37: 394
A38: SAN MATEO | B38: 11 | C38: 3798 | D38: 2669 | E38: 2570 | F38: 353 | G38: 6 | H38: 7 | I38: 0 | J38: 111 | K38: 179 | L38: 20 | M38: 1060 | N38: 0 | O38: 17 | P38: 471 | Q38: 0 | R38: 0 | S38: 0 | T38: 234 | U38: 0 | V38: 0 | W38: 112 | X38: 60 | Y38: 39
A39: ATENAS | B39: 41 | C39: 17379 | D39: 13236 | E39: 12892 | F39: 935 | G39: 28 | H39: 58 | I39: 0 | J39: 359 | K39: 355 | L39: 210 | M39: 4328 | N39: 0 | O39: 140 | P39: 1448 | Q39: 0 | R39: 0 | S39: 0 | T39: 3136 | U39: 0 | V39: 0 | W39: 1895 | X39: 178 | Y39: 166
A40: NARANJO | B40: 66 | C40: 27740 | D40: 20181 | E40: 19640 | F40: 1577 | G40: 52 | H40: 56 | I40: 0 | J40: 165 | K40: 654 | L40: 268 | M40: 7505 | N40: 0 | O40: 250 | P40: 3721 | Q40: 0 | R40: 0 | S40: 0 | T40: 4261 | U40: 0 | V40: 0 | W40: 1131 | X40: 283 | Y40: 258
A41: PALMARES | B41: 53 | C41: 24911 | D41: 18636 | E41: 18072 | F41: 869 | G41: 20 | H41: 62 | I41: 0 | J41: 979 | K41: 698 | L41: 434 | M41: 6986 | N41: 0 | O41: 256 | P41: 2131 | Q41: 0 | R41: 0 | S41: 0 | T41: 4224 | U41: 0 | V41: 0 | W41: 1413 | X41: 299 | Y41: 265
A42: POÁS | B42: 42 | C42: 17866 | D42: 13635 | E42: 13343 | F42: 740 | G42: 243 | H42: 50 | I42: 0 | J42: 88 | K42: 343 | L42: 150 | M42: 5316 | N42: 0 | O42: 213 | P42: 2758 | Q42: 0 | R42: 0 | S42: 0 | T42: 2075 | U42: 0 | V42: 0 | W42: 1367 | X42: 165 | Y42: 127
A43: OROTINA | B43: 31 | C43: 12685 | D43: 8558 | E43: 8347 | F43: 1048 | G43: 77 | H43: 14 | I43: 0 | J43: 22 | K43: 360 | L43: 55 | M43: 3915 | N43: 0 | O43: 33 | P43: 1335 | Q43: 0 | R43: 0 | S43: 0 | T43: 846 | U43: 0 | V43: 0 | W43: 642 | X43: 138 | Y43: 73
A44: SAN CARLOS | B44: 219 | C44: 86525 | D44: 62270 | E44: 60676 | F44: 2928 | G44: 161 | H44: 118 | I44: 0 | J44: 582 | K44: 3694 | L44: 503 | M44: 23764 | N44: 0 | O44: 2353 | P44: 10124 | Q44: 0 | R44: 0 | S44: 0 | T44: 13446 | U44: 0 | V44: 0 | W44: 3003 | X44: 921 | Y44: 673
A45: ALFARO RUIZ | B45: 22 | C45: 7844 | D45: 6461 | E45: 6341 | F45: 426 | G45: 5 | H45: 13 | I45: 0 | J45: 228 | K45: 95 | L45: 55 | M45: 2789 | N45: 0 | O45: 41 | P45: 588 | Q45: 0 | R45: 0 | S45: 0 | T45: 1766 | U45: 0 | V45: 0 | W45: 335 | X45: 56 | Y45: 64
A46: VALVERDE VEGA | B46: 29 | C46: 12623 | D46: 9154 | E46: 8963 | F46: 545 | G46: 15 | H46: 16 | I46: 0 | J46: 41 | K46: 352 | L46: 52 | M46: 1978 | N46: 0 | O46: 208 | P46: 4651 | Q46: 0 | R46: 0 | S46: 0 | T46: 769 | U46: 0 | V46: 0 | W46: 336 | X46: 125 | Y46: 66
A47: UPALA | B47: 64 | C47: 21183 | D47: 13134 | E47: 12593 | F47: 633 | G47: 146 | H47: 23 | I47: 0 | J47: 345 | K47: 298 | L47: 105 | M47: 7287 | N47: 0 | O47: 59 | P47: 1398 | Q47: 0 | R47: 0 | S47: 0 | T47: 1907 | U47: 0 | V47: 0 | W47: 392 | X47: 318 | Y47: 223
A48: LOS CHILES | B48: 28 | C48: 9004 | D48: 5800 | E48: 5577 | F48: 443 | G48: 5 | H48: 11 | I48: 0 | J48: 90 | K48: 323 | L48: 42 | M48: 2126 | N48: 0 | O48: 38 | P48: 1000 | Q48: 0 | R48: 0 | S48: 0 | T48: 1245 | U48: 0 | V48: 0 | W48: 254 | X48: 139 | Y48: 84
A49: GUATUSO | B49: 25 | C49: 8729 | D49: 5700 | E49: 5462 | F49: 1262 | G49: 10 | H49: 12 | I49: 0 | J49: 28 | K49: 262 | L49: 41 | M49: 2122 | N49: 0 | O49: 18 | P49: 720 | Q49: 0 | R49: 0 | S49: 0 | T49: 688 | U49: 0 | V49: 0 | W49: 299 | X49: 139 | Y49: 99
A51: PROVINCIA CARTAGO | B51: 746 | C51: 328782 | D51: 243682 | E51: 237267 | F51: 18121 | G51: 0 | H51: 851 | I51: 2901 | J51: 2898 | K51: 6664 | L51: 6685 | M51: 92286 | N51: 11862 | O51: 0 | P51: 31197 | Q51: 0 | R51: 0 | S51: 0 | T51: 40437 | U51: 4590 | V51: 0 | W51: 18775 | X51: 3960 | Y51: 2455
A53: CARTAGO | B53: 223 | C53: 104564 | D53: 79833 | E53: 78072 | F53: 5860 | G53: 0 | H53: 274 | I53: 1011 | J53: 930 | K53: 2540 | L53: 2407 | M53: 31628 | N53: 2567 | O53: 0 | P53: 10728 | Q53: 0 | R53: 0 | S53: 0 | T53: 13194 | U53: 874 | V53: 0 | W53: 6059 | X53: 1109 | Y53: 652
A54: PARAÍSO | B54: 87 | C54: 39163 | D54: 28994 | E54: 28012 | F54: 2052 | G54: 0 | H54: 73 | I54: 367 | J54: 241 | K54: 735 | L54: 1106 | M54: 9396 | N54: 3301 | O54: 0 | P54: 3567 | Q54: 0 | R54: 0 | S54: 0 | T54: 4658 | U54: 359 | V54: 0 | W54: 2157 | X54: 600 | Y54: 382
A55: LA UNIÓN | B55: 123 | C55: 57841 | D55: 41468 | E55: 40679 | F55: 2747 | G55: 0 | H55: 253 | I55: 627 | J55: 243 | K55: 1642 | L55: 1425 | M55: 13742 | N55: 1024 | O55: 0 | P55: 6049 | Q55: 0 | R55: 0 | S55: 0 | T55: 7793 | U55: 237 | V55: 0 | W55: 4897 | X55: 535 | Y55: 254
A56: JIMÉNEZ | B56: 28 | C56: 10397 | D56: 7783 | E56: 7508 | F56: 874 | G56: 0 | H56: 26 | I56: 70 | J56: 113 | K56: 127 | L56: 84 | M56: 3285 | N56: 493 | O56: 0 | P56: 803 | Q56: 0 | R56: 0 | S56: 0 | T56: 1094 | U56: 96 | V56: 0 | W56: 443 | X56: 165 | Y56: 110
A57: TURRIALBA | B57: 140 | C57: 51433 | D57: 36203 | E57: 35097 | F57: 3519 | G57: 0 | H57: 86 | I57: 399 | J57: 603 | K57: 477 | L57: 552 | M57: 15751 | N57: 1054 | O57: 0 | P57: 3806 | Q57: 0 | R57: 0 | S57: 0 | T57: 6274 | U57: 838 | V57: 0 | W57: 1738 | X57: 619 | Y57: 487
A58: ALVARADO | B58: 21 | C58: 8510 | D58: 6263 | E58: 6001 | F58: 260 | G58: 0 | H58: 16 | I58: 43 | J58: 24 | K58: 88 | L58: 50 | M58: 1618 | N58: 2150 | O58: 0 | P58: 518 | Q58: 0 | R58: 0 | S58: 0 | T58: 844 | U58: 41 | V58: 0 | W58: 349 | X58: 167 | Y58: 95
A59: OREAMUNO | B59: 64 | C59: 30006 | D59: 22354 | E59: 21671 | F59: 1171 | G59: 0 | H59: 65 | I59: 193 | J59: 606 | K59: 407 | L59: 674 | M59: 8185 | N59: 967 | O59: 0 | P59: 2713 | Q59: 0 | R59: 0 | S59: 0 | T59: 3242 | U59: 1955 | V59: 0 | W59: 1493 | X59: 453 | Y59: 230
A60: EL GUARCO | B60: 60 | C60: 26868 | D60: 20784 | E60: 20227 | F60: 1638 | G60: 0 | H60: 58 | I60: 191 | J60: 138 | K60: 648 | L60: 387 | M60: 8681 | N60: 306 | O60: 0 | P60: 3013 | Q60: 0 | R60: 0 | S60: 0 | T60: 3338 | U60: 190 | V60: 0 | W60: 1639 | X60: 312 | Y60: 245
A62: PROVINCIA HEREDIA | B62: 604 | C62: 278544 | D62: 203697 | E62: 199698 | F62: 14510 | G62: 0 | H62: 950 | I62: 0 | J62: 3785 | K62: 5724 | L62: 9523 | M62: 73929 | N62: 0 | O62: 0 | P62: 27766 | Q62: 0 | R62: 0 | S62: 0 | T62: 38143 | U62: 0 | V62: 7953 | W62: 17415 | X62: 2466 | Y62: 1533
A64: HEREDIA | B64: 176 | C64: 84511 | D64: 61372 | E64: 60460 | F64: 3832 | G64: 0 | H64: 276 | I64: 0 | J64: 1302 | K64: 1601 | L64: 3680 | M64: 22862 | N64: 0 | O64: 0 | P64: 7944 | Q64: 0 | R64: 0 | S64: 0 | T64: 11060 | U64: 0 | V64: 2665 | W64: 5238 | X64: 590 | Y64: 322
A65: BARVA | B65: 58 | C65: 26982 | D65: 20375 | E65: 20040 | F65: 1089 | G65: 0 | H65: 85 | I65: 0 | J65: 266 | K65: 453 | L65: 1262 | M65: 6631 | N65: 0 | O65: 0 | P65: 3004 | Q65: 0 | R65: 0 | S65: 0 | T65: 4607 | U65: 0 | V65: 937 | W65: 1706 | X65: 207 | Y65: 128
A66: SANTO DOMINGO | B66: 63 | C66: 30208 | D66: 22872 | E66: 22518 | F66: 1330 | G66: 0 | H66: 121 | I66: 0 | J66: 231 | K66: 551 | L66: 906 | M66: 8575 | N66: 0 | O66: 0 | P66: 2829 | Q66: 0 | R66: 0 | S66: 0 | T66: 4555 | U66: 0 | V66: 600 | W66: 2820 | X66: 231 | Y66: 123
A67: SANTA BÁRBARA | B67: 48 | C67: 22277 | D67: 16419 | E67: 16040 | F67: 822 | G67: 0 | H67: 101 | I67: 0 | J67: 220 | K67: 354 | L67: 665 | M67: 5749 | N67: 0 | O67: 0 | P67: 2775 | Q67: 0 | R67: 0 | S67: 0 | T67: 3008 | U67: 0 | V67: 799 | W67: 1547 | X67: 216 | Y67: 163
A68: SAN RAFAEL | B68: 62 | C68: 29077 | D68: 20851 | E68: 20391 | F68: 1161 | G68: 0 | H68: 101 | I68: 0 | J68: 391 | K68: 364 | L68: 1078 | M68: 7019 | N68: 0 | O68: 0 | P68: 3098 | Q68: 0 | R68: 0 | S68: 0 | T68: 4058 | U68: 0 | V68: 1338 | W68: 1783 | X68: 283 | Y68: 177
A69: SAN ISIDRO | B69: 28 | C69: 12800 | D69: 9544 | E69: 9340 | F69: 571 | G69: 0 | H69: 50 | I69: 0 | J69: 99 | K69: 150 | L69: 272 | M69: 4120 | N69: 0 | O69: 0 | P69: 918 | Q69: 0 | R69: 0 | S69: 0 | T69: 2193 | U69: 0 | V69: 193 | W69: 774 | X69: 112 | Y69: 92
A70: BELÉN | B70: 32 | C70: 15687 | D70: 12012 | E70: 11790 | F70: 1239 | G70: 0 | H70: 42 | I70: 0 | J70: 214 | K70: 129 | L70: 319 | M70: 5117 | N70: 0 | O70: 0 | P70: 1537 | Q70: 0 | R70: 0 | S70: 0 | T70: 2020 | U70: 0 | V70: 240 | W70: 933 | X70: 134 | Y70: 88
A71: FLORES | B71: 27 | C71: 13404 | D71: 10272 | E71: 10053 | F71: 645 | G71: 0 | H71: 35 | I71: 0 | J71: 358 | K71: 148 | L71: 334 | M71: 4172 | N71: 0 | O71: 0 | P71: 1339 | Q71: 0 | R71: 0 | S71: 0 | T71: 1955 | U71: 0 | V71: 309 | W71: 758 | X71: 128 | Y71: 91
A72: SAN PABLO | B72: 38 | C72: 17791 | D72: 13468 | E72: 13256 | F72: 2607 | G72: 0 | H72: 70 | I72: 0 | J72: 150 | K72: 272 | L72: 608 | M72: 4400 | N72: 0 | O72: 0 | P72: 1287 | Q72: 0 | R72: 0 | S72: 0 | T72: 2490 | U72: 0 | V72: 441 | W72: 931 | X72: 143 | Y72: 69
A73: SARAPIQUÍ | B73: 72 | C73: 25807 | D73: 16512 | E73: 15810 | F73: 1214 | G73: 0 | H73: 69 | I73: 0 | J73: 554 | K73: 1702 | L73: 399 | M73: 5284 | N73: 0 | O73: 0 | P73: 3035 | Q73: 0 | R73: 0 | S73: 0 | T73: 2197 | U73: 0 | V73: 431 | W73: 925 | X73: 422 | Y73: 280
A75: PROVINCIA GUANACASTE | B75: 550 | C75: 199237 | D75: 131931 | E75: 126828 | F75: 13951 | G75: 0 | H75: 418 | I75: 0 | J75: 3971 | K75: 6433 | L75: 2778 | M75: 54676 | N75: 0 | O75: 0 | P75: 17162 | Q75: 0 | R75: 0 | S75: 0 | T75: 14729 | U75: 0 | V75: 0 | W75: 12710 | X75: 3162 | Y75: 1941
A77: LIBERIA | B77: 84 | C77: 36952 | D77: 22679 | E77: 21917 | F77: 1976 | G77: 0 | H77: 155 | I77: 0 | J77: 230 | K77: 1010 | L77: 193 | M77: 5631 | N77: 0 | O77: 0 | P77: 1978 | Q77: 0 | R77: 0 | S77: 0 | T77: 1943 | U77: 0 | V77: 0 | W77: 8801 | X77: 503 | Y77: 259
A78: NICOYA | B78: 106 | C78: 34993 | D78: 24488 | E78: 23502 | F78: 4226 | G78: 0 | H78: 50 | I78: 0 | J78: 649 | K78: 709 | L78: 810 | M78: 11601 | N78: 0 | O78: 0 | P78: 2931 | Q78: 0 | R78: 0 | S78: 0 | T78: 1969 | U78: 0 | V78: 0 | W78: 557 | X78: 601 | Y78: 385
A79: SANTA CRUZ | B79: 89 | C79: 33780 | D79: 22650 | E79: 21603 | F79: 2032 | G79: 0 | H79: 52 | I79: 0 | J79: 250 | K79: 866 | L79: 613 | M79: 10001 | N79: 0 | O79: 0 | P79: 3537 | Q79: 0 | R79: 0 | S79: 0 | T79: 3518 | U79: 0 | V79: 0 | W79: 734 | X79: 643 | Y79: 404
A80: BAGACES | B80: 31 | C80: 10928 | D80: 7050 | E80: 6800 | F80: 497 | G80: 0 | H80: 18 | I80: 0 | J80: 317 | K80: 625 | L80: 55 | M80: 2737 | N80: 0 | O80: 0 | P80: 831 | Q80: 0 | R80: 0 | S80: 0 | T80: 1384 | U80: 0 | V80: 0 | W80: 336 | X80: 132 | Y80: 118
A81: CARRILLO | B81: 47 | C81: 19540 | D81: 12275 | E81: 11858 | F81: 1395 | G81: 0 | H81: 33 | I81: 0 | J81: 85 | K81: 894 | L81: 315 | M81: 5469 | N81: 0 | O81: 0 | P81: 1646 | Q81: 0 | R81: 0 | S81: 0 | T81: 1018 | U81: 0 | V81: 0 | W81: 1003 | X81: 279 | Y81: 138
A82: CAÑAS | B82: 42 | C82: 17069 | D82: 10689 | E82: 10377 | F82: 987 | G82: 0 | H82: 18 | I82: 0 | J82: 205 | K82: 622 | L82: 133 | M82: 5597 | N82: 0 | O82: 0 | P82: 1183 | Q82: 0 | R82: 0 | S82: 0 | T82: 1284 | U82: 0 | V82: 0 | W82: 348 | X82: 203 | Y82: 109
A83: ABANGARES | B83: 37 | C83: 11481 | D83: 7807 | E83: 7426 | F83: 686 | G83: 0 | H83: 35 | I83: 0 | J83: 1146 | K83: 399 | L83: 376 | M83: 2691 | N83: 0 | O83: 0 | P83: 1077 | Q83: 0 | R83: 0 | S83: 0 | T83: 686 | U83: 0 | V83: 0 | W83: 330 | X83: 247 | Y83: 134
A84: TILARÁN | B84: 39 | C84: 13144 | D84: 9502 | E84: 9163 | F84: 906 | G84: 0 | H84: 17 | I84: 0 | J84: 153 | K84: 611 | L84: 173 | M84: 3724 | N84: 0 | O84: 0 | P84: 1754 | Q84: 0 | R84: 0 | S84: 0 | T84: 1479 | U84: 0 | V84: 0 | W84: 346 | X84: 208 | Y84: 131
A85: NANDAYURE | B85: 29 | C85: 7390 | D85: 5343 | E85: 5096 | F85: 391 | G85: 0 | H85: 21 | I85: 0 | J85: 326 | K85: 126 | L85: 39 | M85: 2971 | N85: 0 | O85: 0 | P85: 572 | Q85: 0 | R85: 0 | S85: 0 | T85: 576 | U85: 0 | V85: 0 | W85: 74 | X85: 148 | Y85: 99
A86: LA CRUZ | B86: 28 | C86: 9025 | D86: 5745 | E86: 5535 | F86: 554 | G86: 0 | H86: 13 | I86: 0 | J86: 31 | K86: 479 | L86: 40 | M86: 2447 | N86: 0 | O86: 0 | P86: 1275 | Q86: 0 | R86: 0 | S86: 0 | T86: 570 | U86: 0 | V86: 0 | W86: 126 | X86: 139 | Y86: 71
A87: HOJANCHA | B87: 18 | C87: 4935 | D87: 3703 | E87: 3551 | F87: 301 | G87: 0 | H87: 6 | I87: 0 | J87: 579 | K87: 92 | L87: 31 | M87: 1807 | N87: 0 | O87: 0 | P87: 378 | Q87: 0 | R87: 0 | S87: 0 | T87: 302 | U87: 0 | V87: 0 | W87: 55 | X87: 59 | Y87: 93
A89: PROVINCIA PUNTARENAS | B89: 702 | C89: 259408 | D89: 154529 | E89: 148527 | F89: 20444 | G89: 0 | H89: 1428 | I89: 0 | J89: 1624 | K89: 6336 | L89: 3303 | M89: 58985 | N89: 0 | O89: 0 | P89: 27645 | Q89: 0 | R89: 0 | S89: 0 | T89: 21181 | U89: 0 | V89: 0 | W89: 7581 | X89: 3371 | Y89: 2631
A91: PUNTARENAS | B91: 200 | C91: 76163 | D91: 46460 | E91: 45015 | F91: 7960 | G91: 0 | H91: 936 | I91: 0 | J91: 205 | K91: 1881 | L91: 1434 | M91: 16910 | N91: 0 | O91: 0 | P91: 8042 | Q91: 0 | R91: 0 | S91: 0 | T91: 4968 | U91: 0 | V91: 0 | W91: 2679 | X91: 892 | Y91: 553
A92: ESPARZA | B92: 47 | C92: 18283 | D92: 12686 | E92: 12405 | F92: 1957 | G92: 0 | H92: 98 | I92: 0 | J92: 49 | K92: 311 | L92: 191 | M92: 5239 | N92: 0 | O92: 0 | P92: 2265 | Q92: 0 | R92: 0 | S92: 0 | T92: 1693 | U92: 0 | V92: 0 | W92: 602 | X92: 168 | Y92: 113
A93: BUENOS AIRES | B93: 77 | C93: 26649 | D93: 15514 | E93: 14806 | F93: 894 | G93: 0 | H93: 56 | I93: 0 | J93: 178 | K93: 340 | L93: 370 | M93: 6555 | N93: 0 | O93: 0 | P93: 2379 | Q93: 0 | R93: 0 | S93: 0 | T93: 3298 | U93: 0 | V93: 0 | W93: 736 | X93: 319 | Y93: 389
A94: MONTES DE ORO | B94: 25 | C94: 8556 | D94: 5778 | E94: 5548 | F94: 659 | G94: 0 | H94: 41 | I94: 0 | J94: 110 | K94: 158 | L94: 57 | M94: 2047 | N94: 0 | O94: 0 | P94: 1050 | Q94: 0 | R94: 0 | S94: 0 | T94: 1155 | U94: 0 | V94: 0 | W94: 271 | X94: 97 | Y94: 133
A95: OSA | B95: 54 | C95: 18252 | D95: 10795 | E95: 10279 | F95: 793 | G95: 0 | H95: 52 | I95: 0 | J95: 90 | K95: 768 | L95: 191 | M95: 4395 | N95: 0 | O95: 0 | P95: 2187 | Q95: 0 | R95: 0 | S95: 0 | T95: 1354 | U95: 0 | V95: 0 | W95: 449 | X95: 274 | Y95: 242
A96: AGUIRRE | B96: 44 | C96: 16283 | D96: 9529 | E96: 9119 | F96: 1198 | G96: 0 | H96: 51 | I96: 0 | J96: 93 | K96: 714 | L96: 81 | M96: 3568 | N96: 0 | O96: 0 | P96: 1934 | Q96: 0 | R96: 0 | S96: 0 | T96: 1011 | U96: 0 | V96: 0 | W96: 469 | X96: 208 | Y96: 202
A97: GOLFITO | B97: 65 | C97: 24375 | D97: 13230 | E97: 12620 | F97: 1336 | G97: 0 | H97: 53 | I97: 0 | J97: 146 | K97: 319 | L97: 398 | M97: 5479 | N97: 0 | O97: 0 | P97: 2338 | Q97: 0 | R97: 0 | S97: 0 | T97: 2093 | U97: 0 | V97: 0 | W97: 458 | X97: 326 | Y97: 284
A98: COTO BRUS | B98: 72 | C98: 25753 | D98: 14591 | E98: 13952 | F98: 3519 | G98: 0 | H98: 34 | I98: 0 | J98: 70 | K98: 190 | L98: 158 | M98: 4940 | N98: 0 | O98: 0 | P98: 1928 | Q98: 0 | R98: 0 | S98: 0 | T98: 1997 | U98: 0 | V98: 0 | W98: 1116 | X98: 351 | Y98: 288
A99: PARRITA | B99: 32 | C99: 9503 | D99: 6133 | E99: 5870 | F99: 434 | G99: 0 | H99: 20 | I99: 0 | J99: 13 | K99: 448 | L99: 27 | M99: 2080 | N99: 0 | O99: 0 | P99: 2447 | Q99: 0 | R99: 0 | S99: 0 | T99: 320 | U99: 0 | V99: 0 | W99: 81 | X99: 171 | Y99: 92
A100: CORREDORES | B100: 66 | C100: 27134 | D100: 14714 | E100: 14019 | F100: 926 | G100: 0 | H100: 64 | I100: 0 | J100: 657 | K100: 1142 | L100: 331 | M100: 5250 | N100: 0 | O100: 0 | P100: 2224 | Q100: 0 | R100: 0 | S100: 0 | T100: 2861 | U100: 0 | V100: 0 | W100: 564 | X100: 443 | Y100: 252
A101: GARABITO | B101: 20 | C101: 8457 | D101: 5099 | E101: 4894 | F101: 768 | G101: 0 | H101: 23 | I101: 0 | J101: 13 | K101: 65 | L101: 65 | M101: 2522 | N101: 0 | O101: 0 | P101: 851 | Q101: 0 | R101: 0 | S101: 0 | T101: 431 | U101: 0 | V101: 0 | W101: 156 | X101: 122 | Y101: 83
A103: PROVINCIA LIMÓN | B103: 531 | C103: 224128 | D103: 137700 | E103: 131621 | F103: 13395 | G103: 0 | H103: 1145 | I103: 0 | J103: 1639 | K103: 11274 | L103: 9616 | M103: 43889 | N103: 0 | O103: 0 | P103: 26411 | Q103: 0 | R103: 1127 | S103: 0 | T103: 15790 | U103: 0 | V103: 0 | W103: 7335 | X103: 3798 | Y103: 2281
A105: LIMÓN | B105: 142 | C105: 61180 | D105: 35348 | E105: 33928 | F105: 4009 | G105: 0 | H105: 684 | I105: 0 | J105: 303 | K105: 2091 | L105: 1638 | M105: 12484 | N105: 0 | O105: 0 | P105: 6483 | Q105: 0 | R105: 153 | S105: 0 | T105: 4324 | U105: 0 | V105: 0 | W105: 1759 | X105: 896 | Y105: 524
A106: POCOCÍ | B106: 170 | C106: 73072 | D106: 47129 | E106: 45327 | F106: 2684 | G106: 0 | H106: 203 | I106: 0 | J106: 446 | K106: 3483 | L106: 3019 | M106: 14665 | N106: 0 | O106: 0 | P106: 11911 | Q106: 0 | R106: 422 | S106: 0 | T106: 5337 | U106: 0 | V106: 0 | W106: 3157 | X106: 1139 | Y106: 663
A107: SIQUIRRES | B107: 84 | C107: 33841 | D107: 20308 | E107: 19367 | F107: 1913 | G107: 0 | H107: 97 | I107: 0 | J107: 430 | K107: 1780 | L107: 2951 | M107: 6744 | N107: 0 | O107: 0 | P107: 2429 | Q107: 0 | R107: 200 | S107: 0 | T107: 1602 | U107: 0 | V107: 0 | W107: 1221 | X107: 569 | Y107: 372
A108: TALAMANCA | B108: 38 | C108: 15029 | D108: 8898 | E108: 8358 | F108: 1850 | G108: 0 | H108: 46 | I108: 0 | J108: 49 | K108: 518 | L108: 302 | M108: 2629 | N108: 0 | O108: 0 | P108: 1182 | Q108: 0 | R108: 48 | S108: 0 | T108: 1616 | U108: 0 | V108: 0 | W108: 118 | X108: 318 | Y108: 222
A109: MATINA | B109: 44 | C109: 17995 | D109: 11558 | E109: 10906 | F109: 2150 | G109: 0 | H109: 50 | I109: 0 | J109: 298 | K109: 2193 | L109: 791 | M109: 2704 | N109: 0 | O109: 0 | P109: 1336 | Q109: 0 | R109: 52 | S109: 0 | T109: 1012 | U109: 0 | V109: 0 | W109: 320 | X109: 419 | Y109: 233
A110: GUÁCIMO | B110: 53 | C110: 23011 | D110: 14459 | E110: 13735 | F110: 789 | G110: 0 | H110: 65 | I110: 0 | J110: 113 | K110: 1209 | L110: 915 | M110: 4663 | N110: 0 | O110: 0 | P110: 3070 | Q110: 0 | R110: 252 | S110: 0 | T110: 1899 | U110: 0 | V110: 0 | W110: 760 | X110: 457 | Y110: 267

Sheet C2.3
A2: CUADRO 2.3 SAN JOSÉ: JUNTAS, ELECTORADO, VOTOS POR PARTIDO, NULOS Y BLANCOS PARA DIPUTACIONES A LA ASAMBLEA LEGISLATIVA, SEGÚN CANTÓN Y DISTRITO ADMINISTRATIVO ELECCIONES 7 DE FEBRERO 2010
A4: CANTÓN Y DISTRITO ADMINISTRATIVO | B4: JUNTAS | C4: ELECTORADO | D4: VOTOS RECIBIDOS
D5: TOTAL GENERAL | E5: VOTOS VÁLIDOS | Q5: NULOS | R5: BLANCOS
E6: TOTAL | F6: UNIDAD SOCIAL CRISTIANA | G6: INTEGRACIÓN NACIONAL | H6: ALIANZA PATRIÓTICA | I6: RENOVACIÓN COSTARRICENSE | J6: FRENTE AMPLIO | K6: LIBERACIÓN NACIONAL | L6: MOVIMIENTO LIBERTARIO | M6: RESTAURACIÓN NACIONAL | N6: ALIANZA MAYOR | O6: ACCIÓN CIUDADANA | P6: ACCESIBILIDAD SIN EXCLUSIÓN
A8: PROVINCIA SAN JOSÉ | B8: 2232 | C8: 1008177 | D8: 704257 | E8: 690336 | F8: 50880 | G8: 8537 | H8: 7510 | I8: 20563 | J8: 32247 | K8: 244763 | L8: 85139 | M8: 29530 | N8: 2724 | O8: 131476 | P8: 76967 | Q8: 8637 | R8: 5284
A9: CANTÓN 1 SAN JOSÉ | B9: 469 | C9: 226027 | D9: 153344 | E9: 150879 | F9: 11899 | G9: 1696 | H9: 1363 | I9: 6164 | J9: 7807 | K9: 52480 | L9: 19109 | M9: 6074 | N9: 766 | O9: 25569 | P9: 17952 | Q9: 1709 | R9: 756
A10: CARMEN | B10: 11 | C10: 4665 | D10: 3115 | E10: 3060 | F10: 245 | G10: 82 | H10: 34 | I10: 42 | J10: 226 | K10: 1245 | L10: 362 | M10: 65 | N10: 8 | O10: 533 | P10: 218 | Q10: 27 | R10: 28
A11: MERCED | B11: 21 | C11: 9723 | D11: 6321 | E11: 6229 | F11: 553 | G11: 64 | H11: 59 | I11: 189 | J11: 292 | K11: 2204 | L11: 882 | M11: 242 | N11: 39 | O11: 1087 | P11: 618 | Q11: 55 | R11: 37
A12: HOSPITAL | B12: 40 | C12: 18596 | D12: 11809 | E12: 11600 | F12: 1068 | G12: 127 | H12: 92 | I12: 364 | J12: 692 | K12: 3913 | L12: 1584 | M12: 617 | N12: 36 | O12: 1654 | P12: 1453 | Q12: 128 | R12: 81
A13: CATEDRAL | B13: 32 | C13: 15318 | D13: 10339 | E13: 10191 | F13: 937 | G13: 153 | H13: 121 | I13: 261 | J13: 630 | K13: 3460 | L13: 1221 | M13: 338 | N13: 54 | O13: 1928 | P13: 1088 | Q13: 94 | R13: 54
A14: ZAPOTE | B14: 36 | C14: 17556 | D14: 12912 | E14: 12776 | F14: 870 | G14: 167 | H14: 143 | I14: 272 | J14: 863 | K14: 4418 | L14: 1251 | M14: 524 | N14: 60 | O14: 2779 | P14: 1429 | Q14: 96 | R14: 40
A15: SAN FRANCISCO DE DOS RÍOS | B15: 38 | C15: 18426 | D15: 13552 | E15: 13416 | F15: 796 | G15: 219 | H15: 136 | I15: 312 | J15: 821 | K15: 4896 | L15: 1426 | M15: 412 | N15: 195 | O15: 2932 | P15: 1271 | Q15: 100 | R15: 36
A16: URUCA | B16: 29 | C16: 13229 | D16: 8903 | E16: 8731 | F16: 585 | G16: 79 | H16: 69 | I16: 324 | J16: 348 | K16: 3331 | L16: 1485 | M16: 353 | N16: 32 | O16: 1356 | P16: 769 | Q16: 117 | R16: 55
A17: MATA REDONDA | B17: 15 | C17: 7347 | D17: 5160 | E17: 5103 | F17: 388 | G17: 54 | H17: 32 | I17: 106 | J17: 195 | K17: 2445 | L17: 594 | M17: 67 | N17: 17 | O17: 818 | P17: 387 | Q17: 44 | R17: 13
A18: PAVAS | B18: 97 | C18: 47928 | D18: 32031 | E18: 31411 | F18: 2626 | G18: 219 | H18: 257 | I18: 1920 | J18: 981 | K18: 11402 | L18: 4783 | M18: 1261 | N18: 131 | O18: 4414 | P18: 3417 | Q18: 445 | R18: 175
A19: HATILLO | B19: 90 | C19: 43806 | D19: 28962 | E19: 28444 | F19: 2225 | G19: 264 | H19: 251 | I19: 1630 | J19: 1484 | K19: 8940 | L19: 3221 | M19: 1369 | N19: 118 | O19: 4438 | P19: 4504 | Q19: 379 | R19: 139
A20: SAN SEBASTIÁN | B20: 60 | C20: 29433 | D20: 20240 | E20: 19918 | F20: 1606 | G20: 268 | H20: 169 | I20: 744 | J20: 1275 | K20: 6226 | L20: 2300 | M20: 826 | N20: 76 | O20: 3630 | P20: 2798 | Q20: 224 | R20: 98
A21: CANTÓN 2 ESCAZÚ | B21: 82 | C21: 39855 | D21: 28965 | E21: 28506 | F21: 1364 | G21: 135 | H21: 287 | I21: 625 | J21: 1294 | K21: 11910 | L21: 4925 | M21: 607 | N21: 69 | O21: 4326 | P21: 2964 | Q21: 299 | R21: 160
A22: ESCAZÚ | B22: 23 | C22: 11404 | D22: 8436 | E22: 8291 | F22: 460 | G22: 46 | H22: 85 | I22: 171 | J22: 410 | K22: 3206 | L22: 1496 | M22: 181 | N22: 20 | O22: 1303 | P22: 913 | Q22: 96 | R22: 49
A23: SAN ANTONIO | B23: 26 | C23: 12763 | D23: 8897 | E23: 8707 | F23: 354 | G23: 52 | H23: 114 | I23: 269 | J23: 423 | K23: 2820 | L23: 1560 | M23: 263 | N23: 24 | O23: 1497 | P23: 1331 | Q23: 129 | R23: 61
A24: SAN RAFAEL | B24: 33 | C24: 15688 | D24: 11632 | E24: 11508 | F24: 550 | G24: 37 | H24: 88 | I24: 185 | J24: 461 | K24: 5884 | L24: 1869 | M24: 163 | N24: 25 | O24: 1526 | P24: 720 | Q24: 74 | R24: 50
A25: CANTÓN 3 DESAMPARADOS | B25: 308 | C25: 143636 | D25: 99988 | E25: 98082 | F25: 6555 | G25: 1774 | H25: 1331 | I25: 3233 | J25: 4525 | K25: 33280 | L25: 12758 | M25: 4855 | N25: 413 | O25: 16184 | P25: 13174 | Q25: 1272 | R25: 634
A26: DESAMPARADOS | B26: 61 | C26: 29804 | D26: 21550 | E26: 21248 | F26: 1364 | G26: 351 | H26: 286 | I26: 740 | J26: 1175 | K26: 6937 | L26: 2530 | M26: 935 | N26: 95 | O26: 3987 | P26: 2848 | Q26: 216 | R26: 86
A27: SAN MIGUEL | B27: 52 | C27: 23888 | D27: 15994 | E27: 15657 | F27: 1165 | G27: 654 | H27: 106 | I27: 561 | J27: 575 | K27: 5135 | L27: 2186 | M27: 920 | N27: 65 | O27: 2126 | P27: 2164 | Q27: 221 | R27: 116
A28: SAN JUAN DE DIOS | B28: 23 | C28: 11533 | D28: 7762 | E28: 7615 | F28: 538 | G28: 96 | H28: 57 | I28: 287 | J28: 278 | K28: 2278 | L28: 1225 | M28: 295 | N28: 27 | O28: 1120 | P28: 1414 | Q28: 112 | R28: 35
A29: SAN RAFAEL ARRIBA | B29: 23 | C29: 10180 | D29: 7155 | E29: 7030 | F29: 501 | G29: 86 | H29: 90 | I29: 223 | J29: 281 | K29: 2349 | L29: 849 | M29: 272 | N29: 18 | O29: 1332 | P29: 1029 | Q29: 86 | R29: 39
A30: SAN ANTONIO | B30: 17 | C30: 8403 | D30: 6273 | E30: 6187 | F30: 368 | G30: 76 | H30: 68 | I30: 170 | J30: 466 | K30: 2254 | L30: 623 | M30: 235 | N30: 30 | O30: 1175 | P30: 722 | Q30: 65 | R30: 21
A31: FRAILES | B31: 7 | C31: 2593 | D31: 1833 | E31: 1769 | F31: 89 | G31: 21 | H31: 22 | I31: 20 | J31: 95 | K31: 1082 | L31: 131 | M31: 29 | N31: 4 | O31: 174 | P31: 102 | Q31: 22 | R31: 42
A32: PATARRÁ | B32: 12 | C32: 5383 | D32: 3537 | E32: 3464 | F32: 280 | G32: 47 | H32: 50 | I32: 97 | J32: 131 | K32: 1264 | L32: 457 | M32: 171 | N32: 18 | O32: 545 | P32: 404 | Q32: 48 | R32: 25
A33: SAN CRISTÓBAL | B33: 7 | C33: 2789 | D33: 2158 | E33: 2079 | F33: 43 | G33: 16 | H33: 61 | I33: 10 | J33: 46 | K33: 1276 | L33: 206 | M33: 8 | N33: 19 | O33: 229 | P33: 165 | Q33: 33 | R33: 46
A34: ROSARIO | B34: 9 | C34: 2478 | D34: 1749 | E34: 1694 | F34: 77 | G34: 21 | H34: 9 | I34: 22 | J34: 49 | K34: 923 | L34: 245 | M34: 22 | N34: 8 | O34: 155 | P34: 163 | Q34: 29 | R34: 26
A35: DAMAS | B35: 18 | C35: 8436 | D35: 6109 | E35: 5991 | F35: 402 | G35: 92 | H35: 255 | I35: 240 | J35: 247 | K35: 1827 | L35: 636 | M35: 375 | N35: 34 | O35: 997 | P35: 886 | Q35: 82 | R35: 36
A36: SAN RAFAEL ABAJO | B36: 30 | C36: 14551 | D36: 10251 | E36: 10079 | F36: 651 | G36: 101 | H36: 79 | I36: 343 | J36: 458 | K36: 3090 | L36: 1458 | M36: 550 | N36: 39 | O36: 1852 | P36: 1458 | Q36: 124 | R36: 48
A37: GRAVILIAS | B37: 26 | C37: 12489 | D37: 9292 | E37: 9180 | F37: 720 | G37: 148 | H37: 190 | I37: 255 | J37: 526 | K37: 2879 | L37: 1094 | M37: 319 | N37: 36 | O37: 1883 | P37: 1130 | Q37: 71 | R37: 41
A38: LOS GUIDO | B38: 23 | C38: 11109 | D38: 6325 | E38: 6089 | F38: 357 | G38: 65 | H38: 58 | I38: 265 | J38: 198 | K38: 1986 | L38: 1118 | M38: 724 | N38: 20 | O38: 609 | P38: 689 | Q38: 163 | R38: 73
A39: CANTÓN 4 PURISCAL | B39: 70 | C39: 24260 | D39: 17623 | E39: 17093 | F39: 1683 | G39: 48 | H39: 145 | I39: 167 | J39: 330 | K39: 7479 | L39: 2065 | M39: 410 | N39: 86 | O39: 3242 | P39: 1438 | Q39: 208 | R39: 322
A40: SANTIAGO | B40: 21 | C40: 9303 | D40: 6867 | E40: 6712 | F40: 729 | G40: 15 | H40: 52 | I40: 73 | J40: 164 | K40: 2657 | L40: 794 | M40: 209 | N40: 30 | O40: 1349 | P40: 640 | Q40: 75 | R40: 80
A41: MERCEDES SUR | B41: 13 | C41: 3683 | D41: 2711 | E41: 2612 | F41: 227 | G41: 7 | H41: 31 | I41: 40 | J41: 43 | K41: 1137 | L41: 355 | M41: 46 | N41: 15 | O41: 505 | P41: 206 | Q41: 35 | R41: 64
A42: BARBACOAS | B42: 8 | C42: 2894 | D42: 2211 | E42: 2134 | F42: 146 | G42: 11 | H42: 24 | I42: 13 | J42: 35 | K42: 1020 | L42: 260 | M42: 51 | N42: 10 | O42: 372 | P42: 192 | Q42: 28 | R42: 49
A43: GRIFO ALTO | B43: 3 | C43: 847 | D43: 600 | E43: 580 | F43: 105 | G43: 0 | H43: 4 | I43: 2 | J43: 15 | K43: 218 | L43: 51 | M43: 4 | N43: 4 | O43: 128 | P43: 49 | Q43: 5 | R43: 15
A44: SAN RAFAEL | B44: 3 | C44: 1165 | D44: 796 | E44: 763 | F44: 163 | G44: 0 | H44: 4 | I44: 5 | J44: 12 | K44: 326 | L44: 77 | M44: 5 | N44: 3 | O44: 124 | P44: 44 | Q44: 13 | R44: 20
A45: CANDELARITA | B45: 4 | C45: 1268 | D45: 943 | E45: 896 | F45: 44 | G45: 2 | H45: 8 | I45: 4 | J45: 8 | K45: 546 | L45: 86 | M45: 5 | N45: 5 | O45: 142 | P45: 46 | Q45: 12 | R45: 35
A46: DESAMPARADITOS | B46: 1 | C46: 488 | D46: 353 | E46: 345 | F46: 47 | G46: 0 | H46: 2 | I46: 0 | J46: 5 | K46: 117 | L46: 51 | M46: 3 | N46: 0 | O46: 80 | P46: 40 | Q46: 3 | R46: 5
A47: SAN ANTONIO | B47: 6 | C47: 2501 | D47: 1745 | E47: 1706 | F47: 151 | G47: 9 | H47: 10 | I47: 18 | J47: 38 | K47: 733 | L47: 253 | M47: 44 | N47: 12 | O47: 266 | P47: 172 | Q47: 14 | R47: 25
A48: CHIRES | B48: 11 | C48: 2111 | D48: 1397 | E48: 1345 | F48: 71 | G48: 4 | H48: 10 | I48: 12 | J48: 10 | K48: 725 | L48: 138 | M48: 43 | N48: 7 | O48: 276 | P48: 49 | Q48: 23 | R48: 29
A49: CANTÓN 5 TARRAZÚ | B49: 28 | C49: 10376 | D49: 6954 | E49: 6671 | F49: 1030 | G49: 126 | H49: 34 | I49: 100 | J49: 197 | K49: 2757 | L49: 752 | M49: 89 | N49: 26 | O49: 1179 | P49: 381 | Q49: 121 | R49: 162
A50: SAN MARCOS | B50: 15 | C50: 6550 | D50: 4462 | E50: 4298 | F50: 623 | G50: 70 | H50: 25 | I50: 76 | J50: 162 | K50: 1716 | L50: 435 | M50: 76 | N50: 15 | O50: 813 | P50: 287 | Q50: 71 | R50: 93
A51: SAN LORENZO | B51: 10 | C51: 2589 | D51: 1679 | E51: 1613 | F51: 233 | G51: 39 | H51: 7 | I51: 12 | J51: 30 | K51: 718 | L51: 196 | M51: 7 | N51: 7 | O51: 285 | P51: 79 | Q51: 27 | R51: 39
A52: SAN CARLOS | B52: 3 | C52: 1237 | D52: 813 | E52: 760 | F52: 174 | G52: 17 | H52: 2 | I52: 12 | J52: 5 | K52: 323 | L52: 121 | M52: 6 | N52: 4 | O52: 81 | P52: 15 | Q52: 23 | R52: 30
A53: CANTÓN 6 ASERRÍ | B53: 86 | C53: 36900 | D53: 25386 | E53: 24658 | F53: 1657 | G53: 998 | H53: 219 | I53: 539 | J53: 1122 | K53: 8448 | L53: 3171 | M53: 698 | N53: 86 | O53: 4506 | P53: 3214 | Q53: 433 | R53: 295
A54: ASERRÍ | B54: 44 | C54: 21006 | D54: 14366 | E54: 14025 | F54: 947 | G54: 640 | H54: 99 | I54: 351 | J54: 657 | K54: 4434 | L54: 1847 | M54: 431 | N54: 34 | O54: 2523 | P54: 2062 | Q54: 225 | R54: 116
A55: TARBACA | B55: 5 | C55: 1530 | D55: 1056 | E55: 1007 | F55: 70 | G55: 41 | H55: 14 | I55: 10 | J55: 30 | K55: 398 | L55: 118 | M55: 28 | N55: 3 | O55: 177 | P55: 118 | Q55: 17 | R55: 32
A56: VUELTA DE JORCO | B56: 11 | C56: 4225 | D56: 3068 | E56: 2983 | F56: 238 | G56: 105 | H56: 43 | I56: 58 | J56: 77 | K56: 1041 | L56: 409 | M56: 57 | N56: 30 | O56: 609 | P56: 316 | Q56: 43 | R56: 42
A57: SAN GABRIEL | B57: 7 | C57: 3154 | D57: 2307 | E57: 2220 | F57: 112 | G57: 46 | H57: 35 | I57: 17 | J57: 89 | K57: 902 | L57: 297 | M57: 62 | N57: 4 | O57: 429 | P57: 227 | Q57: 52 | R57: 35
A58: LEGUA | B58: 5 | C58: 1066 | D58: 708 | E58: 679 | F58: 31 | G58: 10 | H58: 2 | I58: 5 | J58: 58 | K58: 243 | L58: 31 | M58: 5 | N58: 3 | O58: 251 | P58: 40 | Q58: 8 | R58: 21
A59: MONTERREY | B59: 3 | C59: 680 | D59: 455 | E59: 430 | F59: 19 | G59: 6 | H59: 3 | I59: 2 | J59: 12 | K59: 280 | L59: 27 | M59: 3 | N59: 0 | O59: 55 | P59: 23 | Q59: 7 | R59: 18
A60: SALITRILLOS | B60: 11 | C60: 5239 | D60: 3426 | E60: 3314 | F60: 240 | G60: 150 | H60: 23 | I60: 96 | J60: 199 | K60: 1150 | L60: 442 | M60: 112 | N60: 12 | O60: 462 | P60: 428 | Q60: 81 | R60: 31
A61: CANTÓN 7 MORA | B61: 43 | C61: 17043 | D61: 12351 | E61: 11974 | F61: 1179 | G61: 67 | H61: 74 | I61: 318 | J61: 387 | K61: 4564 | L61: 1725 | M61: 401 | N61: 34 | O61: 1997 | P61: 1228 | Q61: 221 | R61: 156
A62: COLÓN | B62: 24 | C62: 10560 | D62: 7856 | E62: 7688 | F62: 761 | G62: 48 | H62: 53 | I62: 153 | J62: 289 | K62: 2831 | L62: 1043 | M62: 208 | N62: 21 | O62: 1451 | P62: 830 | Q62: 94 | R62: 74
A63: GUAYABO | B63: 6 | C63: 2404 | D63: 1668 | E63: 1607 | F63: 142 | G63: 3 | H63: 8 | I63: 25 | J63: 40 | K63: 635 | L63: 254 | M63: 65 | N63: 7 | O63: 258 | P63: 170 | Q63: 29 | R63: 32
A64: TABARCIA | B64: 10 | C64: 3360 | D64: 2321 | E64: 2189 | F64: 208 | G64: 14 | H64: 11 | I64: 138 | J64: 52 | K64: 826 | L64: 393 | M64: 118 | N64: 5 | O64: 227 | P64: 197 | Q64: 87 | R64: 45
A65: PIEDRAS NEGRAS | B65: 1 | C65: 223 | D65: 155 | E65: 150 | F65: 10 | G65: 1 | H65: 0 | I65: 1 | J65: 1 | K65: 104 | L65: 9 | M65: 0 | N65: 0 | O65: 14 | P65: 10 | Q65: 3 | R65: 2
A66: PICAGRES | B66: 2 | C66: 496 | D66: 351 | E66: 340 | F66: 58 | G66: 1 | H66: 2 | I66: 1 | J66: 5 | K66: 168 | L66: 26 | M66: 10 | N66: 1 | O66: 47 | P66: 21 | Q66: 8 | R66: 3
A67: CANTÓN 8 GOICOECHEA | B67: 179 | C67: 85706 | D67: 59757 | E67: 58764 | F67: 3895 | G67: 1249 | H67: 626 | I67: 2072 | J67: 3649 | K67: 18080 | L67: 7468 | M67: 3301 | N67: 267 | O67: 11687 | P67: 6470 | Q67: 668 | R67: 325
A68: GUADALUPE | B68: 43 | C68: 20768 | D68: 14829 | E68: 14601 | F68: 915 | G68: 345 | H68: 158 | I68: 338 | J68: 1020 | K68: 4660 | L68: 1677 | M68: 741 | N68: 49 | O68: 3183 | P68: 1515 | Q68: 157 | R68: 71
A69: SAN FRANCISCO | B69: 5 | C69: 2116 | D69: 1563 | E69: 1543 | F69: 113 | G69: 24 | H69: 43 | I69: 26 | J69: 83 | K69: 503 | L69: 213 | M69: 40 | N69: 8 | O69: 289 | P69: 201 | Q69: 11 | R69: 9
A70: CALLE BLANCOS | B70: 24 | C70: 11781 | D70: 8700 | E70: 8594 | F70: 583 | G70: 98 | H70: 119 | I70: 174 | J70: 609 | K70: 2876 | L70: 1080 | M70: 309 | N70: 39 | O70: 1745 | P70: 962 | Q70: 66 | R70: 40
A71: MATA DE PLÁTANO | B71: 24 | C71: 11564 | D71: 8337 | E71: 8220 | F71: 427 | G71: 140 | H71: 101 | I71: 222 | J71: 630 | K71: 2520 | L71: 885 | M71: 396 | N71: 96 | O71: 1956 | P71: 847 | Q71: 78 | R71: 39
A72: IPÍS | B72: 44 | C72: 21240 | D72: 14916 | E72: 14659 | F72: 1003 | G72: 347 | H72: 121 | I72: 823 | J72: 822 | K72: 4231 | L72: 1847 | M72: 987 | N72: 41 | O72: 2644 | P72: 1793 | Q72: 173 | R72: 84
A73: RANCHO REDONDO | B73: 7 | C73: 2753 | D73: 1875 | E73: 1821 | F73: 129 | G73: 25 | H73: 22 | I73: 60 | J73: 52 | K73: 745 | L73: 263 | M73: 66 | N73: 5 | O73: 292 | P73: 162 | Q73: 32 | R73: 22
A74: PURRAL | B74: 32 | C74: 15484 | D74: 9537 | E74: 9326 | F74: 725 | G74: 270 | H74: 62 | I74: 429 | J74: 433 | K74: 2545 | L74: 1503 | M74: 762 | N74: 29 | O74: 1578 | P74: 990 | Q74: 151 | R74: 60
A75: CANTÓN 9 SANTA ANA | B75: 58 | C75: 27313 | D75: 19968 | E75: 19553 | F75: 1679 | G75: 95 | H75: 326 | I75: 580 | J75: 627 | K75: 7736 | L75: 2868 | M75: 618 | N75: 68 | O75: 3096 | P75: 1860 | Q75: 272 | R75: 143
A76: SANTA ANA | B76: 15 | C76: 7385 | D76: 5588 | E76: 5498 | F76: 586 | G76: 22 | H76: 66 | I76: 140 | J76: 209 | K76: 2219 | L76: 725 | M76: 210 | N76: 15 | O76: 867 | P76: 439 | Q76: 63 | R76: 27
A77: SALITRAL | B77: 6 | C77: 2310 | D77: 1603 | E77: 1552 | F77: 117 | G77: 10 | H77: 17 | I77: 40 | J77: 36 | K77: 677 | L77: 221 | M77: 44 | N77: 2 | O77: 228 | P77: 160 | Q77: 34 | R77: 17
A78: POZOS | B78: 16 | C78: 7749 | D78: 5551 | E78: 5434 | F78: 424 | G78: 24 | H78: 142 | I78: 180 | J78: 142 | K78: 2199 | L78: 814 | M78: 191 | N78: 25 | O78: 784 | P78: 509 | Q78: 82 | R78: 35
A79: URUCA | B79: 10 | C79: 4608 | D79: 3354 | E79: 3275 | F79: 274 | G79: 18 | H79: 54 | I79: 96 | J79: 118 | K79: 1224 | L79: 552 | M79: 89 | N79: 18 | O79: 518 | P79: 314 | Q79: 47 | R79: 32
A80: PIEDADES | B80: 8 | C80: 4049 | D80: 2970 | E80: 2909 | F80: 177 | G80: 18 | H80: 35 | I80: 96 | J80: 100 | K80: 1150 | L80: 417 | M80: 56 | N80: 7 | O80: 543 | P80: 310 | Q80: 36 | R80: 25
A81: BRASIL | B81: 3 | C81: 1212 | D81: 902 | E81: 885 | F81: 101 | G81: 3 | H81: 12 | I81: 28 | J81: 22 | K81: 267 | L81: 139 | M81: 28 | N81: 1 | O81: 156 | P81: 128 | Q81: 10 | R81: 7
A82: CANTÓN 10 ALAJUELITA | B82: 93 | C82: 44270 | D82: 29153 | E82: 28482 | F82: 2298 | G82: 256 | H82: 295 | I82: 1169 | J82: 1035 | K82: 8620 | L82: 4342 | M82: 1314 | N82: 166 | O82: 4264 | P82: 4723 | Q82: 458 | R82: 213
A83: ALAJUELITA | B83: 19 | C83: 9434 | D83: 6409 | E83: 6307 | F83: 538 | G83: 67 | H83: 31 | I83: 276 | J83: 273 | K83: 1945 | L83: 906 | M83: 234 | N83: 32 | O83: 1019 | P83: 986 | Q83: 72 | R83: 30
A84: SAN JOSÉCITO | B84: 14 | C84: 6825 | D84: 4614 | E84: 4507 | F84: 368 | G84: 45 | H84: 38 | I84: 126 | J84: 209 | K84: 1336 | L84: 594 | M84: 258 | N84: 25 | O84: 794 | P84: 714 | Q84: 76 | R84: 31
A85: SAN ANTONIO | B85: 4 | C85: 1310 | D85: 873 | E85: 853 | F85: 55 | G85: 4 | H85: 3 | I85: 15 | J85: 31 | K85: 261 | L85: 126 | M85: 24 | N85: 9 | O85: 203 | P85: 122 | Q85: 11 | R85: 9
A86: CONCEPCIÓN | B86: 24 | C86: 11231 | D86: 7383 | E86: 7199 | F86: 565 | G86: 60 | H86: 49 | I86: 330 | J86: 234 | K86: 2168 | L86: 1102 | M86: 282 | N86: 27 | O86: 970 | P86: 1412 | Q86: 136 | R86: 48
A87: SAN FELIPE | B87: 32 | C87: 15470 | D87: 9874 | E87: 9616 | F87: 772 | G87: 80 | H87: 174 | I87: 422 | J87: 288 | K87: 2910 | L87: 1614 | M87: 516 | N87: 73 | O87: 1278 | P87: 1489 | Q87: 163 | R87: 95
A88: CANTÓN 11 VÁZQUEZ DE CORONADO | B88: 91 | C88: 44773 | D88: 33078 | E88: 32593 | F88: 2136 | G88: 335 | H88: 255 | I88: 1123 | J88: 1741 | K88: 10689 | L88: 3927 | M88: 1453 | N88: 122 | O88: 6781 | P88: 4031 | Q88: 324 | R88: 161
A89: SAN ISIDRO | B89: 27 | C89: 13368 | D89: 10084 | E89: 9941 | F89: 726 | G89: 102 | H89: 83 | I89: 350 | J89: 575 | K89: 3274 | L89: 1151 | M89: 386 | N89: 32 | O89: 2170 | P89: 1092 | Q89: 96 | R89: 47
A90: SAN RAFAEL | B90: 10 | C90: 4795 | D90: 3471 | E90: 3409 | F90: 191 | G90: 41 | H90: 25 | I90: 86 | J90: 123 | K90: 1385 | L90: 418 | M90: 111 | N90: 16 | O90: 596 | P90: 417 | Q90: 39 | R90: 23
A91: DULCE NOMBRE DE JESÚS | B91: 16 | C91: 7846 | D91: 5586 | E91: 5494 | F91: 331 | G91: 52 | H91: 51 | I91: 206 | J91: 270 | K91: 1703 | L91: 677 | M91: 333 | N91: 25 | O91: 1131 | P91: 715 | Q91: 65 | R91: 27
A92: PATALILLO | B92: 29 | C92: 14186 | D92: 10942 | E92: 10812 | F92: 632 | G92: 109 | H92: 59 | I92: 389 | J92: 658 | K92: 3354 | L92: 1294 | M92: 489 | N92: 40 | O92: 2352 | P92: 1436 | Q92: 85 | R92: 45
A93: CASCAJAL | B93: 9 | C93: 4578 | D93: 2995 | E93: 2937 | F93: 256 | G93: 31 | H93: 37 | I93: 92 | J93: 115 | K93: 973 | L93: 387 | M93: 134 | N93: 9 | O93: 532 | P93: 371 | Q93: 39 | R93: 19
A94: CANTÓN 12 ACOSTA | B94: 44 | C94: 14081 | D94: 10029 | E94: 9687 | F94: 1027 | G94: 46 | H94: 390 | I94: 123 | J94: 160 | K94: 3893 | L94: 1096 | M94: 156 | N94: 73 | O94: 2009 | P94: 714 | Q94: 177 | R94: 165
A95: SAN IGNACIO | B95: 15 | C95: 5987 | D95: 4563 | E95: 4476 | F95: 553 | G95: 17 | H95: 205 | I95: 44 | J95: 106 | K95: 1647 | L95: 393 | M95: 66 | N95: 23 | O95: 1007 | P95: 415 | Q95: 46 | R95: 41
A96: GUAITIL | B96: 6 | C96: 1802 | D96: 1187 | E96: 1138 | F96: 84 | G96: 4 | H96: 20 | I96: 5 | J96: 12 | K96: 502 | L96: 115 | M96: 8 | N96: 11 | O96: 298 | P96: 79 | Q96: 18 | R96: 31
A97: PALMICHAL | B97: 9 | C97: 3191 | D97: 2339 | E97: 2238 | F97: 266 | G97: 15 | H97: 76 | I97: 61 | J97: 25 | K97: 891 | L97: 302 | M97: 68 | N97: 22 | O97: 390 | P97: 122 | Q97: 64 | R97: 37
A98: CANGREJAL | B98: 5 | C98: 1362 | D98: 864 | E98: 823 | F98: 49 | G98: 6 | H98: 70 | I98: 6 | J98: 11 | K98: 299 | L98: 121 | M98: 7 | N98: 9 | O98: 187 | P98: 58 | Q98: 24 | R98: 17
A99: SABANILLAS | B99: 9 | C99: 1739 | D99: 1076 | E99: 1012 | F99: 75 | G99: 4 | H99: 19 | I99: 7 | J99: 6 | K99: 554 | L99: 165 | M99: 7 | N99: 8 | O99: 127 | P99: 40 | Q99: 25 | R99: 39
A100: CANTÓN 13 TIBÁS | B100: 115 | C100: 55673 | D100: 39543 | E100: 38992 | F100: 2715 | G100: 364 | H100: 330 | I100: 1268 | J100: 1834 | K100: 13615 | L100: 5165 | M100: 1763 | N100: 100 | O100: 7767 | P100: 4071 | Q100: 382 | R100: 169
A101: SAN JUAN | B101: 45 | C101: 22022 | D101: 16043 | E101: 15873 | F101: 1042 | G101: 145 | H101: 161 | I101: 458 | J101: 765 | K101: 5852 | L101: 1847 | M101: 517 | N101: 24 | O101: 3499 | P101: 1563 | Q101: 114 | R101: 56
A102: CINCO ESQUINAS | B102: 15 | C102: 7166 | D102: 4746 | E102: 4673 | F102: 400 | G102: 38 | H102: 30 | I102: 155 | J102: 211 | K102: 1536 | L102: 673 | M102: 237 | N102: 16 | O102: 820 | P102: 557 | Q102: 51 | R102: 22
A103: ANSELMO LLORENTE | B103: 18 | C103: 8743 | D103: 6608 | E103: 6541 | F103: 395 | G103: 62 | H103: 49 | I103: 164 | J103: 428 | K103: 2333 | L103: 705 | M103: 272 | N103: 24 | O103: 1521 | P103: 588 | Q103: 46 | R103: 21
A104: LEÓN XIII | B104: 17 | C104: 8112 | D104: 5245 | E104: 5093 | F104: 501 | G104: 34 | H104: 25 | I104: 270 | J104: 133 | K104: 1559 | L104: 1068 | M104: 331 | N104: 19 | O104: 512 | P104: 641 | Q104: 114 | R104: 38
A105: COLIMA | B105: 20 | C105: 9630 | D105: 6901 | E105: 6812 | F105: 377 | G105: 85 | H105: 65 | I105: 221 | J105: 297 | K105: 2335 | L105: 872 | M105: 406 | N105: 17 | O105: 1415 | P105: 722 | Q105: 57 | R105: 32
A106: CANTÓN 14 MORAVIA | B106: 83 | C106: 39778 | D106: 29170 | E106: 28805 | F106: 1788 | G106: 318 | H106: 520 | I106: 741 | J106: 1615 | K106: 10011 | L106: 3348 | M106: 1495 | N106: 69 | O106: 6205 | P106: 2695 | Q106: 234 | R106: 131
A107: SAN VICENTE | B107: 52 | C107: 25252 | D107: 18943 | E107: 18729 | F107: 1072 | G107: 215 | H107: 353 | I107: 394 | J107: 1141 | K107: 6981 | L107: 2056 | M107: 865 | N107: 34 | O107: 4159 | P107: 1459 | Q107: 141 | R107: 73
A108: SAN JERÓNIMO | B108: 8 | C108: 3328 | D108: 2304 | E108: 2261 | F108: 197 | G108: 19 | H108: 22 | I108: 53 | J108: 82 | K108: 697 | L108: 302 | M108: 91 | N108: 13 | O108: 511 | P108: 274 | Q108: 29 | R108: 14
A109: LA TRINIDAD | B109: 23 | C109: 11198 | D109: 7923 | E109: 7815 | F109: 519 | G109: 84 | H109: 145 | I109: 294 | J109: 392 | K109: 2333 | L109: 990 | M109: 539 | N109: 22 | O109: 1535 | P109: 962 | Q109: 64 | R109: 44
A110: CANTÓN 15 MONTES DE OCA | B110: 85 | C110: 41139 | D110: 30587 | E110: 30230 | F110: 1856 | G110: 432 | H110: 395 | I110: 573 | J110: 2916 | K110: 10524 | L110: 3028 | M110: 842 | N110: 88 | O110: 7075 | P110: 2501 | Q110: 252 | R110: 105
A111: SAN PEDRO | B111: 43 | C111: 21113 | D111: 15483 | E111: 15317 | F111: 959 | G111: 224 | H111: 194 | I111: 249 | J111: 1461 | K111: 5584 | L111: 1545 | M111: 426 | N111: 33 | O111: 3506 | P111: 1136 | Q111: 113 | R111: 53
A112: SABANILLA | B112: 23 | C112: 11139 | D112: 8533 | E112: 8444 | F112: 467 | G112: 115 | H112: 119 | I112: 146 | J112: 791 | K112: 2836 | L112: 859 | M112: 236 | N112: 32 | O112: 2115 | P112: 728 | Q112: 61 | R112: 28
A113: MERCEDES | B113: 7 | C113: 3066 | D113: 2308 | E113: 2277 | F113: 159 | G113: 31 | H113: 39 | I113: 29 | J113: 283 | K113: 795 | L113: 197 | M113: 50 | N113: 4 | O113: 529 | P113: 161 | Q113: 22 | R113: 9
A114: SAN RAFAEL | B114: 12 | C114: 5821 | D114: 4263 | E114: 4192 | F114: 271 | G114: 62 | H114: 43 | I114: 149 | J114: 381 | K114: 1309 | L114: 427 | M114: 130 | N114: 19 | O114: 925 | P114: 476 | Q114: 56 | R114: 15
A115: CANTÓN 16 TURRUBARES | B115: 16 | C115: 3963 | D115: 2980 | E115: 2894 | F115: 950 | G115: 4 | H115: 9 | I115: 33 | J115: 24 | K115: 1355 | L115: 204 | M115: 15 | N115: 25 | O115: 212 | P115: 63 | Q115: 43 | R115: 43
A116: SAN PABLO | B116: 3 | C116: 1089 | D116: 824 | E116: 810 | F116: 282 | G116: 0 | H116: 3 | I116: 7 | J116: 7 | K116: 359 | L116: 44 | M116: 11 | N116: 5 | O116: 70 | P116: 22 | Q116: 3 | R116: 11
A117: SAN PEDRO | B117: 1 | C117: 407 | D117: 355 | E117: 351 | F117: 111 | G117: 1 | H117: 1 | I117: 8 | J117: 4 | K117: 156 | L117: 25 | M117: 0 | N117: 13 | O117: 26 | P117: 6 | Q117: 2 | R117: 2
A118: SAN JUAN DE MATA | B118: 2 | C118: 787 | D118: 539 | E118: 521 | F118: 131 | G118: 1 | H118: 3 | I118: 5 | J118: 9 | K118: 236 | L118: 72 | M118: 2 | N118: 3 | O118: 36 | P118: 23 | Q118: 8 | R118: 10
A119: SAN LUIS | B119: 4 | C119: 436 | D119: 329 | E119: 317 | F119: 98 | G119: 1 | H119: 1 | I119: 0 | J119: 4 | K119: 156 | L119: 22 | M119: 0 | N119: 3 | O119: 25 | P119: 7 | Q119: 4 | R119: 8
A120: CARARA | B120: 6 | C120: 1244 | D120: 933 | E120: 895 | F120: 328 | G120: 1 | H120: 1 | I120: 13 | J120: 0 | K120: 448 | L120: 41 | M120: 2 | N120: 1 | O120: 55 | P120: 5 | Q120: 26 | R120: 12
A121: CANTÓN 17 DOTA | B121: 14 | C121: 4789 | D121: 3215 | E121: 3100 | F121: 207 | G121: 36 | H121: 48 | I121: 43 | J121: 67 | K121: 1197 | L121: 262 | M121: 22 | N121: 16 | O121: 1036 | P121: 166 | Q121: 37 | R121: 78
A122: SANTA MARÍA | B122: 8 | C122: 3351 | D122: 2158 | E122: 2086 | F122: 169 | G122: 26 | H122: 28 | I122: 41 | J122: 53 | K122: 766 | L122: 161 | M122: 12 | N122: 8 | O122: 705 | P122: 117 | Q122: 23 | R122: 49
A123: JARDÍN | B123: 1 | C123: 225 | D123: 141 | E123: 131 | F123: 3 | G123: 2 | H123: 3 | I123: 1 | J123: 3 | K123: 61 | L123: 19 | M123: 1 | N123: 2 | O123: 28 | P123: 8 | Q123: 2 | R123: 8
A124: COPEY | B124: 5 | C124: 1213 | D124: 916 | E124: 883 | F124: 35 | G124: 8 | H124: 17 | I124: 1 | J124: 11 | K124: 370 | L124: 82 | M124: 9 | N124: 6 | O124: 303 | P124: 41 | Q124: 12 | R124: 21
A125: CANTÓN 18 CURRIDABAT | B125: 91 | C125: 43957 | D125: 31958 | E125: 31371 | F125: 1992 | G125: 333 | H125: 283 | I125: 998 | J125: 1696 | K125: 11651 | L125: 3957 | M125: 1186 | N125: 74 | O125: 5663 | P125: 3538 | Q125: 378 | R125: 209
A126: CURRIDABAT | B126: 47 | C126: 23410 | D126: 17304 | E126: 17073 | F126: 1094 | G126: 189 | H126: 161 | I126: 378 | J126: 1059 | K126: 6503 | L126: 1978 | M126: 509 | N126: 32 | O126: 3400 | P126: 1770 | Q126: 138 | R126: 93
A127: GRANADILLA | B127: 17 | C127: 7806 | D127: 5715 | E127: 5604 | F127: 296 | G127: 59 | H127: 57 | I127: 176 | J127: 324 | K127: 1981 | L127: 765 | M127: 393 | N127: 17 | O127: 950 | P127: 586 | Q127: 74 | R127: 37
A128: SÁNCHEZ | B128: 7 | C128: 3135 | D128: 2562 | E128: 2542 | F128: 164 | G128: 22 | H128: 19 | I128: 27 | J128: 111 | K128: 1349 | L128: 322 | M128: 49 | N128: 2 | O128: 389 | P128: 88 | Q128: 11 | R128: 9
A129: TIRRASES | B129: 20 | C129: 9606 | D129: 6377 | E129: 6152 | F129: 438 | G129: 63 | H129: 46 | I129: 417 | J129: 202 | K129: 1818 | L129: 892 | M129: 235 | N129: 23 | O129: 924 | P129: 1094 | Q129: 155 | R129: 70
A130: CANTÓN 19 PÉREZ ZELEDÓN | B130: 251 | C130: 96629 | D130: 64799 | E130: 62846 | F130: 4361 | G130: 209 | H130: 518 | I130: 619 | J130: 1053 | K130: 23899 | L130: 4462 | M130: 4147 | N130: 150 | O130: 17929 | P130: 5499 | Q130: 1072 | R130: 881
A131: SAN ISIDRO DE EL GENERAL | B131: 83 | C131: 35780 | D131: 24251 | E131: 23631 | F131: 1602 | G131: 97 | H131: 179 | I131: 248 | J131: 528 | K131: 7822 | L131: 1683 | M131: 1269 | N131: 49 | O131: 7555 | P131: 2599 | Q131: 357 | R131: 263
A132: EL GENERAL | B132: 11 | C132: 4305 | D132: 3111 | E132: 3031 | F132: 136 | G132: 18 | H132: 11 | I132: 23 | J132: 37 | K132: 1247 | L132: 153 | M132: 109 | N132: 7 | O132: 1017 | P132: 273 | Q132: 36 | R132: 44
A133: DANIEL FLORES | B133: 52 | C133: 22315 | D133: 14928 | E133: 14524 | F133: 1078 | G133: 44 | H133: 106 | I133: 147 | J133: 291 | K133: 5170 | L133: 1056 | M133: 1196 | N133: 44 | O133: 3851 | P133: 1541 | Q133: 230 | R133: 174
A134: RIVAS | B134: 15 | C134: 4541 | D134: 3222 | E134: 3101 | F134: 261 | G134: 4 | H134: 18 | I134: 33 | J134: 52 | K134: 1011 | L134: 132 | M134: 50 | N134: 8 | O134: 1306 | P134: 226 | Q134: 56 | R134: 65
A135: SAN PEDRO | B135: 15 | C135: 5433 | D135: 3418 | E135: 3268 | F135: 218 | G135: 11 | H135: 13 | I135: 18 | J135: 23 | K135: 1411 | L135: 297 | M135: 597 | N135: 3 | O135: 529 | P135: 148 | Q135: 101 | R135: 49
A136: PLATANARES | B136: 16 | C136: 5499 | D136: 3714 | E136: 3580 | F136: 221 | G136: 8 | H136: 28 | I136: 38 | J136: 32 | K136: 1696 | L136: 367 | M136: 327 | N136: 11 | O136: 729 | P136: 123 | Q136: 64 | R136: 70
A137: PEJIBAYE | B137: 18 | C137: 5429 | D137: 3481 | E137: 3364 | F137: 189 | G137: 4 | H137: 18 | I137: 37 | J137: 30 | K137: 1615 | L137: 195 | M137: 155 | N137: 14 | O137: 978 | P137: 129 | Q137: 58 | R137: 59
A138: CAJÓN | B138: 15 | C138: 6070 | D138: 3742 | E138: 3595 | F138: 295 | G138: 13 | H138: 15 | I138: 35 | J138: 23 | K138: 1624 | L138: 245 | M138: 197 | N138: 5 | O138: 876 | P138: 267 | Q138: 78 | R138: 69
A139: BARÚ | B139: 5 | C139: 1774 | D139: 1137 | E139: 1093 | F139: 92 | G139: 4 | H139: 93 | I139: 14 | J139: 9 | K139: 494 | L139: 104 | M139: 15 | N139: 1 | O139: 232 | P139: 35 | Q139: 26 | R139: 18
A140: RÍO NUEVO | B140: 8 | C140: 2191 | D140: 1508 | E140: 1464 | F140: 79 | G140: 1 | H140: 7 | I140: 13 | J140: 8 | K140: 827 | L140: 92 | M140: 81 | N140: 2 | O140: 322 | P140: 32 | Q140: 23 | R140: 21
A141: PÁRAMO | B141: 13 | C141: 3292 | D141: 2287 | E141: 2195 | F141: 190 | G141: 5 | H141: 30 | I141: 13 | J141: 20 | K141: 982 | L141: 138 | M141: 151 | N141: 6 | O141: 534 | P141: 126 | Q141: 43 | R141: 49
A142: CANTÓN 20 LEÓN CORTÉS | B142: 26 | C142: 8009 | D142: 5409 | E142: 5156 | F142: 609 | G142: 16 | H142: 62 | I142: 75 | J142: 168 | K142: 2575 | L142: 507 | M142: 84 | N142: 26 | O142: 749 | P142: 285 | Q142: 77 | R142: 176
A143: SAN PABLO | B143: 6 | C143: 2792 | D143: 1870 | E143: 1789 | F143: 263 | G143: 3 | H143: 15 | I143: 21 | J143: 78 | K143: 732 | L143: 231 | M143: 15 | N143: 12 | O143: 287 | P143: 132 | Q143: 30 | R143: 51
A144: SAN ANDRÉS | B144: 4 | C144: 992 | D144: 584 | E144: 559 | F144: 102 | G144: 3 | H144: 7 | I144: 32 | J144: 13 | K144: 227 | L144: 46 | M144: 43 | N144: 2 | O144: 68 | P144: 16 | Q144: 1 | R144: 24
A145: LLANO BONITO | B145: 5 | C145: 1295 | D145: 866 | E145: 834 | F145: 44 | G145: 1 | H145: 4 | I145: 5 | J145: 26 | K145: 543 | L145: 54 | M145: 10 | N145: 4 | O145: 121 | P145: 22 | Q145: 13 | R145: 19
A146: SAN ISIDRO | B146: 4 | C146: 1040 | D146: 679 | E146: 636 | F146: 61 | G146: 4 | H146: 4 | I146: 8 | J146: 26 | K146: 357 | L146: 61 | M146: 3 | N146: 2 | O146: 88 | P146: 22 | Q146: 9 | R146: 34
A147: SANTA CRUZ | B147: 5 | C147: 1203 | D147: 910 | E147: 868 | F147: 101 | G147: 5 | H147: 24 | I147: 3 | J147: 14 | K147: 455 | L147: 74 | M147: 7 | N147: 4 | O147: 124 | P147: 57 | Q147: 20 | R147: 22
A148: SAN ANTONIO | B148: 2 | C148: 687 | D148: 500 | E148: 470 | F148: 38 | G148: 0 | H148: 8 | I148: 6 | J148: 11 | K148: 261 | L148: 41 | M148: 6 | N148: 2 | O148: 61 | P148: 36 | Q148: 4 | R148: 26

Sheet C2.4
A2: CUADRO 2.4 ALAJUELA: JUNTAS, ELECTORADO, VOTOS POR PARTIDO, NULOS Y BLANCOS PARA DIPUTACIONES A LA ASAMBLEA LEGISLATIVA, SEGÚN CANTÓN Y DISTRITO ADMINISTRATIVO ELECCIONES 7 DE FEBRERO 2010
A4: CANTÓN Y DISTRITO ADMINISTRATIVO | B4: JUNTAS | C4: ELECTORADO | D4: VOTOS RECIBIDOS
D5: TOTAL GENERAL | E5: VOTOS VÁLIDOS | Q5: NULOS | R5: BLANCOS
E6: TOTAL | F6: UNIDAD SOCIAL CRISTIANA | G6: FUERZA FAMILIAR ALAJUELENSE | H6: INTEGRACIÓN NACIONAL | I6: ALIANZA PATRIÓTICA | J6: RENOVACIÓN COSTARRICENSE | K6: FRENTE AMPLIO | L6: LIBERACIÓN NACIONAL | M6: RESTAURACIÓN ALAJUELENSE | N6: MOVIMIENTO LIBERTARIO | O6: ACCIÓN CIUDADANA | P6: ACCESIBILIDAD SIN EXCLUSIÓN
A8: PROVINCIA ALAJUELA | B8: 1252 | C8: 524215 | D8: 374912 | E8: 365548 | F8: 23746 | G8: 1609 | H8: 1314 | I8: 6922 | J8: 16156 | K8: 4835 | L8: 139515 | M8: 7298 | N8: 60198 | O8: 72880 | P8: 31075 | Q8: 5412 | R8: 3952
A9: CANTÓN 1 ALAJUELA | B9: 376 | C9: 170966 | D9: 119817 | E9: 117283 | F9: 8020 | G9: 553 | H9: 600 | I9: 1144 | J9: 3679 | K9: 1809 | L9: 43565 | M9: 2590 | N9: 20442 | O9: 20680 | P9: 14201 | Q9: 1619 | R9: 915
A10: ALAJUELA | B10: 78 | C10: 37877 | D10: 27038 | E10: 26603 | F10: 1689 | G10: 97 | H10: 128 | I10: 357 | J10: 760 | K10: 475 | L10: 10135 | M10: 586 | N10: 4283 | O10: 5331 | P10: 2762 | Q10: 259 | R10: 176
A11: SAN JOSÉ | B11: 59 | C11: 28420 | D11: 19940 | E11: 19542 | F11: 1165 | G11: 122 | H11: 84 | I11: 144 | J11: 640 | K11: 366 | L11: 6673 | M11: 576 | N11: 3745 | O11: 3764 | P11: 2263 | Q11: 244 | R11: 154
A12: CARRIZAL | B12: 10 | C12: 4008 | D12: 2757 | E12: 2661 | F12: 274 | G12: 7 | H12: 11 | I12: 23 | J12: 61 | K12: 27 | L12: 950 | M12: 34 | N12: 375 | O12: 495 | P12: 404 | Q12: 64 | R12: 32
A13: SAN ANTONIO | B13: 39 | C13: 19195 | D13: 13335 | E13: 13066 | F13: 681 | G13: 79 | H13: 51 | I13: 124 | J13: 573 | K13: 174 | L13: 4877 | M13: 332 | N13: 2410 | O13: 2101 | P13: 1664 | Q13: 187 | R13: 82
A14: GUÁCIMA | B14: 24 | C14: 10822 | D14: 7767 | E14: 7570 | F14: 509 | G14: 47 | H14: 34 | I14: 47 | J14: 302 | K14: 83 | L14: 2835 | M14: 139 | N14: 1229 | O14: 1216 | P14: 1129 | Q14: 146 | R14: 51
A15: SAN ISIDRO | B15: 23 | C15: 10208 | D15: 7097 | E15: 6902 | F15: 753 | G15: 38 | H15: 34 | I15: 58 | J15: 170 | K15: 92 | L15: 2376 | M15: 133 | N15: 1114 | O15: 1071 | P15: 1063 | Q15: 137 | R15: 58
A16: SABANILLA | B16: 12 | C16: 4480 | D16: 3108 | E16: 3020 | F16: 139 | G16: 14 | H16: 11 | I16: 18 | J16: 94 | K16: 31 | L16: 1321 | M16: 47 | N16: 486 | O16: 441 | P16: 418 | Q16: 54 | R16: 34
A17: SAN RAFAEL | B17: 39 | C17: 14357 | D17: 9545 | E17: 9342 | F17: 910 | G17: 23 | H17: 46 | I17: 91 | J17: 192 | K17: 143 | L17: 3770 | M17: 119 | N17: 1584 | O17: 1412 | P17: 1052 | Q17: 142 | R17: 61
A18: RÍO SEGUNDO | B18: 18 | C18: 8807 | D18: 6083 | E18: 5960 | F18: 319 | G18: 15 | H18: 31 | I18: 59 | J18: 247 | K18: 95 | L18: 2216 | M18: 129 | N18: 1140 | O18: 926 | P18: 783 | Q18: 72 | R18: 51
A19: DESAMPARADOS | B19: 31 | C19: 14840 | D19: 10430 | E19: 10208 | F19: 619 | G19: 39 | H19: 45 | I19: 109 | J19: 323 | K19: 150 | L19: 3626 | M19: 264 | N19: 2071 | O19: 1672 | P19: 1290 | Q19: 150 | R19: 72
A20: TURRÚCARES | B20: 11 | C20: 4585 | D20: 3352 | E20: 3263 | F20: 258 | G20: 10 | H20: 84 | I20: 22 | J20: 77 | K20: 65 | L20: 1306 | M20: 40 | N20: 450 | O20: 643 | P20: 308 | Q20: 46 | R20: 43
A21: TAMBOR | B21: 17 | C21: 7696 | D21: 5469 | E21: 5362 | F21: 380 | G21: 47 | H21: 23 | I21: 39 | J21: 144 | K21: 49 | L21: 1996 | M21: 114 | N21: 967 | O21: 919 | P21: 684 | Q21: 65 | R21: 42
A22: GARITA | B22: 9 | C22: 4105 | D22: 2838 | E22: 2750 | F22: 250 | G22: 12 | H22: 15 | I22: 26 | J22: 62 | K22: 44 | L22: 993 | M22: 58 | N22: 445 | O22: 511 | P22: 334 | Q22: 44 | R22: 44
A23: SARAPIQUÍ | B23: 6 | C23: 1566 | D23: 1058 | E23: 1034 | F23: 74 | G23: 3 | H23: 3 | I23: 27 | J23: 34 | K23: 15 | L23: 491 | M23: 19 | N23: 143 | O23: 178 | P23: 47 | Q23: 9 | R23: 15
A24: CANTÓN 2 SAN RAMÓN | B24: 126 | C24: 52853 | D24: 38828 | E24: 37787 | F24: 1787 | G24: 118 | H24: 147 | I24: 2062 | J24: 3422 | K24: 628 | L24: 12914 | M24: 221 | N24: 3611 | O24: 10697 | P24: 2180 | Q24: 535 | R24: 506
A25: SAN RAMÓN | B25: 27 | C25: 13065 | D25: 9885 | E25: 9705 | F25: 433 | G25: 20 | H25: 45 | I25: 507 | J25: 1339 | K25: 227 | L25: 3054 | M25: 30 | N25: 664 | O25: 2826 | P25: 560 | Q25: 104 | R25: 76
A26: SANTIAGO | B26: 8 | C26: 2914 | D26: 2174 | E26: 2109 | F26: 62 | G26: 2 | H26: 6 | I26: 114 | J26: 95 | K26: 27 | L26: 919 | M26: 5 | N26: 172 | O26: 585 | P26: 122 | Q26: 30 | R26: 35
A27: SAN JUAN | B27: 18 | C27: 8195 | D27: 5799 | E27: 5671 | F27: 239 | G27: 17 | H27: 22 | I27: 239 | J27: 628 | K27: 121 | L27: 1746 | M27: 33 | N27: 635 | O27: 1530 | P27: 461 | Q27: 70 | R27: 58
A28: PIEDADES NORTE | B28: 11 | C28: 4335 | D28: 3249 | E28: 3155 | F28: 98 | G28: 9 | H28: 13 | I28: 170 | J28: 241 | K28: 43 | L28: 1052 | M28: 14 | N28: 395 | O28: 915 | P28: 205 | Q28: 44 | R28: 50
A29: PIEDADES SUR | B29: 9 | C29: 2579 | D29: 1935 | E29: 1873 | F29: 57 | G29: 2 | H29: 5 | I29: 112 | J29: 57 | K29: 15 | L29: 702 | M29: 11 | N29: 135 | O29: 700 | P29: 77 | Q29: 24 | R29: 38
A30: SAN RAFAEL | B30: 11 | C30: 4886 | D30: 3544 | E30: 3428 | F30: 172 | G30: 4 | H30: 14 | I30: 214 | J30: 344 | K30: 56 | L30: 1256 | M30: 13 | N30: 342 | O30: 806 | P30: 207 | Q30: 63 | R30: 53
A31: SAN ISIDRO | B31: 5 | C31: 2314 | D31: 1683 | E31: 1625 | F31: 53 | G31: 3 | H31: 5 | I31: 89 | J31: 70 | K31: 29 | L31: 601 | M31: 10 | N31: 165 | O31: 519 | P31: 81 | Q31: 27 | R31: 31
A32: ÁNGELES | B32: 11 | C32: 4412 | D32: 3234 | E32: 3131 | F32: 213 | G32: 47 | H32: 11 | I32: 261 | J32: 197 | K32: 40 | L32: 850 | M32: 31 | N32: 374 | O32: 950 | P32: 157 | Q32: 62 | R32: 41
A33: ALFARO | B33: 8 | C33: 3129 | D33: 2255 | E33: 2181 | F33: 112 | G33: 4 | H33: 16 | I33: 106 | J33: 166 | K33: 27 | L33: 770 | M33: 11 | N33: 194 | O33: 665 | P33: 110 | Q33: 34 | R33: 40
A34: VOLIO | B34: 3 | C34: 1275 | D34: 932 | E34: 904 | F34: 39 | G34: 4 | H34: 2 | I34: 31 | J34: 41 | K34: 10 | L34: 340 | M34: 4 | N34: 134 | O34: 239 | P34: 60 | Q34: 12 | R34: 16
A35: CONCEPCIÓN | B35: 3 | C35: 1459 | D35: 1082 | E35: 1045 | F35: 61 | G35: 1 | H35: 4 | I35: 121 | J35: 65 | K35: 14 | L35: 344 | M35: 4 | N35: 128 | O35: 239 | P35: 64 | Q35: 11 | R35: 26
A36: ZAPOTAL | B36: 3 | C36: 303 | D36: 223 | E36: 211 | F36: 9 | G36: 1 | H36: 1 | I36: 4 | J36: 3 | K36: 0 | L36: 112 | M36: 3 | N36: 18 | O36: 58 | P36: 2 | Q36: 3 | R36: 9
A37: PEÑAS BLANCAS | B37: 9 | C37: 3987 | D37: 2833 | E37: 2749 | F37: 239 | G37: 4 | H37: 3 | I37: 94 | J37: 176 | K37: 19 | L37: 1168 | M37: 52 | N37: 255 | O37: 665 | P37: 74 | Q37: 51 | R37: 33
A38: CANTÓN 3 GRECIA | B38: 119 | C38: 50109 | D38: 36833 | E38: 36002 | F38: 2180 | G38: 170 | H38: 127 | I38: 678 | J38: 1442 | K38: 463 | L38: 13860 | M38: 861 | N38: 5800 | O38: 6906 | P38: 3515 | Q38: 437 | R38: 394
A39: GRECIA | B39: 28 | C39: 13674 | D39: 10070 | E39: 9899 | F39: 597 | G39: 53 | H39: 36 | I39: 113 | J39: 486 | K39: 171 | L39: 3820 | M39: 306 | N39: 1502 | O39: 1899 | P39: 916 | Q39: 88 | R39: 83
A40: SAN ISIDRO | B40: 10 | C40: 3716 | D40: 2798 | E40: 2731 | F40: 207 | G40: 13 | H40: 9 | I40: 25 | J40: 131 | K40: 25 | L40: 946 | M40: 61 | N40: 507 | O40: 527 | P40: 280 | Q40: 33 | R40: 34
A41: SAN JOSÉ | B41: 11 | C41: 5261 | D41: 4053 | E41: 3962 | F41: 221 | G41: 45 | H41: 15 | I41: 87 | J41: 92 | K41: 36 | L41: 1510 | M41: 34 | N41: 598 | O41: 927 | P41: 397 | Q41: 38 | R41: 53
A42: SAN ROQUE | B42: 18 | C42: 7196 | D42: 5730 | E42: 5596 | F42: 271 | G42: 11 | H42: 14 | I42: 127 | J42: 187 | K42: 66 | L42: 2159 | M42: 81 | N42: 750 | O42: 1346 | P42: 584 | Q42: 78 | R42: 56
A43: TACARES | B43: 10 | C43: 4682 | D43: 3395 | E43: 3322 | F43: 289 | G43: 11 | H43: 19 | I43: 24 | J43: 83 | K43: 51 | L43: 1383 | M43: 96 | N43: 666 | O43: 395 | P43: 305 | Q43: 39 | R43: 34
A44: RÍO CUARTO | B44: 14 | C44: 4612 | D44: 2734 | E44: 2651 | F44: 107 | G44: 3 | H44: 9 | I44: 25 | J44: 86 | K44: 27 | L44: 1118 | M44: 80 | N44: 533 | O44: 529 | P44: 134 | Q44: 42 | R44: 41
A45: PUENTE DE PIEDRA | B45: 16 | C45: 6392 | D45: 4770 | E45: 4658 | F45: 313 | G45: 29 | H45: 15 | I45: 29 | J45: 187 | K45: 51 | L45: 1886 | M45: 167 | N45: 808 | O45: 567 | P45: 606 | Q45: 68 | R45: 44
A46: BOLÍVAR | B46: 12 | C46: 4576 | D46: 3283 | E46: 3183 | F46: 175 | G46: 5 | H46: 10 | I46: 248 | J46: 190 | K46: 36 | L46: 1038 | M46: 36 | N46: 436 | O46: 716 | P46: 293 | Q46: 51 | R46: 49
A47: CANTÓN 4 SAN MATEO | B47: 11 | C47: 3798 | D47: 2669 | E47: 2570 | F47: 353 | G47: 6 | H47: 7 | I47: 111 | J47: 179 | K47: 20 | L47: 1060 | M47: 17 | N47: 471 | O47: 234 | P47: 112 | Q47: 60 | R47: 39
A48: SAN MATEO | B48: 6 | C48: 1955 | D48: 1404 | E48: 1345 | F48: 214 | G48: 1 | H48: 2 | I48: 23 | J48: 148 | K48: 11 | L48: 497 | M48: 9 | N48: 263 | O48: 126 | P48: 51 | Q48: 43 | R48: 16
A49: DESMONTE | B49: 1 | C49: 386 | D49: 287 | E49: 278 | F49: 66 | G49: 0 | H49: 1 | I49: 18 | J49: 4 | K49: 3 | L49: 105 | M49: 1 | N49: 34 | O49: 26 | P49: 20 | Q49: 1 | R49: 8
A50: JESÚS MARÍA | B50: 4 | C50: 1457 | D50: 978 | E50: 947 | F50: 73 | G50: 5 | H50: 4 | I50: 70 | J50: 27 | K50: 6 | L50: 458 | M50: 7 | N50: 174 | O50: 82 | P50: 41 | Q50: 16 | R50: 15
A51: CANTÓN 5 ATENAS | B51: 41 | C51: 17379 | D51: 13236 | E51: 12892 | F51: 935 | G51: 28 | H51: 58 | I51: 359 | J51: 355 | K51: 210 | L51: 4328 | M51: 140 | N51: 1448 | O51: 3136 | P51: 1895 | Q51: 178 | R51: 166
A52: ATENAS | B52: 14 | C52: 6015 | D52: 4690 | E52: 4604 | F52: 366 | G52: 7 | H52: 21 | I52: 71 | J52: 94 | K52: 85 | L52: 1588 | M52: 42 | N52: 436 | O52: 1224 | P52: 670 | Q52: 56 | R52: 30
A53: JESÚS | B53: 6 | C53: 2594 | D53: 2010 | E53: 1957 | F53: 132 | G53: 5 | H53: 11 | I53: 46 | J53: 29 | K53: 25 | L53: 695 | M53: 14 | N53: 240 | O53: 427 | P53: 333 | Q53: 19 | R53: 34
A54: MERCEDES | B54: 4 | C54: 1826 | D54: 1335 | E54: 1296 | F54: 90 | G54: 1 | H54: 5 | I54: 21 | J54: 44 | K54: 27 | L54: 334 | M54: 1 | N54: 207 | O54: 351 | P54: 215 | Q54: 13 | R54: 26
A55: SAN ISIDRO | B55: 5 | C55: 1930 | D55: 1477 | E55: 1408 | F55: 95 | G55: 7 | H55: 6 | I55: 126 | J55: 37 | K55: 22 | L55: 412 | M55: 21 | N55: 193 | O55: 254 | P55: 235 | Q55: 41 | R55: 28
A56: CONCEPCIÓN | B56: 5 | C56: 2224 | D56: 1768 | E56: 1729 | F56: 131 | G56: 4 | H56: 10 | I56: 24 | J56: 79 | K56: 18 | L56: 685 | M56: 19 | N56: 167 | O56: 383 | P56: 209 | Q56: 21 | R56: 18
A57: SAN JOSÉ | B57: 2 | C57: 1020 | D57: 684 | E57: 662 | F57: 45 | G57: 3 | H57: 1 | I57: 19 | J57: 32 | K57: 17 | L57: 210 | M57: 10 | N57: 71 | O57: 154 | P57: 100 | Q57: 10 | R57: 12
A58: SANTA EULALIA | B58: 3 | C58: 1188 | D58: 839 | E58: 817 | F58: 45 | G58: 1 | H58: 3 | I58: 10 | J58: 37 | K58: 13 | L58: 244 | M58: 33 | N58: 84 | O58: 251 | P58: 96 | Q58: 12 | R58: 10
A59: ESCOBAL | B59: 2 | C59: 582 | D59: 433 | E59: 419 | F59: 31 | G59: 0 | H59: 1 | I59: 42 | J59: 3 | K59: 3 | L59: 160 | M59: 0 | N59: 50 | O59: 92 | P59: 37 | Q59: 6 | R59: 8
A60: CANTÓN 6 NARANJO | B60: 66 | C60: 27740 | D60: 20181 | E60: 19640 | F60: 1577 | G60: 52 | H60: 56 | I60: 165 | J60: 654 | K60: 268 | L60: 7505 | M60: 250 | N60: 3721 | O60: 4261 | P60: 1131 | Q60: 283 | R60: 258
A61: NARANJO | B61: 26 | C61: 11639 | D61: 8252 | E61: 8061 | F61: 688 | G61: 21 | H61: 20 | I61: 54 | J61: 280 | K61: 110 | L61: 2916 | M61: 140 | N61: 1595 | O61: 1802 | P61: 435 | Q61: 110 | R61: 81
A62: SAN MIGUEL | B62: 5 | C62: 2241 | D62: 1609 | E62: 1553 | F62: 117 | G62: 4 | H62: 4 | I62: 15 | J62: 72 | K62: 17 | L62: 606 | M62: 40 | N62: 298 | O62: 287 | P62: 93 | Q62: 29 | R62: 27
A63: SAN JOSÉ | B63: 6 | C63: 2050 | D63: 1599 | E63: 1564 | F63: 88 | G63: 4 | H63: 2 | I63: 22 | J63: 48 | K63: 31 | L63: 542 | M63: 11 | N63: 242 | O63: 467 | P63: 107 | Q63: 20 | R63: 15
A64: CIRRÍ SUR | B64: 6 | C64: 2797 | D64: 2021 | E64: 1957 | F64: 116 | G64: 1 | H64: 7 | I64: 22 | J64: 51 | K64: 21 | L64: 760 | M64: 20 | N64: 401 | O64: 456 | P64: 102 | Q64: 27 | R64: 37
A65: SAN JERÓNIMO | B65: 5 | C65: 1923 | D65: 1418 | E65: 1374 | F65: 196 | G65: 6 | H65: 2 | I65: 9 | J65: 37 | K65: 15 | L65: 494 | M65: 14 | N65: 324 | O65: 210 | P65: 67 | Q65: 25 | R65: 19
A66: SAN JUAN | B66: 5 | C66: 1986 | D66: 1520 | E66: 1485 | F66: 86 | G66: 9 | H66: 8 | I66: 8 | J66: 41 | K66: 14 | L66: 652 | M66: 6 | N66: 300 | O66: 285 | P66: 76 | Q66: 20 | R66: 15
A67: EL ROSARIO | B67: 6 | C67: 2205 | D67: 1631 | E67: 1577 | F67: 39 | G67: 2 | H67: 5 | I67: 8 | J67: 84 | K67: 18 | L67: 720 | M67: 12 | N67: 273 | O67: 296 | P67: 120 | Q67: 27 | R67: 27
A68: PALMITOS | B68: 7 | C68: 2899 | D68: 2131 | E68: 2069 | F68: 247 | G68: 5 | H68: 8 | I68: 27 | J68: 41 | K68: 42 | L68: 815 | M68: 7 | N68: 288 | O68: 458 | P68: 131 | Q68: 25 | R68: 37
A69: CANTÓN 7 PALMARES | B69: 53 | C69: 24911 | D69: 18636 | E69: 18072 | F69: 869 | G69: 20 | H69: 62 | I69: 979 | J69: 698 | K69: 434 | L69: 6986 | M69: 256 | N69: 2131 | O69: 4224 | P69: 1413 | Q69: 299 | R69: 265
A70: PALMARES | B70: 10 | C70: 4903 | D70: 3770 | E70: 3696 | F70: 177 | G70: 3 | H70: 14 | I70: 199 | J70: 105 | K70: 108 | L70: 1465 | M70: 48 | N70: 329 | O70: 971 | P70: 277 | Q70: 43 | R70: 31
A71: ZARAGOZA | B71: 14 | C71: 6500 | D71: 4871 | E71: 4721 | F71: 348 | G71: 7 | H71: 18 | I71: 191 | J71: 173 | K71: 116 | L71: 1743 | M71: 75 | N71: 491 | O71: 1187 | P71: 372 | Q71: 79 | R71: 71
A72: BUENOS AIRES | B72: 9 | C72: 4506 | D72: 3397 | E72: 3313 | F72: 89 | G72: 5 | H72: 7 | I72: 183 | J72: 148 | K72: 82 | L72: 1231 | M72: 45 | N72: 429 | O72: 825 | P72: 269 | Q72: 46 | R72: 38
A73: SANTIAGO | B73: 4 | C73: 1591 | D73: 1149 | E73: 1088 | F73: 50 | G73: 0 | H73: 5 | I73: 62 | J73: 25 | K73: 15 | L73: 509 | M73: 5 | N73: 113 | O73: 212 | P73: 92 | Q73: 21 | R73: 40
A74: CANDELARIA | B74: 3 | C74: 1409 | D74: 994 | E74: 944 | F74: 54 | G74: 1 | H74: 4 | I74: 42 | J74: 51 | K74: 12 | L74: 389 | M74: 6 | N74: 185 | O74: 139 | P74: 61 | Q74: 25 | R74: 25
A75: ESQUIPULAS | B75: 7 | C75: 3408 | D75: 2420 | E75: 2334 | F75: 78 | G75: 3 | H75: 10 | I75: 176 | J75: 112 | K75: 57 | L75: 908 | M75: 44 | N75: 375 | O75: 411 | P75: 160 | Q75: 57 | R75: 29
A76: LA GRANJA | B76: 6 | C76: 2594 | D76: 2035 | E76: 1976 | F76: 73 | G76: 1 | H76: 4 | I76: 126 | J76: 84 | K76: 44 | L76: 741 | M76: 33 | N76: 209 | O76: 479 | P76: 182 | Q76: 28 | R76: 31
A77: CANTÓN 8 POÁS | B77: 42 | C77: 17866 | D77: 13635 | E77: 13343 | F77: 740 | G77: 243 | H77: 50 | I77: 88 | J77: 343 | K77: 150 | L77: 5316 | M77: 213 | N77: 2758 | O77: 2075 | P77: 1367 | Q77: 165 | R77: 127
A78: SAN PEDRO | B78: 15 | C78: 6315 | D78: 4937 | E78: 4839 | F78: 325 | G78: 47 | H78: 18 | I78: 41 | J78: 92 | K78: 54 | L78: 1818 | M78: 72 | N78: 958 | O78: 880 | P78: 534 | Q78: 52 | R78: 46
A79: SAN JUAN | B79: 5 | C79: 1888 | D79: 1408 | E79: 1375 | F79: 78 | G79: 13 | H79: 3 | I79: 8 | J79: 26 | K79: 12 | L79: 578 | M79: 10 | N79: 308 | O79: 192 | P79: 147 | Q79: 18 | R79: 15
A80: SAN RAFAEL | B80: 8 | C80: 3152 | D80: 2610 | E80: 2551 | F80: 116 | G80: 9 | H80: 13 | I80: 10 | J80: 57 | K80: 36 | L80: 1186 | M80: 32 | N80: 481 | O80: 375 | P80: 236 | Q80: 28 | R80: 31
A81: CARRILLOS | B81: 11 | C81: 5175 | D81: 3760 | E81: 3678 | F81: 180 | G81: 150 | H81: 11 | I81: 26 | J81: 127 | K81: 39 | L81: 1389 | M81: 85 | N81: 784 | O81: 529 | P81: 358 | Q81: 56 | R81: 26
A82: SABANA REDONDA | B82: 3 | C82: 1336 | D82: 920 | E82: 900 | F82: 41 | G82: 24 | H82: 5 | I82: 3 | J82: 41 | K82: 9 | L82: 345 | M82: 14 | N82: 227 | O82: 99 | P82: 92 | Q82: 11 | R82: 9
A83: CANTÓN 9 OROTINA | B83: 31 | C83: 12685 | D83: 8558 | E83: 8347 | F83: 1048 | G83: 77 | H83: 14 | I83: 22 | J83: 360 | K83: 55 | L83: 3915 | M83: 33 | N83: 1335 | O83: 846 | P83: 642 | Q83: 138 | R83: 73
A84: OROTINA | B84: 16 | C84: 6826 | D84: 4802 | E84: 4710 | F84: 719 | G84: 11 | H84: 9 | I84: 14 | J84: 208 | K84: 36 | L84: 2186 | M84: 20 | N84: 663 | O84: 525 | P84: 319 | Q84: 57 | R84: 35
A85: EL MASTATE | B85: 3 | C85: 1257 | D85: 852 | E85: 829 | F85: 54 | G85: 16 | H85: 0 | I85: 3 | J85: 30 | K85: 7 | L85: 350 | M85: 3 | N85: 202 | O85: 97 | P85: 67 | Q85: 16 | R85: 7
A86: HACIENDA VIEJA | B86: 2 | C86: 787 | D86: 536 | E86: 523 | F86: 46 | G86: 1 | H86: 3 | I86: 0 | J86: 41 | K86: 5 | L86: 234 | M86: 2 | N86: 88 | O86: 63 | P86: 40 | Q86: 2 | R86: 11
A87: COYOLAR | B87: 7 | C87: 2798 | D87: 1722 | E87: 1668 | F87: 191 | G87: 41 | H87: 2 | I87: 3 | J87: 63 | K87: 2 | L87: 811 | M87: 7 | N87: 260 | O87: 102 | P87: 186 | Q87: 36 | R87: 18
A88: LA CEIBA | B88: 3 | C88: 1017 | D88: 646 | E88: 617 | F88: 38 | G88: 8 | H88: 0 | I88: 2 | J88: 18 | K88: 5 | L88: 334 | M88: 1 | N88: 122 | O88: 59 | P88: 30 | Q88: 27 | R88: 2
A89: CANTÓN 10 SAN CARLOS | B89: 219 | C89: 86525 | D89: 62270 | E89: 60676 | F89: 2928 | G89: 161 | H89: 118 | I89: 582 | J89: 3694 | K89: 503 | L89: 23764 | M89: 2353 | N89: 10124 | O89: 13446 | P89: 3003 | Q89: 921 | R89: 673
A90: QUESADA | B90: 67 | C90: 28651 | D90: 20890 | E90: 20457 | F90: 940 | G90: 41 | H90: 43 | I90: 205 | J90: 1389 | K90: 212 | L90: 7776 | M90: 1199 | N90: 3127 | O90: 4384 | P90: 1141 | Q90: 267 | R90: 166
A91: FLORENCIA | B91: 22 | C91: 8748 | D91: 6401 | E91: 6222 | F91: 255 | G91: 53 | H91: 17 | I91: 55 | J91: 570 | K91: 64 | L91: 2350 | M91: 168 | N91: 1291 | O91: 1103 | P91: 296 | Q91: 109 | R91: 70
A92: BUENAVISTA | B92: 1 | C92: 283 | D92: 205 | E92: 199 | F92: 10 | G92: 1 | H92: 0 | I92: 1 | J92: 4 | K92: 0 | L92: 109 | M92: 1 | N92: 35 | O92: 33 | P92: 5 | Q92: 1 | R92: 5
A93: AGUAS ZARCAS | B93: 22 | C93: 10064 | D93: 7214 | E93: 7009 | F93: 473 | G93: 11 | H93: 12 | I93: 51 | J93: 351 | K93: 55 | L93: 2738 | M93: 344 | N93: 1310 | O93: 1188 | P93: 476 | Q93: 116 | R93: 89
A94: VENECIA | B94: 12 | C94: 5041 | D94: 3803 | E94: 3695 | F94: 149 | G94: 6 | H94: 4 | I94: 44 | J94: 95 | K94: 30 | L94: 1505 | M94: 90 | N94: 486 | O94: 1128 | P94: 158 | Q94: 59 | R94: 49
A95: PITAL | B95: 17 | C95: 7598 | D95: 5136 | E95: 5001 | F95: 288 | G95: 9 | H95: 6 | I95: 28 | J95: 228 | K95: 43 | L95: 1775 | M95: 101 | N95: 1019 | O95: 1238 | P95: 266 | Q95: 68 | R95: 67
A96: LA FORTUNA | B96: 17 | C96: 6794 | D96: 4621 | E96: 4516 | F96: 203 | G96: 13 | H96: 12 | I96: 25 | J96: 368 | K96: 22 | L96: 1822 | M96: 107 | N96: 723 | O96: 1066 | P96: 155 | Q96: 65 | R96: 40
A97: LA TIGRA | B97: 9 | C97: 3329 | D97: 2613 | E97: 2519 | F97: 92 | G97: 3 | H97: 5 | I97: 42 | J97: 141 | K97: 19 | L97: 915 | M97: 118 | N97: 258 | O97: 806 | P97: 120 | Q97: 47 | R97: 47
A98: LA PALMERA | B98: 8 | C98: 3092 | D98: 2339 | E98: 2276 | F98: 158 | G98: 3 | H98: 2 | I98: 10 | J98: 245 | K98: 20 | L98: 998 | M98: 62 | N98: 341 | O98: 335 | P98: 102 | Q98: 32 | R98: 31
A99: VENADO | B99: 3 | C99: 986 | D99: 683 | E99: 661 | F99: 62 | G99: 0 | H99: 1 | I99: 4 | J99: 19 | K99: 2 | L99: 238 | M99: 66 | N99: 72 | O99: 183 | P99: 14 | Q99: 15 | R99: 7
A100: CUTRIS | B100: 14 | C100: 3842 | D100: 2712 | E100: 2647 | F100: 104 | G100: 5 | H100: 6 | I100: 15 | J100: 75 | K100: 4 | L100: 1340 | M100: 20 | N100: 540 | O100: 479 | P100: 59 | Q100: 34 | R100: 31
A101: MONTERREY | B101: 7 | C101: 1861 | D101: 1381 | E101: 1336 | F101: 44 | G101: 5 | H101: 2 | I101: 57 | J101: 19 | K101: 5 | L101: 588 | M101: 14 | N101: 137 | O101: 421 | P101: 44 | Q101: 25 | R101: 20
A102: POCOSOL | B102: 20 | C102: 6236 | D102: 4272 | E102: 4138 | F102: 150 | G102: 11 | H102: 8 | I102: 45 | J102: 190 | K102: 27 | L102: 1610 | M102: 63 | N102: 785 | O102: 1082 | P102: 167 | Q102: 83 | R102: 51
A103: CANTÓN 11 ALFARO RUIZ | B103: 22 | C103: 7844 | D103: 6461 | E103: 6341 | F103: 426 | G103: 5 | H103: 13 | I103: 228 | J103: 95 | K103: 55 | L103: 2789 | M103: 41 | N103: 588 | O103: 1766 | P103: 335 | Q103: 56 | R103: 64
A104: ZARCERO | B104: 8 | C104: 3320 | D104: 2671 | E104: 2623 | F104: 165 | G104: 2 | H104: 7 | I104: 96 | J104: 47 | K104: 31 | L104: 1074 | M104: 13 | N104: 272 | O104: 761 | P104: 155 | Q104: 24 | R104: 24
A105: LAGUNA | B105: 2 | C105: 1015 | D105: 845 | E105: 830 | F105: 72 | G105: 0 | H105: 2 | I105: 20 | J105: 11 | K105: 9 | L105: 371 | M105: 7 | N105: 88 | O105: 204 | P105: 46 | Q105: 4 | R105: 11
A106: TAPESCO | B106: 2 | C106: 806 | D106: 669 | E106: 651 | F106: 78 | G106: 0 | H106: 1 | I106: 14 | J106: 14 | K106: 2 | L106: 315 | M106: 9 | N106: 60 | O106: 127 | P106: 31 | Q106: 9 | R106: 9
A107: GUADALUPE | B107: 3 | C107: 412 | D107: 340 | E107: 327 | F107: 34 | G107: 0 | H107: 1 | I107: 5 | J107: 1 | K107: 1 | L107: 139 | M107: 3 | N107: 37 | O107: 82 | P107: 24 | Q107: 6 | R107: 7
A108: PALMIRA | B108: 2 | C108: 797 | D108: 669 | E108: 658 | F108: 31 | G108: 0 | H108: 0 | I108: 65 | J108: 9 | K108: 2 | L108: 285 | M108: 7 | N108: 53 | O108: 178 | P108: 28 | Q108: 5 | R108: 6
A109: ZAPOTE | B109: 2 | C109: 420 | D109: 339 | E109: 338 | F109: 11 | G109: 1 | H109: 0 | I109: 4 | J109: 2 | K109: 1 | L109: 170 | M109: 0 | N109: 27 | O109: 112 | P109: 10 | Q109: 1 | R109: 0
A110: BRISAS | B110: 3 | C110: 1074 | D110: 928 | E110: 914 | F110: 35 | G110: 2 | H110: 2 | I110: 24 | J110: 11 | K110: 9 | L110: 435 | M110: 2 | N110: 51 | O110: 302 | P110: 41 | Q110: 7 | R110: 7
A111: CANTÓN 12 VALVERDE VEGA | B111: 29 | C111: 12623 | D111: 9154 | E111: 8963 | F111: 545 | G111: 15 | H111: 16 | I111: 41 | J111: 352 | K111: 52 | L111: 1978 | M111: 208 | N111: 4651 | O111: 769 | P111: 336 | Q111: 125 | R111: 66
A112: SARCHÍ NORTE | B112: 12 | C112: 5449 | D112: 3928 | E112: 3848 | F112: 245 | G112: 4 | H112: 4 | I112: 8 | J112: 201 | K112: 31 | L112: 812 | M112: 53 | N112: 2039 | O112: 299 | P112: 152 | Q112: 53 | R112: 27
A113: SARCHÍ SUR | B113: 8 | C113: 3836 | D113: 2715 | E113: 2659 | F113: 154 | G113: 6 | H113: 10 | I113: 15 | J113: 111 | K113: 9 | L113: 587 | M113: 121 | N113: 1290 | O113: 249 | P113: 107 | Q113: 41 | R113: 15
A114: TORO AMARILLO | B114: 1 | C114: 153 | D114: 124 | E114: 119 | F114: 2 | G114: 0 | H114: 0 | I114: 0 | J114: 3 | K114: 0 | L114: 35 | M114: 0 | N114: 63 | O114: 13 | P114: 3 | Q114: 0 | R114: 5
A115: SAN PEDRO | B115: 5 | C115: 1956 | D115: 1485 | E115: 1452 | F115: 84 | G115: 5 | H115: 2 | I115: 13 | J115: 13 | K115: 9 | L115: 352 | M115: 21 | N115: 787 | O115: 122 | P115: 44 | Q115: 21 | R115: 12
A116: RODRÍGUEZ | B116: 3 | C116: 1229 | D116: 902 | E116: 885 | F116: 60 | G116: 0 | H116: 0 | I116: 5 | J116: 24 | K116: 3 | L116: 192 | M116: 13 | N116: 472 | O116: 86 | P116: 30 | Q116: 10 | R116: 7
A117: CANTÓN 13 UPALA | B117: 64 | C117: 21183 | D117: 13134 | E117: 12593 | F117: 633 | G117: 146 | H117: 23 | I117: 345 | J117: 298 | K117: 105 | L117: 7287 | M117: 59 | N117: 1398 | O117: 1907 | P117: 392 | Q117: 318 | R117: 223
A118: UPALA | B118: 21 | C118: 8139 | D118: 5185 | E118: 5002 | F118: 240 | G118: 38 | H118: 5 | I118: 157 | J118: 103 | K118: 54 | L118: 2943 | M118: 19 | N118: 552 | O118: 691 | P118: 200 | Q118: 99 | R118: 84
A119: AGUAS CLARAS | B119: 11 | C119: 2843 | D119: 1832 | E119: 1737 | F119: 57 | G119: 58 | H119: 7 | I119: 17 | J119: 72 | K119: 11 | L119: 1082 | M119: 17 | N119: 167 | O119: 220 | P119: 29 | Q119: 58 | R119: 37
A120: SAN JOSÉ (PIZOTE) | B120: 10 | C120: 3057 | D120: 1621 | E120: 1539 | F120: 99 | G120: 28 | H120: 6 | I120: 36 | J120: 11 | K120: 15 | L120: 899 | M120: 10 | N120: 183 | O120: 234 | P120: 18 | Q120: 42 | R120: 40
A121: BIJAGUA | B121: 8 | C121: 2462 | D121: 1644 | E121: 1572 | F121: 37 | G121: 7 | H121: 0 | I121: 28 | J121: 63 | K121: 13 | L121: 783 | M121: 3 | N121: 152 | O121: 386 | P121: 100 | Q121: 51 | R121: 21
A122: DELICIAS | B122: 4 | C122: 1624 | D122: 979 | E122: 942 | F122: 37 | G122: 5 | H122: 1 | I122: 80 | J122: 21 | K122: 2 | L122: 546 | M122: 2 | N122: 49 | O122: 189 | P122: 10 | Q122: 20 | R122: 17
A123: DOS RÍOS | B123: 5 | C123: 1434 | D123: 771 | E123: 742 | F123: 67 | G123: 9 | H123: 2 | I123: 6 | J123: 12 | K123: 6 | L123: 363 | M123: 4 | N123: 186 | O123: 74 | P123: 13 | Q123: 22 | R123: 7
A124: YOLILLAL | B124: 5 | C124: 1624 | D124: 1102 | E124: 1059 | F124: 96 | G124: 1 | H124: 2 | I124: 21 | J124: 16 | K124: 4 | L124: 671 | M124: 4 | N124: 109 | O124: 113 | P124: 22 | Q124: 26 | R124: 17
A125: CANTÓN 14 LOS CHILES | B125: 28 | C125: 9004 | D125: 5800 | E125: 5577 | F125: 443 | G125: 5 | H125: 11 | I125: 90 | J125: 323 | K125: 42 | L125: 2126 | M125: 38 | N125: 1000 | O125: 1245 | P125: 254 | Q125: 139 | R125: 84
A126: LOS CHILES | B126: 13 | C126: 4496 | D126: 2819 | E126: 2704 | F126: 294 | G126: 3 | H126: 5 | I126: 20 | J126: 216 | K126: 23 | L126: 1070 | M126: 18 | N126: 467 | O126: 443 | P126: 145 | Q126: 67 | R126: 48
A127: CAÑO NEGRO | B127: 3 | C127: 881 | D127: 571 | E127: 550 | F127: 49 | G127: 1 | H127: 1 | I127: 0 | J127: 38 | K127: 3 | L127: 291 | M127: 2 | N127: 114 | O127: 37 | P127: 14 | Q127: 17 | R127: 4
A128: EL AMPARO | B128: 8 | C128: 2341 | D128: 1516 | E128: 1459 | F128: 68 | G128: 1 | H128: 5 | I128: 54 | J128: 49 | K128: 12 | L128: 449 | M128: 8 | N128: 240 | O128: 521 | P128: 52 | Q128: 34 | R128: 23
A129: SAN JORGE | B129: 4 | C129: 1286 | D129: 894 | E129: 864 | F129: 32 | G129: 0 | H129: 0 | I129: 16 | J129: 20 | K129: 4 | L129: 316 | M129: 10 | N129: 179 | O129: 244 | P129: 43 | Q129: 21 | R129: 9
A130: CANTÓN 15 GUATUSO | B130: 25 | C130: 8729 | D130: 5700 | E130: 5462 | F130: 1262 | G130: 10 | H130: 12 | I130: 28 | J130: 262 | K130: 41 | L130: 2122 | M130: 18 | N130: 720 | O130: 688 | P130: 299 | Q130: 139 | R130: 99
A131: SAN RAFAEL | B131: 14 | C131: 4439 | D131: 2942 | E131: 2826 | F131: 734 | G131: 7 | H131: 9 | I131: 11 | J131: 168 | K131: 20 | L131: 959 | M131: 12 | N131: 363 | O131: 363 | P131: 180 | Q131: 69 | R131: 47
A132: BUENAVISTA | B132: 3 | C132: 922 | D132: 589 | E132: 564 | F132: 81 | G132: 1 | H132: 1 | I132: 2 | J132: 36 | K132: 7 | L132: 217 | M132: 0 | N132: 77 | O132: 118 | P132: 24 | Q132: 8 | R132: 17
A133: COTE | B133: 1 | C133: 544 | D133: 350 | E133: 335 | F133: 58 | G133: 0 | H133: 1 | I133: 1 | J133: 9 | K133: 3 | L133: 172 | M133: 0 | N133: 43 | O133: 43 | P133: 5 | Q133: 11 | R133: 4
A134: KATIRA | B134: 7 | C134: 2824 | D134: 1819 | E134: 1737 | F134: 389 | G134: 2 | H134: 1 | I134: 14 | J134: 49 | K134: 11 | L134: 774 | M134: 6 | N134: 237 | O134: 164 | P134: 90 | Q134: 51 | R134: 31

Sheet C2.5
A2: CUADRO 2.5 CARTAGO: JUNTAS, ELECTORADO, VOTOS POR PARTIDO, NULOS Y BLANCOS PARA DIPUTACIONES A LA ASAMBLEA LEGISLATIVA, SEGÚN CANTÓN Y DISTRITO ADMINISTRATIVO ELECCIONES 7 DE FEBRERO 2010
A4: CANTÓN Y DISTRITO ADMINISTRATIVO | B4: JUNTAS | C4: ELECTORADO | D4: VOTOS RECIBIDOS
D5: TOTAL GENERAL | E5: VOTOS VÁLIDOS | R5: NULOS | S5: BLANCOS
E6: TOTAL | F6: UNIDAD SOCIAL CRISTIANA | G6: INTEGRACIÓN NACIONAL | H6: VERDE ECOLOGISTA | I6: ALIANZA PATRIÓTICA | J6: RENOVACIÓN COSTARRICENSE | K6: FRENTE AMPLIO | L6: LIBERACIÓN NACIONAL | M6: UNIÓN AGRÍCOLA CARTAGINÉS | N6: MOVIMIENTO LIBERTARIO | O6: ACCIÓN CIUDADANA | P6: TRANSPARENCIA CARTAGINÉS | Q6: ACCESIBILIDAD SIN EXCLUSIÓN
A8: PROVINCIA CARTAGO | B8: 746 | C8: 328782 | D8: 243682 | E8: 237267 | F8: 18121 | G8: 851 | H8: 2901 | I8: 2898 | J8: 6664 | K8: 6685 | L8: 92286 | M8: 11862 | N8: 31197 | O8: 40437 | P8: 4590 | Q8: 18775 | R8: 3960 | S8: 2455
A9: CANTÓN 1 CARTAGO | B9: 223 | C9: 104564 | D9: 79833 | E9: 78072 | F9: 5860 | G9: 274 | H9: 1011 | I9: 930 | J9: 2540 | K9: 2407 | L9: 31628 | M9: 2567 | N9: 10728 | O9: 13194 | P9: 874 | Q9: 6059 | R9: 1109 | S9: 652
A10: ORIENTAL | B10: 27 | C10: 13347 | D10: 10489 | E10: 10311 | F10: 781 | G10: 34 | H10: 215 | I10: 182 | J10: 201 | K10: 346 | L10: 3960 | M10: 483 | N10: 1160 | O10: 2229 | P10: 75 | Q10: 645 | R10: 124 | S10: 54
A11: OCCIDENTAL | B11: 20 | C11: 9665 | D11: 7674 | E11: 7567 | F11: 526 | G11: 21 | H11: 123 | I11: 87 | J11: 230 | K11: 270 | L11: 2933 | M11: 361 | N11: 895 | O11: 1598 | P11: 55 | Q11: 468 | R11: 68 | S11: 39
A12: CARMEN | B12: 25 | C12: 11878 | D12: 9070 | E12: 8888 | F12: 556 | G12: 25 | H12: 98 | I12: 104 | J12: 225 | K12: 463 | L12: 3437 | M12: 322 | N12: 1275 | O12: 1576 | P12: 65 | Q12: 742 | R12: 121 | S12: 61
A13: SAN NICOLÁS | B13: 34 | C13: 16082 | D13: 12022 | E13: 11791 | F13: 969 | G13: 45 | H13: 157 | I13: 98 | J13: 428 | K13: 334 | L13: 4855 | M13: 299 | N13: 1802 | O13: 1598 | P13: 93 | Q13: 1113 | R13: 152 | S13: 79
A14: AGUACALIENTE O SAN FRANCISCO | B14: 44 | C14: 20317 | D14: 15354 | E14: 15004 | F14: 1170 | G14: 48 | H14: 199 | I14: 197 | J14: 443 | K14: 362 | L14: 5907 | M14: 508 | N14: 2392 | O14: 2347 | P14: 120 | Q14: 1311 | R14: 234 | S14: 116
A15: GUADALUPE O ARENILLA | B15: 20 | C15: 10009 | D15: 7823 | E15: 7653 | F15: 468 | G15: 26 | H15: 90 | I15: 91 | J15: 200 | K15: 311 | L15: 3053 | M15: 238 | N15: 1229 | O15: 1167 | P15: 169 | Q15: 611 | R15: 109 | S15: 61
A16: CORRALILLO | B16: 18 | C16: 7164 | D16: 5417 | E16: 5240 | F16: 226 | G16: 42 | H16: 25 | I16: 16 | J16: 656 | K16: 70 | L16: 2829 | M16: 49 | N16: 375 | O16: 558 | P16: 16 | Q16: 378 | R16: 94 | S16: 83
A17: TIERRA BLANCA | B17: 8 | C17: 3851 | D17: 2973 | E17: 2886 | F17: 351 | G17: 8 | H17: 22 | I17: 25 | J17: 13 | K17: 65 | L17: 1016 | M17: 84 | N17: 240 | O17: 691 | P17: 204 | Q17: 167 | R17: 57 | S17: 30
A18: DULCE NOMBRE | B18: 13 | C18: 6049 | D18: 4672 | E18: 4559 | F18: 391 | G18: 11 | H18: 52 | I18: 101 | J18: 85 | K18: 104 | L18: 1826 | M18: 157 | N18: 659 | O18: 720 | P18: 46 | Q18: 407 | R18: 64 | S18: 49
A19: LLANO GRANDE | B19: 6 | C19: 2763 | D19: 1915 | E19: 1852 | F19: 166 | G19: 11 | H19: 15 | I19: 12 | J19: 23 | K19: 42 | L19: 711 | M19: 43 | N19: 261 | O19: 410 | P19: 22 | Q19: 136 | R19: 31 | S19: 32
A20: QUEBRADILLA | B20: 8 | C20: 3439 | D20: 2424 | E20: 2321 | F20: 256 | G20: 3 | H20: 15 | I20: 17 | J20: 36 | K20: 40 | L20: 1101 | M20: 23 | N20: 440 | O20: 300 | P20: 9 | Q20: 81 | R20: 55 | S20: 48
A21: CANTÓN 2 PARAÍSO | B21: 87 | C21: 39163 | D21: 28994 | E21: 28012 | F21: 2052 | G21: 73 | H21: 367 | I21: 241 | J21: 735 | K21: 1106 | L21: 9396 | M21: 3301 | N21: 3567 | O21: 4658 | P21: 359 | Q21: 2157 | R21: 600 | S21: 382
A22: PARAÍSO | B22: 34 | C22: 16468 | D22: 12533 | E22: 12163 | F22: 771 | G22: 26 | H22: 178 | I22: 113 | J22: 206 | K22: 587 | L22: 3677 | M22: 1988 | N22: 1209 | O22: 2278 | P22: 117 | Q22: 1013 | R22: 215 | S22: 155
A23: SANTIAGO | B23: 9 | C23: 3381 | D23: 2440 | E23: 2336 | F23: 59 | G23: 6 | H23: 40 | I23: 24 | J23: 185 | K23: 81 | L23: 861 | M23: 496 | N23: 144 | O23: 204 | P23: 129 | Q23: 107 | R23: 69 | S23: 35
A24: OROSI | B24: 15 | C24: 6204 | D24: 4577 | E24: 4384 | F24: 372 | G24: 16 | H24: 31 | I24: 32 | J24: 39 | K24: 128 | L24: 1589 | M24: 236 | N24: 745 | O24: 867 | P24: 53 | Q24: 276 | R24: 124 | S24: 69
A25: CACHÍ | B25: 10 | C25: 3917 | D25: 2969 | E25: 2876 | F25: 348 | G25: 3 | H25: 13 | I25: 12 | J25: 37 | K25: 92 | L25: 1165 | M25: 212 | N25: 282 | O25: 485 | P25: 23 | Q25: 204 | R25: 54 | S25: 39
A26: LLANOS DE SANTA LUCÍA | B26: 19 | C26: 9193 | D26: 6475 | E26: 6253 | F26: 502 | G26: 22 | H26: 105 | I26: 60 | J26: 268 | K26: 218 | L26: 2104 | M26: 369 | N26: 1187 | O26: 824 | P26: 37 | Q26: 557 | R26: 138 | S26: 84
A27: CANTÓN 3 LA UNIÓN | B27: 123 | C27: 57841 | D27: 41468 | E27: 40679 | F27: 2747 | G27: 253 | H27: 627 | I27: 243 | J27: 1642 | K27: 1425 | L27: 13742 | M27: 1024 | N27: 6049 | O27: 7793 | P27: 237 | Q27: 4897 | R27: 535 | S27: 254
A28: TRES RÍOS | B28: 21 | C28: 10238 | D28: 7842 | E28: 7739 | F28: 466 | G28: 44 | H28: 89 | I28: 40 | J28: 197 | K28: 207 | L28: 2639 | M28: 196 | N28: 1144 | O28: 1721 | P28: 37 | Q28: 959 | R28: 60 | S28: 43
A29: SAN DIEGO | B29: 23 | C29: 11059 | D29: 7674 | E29: 7537 | F29: 700 | G29: 61 | H29: 241 | I29: 43 | J29: 342 | K29: 207 | L29: 2332 | M29: 187 | N29: 1073 | O29: 1360 | P29: 46 | Q29: 945 | R29: 91 | S29: 46
A30: SAN JUAN | B30: 14 | C30: 6792 | D30: 5153 | E30: 5090 | F30: 249 | G30: 35 | H30: 37 | I30: 44 | J30: 205 | K30: 202 | L30: 1799 | M30: 110 | N30: 601 | O30: 1211 | P30: 31 | Q30: 566 | R30: 41 | S30: 22
A31: SAN RAFAEL | B31: 16 | C31: 7055 | D31: 5045 | E31: 4928 | F31: 258 | G31: 26 | H31: 60 | I31: 32 | J31: 301 | K31: 145 | L31: 1611 | M31: 194 | N31: 806 | O31: 781 | P31: 52 | Q31: 662 | R31: 92 | S31: 25
A32: CONCEPCIÓN | B32: 20 | C32: 9234 | D32: 6765 | E32: 6623 | F32: 377 | G32: 26 | H32: 81 | I32: 32 | J32: 247 | K32: 340 | L32: 2217 | M32: 97 | N32: 1027 | O32: 1312 | P32: 32 | Q32: 835 | R32: 104 | S32: 38
A33: DULCE NOMBRE | B33: 12 | C33: 5181 | D33: 3527 | E33: 3445 | F33: 413 | G33: 24 | H33: 52 | I33: 12 | J33: 108 | K33: 96 | L33: 1216 | M33: 98 | N33: 504 | O33: 513 | P33: 16 | Q33: 393 | R33: 55 | S33: 27
A34: SAN RAMÓN | B34: 6 | C34: 3018 | D34: 2212 | E34: 2180 | F34: 78 | G34: 11 | H34: 26 | I34: 12 | J34: 90 | K34: 145 | L34: 839 | M34: 15 | N34: 273 | O34: 518 | P34: 10 | Q34: 163 | R34: 19 | S34: 13
A35: RÍO AZUL | B35: 11 | C35: 5264 | D35: 3250 | E35: 3137 | F35: 206 | G35: 26 | H35: 41 | I35: 28 | J35: 152 | K35: 83 | L35: 1089 | M35: 127 | N35: 621 | O35: 377 | P35: 13 | Q35: 374 | R35: 73 | S35: 40
A36: CANTÓN 4 JIMÉNEZ | B36: 28 | C36: 10397 | D36: 7783 | E36: 7508 | F36: 874 | G36: 26 | H36: 70 | I36: 113 | J36: 127 | K36: 84 | L36: 3285 | M36: 493 | N36: 803 | O36: 1094 | P36: 96 | Q36: 443 | R36: 165 | S36: 110
A37: JUAN VIÑAS | B37: 14 | C37: 4872 | D37: 3649 | E37: 3529 | F37: 248 | G37: 7 | H37: 29 | I37: 79 | J37: 98 | K37: 41 | L37: 1705 | M37: 337 | N37: 297 | O37: 381 | P37: 54 | Q37: 253 | R37: 63 | S37: 57
A38: TUCURRIQUE | B38: 7 | C38: 3089 | D38: 2307 | E38: 2211 | F38: 515 | G38: 14 | H38: 13 | I38: 20 | J38: 9 | K38: 25 | L38: 756 | M38: 80 | N38: 324 | O38: 364 | P38: 17 | Q38: 74 | R38: 67 | S38: 29
A39: PEJIBAYE | B39: 7 | C39: 2436 | D39: 1827 | E39: 1768 | F39: 111 | G39: 5 | H39: 28 | I39: 14 | J39: 20 | K39: 18 | L39: 824 | M39: 76 | N39: 182 | O39: 349 | P39: 25 | Q39: 116 | R39: 35 | S39: 24
A40: CANTÓN 5 TURRIALBA | B40: 140 | C40: 51433 | D40: 36203 | E40: 35097 | F40: 3519 | G40: 86 | H40: 399 | I40: 603 | J40: 477 | K40: 552 | L40: 15751 | M40: 1054 | N40: 3806 | O40: 6274 | P40: 838 | Q40: 1738 | R40: 619 | S40: 487
A41: TURRIALBA | B41: 49 | C41: 20825 | D41: 15538 | E41: 15173 | F41: 1353 | G41: 34 | H41: 131 | I41: 301 | J41: 204 | K41: 338 | L41: 6654 | M41: 581 | N41: 1299 | O41: 3144 | P41: 426 | Q41: 708 | R41: 214 | S41: 151
A42: LA SUIZA | B42: 17 | C42: 6076 | D42: 4288 | E42: 4148 | F42: 428 | G42: 11 | H42: 28 | I42: 53 | J42: 56 | K42: 44 | L42: 1808 | M42: 113 | N42: 555 | O42: 718 | P42: 102 | Q42: 232 | R42: 78 | S42: 62
A43: PERALTA | B43: 1 | C43: 296 | D43: 211 | E43: 202 | F43: 88 | G43: 0 | H43: 1 | I43: 0 | J43: 2 | K43: 1 | L43: 70 | M43: 3 | N43: 18 | O43: 17 | P43: 0 | Q43: 2 | R43: 3 | S43: 6
A44: SANTA CRUZ | B44: 9 | C44: 2413 | D44: 1580 | E44: 1535 | F44: 144 | G44: 6 | H44: 13 | I44: 19 | J44: 12 | K44: 25 | L44: 758 | M44: 38 | N44: 188 | O44: 261 | P44: 11 | Q44: 60 | R44: 24 | S44: 21
A45: SANTA TERESITA | B45: 12 | C45: 3468 | D45: 2404 | E45: 2318 | F45: 170 | G45: 3 | H45: 16 | I45: 19 | J45: 23 | K45: 13 | L45: 1180 | M45: 48 | N45: 399 | O45: 344 | P45: 12 | Q45: 91 | R45: 39 | S45: 47
A46: PAVONES | B46: 7 | C46: 3205 | D46: 2182 | E46: 2118 | F46: 321 | G46: 7 | H46: 105 | I46: 14 | J46: 33 | K46: 22 | L46: 899 | M46: 35 | N46: 235 | O46: 315 | P46: 27 | Q46: 105 | R46: 32 | S46: 32
A47: TUIS | B47: 6 | C47: 1710 | D47: 1207 | E47: 1157 | F47: 79 | G47: 3 | H47: 14 | I47: 44 | J47: 21 | K47: 7 | L47: 516 | M47: 21 | N47: 165 | O47: 215 | P47: 12 | Q47: 60 | R47: 30 | S47: 20
A48: TAYUTIC | B48: 5 | C48: 1680 | D48: 1141 | E48: 1098 | F48: 60 | G48: 3 | H48: 11 | I48: 11 | J48: 15 | K48: 14 | L48: 562 | M48: 11 | N48: 99 | O48: 135 | P48: 6 | Q48: 171 | R48: 16 | S48: 27
A49: SANTA ROSA | B49: 8 | C49: 3757 | D49: 2826 | E49: 2746 | F49: 174 | G49: 4 | H49: 24 | I49: 63 | J49: 25 | K49: 33 | L49: 1416 | M49: 108 | N49: 290 | O49: 372 | P49: 129 | Q49: 108 | R49: 49 | S49: 31
A50: TRES EQUIS | B50: 4 | C50: 1248 | D50: 856 | E50: 815 | F50: 177 | G50: 2 | H50: 38 | I50: 2 | J50: 11 | K50: 4 | L50: 350 | M50: 1 | N50: 101 | O50: 95 | P50: 5 | Q50: 29 | R50: 26 | S50: 15
A51: LA ISABEL | B51: 11 | C51: 4359 | D51: 3129 | E51: 3019 | F51: 396 | G51: 11 | H51: 16 | I51: 72 | J51: 65 | K51: 39 | L51: 1217 | M51: 80 | N51: 361 | O51: 533 | P51: 104 | Q51: 125 | R51: 70 | S51: 40
A52: CHIRRIPÓ | B52: 11 | C52: 2396 | D52: 841 | E52: 768 | F52: 129 | G52: 2 | H52: 2 | I52: 5 | J52: 10 | K52: 12 | L52: 321 | M52: 15 | N52: 96 | O52: 125 | P52: 4 | Q52: 47 | R52: 38 | S52: 35
A53: CANTÓN 6 ALVARADO | B53: 21 | C53: 8510 | D53: 6263 | E53: 6001 | F53: 260 | G53: 16 | H53: 43 | I53: 24 | J53: 88 | K53: 50 | L53: 1618 | M53: 2150 | N53: 518 | O53: 844 | P53: 41 | Q53: 349 | R53: 167 | S53: 95
A54: PACAYAS | B54: 10 | C54: 3702 | D54: 2620 | E54: 2503 | F54: 67 | G54: 6 | H54: 16 | I54: 13 | J54: 51 | K54: 25 | L54: 738 | M54: 752 | N54: 251 | O54: 469 | P54: 16 | Q54: 99 | R54: 76 | S54: 41
A55: CERVANTES | B55: 7 | C55: 3407 | D55: 2612 | E55: 2504 | F55: 135 | G55: 4 | H55: 15 | I55: 10 | J55: 34 | K55: 25 | L55: 550 | M55: 1139 | N55: 154 | O55: 237 | P55: 9 | Q55: 192 | R55: 75 | S55: 33
A56: CAPELLADES | B56: 4 | C56: 1401 | D56: 1031 | E56: 994 | F56: 58 | G56: 6 | H56: 12 | I56: 1 | J56: 3 | K56: 0 | L56: 330 | M56: 259 | N56: 113 | O56: 138 | P56: 16 | Q56: 58 | R56: 16 | S56: 21
A57: CANTÓN 7 OREAMUNO | B57: 64 | C57: 30006 | D57: 22354 | E57: 21671 | F57: 1171 | G57: 65 | H57: 193 | I57: 606 | J57: 407 | K57: 674 | L57: 8185 | M57: 967 | N57: 2713 | O57: 3242 | P57: 1955 | Q57: 1493 | R57: 453 | S57: 230
A58: SAN RAFAEL | B58: 38 | C58: 18790 | D58: 14283 | E58: 13948 | F58: 799 | G58: 48 | H58: 121 | I58: 382 | J58: 327 | K58: 598 | L58: 5617 | M58: 621 | N58: 1883 | O58: 2312 | P58: 145 | Q58: 1095 | R58: 217 | S58: 118
A59: COT | B59: 12 | C59: 5677 | D59: 4262 | E59: 4072 | F59: 208 | G59: 11 | H59: 25 | I59: 140 | J59: 55 | K59: 31 | L59: 870 | M59: 105 | N59: 402 | O59: 352 | P59: 1696 | Q59: 177 | R59: 142 | S59: 48
A60: POTRERO CERRADO | B60: 3 | C60: 1227 | D60: 852 | E60: 816 | F60: 34 | G60: 2 | H60: 8 | I60: 32 | J60: 2 | K60: 10 | L60: 339 | M60: 17 | N60: 109 | O60: 164 | P60: 34 | Q60: 65 | R60: 17 | S60: 19
A61: CIPRESES | B61: 5 | C61: 2223 | D61: 1614 | E61: 1539 | F61: 79 | G61: 2 | H61: 36 | I61: 31 | J61: 14 | K61: 26 | L61: 680 | M61: 166 | N61: 158 | O61: 207 | P61: 58 | Q61: 82 | R61: 54 | S61: 21
A62: SANTA ROSA | B62: 6 | C62: 2089 | D62: 1343 | E62: 1296 | F62: 51 | G62: 2 | H62: 3 | I62: 21 | J62: 9 | K62: 9 | L62: 679 | M62: 58 | N62: 161 | O62: 207 | P62: 22 | Q62: 74 | R62: 23 | S62: 24
A63: CANTÓN 8 EL GUARCO | B63: 60 | C63: 26868 | D63: 20784 | E63: 20227 | F63: 1638 | G63: 58 | H63: 191 | I63: 138 | J63: 648 | K63: 387 | L63: 8681 | M63: 306 | N63: 3013 | O63: 3338 | P63: 190 | Q63: 1639 | R63: 312 | S63: 245
A64: EL TEJAR | B64: 33 | C64: 15525 | D64: 12208 | E64: 11942 | F64: 822 | G64: 31 | H64: 103 | I64: 92 | J64: 467 | K64: 299 | L64: 4597 | M64: 220 | N64: 1756 | O64: 2399 | P64: 145 | Q64: 1011 | R64: 171 | S64: 95
A65: SAN ISIDRO | B65: 15 | C65: 6700 | D65: 5148 | E65: 4986 | F65: 350 | G65: 19 | H65: 34 | I65: 30 | J65: 71 | K65: 58 | L65: 2442 | M65: 59 | N65: 827 | O65: 621 | P65: 30 | Q65: 445 | R65: 76 | S65: 86
A66: TOBOSI | B66: 10 | C66: 4262 | D66: 3132 | E66: 3021 | F66: 458 | G66: 8 | H66: 54 | I66: 14 | J66: 46 | K66: 27 | L66: 1519 | M66: 22 | N66: 389 | O66: 290 | P66: 15 | Q66: 179 | R66: 57 | S66: 54
A67: PATIO DE AGUA | B67: 2 | C67: 381 | D67: 296 | E67: 278 | F67: 8 | G67: 0 | H67: 0 | I67: 2 | J67: 64 | K67: 3 | L67: 123 | M67: 5 | N67: 41 | O67: 28 | P67: 0 | Q67: 4 | R67: 8 | S67: 10

Sheet C2.6
A2: CUADRO 2.6 HEREDIA: JUNTAS, ELECTORADO, VOTOS POR PARTIDO, NULOS Y BLANCOS PARA DIPUTACIONES A LA ASAMBLEA LEGISLATIVA, SEGÚN CANTÓN Y DISTRITO ADMINISTRATIVO ELECCIONES 7 DE FEBRERO 2010
A4: CANTÓN Y DISTRITO ADMINISTRATIVO | B4: JUNTAS | C4: ELECTORADO | D4: VOTOS RECIBIDOS
D5: TOTAL GENERAL | E5: VOTOS VÁLIDOS | P5: NULOS | Q5: BLANCOS
E6: TOTAL | F6: UNIDAD SOCIAL CRISTIANA | G6: INTEGRACIÓN NACIONAL | H6: ALIANZA PATRIÓTICA | I6: RENOVACIÓN COSTARRICENSE | J6: FRENTE AMPLIO | K6: LIBERACIÓN NACIONAL | L6: MOVIMIENTO LIBERTARIO | M6: ACCIÓN CIUDADANA | N6: RESTAURACIÓN HEREDIANA | O6: ACCESIBILIDAD SIN EXCLUSIÓN
A8: PROVINCIA HEREDIA | B8: 604 | C8: 278544 | D8: 203697 | E8: 199698 | F8: 14510 | G8: 950 | H8: 3785 | I8: 5724 | J8: 9523 | K8: 73929 | L8: 27766 | M8: 38143 | N8: 7953 | O8: 17415 | P8: 2466 | Q8: 1533
A9: CANTÓN 1 HEREDIA | B9: 176 | C9: 84511 | D9: 61372 | E9: 60460 | F9: 3832 | G9: 276 | H9: 1302 | I9: 1601 | J9: 3680 | K9: 22862 | L9: 7944 | M9: 11060 | N9: 2665 | O9: 5238 | P9: 590 | Q9: 322
A10: HEREDIA | B10: 38 | C10: 18262 | D10: 13605 | E10: 13415 | F10: 1044 | G10: 63 | H10: 440 | I10: 204 | J10: 1081 | K10: 5164 | L10: 1394 | M10: 2660 | N10: 426 | O10: 939 | P10: 126 | Q10: 64
A11: MERCEDES | B11: 37 | C11: 18289 | D11: 14156 | E11: 13990 | F11: 737 | G11: 68 | H11: 324 | I11: 276 | J11: 974 | K11: 5169 | L11: 1689 | M11: 2999 | N11: 528 | O11: 1226 | P11: 92 | Q11: 74
A12: SAN FRANCISCO | B12: 64 | C12: 30848 | D12: 21382 | E12: 21008 | F12: 1203 | G12: 76 | H12: 299 | I12: 778 | J12: 1059 | K12: 7802 | L12: 3264 | M12: 3540 | N12: 1073 | O12: 1914 | P12: 248 | Q12: 126
A13: ULLOA | B13: 35 | C13: 16621 | D13: 11918 | E13: 11749 | F13: 768 | G13: 68 | H13: 239 | I13: 340 | J13: 564 | K13: 4597 | L13: 1537 | M13: 1853 | N13: 628 | O13: 1155 | P13: 116 | Q13: 53
A14: VARABLANCA | B14: 2 | C14: 491 | D14: 311 | E14: 298 | F14: 80 | G14: 1 | H14: 0 | I14: 3 | J14: 2 | K14: 130 | L14: 60 | M14: 8 | N14: 10 | O14: 4 | P14: 8 | Q14: 5
A15: CANTÓN 2 BARVA | B15: 58 | C15: 26982 | D15: 20375 | E15: 20040 | F15: 1089 | G15: 85 | H15: 266 | I15: 453 | J15: 1262 | K15: 6631 | L15: 3004 | M15: 4607 | N15: 937 | O15: 1706 | P15: 207 | Q15: 128
A16: BARVA | B16: 12 | C16: 5798 | D16: 4484 | E16: 4411 | F16: 217 | G16: 12 | H16: 71 | I16: 92 | J16: 438 | K16: 1430 | L16: 599 | M16: 1039 | N16: 206 | O16: 307 | P16: 49 | Q16: 24
A17: SAN PEDRO | B17: 14 | C17: 6732 | D17: 4903 | E17: 4801 | F17: 266 | G17: 25 | H17: 48 | I17: 101 | J17: 218 | K17: 1585 | L17: 779 | M17: 1118 | N17: 259 | O17: 402 | P17: 67 | Q17: 35
A18: SAN PABLO | B18: 10 | C18: 4660 | D18: 3506 | E18: 3456 | F18: 178 | G18: 19 | H18: 39 | I18: 93 | J18: 215 | K18: 1061 | L18: 561 | M18: 759 | N18: 172 | O18: 359 | P18: 25 | Q18: 25
A19: SAN ROQUE | B19: 4 | C19: 1944 | D19: 1505 | E19: 1491 | F19: 87 | G19: 8 | H19: 10 | I19: 22 | J19: 94 | K19: 490 | L19: 194 | M19: 352 | N19: 78 | O19: 156 | P19: 8 | Q19: 6
A20: SANTA LUCIA | B20: 9 | C20: 4271 | D20: 3324 | E20: 3281 | F20: 155 | G20: 9 | H20: 62 | I20: 58 | J20: 198 | K20: 1057 | L20: 476 | M20: 859 | N20: 133 | O20: 274 | P20: 29 | Q20: 14
A21: SAN JOSÉ DE LA MONTAÑA | B21: 9 | C21: 3577 | D21: 2653 | E21: 2600 | F21: 186 | G21: 12 | H21: 36 | I21: 87 | J21: 99 | K21: 1008 | L21: 395 | M21: 480 | N21: 89 | O21: 208 | P21: 29 | Q21: 24
A22: CANTÓN 3 SANTO DOMINGO | B22: 63 | C22: 30208 | D22: 22872 | E22: 22518 | F22: 1330 | G22: 121 | H22: 231 | I22: 551 | J22: 906 | K22: 8575 | L22: 2829 | M22: 4555 | N22: 600 | O22: 2820 | P22: 231 | Q22: 123
A23: SANTO DOMINGO | B23: 16 | C23: 7753 | D23: 5990 | E23: 5894 | F23: 394 | G23: 28 | H23: 54 | I23: 96 | J23: 317 | K23: 2519 | L23: 648 | M23: 1233 | N23: 117 | O23: 488 | P23: 59 | Q23: 37
A24: SAN VICENTE | B24: 7 | C24: 3468 | D24: 2739 | E24: 2710 | F24: 151 | G24: 8 | H24: 36 | I24: 52 | J24: 159 | K24: 1095 | L24: 277 | M24: 648 | N24: 65 | O24: 219 | P24: 18 | Q24: 11
A25: SAN MIGUEL | B25: 10 | C25: 4534 | D25: 3458 | E25: 3411 | F25: 156 | G25: 24 | H25: 27 | I25: 117 | J25: 97 | K25: 1074 | L25: 617 | M25: 761 | N25: 97 | O25: 441 | P25: 32 | Q25: 15
A26: PARACITO | B26: 4 | C26: 1953 | D26: 1463 | E26: 1441 | F26: 67 | G26: 12 | H26: 8 | I26: 71 | J26: 37 | K26: 635 | L26: 223 | M26: 216 | N26: 25 | O26: 147 | P26: 14 | Q26: 8
A27: SANTO TOMÁS | B27: 7 | C27: 3358 | D27: 2591 | E27: 2550 | F27: 186 | G27: 10 | H27: 24 | I27: 57 | J27: 97 | K27: 909 | L27: 298 | M27: 529 | N27: 97 | O27: 343 | P27: 29 | Q27: 12
A28: SANTA ROSA | B28: 9 | C28: 4402 | D28: 3146 | E28: 3096 | F28: 205 | G28: 24 | H28: 63 | I28: 82 | J28: 105 | K28: 1267 | L28: 426 | M28: 509 | N28: 79 | O28: 336 | P28: 30 | Q28: 20
A29: TURES | B29: 5 | C29: 2474 | D29: 1833 | E29: 1790 | F29: 81 | G29: 7 | H29: 4 | I29: 32 | J29: 29 | K29: 538 | L29: 139 | M29: 270 | N29: 30 | O29: 660 | P29: 32 | Q29: 11
A30: PARÁ | B30: 5 | C30: 2266 | D30: 1652 | E30: 1626 | F30: 90 | G30: 8 | H30: 15 | I30: 44 | J30: 65 | K30: 538 | L30: 201 | M30: 389 | N30: 90 | O30: 186 | P30: 17 | Q30: 9
A31: CANTÓN 4 SANTA BÁRBARA | B31: 48 | C31: 22277 | D31: 16419 | E31: 16040 | F31: 822 | G31: 101 | H31: 220 | I31: 354 | J31: 665 | K31: 5749 | L31: 2775 | M31: 3008 | N31: 799 | O31: 1547 | P31: 216 | Q31: 163
A32: SANTA BÁRBARA | B32: 12 | C32: 5928 | D32: 4457 | E32: 4358 | F32: 274 | G32: 24 | H32: 63 | I32: 92 | J32: 179 | K32: 1488 | L32: 735 | M32: 869 | N32: 251 | O32: 383 | P32: 51 | Q32: 48
A33: SAN PEDRO | B33: 5 | C33: 2357 | D33: 1760 | E33: 1730 | F33: 107 | G33: 5 | H33: 13 | I33: 22 | J33: 54 | K33: 689 | L33: 313 | M33: 342 | N33: 44 | O33: 141 | P33: 15 | Q33: 15
A34: SAN JUAN | B34: 9 | C34: 4423 | D34: 3345 | E34: 3277 | F34: 134 | G34: 20 | H34: 23 | I34: 61 | J34: 125 | K34: 1198 | L34: 650 | M34: 651 | N34: 87 | O34: 328 | P34: 33 | Q34: 35
A35: JESÚS | B35: 11 | C35: 5033 | D35: 3608 | E35: 3502 | F35: 163 | G35: 19 | H35: 47 | I35: 102 | J35: 223 | K35: 1142 | L35: 579 | M35: 611 | N35: 243 | O35: 373 | P35: 68 | Q35: 38
A36: SANTO DOMINGO | B36: 5 | C36: 2052 | D36: 1440 | E36: 1402 | F36: 75 | G36: 12 | H36: 60 | I36: 31 | J36: 22 | K36: 559 | L36: 224 | M36: 221 | N36: 91 | O36: 107 | P36: 21 | Q36: 17
A37: PURABÁ | B37: 6 | C37: 2484 | D37: 1809 | E37: 1771 | F37: 69 | G37: 21 | H37: 14 | I37: 46 | J37: 62 | K37: 673 | L37: 274 | M37: 314 | N37: 83 | O37: 215 | P37: 28 | Q37: 10
A38: CANTÓN 5 SAN RAFAEL | B38: 62 | C38: 29077 | D38: 20851 | E38: 20391 | F38: 1161 | G38: 101 | H38: 391 | I38: 364 | J38: 1078 | K38: 7019 | L38: 3098 | M38: 4058 | N38: 1338 | O38: 1783 | P38: 283 | Q38: 177
A39: SAN RAFAEL | B39: 17 | C39: 8090 | D39: 5966 | E39: 5853 | F39: 346 | G39: 24 | H39: 67 | I39: 105 | J39: 324 | K39: 2059 | L39: 826 | M39: 1252 | N39: 359 | O39: 491 | P39: 65 | Q39: 48
A40: SAN JOSECITO | B40: 14 | C40: 6741 | D40: 4624 | E40: 4507 | F40: 333 | G40: 30 | H40: 132 | I40: 84 | J40: 243 | K40: 1473 | L40: 613 | M40: 844 | N40: 299 | O40: 456 | P40: 75 | Q40: 42
A41: SANTIAGO | B41: 10 | C41: 4859 | D41: 3637 | E41: 3567 | F41: 175 | G41: 19 | H41: 128 | I41: 90 | J41: 236 | K41: 1156 | L41: 503 | M41: 757 | N41: 224 | O41: 279 | P41: 47 | Q41: 23
A42: LOS ÁNGELES | B42: 16 | C42: 7217 | D42: 5093 | E42: 4961 | F42: 235 | G42: 22 | H42: 45 | I42: 69 | J42: 204 | K42: 1699 | L42: 926 | M42: 916 | N42: 417 | O42: 428 | P42: 81 | Q42: 51
A43: CONCEPCIÓN | B43: 5 | C43: 2170 | D43: 1531 | E43: 1503 | F43: 72 | G43: 6 | H43: 19 | I43: 16 | J43: 71 | K43: 632 | L43: 230 | M43: 289 | N43: 39 | O43: 129 | P43: 15 | Q43: 13
A44: CANTÓN 6 SAN ISIDRO | B44: 28 | C44: 12800 | D44: 9544 | E44: 9340 | F44: 571 | G44: 50 | H44: 99 | I44: 150 | J44: 272 | K44: 4120 | L44: 918 | M44: 2193 | N44: 193 | O44: 774 | P44: 112 | Q44: 92
A45: SAN ISIDRO | B45: 14 | C45: 6686 | D45: 4978 | E45: 4876 | F45: 285 | G45: 30 | H45: 44 | I45: 90 | J45: 136 | K45: 2080 | L45: 457 | M45: 1235 | N45: 110 | O45: 409 | P45: 64 | Q45: 38
A46: SAN JOSÉ | B46: 7 | C46: 3016 | D46: 2239 | E46: 2191 | F46: 126 | G46: 10 | H46: 39 | I46: 38 | J46: 76 | K46: 1009 | L46: 222 | M46: 449 | N46: 46 | O46: 176 | P46: 25 | Q46: 23
A47: CONCEPCIÓN | B47: 4 | C47: 1665 | D47: 1254 | E47: 1221 | F47: 106 | G47: 6 | H47: 5 | I47: 11 | J47: 23 | K47: 625 | L47: 147 | M47: 200 | N47: 16 | O47: 82 | P47: 13 | Q47: 20
A48: SAN FRANCISCO | B48: 3 | C48: 1433 | D48: 1073 | E48: 1052 | F48: 54 | G48: 4 | H48: 11 | I48: 11 | J48: 37 | K48: 406 | L48: 92 | M48: 309 | N48: 21 | O48: 107 | P48: 10 | Q48: 11
A49: CANTÓN 7 BELÉN | B49: 32 | C49: 15687 | D49: 12012 | E49: 11790 | F49: 1239 | G49: 42 | H49: 214 | I49: 129 | J49: 319 | K49: 5117 | L49: 1537 | M49: 2020 | N49: 240 | O49: 933 | P49: 134 | Q49: 88
A50: SAN ANTONIO | B50: 15 | C50: 7381 | D50: 5622 | E50: 5518 | F50: 491 | G50: 19 | H50: 90 | I50: 56 | J50: 156 | K50: 2308 | L50: 764 | M50: 1035 | N50: 102 | O50: 497 | P50: 62 | Q50: 42
A51: LA RIBERA | B51: 11 | C51: 5344 | D51: 4071 | E51: 3982 | F51: 468 | G51: 17 | H51: 79 | I51: 44 | J51: 101 | K51: 1687 | L51: 532 | M51: 619 | N51: 116 | O51: 319 | P51: 61 | Q51: 28
A52: LA ASUNCIÓN | B52: 6 | C52: 2962 | D52: 2319 | E52: 2290 | F52: 280 | G52: 6 | H52: 45 | I52: 29 | J52: 62 | K52: 1122 | L52: 241 | M52: 366 | N52: 22 | O52: 117 | P52: 11 | Q52: 18
A53: CANTÓN 8 FLORES | B53: 27 | C53: 13404 | D53: 10272 | E53: 10053 | F53: 645 | G53: 35 | H53: 358 | I53: 148 | J53: 334 | K53: 4172 | L53: 1339 | M53: 1955 | N53: 309 | O53: 758 | P53: 128 | Q53: 91
A54: SAN JOAQUÍN | B54: 14 | C54: 6977 | D54: 5287 | E54: 5171 | F54: 305 | G54: 19 | H54: 190 | I54: 81 | J54: 221 | K54: 2101 | L54: 684 | M54: 1083 | N54: 123 | O54: 364 | P54: 72 | Q54: 44
A55: BARRANTES | B55: 4 | C55: 2046 | D55: 1688 | E55: 1645 | F55: 90 | G55: 3 | H55: 54 | I55: 18 | J55: 50 | K55: 719 | L55: 197 | M55: 370 | N55: 30 | O55: 114 | P55: 19 | Q55: 24
A56: LLORENTE | B56: 9 | C56: 4381 | D56: 3297 | E56: 3237 | F56: 250 | G56: 13 | H56: 114 | I56: 49 | J56: 63 | K56: 1352 | L56: 458 | M56: 502 | N56: 156 | O56: 280 | P56: 37 | Q56: 23
A57: CANTÓN 9 SAN PABLO | B57: 38 | C57: 17791 | D57: 13468 | E57: 13256 | F57: 2607 | G57: 70 | H57: 150 | I57: 272 | J57: 608 | K57: 4400 | L57: 1287 | M57: 2490 | N57: 441 | O57: 931 | P57: 143 | Q57: 69
A58: PARACITO | B58: 27 | C58: 13371 | D58: 10169 | E58: 10005 | F58: 1889 | G58: 58 | H58: 111 | I58: 198 | J58: 474 | K58: 3378 | L58: 956 | M58: 1889 | N58: 365 | O58: 687 | P58: 112 | Q58: 52
A59: RINCÓN DE SABANILLA | B59: 11 | C59: 4420 | D59: 3299 | E59: 3251 | F59: 718 | G59: 12 | H59: 39 | I59: 74 | J59: 134 | K59: 1022 | L59: 331 | M59: 601 | N59: 76 | O59: 244 | P59: 31 | Q59: 17
A60: CANTÓN 10 SARAPIQUÍ | B60: 72 | C60: 25807 | D60: 16512 | E60: 15810 | F60: 1214 | G60: 69 | H60: 554 | I60: 1702 | J60: 399 | K60: 5284 | L60: 3035 | M60: 2197 | N60: 431 | O60: 925 | P60: 422 | Q60: 280
A61: PUERTO VIEJO | B61: 22 | C61: 7889 | D61: 4507 | E61: 4330 | F61: 521 | G61: 17 | H61: 163 | I61: 321 | J61: 72 | K61: 1463 | L61: 957 | M61: 547 | N61: 70 | O61: 199 | P61: 104 | Q61: 73
A62: LA VIRGEN | B62: 14 | C62: 4698 | D62: 3077 | E62: 2957 | F62: 286 | G62: 12 | H62: 63 | I62: 340 | J62: 44 | K62: 1076 | L62: 543 | M62: 312 | N62: 150 | O62: 131 | P62: 71 | Q62: 49
A63: HORQUETAS | B63: 33 | C63: 12701 | D63: 8632 | E63: 8237 | F63: 355 | G63: 39 | H63: 321 | I63: 1038 | J63: 276 | K63: 2650 | L63: 1467 | M63: 1295 | N63: 206 | O63: 590 | P63: 240 | Q63: 155
A64: LLANURAS DEL GASPAR | B64: 1 | C64: 282 | D64: 161 | E64: 158 | F64: 4 | G64: 0 | H64: 5 | I64: 0 | J64: 0 | K64: 63 | L64: 61 | M64: 18 | N64: 4 | O64: 3 | P64: 1 | Q64: 2
A65: CUREÑA | B65: 2 | C65: 237 | D65: 135 | E65: 128 | F65: 48 | G65: 1 | H65: 2 | I65: 3 | J65: 7 | K65: 32 | L65: 7 | M65: 25 | N65: 1 | O65: 2 | P65: 6 | Q65: 1

Sheet C2.7
A2: CUADRO 2.7 GUANACASTE: JUNTAS, ELECTORADO, VOTOS POR PARTIDO, NULOS Y BLANCOS PARA DIPUTACIONES A LA ASAMBLEA LEGISLATIVA, SEGÚN CANTÓN Y DISTRITO ADMINISTRATIVO ELECCIONES 7 DE FEBRERO 2010
A4: CANTÓN Y DISTRITO ADMINISTRATIVO | B4: JUNTAS | C4: ELECTORADO | D4: VOTOS RECIBIDOS
D5: TOTAL GENERAL | E5: VOTOS VÁLIDOS | O5: NULOS | P5: BLANCOS
E6: TOTAL | F6: UNIDAD SOCIAL CRISTIANA | G6: INTEGRACIÓN NACIONAL | H6: ALIANZA PATRIÓTICA | I6: RENOVACIÓN COSTARRICENSE | J6: FRENTE AMPLIO | K6: LIBERACIÓN NACIONAL | L6: MOVIMIENTO LIBERTARIO | M6: ACCIÓN CIUDADANA | N6: ACCESIBILIDAD SIN EXCLUSIÓN
A8: PROVINCIA GUANACASTE | B8: 550 | C8: 199237 | D8: 131931 | E8: 126828 | F8: 13951 | G8: 418 | H8: 3971 | I8: 6433 | J8: 2778 | K8: 54676 | L8: 17162 | M8: 14729 | N8: 12710 | O8: 3162 | P8: 1941
A9: CANTÓN 1 LIBERIA | B9: 84 | C9: 36952 | D9: 22679 | E9: 21917 | F9: 1976 | G9: 155 | H9: 230 | I9: 1010 | J9: 193 | K9: 5631 | L9: 1978 | M9: 1943 | N9: 8801 | O9: 503 | P9: 259
A10: LIBERIA | B10: 70 | C10: 31547 | D10: 19322 | E10: 18710 | F10: 1683 | G10: 128 | H10: 163 | I10: 811 | J10: 165 | K10: 4410 | L10: 1670 | M10: 1603 | N10: 8077 | O10: 428 | P10: 184
A11: CAÑAS DULCES | B11: 5 | C11: 1837 | D11: 1262 | E11: 1207 | F11: 126 | G11: 10 | H11: 49 | I11: 91 | J11: 7 | K11: 442 | L11: 67 | M11: 94 | N11: 321 | O11: 23 | P11: 32
A12: MAYORGA | B12: 2 | C12: 865 | D12: 498 | E12: 476 | F12: 35 | G12: 3 | H12: 5 | I12: 7 | J12: 10 | K12: 234 | L12: 41 | M12: 89 | N12: 52 | O12: 9 | P12: 13
A13: NACASCOLO | B13: 3 | C13: 1335 | D13: 776 | E13: 735 | F13: 67 | G13: 3 | H13: 7 | I13: 21 | J13: 4 | K13: 290 | L13: 97 | M13: 64 | N13: 182 | O13: 21 | P13: 20
A14: CURUBANDÉ | B14: 4 | C14: 1368 | D14: 821 | E14: 789 | F14: 65 | G14: 11 | H14: 6 | I14: 80 | J14: 7 | K14: 255 | L14: 103 | M14: 93 | N14: 169 | O14: 22 | P14: 10
A15: CANTÓN 2 NICOYA | B15: 106 | C15: 34993 | D15: 24488 | E15: 23502 | F15: 4226 | G15: 50 | H15: 649 | I15: 709 | J15: 810 | K15: 11601 | L15: 2931 | M15: 1969 | N15: 557 | O15: 601 | P15: 385
A16: NICOYA | B16: 46 | C16: 18080 | D16: 12590 | E16: 12125 | F16: 2412 | G16: 25 | H16: 219 | I16: 332 | J16: 421 | K16: 6030 | L16: 1446 | M16: 982 | N16: 258 | O16: 287 | P16: 178
A17: MANSIÓN | B17: 11 | C17: 3632 | D17: 2564 | E17: 2449 | F17: 380 | G17: 10 | H17: 195 | I17: 136 | J17: 72 | K17: 1108 | L17: 278 | M17: 156 | N17: 114 | O17: 76 | P17: 39
A18: SAN ANTONIO | B18: 18 | C18: 5037 | D18: 3660 | E18: 3479 | F18: 457 | G18: 3 | H18: 96 | I18: 80 | J18: 223 | K18: 1750 | L18: 487 | M18: 296 | N18: 87 | O18: 113 | P18: 68
A19: QUEBRADA HONDA | B19: 7 | C19: 2000 | D19: 1460 | E19: 1426 | F19: 326 | G19: 4 | H19: 59 | I19: 19 | J19: 30 | K19: 593 | L19: 274 | M19: 99 | N19: 22 | O19: 20 | P19: 14
A20: SÁMARA | B20: 7 | C20: 2073 | D20: 1229 | E20: 1170 | F20: 202 | G20: 1 | H20: 9 | I20: 50 | J20: 11 | K20: 608 | L20: 132 | M20: 130 | N20: 27 | O20: 32 | P20: 27
A21: NOSARA | B21: 8 | C21: 2453 | D21: 1696 | E21: 1616 | F21: 143 | G21: 4 | H21: 23 | I21: 89 | J21: 40 | K21: 850 | L21: 241 | M21: 202 | N21: 24 | O21: 50 | P21: 30
A22: BELÉN DE NOSARITA | B22: 9 | C22: 1718 | D22: 1289 | E22: 1237 | F22: 306 | G22: 3 | H22: 48 | I22: 3 | J22: 13 | K22: 662 | L22: 73 | M22: 104 | N22: 25 | O22: 23 | P22: 29
A23: CANTÓN 3 SANTA CRUZ | B23: 89 | C23: 33780 | D23: 22650 | E23: 21603 | F23: 2032 | G23: 52 | H23: 250 | I23: 866 | J23: 613 | K23: 10001 | L23: 3537 | M23: 3518 | N23: 734 | O23: 643 | P23: 404
A24: SANTA CRUZ | B24: 35 | C24: 14935 | D24: 10002 | E24: 9605 | F24: 713 | G24: 25 | H24: 103 | I24: 441 | J24: 362 | K24: 4461 | L24: 1492 | M24: 1637 | N24: 371 | O24: 266 | P24: 131
A25: BOLSÓN | B25: 3 | C25: 1210 | D25: 805 | E25: 758 | F25: 109 | G25: 4 | H25: 6 | I25: 18 | J25: 18 | K25: 367 | L25: 92 | M25: 110 | N25: 34 | O25: 21 | P25: 26
A26: VEINTISIETE DE ABRIL | B26: 13 | C26: 4332 | D26: 2971 | E26: 2777 | F26: 354 | G26: 4 | H26: 23 | I26: 52 | J26: 17 | K26: 1500 | L26: 541 | M26: 226 | N26: 60 | O26: 120 | P26: 74
A27: TEMPATE | B27: 7 | C27: 2544 | D27: 1607 | E27: 1546 | F27: 194 | G27: 4 | H27: 8 | I27: 85 | J27: 10 | K27: 729 | L27: 326 | M27: 134 | N27: 56 | O27: 34 | P27: 27
A28: CARTAGENA | B28: 6 | C28: 2467 | D28: 1684 | E28: 1613 | F28: 139 | G28: 3 | H28: 20 | I28: 141 | J28: 26 | K28: 728 | L28: 244 | M28: 256 | N28: 56 | O28: 45 | P28: 26
A29: CUAJINIQUIL | B29: 6 | C29: 1163 | D29: 806 | E29: 727 | F29: 156 | G29: 4 | H29: 56 | I29: 12 | J29: 124 | K29: 216 | L29: 90 | M29: 60 | N29: 9 | O29: 50 | P29: 29
A30: DIRIÁ | B30: 7 | C30: 2708 | D30: 1948 | E30: 1883 | F30: 94 | G30: 2 | H30: 12 | I30: 29 | J30: 21 | K30: 747 | L30: 149 | M30: 794 | N30: 35 | O30: 36 | P30: 29
A31: CABO VELAS | B31: 4 | C31: 1561 | D31: 993 | E31: 942 | F31: 66 | G31: 1 | H31: 4 | I31: 20 | J31: 11 | K31: 448 | L31: 240 | M31: 102 | N31: 50 | O31: 22 | P31: 29
A32: TAMARINDO | B32: 8 | C32: 2860 | D32: 1834 | E32: 1752 | F32: 207 | G32: 5 | H32: 18 | I32: 68 | J32: 24 | K32: 805 | L32: 363 | M32: 199 | N32: 63 | O32: 49 | P32: 33
A33: CANTÓN 4 BAGACES | B33: 31 | C33: 10928 | D33: 7050 | E33: 6800 | F33: 497 | G33: 18 | H33: 317 | I33: 625 | J33: 55 | K33: 2737 | L33: 831 | M33: 1384 | N33: 336 | O33: 132 | P33: 118
A34: BAGACES | B34: 18 | C34: 6395 | D34: 3972 | E34: 3826 | F34: 295 | G34: 9 | H34: 235 | I34: 243 | J34: 26 | K34: 1610 | L34: 593 | M34: 610 | N34: 205 | O34: 84 | P34: 62
A35: LA FORTUNA | B35: 5 | C35: 1781 | D35: 1220 | E35: 1180 | F35: 76 | G35: 2 | H35: 12 | I35: 78 | J35: 8 | K35: 499 | L35: 101 | M35: 337 | N35: 67 | O35: 15 | P35: 25
A36: MOGOTE | B36: 6 | C36: 2105 | D36: 1407 | E36: 1361 | F36: 73 | G36: 4 | H36: 57 | I36: 282 | J36: 20 | K36: 422 | L36: 100 | M36: 351 | N36: 52 | O36: 29 | P36: 17
A37: RÍO NARANJO | B37: 2 | C37: 647 | D37: 451 | E37: 433 | F37: 53 | G37: 3 | H37: 13 | I37: 22 | J37: 1 | K37: 206 | L37: 37 | M37: 86 | N37: 12 | O37: 4 | P37: 14
A38: CANTÓN 5 CARRILLO | B38: 47 | C38: 19540 | D38: 12275 | E38: 11858 | F38: 1395 | G38: 33 | H38: 85 | I38: 894 | J38: 315 | K38: 5469 | L38: 1646 | M38: 1018 | N38: 1003 | O38: 279 | P38: 138
A39: FILADELFIA | B39: 12 | C39: 5058 | D39: 3200 | E39: 3103 | F39: 525 | G39: 5 | H39: 34 | I39: 133 | J39: 17 | K39: 1469 | L39: 374 | M39: 215 | N39: 331 | O39: 63 | P39: 34
A40: PALMIRA | B40: 6 | C40: 2706 | D40: 1819 | E40: 1770 | F40: 127 | G40: 8 | H40: 12 | I40: 61 | J40: 17 | K40: 899 | L40: 228 | M40: 94 | N40: 324 | O40: 29 | P40: 20
A41: SARDINAL | B41: 17 | C41: 7091 | D41: 4271 | E41: 4109 | F41: 412 | G41: 10 | H41: 25 | I41: 421 | J41: 240 | K41: 1613 | L41: 680 | M41: 504 | N41: 204 | O41: 119 | P41: 43
A42: BELÉN | B42: 12 | C42: 4685 | D42: 2985 | E42: 2876 | F42: 331 | G42: 10 | H42: 14 | I42: 279 | J42: 41 | K42: 1488 | L42: 364 | M42: 205 | N42: 144 | O42: 68 | P42: 41
A43: CANTÓN 6 CAÑAS | B43: 42 | C43: 17069 | D43: 10689 | E43: 10377 | F43: 987 | G43: 18 | H43: 205 | I43: 622 | J43: 133 | K43: 5597 | L43: 1183 | M43: 1284 | N43: 348 | O43: 203 | P43: 109
A44: CAÑAS | B44: 30 | C44: 13738 | D44: 8510 | E44: 8289 | F44: 819 | G44: 16 | H44: 145 | I44: 582 | J44: 85 | K44: 4340 | L44: 946 | M44: 1060 | N44: 296 | O44: 151 | P44: 70
A45: PALMIRA | B45: 2 | C45: 621 | D45: 418 | E45: 388 | F45: 61 | G45: 0 | H45: 24 | I45: 4 | J45: 2 | K45: 192 | L45: 46 | M45: 51 | N45: 8 | O45: 17 | P45: 13
A46: SAN MIGUEL | B46: 5 | C46: 1100 | D46: 730 | E46: 707 | F46: 51 | G46: 1 | H46: 17 | I46: 14 | J46: 8 | K46: 427 | L46: 73 | M46: 98 | N46: 18 | O46: 12 | P46: 11
A47: BEBEDERO | B47: 3 | C47: 1150 | D47: 708 | E47: 680 | F47: 41 | G47: 1 | H47: 11 | I47: 19 | J47: 11 | K47: 447 | L47: 82 | M47: 47 | N47: 21 | O47: 18 | P47: 10
A48: POROZAL | B48: 2 | C48: 460 | D48: 323 | E48: 313 | F48: 15 | G48: 0 | H48: 8 | I48: 3 | J48: 27 | K48: 191 | L48: 36 | M48: 28 | N48: 5 | O48: 5 | P48: 5
A49: CANTÓN 7 ABANGARES | B49: 37 | C49: 11481 | D49: 7807 | E49: 7426 | F49: 686 | G49: 35 | H49: 1146 | I49: 399 | J49: 376 | K49: 2691 | L49: 1077 | M49: 686 | N49: 330 | O49: 247 | P49: 134
A50: LAS JUNTAS | B50: 16 | C50: 6089 | D50: 4075 | E50: 3913 | F50: 410 | G50: 21 | H50: 784 | I50: 319 | J50: 113 | K50: 1326 | L50: 488 | M50: 341 | N50: 111 | O50: 101 | P50: 61
A51: SIERRA | B51: 7 | C51: 1407 | D51: 971 | E51: 925 | F51: 68 | G51: 2 | H51: 135 | I51: 35 | J51: 47 | K51: 341 | L51: 178 | M51: 93 | N51: 26 | O51: 31 | P51: 15
A52: SAN JUAN | B52: 4 | C52: 1182 | D52: 790 | E52: 748 | F52: 72 | G52: 2 | H52: 61 | I52: 27 | J52: 3 | K52: 266 | L52: 106 | M52: 75 | N52: 136 | O52: 19 | P52: 23
A53: COLORADO | B53: 10 | C53: 2803 | D53: 1971 | E53: 1840 | F53: 136 | G53: 10 | H53: 166 | I53: 18 | J53: 213 | K53: 758 | L53: 305 | M53: 177 | N53: 57 | O53: 96 | P53: 35
A54: CANTÓN 8 TILARÁN | B54: 39 | C54: 13144 | D54: 9502 | E54: 9163 | F54: 906 | G54: 17 | H54: 153 | I54: 611 | J54: 173 | K54: 3724 | L54: 1754 | M54: 1479 | N54: 346 | O54: 208 | P54: 131
A55: TILARÁN | B55: 15 | C55: 6292 | D55: 4598 | E55: 4451 | F55: 403 | G55: 8 | H55: 41 | I55: 307 | J55: 87 | K55: 1657 | L55: 833 | M55: 911 | N55: 204 | O55: 92 | P55: 55
A56: QUEBRADA GRANDE | B56: 6 | C56: 1708 | D56: 1266 | E56: 1217 | F56: 112 | G56: 3 | H56: 33 | I56: 73 | J56: 20 | K56: 564 | L56: 285 | M56: 89 | N56: 38 | O56: 28 | P56: 21
A57: TRONADORA | B57: 4 | C57: 1095 | D57: 781 | E57: 751 | F57: 84 | G57: 1 | H57: 7 | I57: 85 | J57: 28 | K57: 277 | L57: 130 | M57: 115 | N57: 24 | O57: 22 | P57: 8
A58: SANTA ROSA | B58: 3 | C58: 1071 | D58: 731 | E58: 702 | F58: 26 | G58: 1 | H58: 32 | I58: 49 | J58: 13 | K58: 314 | L58: 130 | M58: 117 | N58: 20 | O58: 20 | P58: 9
A59: LÍBANO | B59: 3 | C59: 588 | D59: 451 | E59: 435 | F59: 37 | G59: 0 | H59: 2 | I59: 5 | J59: 3 | K59: 233 | L59: 84 | M59: 57 | N59: 14 | O59: 5 | P59: 11
A60: TIERRAS MORENAS | B60: 4 | C60: 931 | D60: 674 | E60: 661 | F60: 50 | G60: 0 | H60: 23 | I60: 35 | J60: 7 | K60: 329 | L60: 111 | M60: 88 | N60: 18 | O60: 5 | P60: 8
A61: ARENAL | B61: 4 | C61: 1459 | D61: 1001 | E61: 946 | F61: 194 | G61: 4 | H61: 15 | I61: 57 | J61: 15 | K61: 350 | L61: 181 | M61: 102 | N61: 28 | O61: 36 | P61: 19
A62: CANTÓN 9 NANDAYURE | B62: 29 | C62: 7390 | D62: 5343 | E62: 5096 | F62: 391 | G62: 21 | H62: 326 | I62: 126 | J62: 39 | K62: 2971 | L62: 572 | M62: 576 | N62: 74 | O62: 148 | P62: 99
A63: CARMONA | B63: 4 | C63: 1628 | D63: 1252 | E63: 1218 | F63: 94 | G63: 3 | H63: 31 | I63: 28 | J63: 11 | K63: 709 | L63: 92 | M63: 224 | N63: 26 | O63: 15 | P63: 19
A64: SANTA RITA | B64: 4 | C64: 1113 | D64: 847 | E64: 800 | F64: 100 | G64: 3 | H64: 21 | I64: 37 | J64: 2 | K64: 456 | L64: 75 | M64: 99 | N64: 7 | O64: 34 | P64: 13
A65: ZAPOTAL | B65: 5 | C65: 888 | D65: 643 | E65: 614 | F65: 59 | G65: 2 | H65: 52 | I65: 0 | J65: 2 | K65: 308 | L65: 112 | M65: 76 | N65: 3 | O65: 17 | P65: 12
A66: SAN PABLO | B66: 3 | C66: 1131 | D66: 806 | E66: 777 | F66: 58 | G66: 1 | H66: 11 | I66: 16 | J66: 10 | K66: 548 | L66: 57 | M66: 64 | N66: 12 | O66: 16 | P66: 13
A67: PORVENIR | B67: 4 | C67: 733 | D67: 530 | E67: 497 | F67: 23 | G67: 4 | H67: 85 | I67: 5 | J67: 4 | K67: 273 | L67: 60 | M67: 35 | N67: 8 | O67: 22 | P67: 11
A68: BEJUCO | B68: 9 | C68: 1897 | D68: 1265 | E68: 1190 | F68: 57 | G68: 8 | H68: 126 | I68: 40 | J68: 10 | K68: 677 | L68: 176 | M68: 78 | N68: 18 | O68: 44 | P68: 31
A69: CANTÓN 10 LA CRUZ | B69: 28 | C69: 9025 | D69: 5745 | E69: 5535 | F69: 554 | G69: 13 | H69: 31 | I69: 479 | J69: 40 | K69: 2447 | L69: 1275 | M69: 570 | N69: 126 | O69: 139 | P69: 71
A70: LA CRUZ | B70: 14 | C70: 5012 | D70: 3402 | E70: 3309 | F70: 281 | G70: 9 | H70: 11 | I70: 190 | J70: 31 | K70: 1491 | L70: 900 | M70: 318 | N70: 78 | O70: 69 | P70: 24
A71: SANTA CECILIA | B71: 9 | C71: 2440 | D71: 1352 | E71: 1290 | F71: 118 | G71: 3 | H71: 9 | I71: 213 | J71: 3 | K71: 529 | L71: 197 | M71: 191 | N71: 27 | O71: 38 | P71: 24
A72: LA GARITA | B72: 3 | C72: 572 | D72: 350 | E72: 339 | F72: 58 | G72: 1 | H72: 2 | I72: 11 | J72: 3 | K72: 169 | L72: 65 | M72: 25 | N72: 5 | O72: 6 | P72: 5
A73: SANTA ELENA | B73: 2 | C73: 1001 | D73: 641 | E73: 597 | F73: 97 | G73: 0 | H73: 9 | I73: 65 | J73: 3 | K73: 258 | L73: 113 | M73: 36 | N73: 16 | O73: 26 | P73: 18
A74: CANTÓN 11 HOJANCHA | B74: 18 | C74: 4935 | D74: 3703 | E74: 3551 | F74: 301 | G74: 6 | H74: 579 | I74: 92 | J74: 31 | K74: 1807 | L74: 378 | M74: 302 | N74: 55 | O74: 59 | P74: 93
A75: HOJANCHA | B75: 8 | C75: 3027 | D75: 2280 | E75: 2195 | F75: 172 | G75: 2 | H75: 469 | I75: 62 | J75: 24 | K75: 989 | L75: 213 | M75: 227 | N75: 37 | O75: 33 | P75: 52
A76: MONTE ROMO | B76: 3 | C76: 494 | D76: 379 | E76: 367 | F76: 51 | G76: 1 | H76: 47 | I76: 11 | J76: 3 | K76: 213 | L76: 13 | M76: 25 | N76: 3 | O76: 7 | P76: 5
A77: PUERTO CARRILLO | B77: 5 | C77: 962 | D77: 699 | E77: 662 | F77: 68 | G77: 3 | H77: 22 | I77: 17 | J77: 4 | K77: 375 | L77: 119 | M77: 42 | N77: 12 | O77: 13 | P77: 24
A78: HUACAS | B78: 2 | C78: 452 | D78: 345 | E78: 327 | F78: 10 | G78: 0 | H78: 41 | I78: 2 | J78: 0 | K78: 230 | L78: 33 | M78: 8 | N78: 3 | O78: 6 | P78: 12

Sheet C2.8
A2: CUADRO 2.8 PUNTARENAS: JUNTAS, ELECTORADO, VOTOS POR PARTIDO, NULOS Y BLANCOS PARA DIPUTACIONES A LA ASAMBLEA LEGISLATIVA, SEGÚN CANTÓN Y DISTRITO ADMINISTRATIVO ELECCIONES 7 DE FEBRERO 2010
A4: CANTÓN Y DISTRITO ADMINISTRATIVO | B4: JUNTAS | C4: ELECTORADO | D4: VOTOS RECIBIDOS
D5: TOTAL GENERAL | E5: VOTOS VÁLIDOS | O5: NULOS | P5: BLANCOS
E6: TOTAL | F6: UNIDAD SOCIAL CRISTIANA | G6: INTEGRACIÓN NACIONAL | H6: ALIANZA PATRIÓTICA | I6: RENOVACIÓN COSTARRICENSE | J6: FRENTE AMPLIO | K6: LIBERACIÓN NACIONAL | L6: MOVIMIENTO LIBERTARIO | M6: ACCIÓN CIUDADANA | N6: ACCESIBILIDAD SIN EXCLUSIÓN
A8: PROVINCIA PUNTARENAS | B8: 702 | C8: 259408 | D8: 154529 | E8: 148527 | F8: 20444 | G8: 1428 | H8: 1624 | I8: 6336 | J8: 3303 | K8: 58985 | L8: 27645 | M8: 21181 | N8: 7581 | O8: 3371 | P8: 2631
A9: CANTÓN 1 PUNTARENAS | B9: 200 | C9: 76163 | D9: 46460 | E9: 45015 | F9: 7960 | G9: 936 | H9: 205 | I9: 1881 | J9: 1434 | K9: 16910 | L9: 8042 | M9: 4968 | N9: 2679 | O9: 892 | P9: 553
A10: PUNTARENAS | B10: 18 | C10: 8082 | D10: 5393 | E10: 5290 | F10: 1337 | G10: 320 | H10: 23 | I10: 174 | J10: 108 | K10: 1745 | L10: 713 | M10: 687 | N10: 183 | O10: 64 | P10: 39
A11: PITAHAYA | B11: 4 | C11: 1104 | D11: 639 | E11: 623 | F11: 159 | G11: 0 | H11: 1 | I11: 13 | J11: 2 | K11: 220 | L11: 131 | M11: 65 | N11: 32 | O11: 12 | P11: 4
A12: CHOMES | B12: 9 | C12: 3035 | D12: 1791 | E12: 1690 | F12: 282 | G12: 38 | H12: 7 | I12: 66 | J12: 68 | K12: 609 | L12: 296 | M12: 178 | N12: 146 | O12: 57 | P12: 44
A13: LEPANTO | B13: 25 | C13: 6926 | D13: 4376 | E13: 4209 | F13: 476 | G13: 22 | H13: 30 | I13: 55 | J13: 85 | K13: 2238 | L13: 528 | M13: 479 | N13: 296 | O13: 92 | P13: 75
A14: PAQUERA | B14: 16 | C14: 3947 | D14: 2277 | E14: 2189 | F14: 172 | G14: 21 | H14: 15 | I14: 80 | J14: 154 | K14: 842 | L14: 383 | M14: 384 | N14: 138 | O14: 44 | P14: 44
A15: MANZANILLO | B15: 6 | C15: 2128 | D15: 1183 | E15: 1109 | F15: 265 | G15: 7 | H15: 5 | I15: 70 | J15: 34 | K15: 346 | L15: 186 | M15: 100 | N15: 96 | O15: 48 | P15: 26
A16: GUACIMAL | B16: 2 | C16: 641 | D16: 451 | E16: 437 | F16: 42 | G16: 2 | H16: 0 | I16: 10 | J16: 3 | K16: 214 | L16: 66 | M16: 78 | N16: 22 | O16: 6 | P16: 8
A17: BARRANCA | B17: 42 | C17: 19219 | D17: 11386 | E17: 11057 | F17: 1682 | G17: 186 | H17: 39 | I17: 658 | J17: 302 | K17: 3984 | L17: 2412 | M17: 1014 | N17: 780 | O17: 222 | P17: 107
A18: MONTE VERDE | B18: 6 | C18: 2576 | D18: 1749 | E18: 1698 | F18: 145 | G18: 5 | H18: 6 | I18: 76 | J18: 18 | K18: 676 | L18: 442 | M18: 247 | N18: 83 | O18: 27 | P18: 24
A19: ISLA DEL COCO | B19: 1 | C19: 32 | D19: 6 | E19: 6 | F19: 0 | G19: 0 | H19: 0 | I19: 1 | J19: 0 | K19: 2 | L19: 0 | M19: 3 | N19: 0 | O19: 0 | P19: 0
A20: COBANO | B20: 14 | C20: 3745 | D20: 1927 | E20: 1857 | F20: 194 | G20: 10 | H20: 21 | I20: 68 | J20: 191 | K20: 622 | L20: 350 | M20: 339 | N20: 62 | O20: 39 | P20: 31
A21: CHACARITA | B21: 26 | C21: 12450 | D21: 7177 | E21: 6945 | F21: 1546 | G21: 170 | H21: 25 | I21: 322 | J21: 170 | K21: 2481 | L21: 1361 | M21: 515 | N21: 355 | O21: 164 | P21: 68
A22: CHIRA | B22: 3 | C22: 1044 | D22: 686 | E22: 659 | F22: 106 | G22: 4 | H22: 2 | I22: 12 | J22: 9 | K22: 272 | L22: 119 | M22: 99 | N22: 36 | O22: 12 | P22: 15
A23: ACAPULCO | B23: 3 | C23: 887 | D23: 566 | E23: 552 | F23: 171 | G23: 2 | H23: 2 | I23: 10 | J23: 0 | K23: 201 | L23: 74 | M23: 50 | N23: 42 | O23: 8 | P23: 6
A24: EL ROBLE | B24: 22 | C24: 9771 | D24: 6445 | E24: 6309 | F24: 1142 | G24: 133 | H24: 28 | I24: 265 | J24: 290 | K24: 2401 | L24: 958 | M24: 713 | N24: 379 | O24: 87 | P24: 49
A25: ARANCIBIA | B25: 3 | C25: 576 | D25: 408 | E25: 385 | F25: 241 | G25: 16 | H25: 1 | I25: 1 | J25: 0 | K25: 57 | L25: 23 | M25: 17 | N25: 29 | O25: 10 | P25: 13
A26: CANTÓN 2 ESPARZA | B26: 47 | C26: 18283 | D26: 12686 | E26: 12405 | F26: 1957 | G26: 98 | H26: 49 | I26: 311 | J26: 191 | K26: 5239 | L26: 2265 | M26: 1693 | N26: 602 | O26: 168 | P26: 113
A27: ESPÍRITU SANTO | B27: 28 | C27: 12575 | D27: 8770 | E27: 8590 | F27: 1381 | G27: 67 | H27: 25 | I27: 233 | J27: 149 | K27: 3592 | L27: 1471 | M27: 1253 | N27: 419 | O27: 108 | P27: 72
A28: SAN JUAN GRANDE | B28: 8 | C28: 2587 | D28: 1676 | E28: 1626 | F28: 275 | G28: 18 | H28: 13 | I28: 36 | J28: 12 | K28: 619 | L28: 410 | M28: 156 | N28: 87 | O28: 34 | P28: 16
A29: MACACONA | B29: 4 | C29: 1720 | D29: 1239 | E29: 1214 | F29: 169 | G29: 8 | H29: 1 | I29: 27 | J29: 14 | K29: 548 | L29: 227 | M29: 150 | N29: 70 | O29: 14 | P29: 11
A30: SAN RAFAEL | B30: 3 | C30: 849 | D30: 624 | E30: 610 | F30: 79 | G30: 4 | H30: 8 | I30: 8 | J30: 9 | K30: 298 | L30: 108 | M30: 74 | N30: 22 | O30: 6 | P30: 8
A31: SAN JERÓNIMO | B31: 4 | C31: 552 | D31: 377 | E31: 365 | F31: 53 | G31: 1 | H31: 2 | I31: 7 | J31: 7 | K31: 182 | L31: 49 | M31: 60 | N31: 4 | O31: 6 | P31: 6
A32: CANTÓN 3 BUENOS AIRES | B32: 77 | C32: 26649 | D32: 15514 | E32: 14806 | F32: 894 | G32: 56 | H32: 178 | I32: 340 | J32: 370 | K32: 6555 | L32: 2379 | M32: 3298 | N32: 736 | O32: 319 | P32: 389
A33: BUENOS AIRES | B33: 32 | C33: 12951 | D33: 7503 | E33: 7195 | F33: 394 | G33: 27 | H33: 137 | I33: 160 | J33: 181 | K33: 2898 | L33: 1305 | M33: 1663 | N33: 430 | O33: 127 | P33: 181
A34: VOLCÁN | B34: 5 | C34: 2174 | D34: 1312 | E34: 1208 | F34: 160 | G34: 8 | H34: 8 | I34: 39 | J34: 14 | K34: 620 | L34: 130 | M34: 156 | N34: 73 | O34: 57 | P34: 47
A35: POTRERO GRANDE | B35: 10 | C35: 3227 | D35: 1931 | E35: 1815 | F35: 120 | G35: 3 | H35: 15 | I35: 57 | J35: 110 | K35: 694 | L35: 348 | M35: 421 | N35: 47 | O35: 54 | P35: 62
A36: BORUCA | B36: 5 | C36: 1737 | D36: 1010 | E36: 976 | F36: 30 | G36: 5 | H36: 2 | I36: 24 | J36: 42 | K36: 342 | L36: 189 | M36: 264 | N36: 78 | O36: 19 | P36: 15
A37: PILAS | B37: 4 | C37: 1009 | D37: 615 | E37: 599 | F37: 24 | G37: 1 | H37: 3 | I37: 3 | J37: 1 | K37: 291 | L37: 58 | M37: 201 | N37: 17 | O37: 6 | P37: 10
A38: COLINAS | B38: 3 | C38: 925 | D38: 482 | E38: 451 | F38: 34 | G38: 1 | H38: 1 | I38: 0 | J38: 3 | K38: 149 | L38: 61 | M38: 187 | N38: 15 | O38: 23 | P38: 8
A39: CHÁNGUENA | B39: 8 | C39: 1389 | D39: 759 | E39: 729 | F39: 45 | G39: 4 | H39: 5 | I39: 3 | J39: 1 | K39: 412 | L39: 86 | M39: 164 | N39: 9 | O39: 12 | P39: 18
A40: BIOLLEY | B40: 5 | C40: 1466 | D40: 816 | E40: 787 | F40: 18 | G40: 2 | H40: 2 | I40: 33 | J40: 6 | K40: 442 | L40: 100 | M40: 153 | N40: 31 | O40: 11 | P40: 18
A41: BRUNKA | B41: 5 | C41: 1771 | D41: 1086 | E41: 1046 | F41: 69 | G41: 5 | H41: 5 | I41: 21 | J41: 12 | K41: 707 | L41: 102 | M41: 89 | N41: 36 | O41: 10 | P41: 30
A42: CANTÓN 4 MONTES DE ORO | B42: 25 | C42: 8556 | D42: 5778 | E42: 5548 | F42: 659 | G42: 41 | H42: 110 | I42: 158 | J42: 57 | K42: 2047 | L42: 1050 | M42: 1155 | N42: 271 | O42: 97 | P42: 133
A43: MIRAMAR | B43: 16 | C43: 5742 | D43: 3808 | E43: 3653 | F43: 450 | G43: 25 | H43: 98 | I43: 127 | J43: 44 | K43: 1330 | L43: 573 | M43: 810 | N43: 196 | O43: 68 | P43: 87
A44: LA UNIÓN | B44: 4 | C44: 892 | D44: 638 | E44: 605 | F44: 53 | G44: 4 | H44: 2 | I44: 15 | J44: 6 | K44: 251 | L44: 86 | M44: 162 | N44: 26 | O44: 7 | P44: 26
A45: SAN ISIDRO | B45: 5 | C45: 1922 | D45: 1332 | E45: 1290 | F45: 156 | G45: 12 | H45: 10 | I45: 16 | J45: 7 | K45: 466 | L45: 391 | M45: 183 | N45: 49 | O45: 22 | P45: 20
A46: CANTÓN 5 OSA | B46: 54 | C46: 18252 | D46: 10795 | E46: 10279 | F46: 793 | G46: 52 | H46: 90 | I46: 768 | J46: 191 | K46: 4395 | L46: 2187 | M46: 1354 | N46: 449 | O46: 274 | P46: 242
A47: PUERTO CORTÉS | B47: 13 | C47: 5066 | D47: 3099 | E47: 2976 | F47: 162 | G47: 7 | H47: 34 | I47: 220 | J47: 21 | K47: 1561 | L47: 566 | M47: 293 | N47: 112 | O47: 73 | P47: 50
A48: PALMAR | B48: 17 | C48: 6326 | D48: 3725 | E48: 3545 | F48: 386 | G48: 24 | H48: 37 | I48: 293 | J48: 59 | K48: 1212 | L48: 814 | M48: 506 | N48: 214 | O48: 94 | P48: 86
A49: SIERPE | B49: 12 | C49: 2544 | D49: 1430 | E49: 1350 | F49: 96 | G49: 4 | H49: 8 | I49: 92 | J49: 55 | K49: 614 | L49: 280 | M49: 173 | N49: 28 | O49: 44 | P49: 36
A50: BAHÍA BALLENA | B50: 5 | C50: 1652 | D50: 1002 | E50: 954 | F50: 69 | G50: 6 | H50: 5 | I50: 59 | J50: 22 | K50: 421 | L50: 157 | M50: 179 | N50: 36 | O50: 19 | P50: 29
A51: PIEDRAS BLANCAS | B51: 7 | C51: 2664 | D51: 1539 | E51: 1454 | F51: 80 | G51: 11 | H51: 6 | I51: 104 | J51: 34 | K51: 587 | L51: 370 | M51: 203 | N51: 59 | O51: 44 | P51: 41
A52: CANTÓN 6 AGUIRRE | B52: 44 | C52: 16283 | D52: 9529 | E52: 9119 | F52: 1198 | G52: 51 | H52: 93 | I52: 714 | J52: 81 | K52: 3568 | L52: 1934 | M52: 1011 | N52: 469 | O52: 208 | P52: 202
A53: QUEPOS | B53: 28 | C53: 12275 | D53: 6973 | E53: 6685 | F53: 763 | G53: 40 | H53: 36 | I53: 582 | J53: 61 | K53: 2529 | L53: 1536 | M53: 749 | N53: 389 | O53: 156 | P53: 132
A54: SAVEGRE | B54: 10 | C54: 1906 | D54: 1261 | E54: 1200 | F54: 322 | G54: 8 | H54: 24 | I54: 44 | J54: 8 | K54: 500 | L54: 155 | M54: 105 | N54: 34 | O54: 34 | P54: 27
A55: NARANJITO | B55: 6 | C55: 2102 | D55: 1295 | E55: 1234 | F55: 113 | G55: 3 | H55: 33 | I55: 88 | J55: 12 | K55: 539 | L55: 243 | M55: 157 | N55: 46 | O55: 18 | P55: 43
A56: CANTÓN 7 GOLFITO | B56: 65 | C56: 24375 | D56: 13230 | E56: 12620 | F56: 1336 | G56: 53 | H56: 146 | I56: 319 | J56: 398 | K56: 5479 | L56: 2338 | M56: 2093 | N56: 458 | O56: 326 | P56: 284
A57: GOLFITO | B57: 19 | C57: 7857 | D57: 3838 | E57: 3654 | F57: 521 | G57: 24 | H57: 44 | I57: 80 | J57: 54 | K57: 1644 | L57: 662 | M57: 456 | N57: 169 | O57: 109 | P57: 75
A58: PUERTO JIMÉNEZ | B58: 11 | C58: 4662 | D58: 2732 | E58: 2577 | F58: 386 | G58: 6 | H58: 23 | I58: 65 | J58: 162 | K58: 1018 | L58: 405 | M58: 424 | N58: 88 | O58: 79 | P58: 76
A59: GUAYCARÁ | B59: 21 | C59: 8306 | D59: 4740 | E59: 4574 | F59: 285 | G59: 15 | H59: 66 | I59: 116 | J59: 137 | K59: 2214 | L59: 892 | M59: 688 | N59: 161 | O59: 89 | P59: 77
A60: PAVÓN | B60: 14 | C60: 3550 | D60: 1920 | E60: 1815 | F60: 144 | G60: 8 | H60: 13 | I60: 58 | J60: 45 | K60: 603 | L60: 379 | M60: 525 | N60: 40 | O60: 49 | P60: 56
A61: CANTÓN 8 COTO BRUS | B61: 72 | C61: 25753 | D61: 14591 | E61: 13952 | F61: 3519 | G61: 34 | H61: 70 | I61: 190 | J61: 158 | K61: 4940 | L61: 1928 | M61: 1997 | N61: 1116 | O61: 351 | P61: 288
A62: SAN VITO | B62: 27 | C62: 10528 | D62: 6129 | E62: 5920 | F62: 1970 | G62: 19 | H62: 24 | I62: 80 | J62: 51 | K62: 1886 | L62: 734 | M62: 607 | N62: 549 | O62: 100 | P62: 109
A63: SABALITO | B63: 17 | C63: 6694 | D63: 3520 | E63: 3382 | F63: 685 | G63: 8 | H63: 16 | I63: 50 | J63: 19 | K63: 1431 | L63: 731 | M63: 340 | N63: 102 | O63: 77 | P63: 61
A64: AGUA BUENA | B64: 12 | C64: 4394 | D64: 2506 | E64: 2349 | F64: 546 | G64: 4 | H64: 16 | I64: 30 | J64: 21 | K64: 833 | L64: 267 | M64: 555 | N64: 77 | O64: 93 | P64: 64
A65: LIMONCITO | B65: 9 | C65: 2487 | D65: 1458 | E65: 1370 | F65: 264 | G65: 2 | H65: 11 | I65: 10 | J65: 62 | K65: 482 | L65: 122 | M65: 330 | N65: 87 | O65: 54 | P65: 34
A66: PITTIER | B66: 7 | C66: 1650 | D66: 978 | E66: 931 | F66: 54 | G66: 1 | H66: 3 | I66: 20 | J66: 5 | K66: 308 | L66: 74 | M66: 165 | N66: 301 | O66: 27 | P66: 20
A67: CANTÓN 9 PARRITA | B67: 32 | C67: 9503 | D67: 6133 | E67: 5870 | F67: 434 | G67: 20 | H67: 13 | I67: 448 | J67: 27 | K67: 2080 | L67: 2447 | M67: 320 | N67: 81 | O67: 171 | P67: 92
A68: PARRITA | B68: 32 | C68: 9503 | D68: 6133 | E68: 5870 | F68: 434 | G68: 20 | H68: 13 | I68: 448 | J68: 27 | K68: 2080 | L68: 2447 | M68: 320 | N68: 81 | O68: 171 | P68: 92
A69: CANTÓN 10 CORREDORES | B69: 66 | C69: 27134 | D69: 14714 | E69: 14019 | F69: 926 | G69: 64 | H69: 657 | I69: 1142 | J69: 331 | K69: 5250 | L69: 2224 | M69: 2861 | N69: 564 | O69: 443 | P69: 252
A70: CORREDOR | B70: 31 | C70: 12373 | D70: 7207 | E70: 6886 | F70: 413 | G70: 36 | H70: 543 | I70: 400 | J70: 130 | K70: 2522 | L70: 1077 | M70: 1440 | N70: 325 | O70: 222 | P70: 99
A71: LA CUESTA | B71: 6 | C71: 2579 | D71: 1343 | E71: 1295 | F71: 134 | G71: 4 | H71: 25 | I71: 128 | J71: 45 | K71: 497 | L71: 142 | M71: 276 | N71: 44 | O71: 29 | P71: 19
A72: CANOAS | B72: 15 | C72: 6563 | D72: 3031 | E72: 2878 | F72: 215 | G72: 8 | H72: 49 | I72: 304 | J72: 109 | K72: 1097 | L72: 496 | M72: 520 | N72: 80 | O72: 104 | P72: 49
A73: LAUREL | B73: 14 | C73: 5619 | D73: 3133 | E73: 2960 | F73: 164 | G73: 16 | H73: 40 | I73: 310 | J73: 47 | K73: 1134 | L73: 509 | M73: 625 | N73: 115 | O73: 88 | P73: 85
A74: CANTÓN 11 GARABITO | B74: 20 | C74: 8457 | D74: 5099 | E74: 4894 | F74: 768 | G74: 23 | H74: 13 | I74: 65 | J74: 65 | K74: 2522 | L74: 851 | M74: 431 | N74: 156 | O74: 122 | P74: 83
A75: JACÓ | B75: 13 | C75: 5308 | D75: 3097 | E75: 3001 | F75: 462 | G75: 19 | H75: 10 | I75: 50 | J75: 33 | K75: 1602 | L75: 457 | M75: 276 | N75: 92 | O75: 55 | P75: 41
A76: TÁRCOLES | B76: 7 | C76: 3149 | D76: 2002 | E76: 1893 | F76: 306 | G76: 4 | H76: 3 | I76: 15 | J76: 32 | K76: 920 | L76: 394 | M76: 155 | N76: 64 | O76: 67 | P76: 42

Sheet C2.9
A2: CUADRO 2.9 LIMÓN: JUNTAS, ELECTORADO, VOTOS POR PARTIDO, NULOS Y BLANCOS PARA DIPUTACIONES A LA ASAMBLEA LEGISLATIVA, SEGÚN CANTÓN Y DISTRITO ADMINISTRATIVO ELECCIONES 7 DE FEBRERO 2010
A4: CANTÓN Y DISTRITO ADMINISTRATIVO | B4: JUNTAS | C4: ELECTORADO | D4: VOTOS RECIBIDOS
D5: TOTAL GENERAL | E5: VOTOS VÁLIDOS | P5: NULOS | Q5: BLANCOS
E6: TOTAL | F6: UNIDAD SOCIAL CRISTIANA | G6: INTEGRACIÓN NACIONAL | H6: ALIANZA PATRIÓTICA | I6: RENOVACIÓN COSTARRICENSE | J6: FRENTE AMPLIO | K6: LIBERACIÓN NACIONAL | L6: MOVIMIENTO LIBERTARIO | M6: MOVIMIENTO DE TRABAJADORES Y CAMPESINOS | N6: ACCIÓN CIUDADANA | O6: ACCESIBILIDAD SIN EXCLUSIÓN
A8: PROVINCIA LIMÓN | B8: 531 | C8: 224128 | D8: 137700 | E8: 131621 | F8: 13395 | G8: 1145 | H8: 1639 | I8: 11274 | J8: 9616 | K8: 43889 | L8: 26411 | M8: 1127 | N8: 15790 | O8: 7335 | P8: 3798 | Q8: 2281
A9: CANTÓN 1 LIMÓN | B9: 142 | C9: 61180 | D9: 35348 | E9: 33928 | F9: 4009 | G9: 684 | H9: 303 | I9: 2091 | J9: 1638 | K9: 12484 | L9: 6483 | M9: 153 | N9: 4324 | O9: 1759 | P9: 896 | Q9: 524
A10: LIMÓN | B10: 93 | C10: 43715 | D10: 25670 | E10: 24771 | F10: 2434 | G10: 624 | H10: 238 | I10: 1541 | J10: 1420 | K10: 8874 | L10: 4716 | M10: 97 | N10: 3353 | O10: 1474 | P10: 625 | Q10: 274
A11: VALLE LA ESTRELLA | B11: 24 | C11: 8733 | D11: 4668 | E11: 4375 | F11: 839 | G11: 13 | H11: 21 | I11: 268 | J11: 68 | K11: 1805 | L11: 680 | M11: 32 | N11: 546 | O11: 103 | P11: 145 | Q11: 148
A12: RÍO BLANCO | B12: 14 | C12: 4537 | D12: 2553 | E12: 2458 | F12: 446 | G12: 18 | H12: 9 | I12: 157 | J12: 108 | K12: 880 | L12: 519 | M12: 11 | N12: 213 | O12: 97 | P12: 44 | Q12: 51
A13: MATAMA | B13: 11 | C13: 4195 | D13: 2457 | E13: 2324 | F13: 290 | G13: 29 | H13: 35 | I13: 125 | J13: 42 | K13: 925 | L13: 568 | M13: 13 | N13: 212 | O13: 85 | P13: 82 | Q13: 51
A14: CANTÓN 2 POCOCÍ | B14: 170 | C14: 73072 | D14: 47129 | E14: 45327 | F14: 2684 | G14: 203 | H14: 446 | I14: 3483 | J14: 3019 | K14: 14665 | L14: 11911 | M14: 422 | N14: 5337 | O14: 3157 | P14: 1139 | Q14: 663
A15: GUÁPILES | B15: 48 | C15: 22801 | D15: 15421 | E15: 15034 | F15: 973 | G15: 58 | H15: 126 | I15: 754 | J15: 732 | K15: 5548 | L15: 3344 | M15: 121 | N15: 2138 | O15: 1240 | P15: 249 | Q15: 138
A16: JIMÉNEZ | B16: 14 | C16: 5391 | D16: 3826 | E16: 3708 | F16: 296 | G16: 18 | H16: 88 | I16: 168 | J16: 196 | K16: 1051 | L16: 1281 | M16: 33 | N16: 383 | O16: 194 | P16: 58 | Q16: 60
A17: RITA | B17: 37 | C17: 15023 | D17: 9631 | E17: 9176 | F17: 444 | G17: 46 | H17: 84 | I17: 697 | J17: 757 | K17: 2777 | L17: 2657 | M17: 87 | N17: 920 | O17: 707 | P17: 306 | Q17: 149
A18: ROXANA | B18: 23 | C18: 8566 | D18: 4993 | E18: 4752 | F18: 295 | G18: 25 | H18: 43 | I18: 393 | J18: 263 | K18: 1582 | L18: 1345 | M18: 79 | N18: 498 | O18: 229 | P18: 158 | Q18: 83
A19: CARIARI | B19: 44 | C19: 19976 | D19: 12673 | E19: 12095 | F19: 618 | G19: 54 | H19: 103 | I19: 1439 | J19: 1053 | K19: 3523 | L19: 3115 | M19: 102 | N19: 1314 | O19: 774 | P19: 361 | Q19: 217
A20: COLORADO | B20: 4 | C20: 1315 | D20: 585 | E20: 562 | F20: 58 | G20: 2 | H20: 2 | I20: 32 | J20: 18 | K20: 184 | L20: 169 | M20: 0 | N20: 84 | O20: 13 | P20: 7 | Q20: 16
A21: CANTÓN 3 SIQUIRRES | B21: 84 | C21: 33841 | D21: 20308 | E21: 19367 | F21: 1913 | G21: 97 | H21: 430 | I21: 1780 | J21: 2951 | K21: 6744 | L21: 2429 | M21: 200 | N21: 1602 | O21: 1221 | P21: 569 | Q21: 372
A22: SIQUIRRES | B22: 47 | C22: 20328 | D22: 12088 | E22: 11519 | F22: 1074 | G22: 55 | H22: 314 | I22: 1048 | J22: 2046 | K22: 3909 | L22: 1357 | M22: 79 | N22: 855 | O22: 782 | P22: 370 | Q22: 199
A23: PACUARITO | B23: 12 | C23: 4608 | D23: 2399 | E23: 2267 | F23: 244 | G23: 12 | H23: 15 | I23: 252 | J23: 294 | K23: 752 | L23: 340 | M23: 26 | N23: 164 | O23: 168 | P23: 69 | Q23: 63
A24: FLORIDA | B24: 5 | C24: 1147 | D24: 791 | E24: 758 | F24: 52 | G24: 0 | H24: 5 | I24: 50 | J24: 103 | K24: 287 | L24: 78 | M24: 18 | N24: 128 | O24: 37 | P24: 17 | Q24: 16
A25: GERMANIA | B25: 5 | C25: 1803 | D25: 1139 | E25: 1093 | F25: 55 | G25: 7 | H25: 52 | I25: 95 | J25: 156 | K25: 432 | L25: 154 | M25: 9 | N25: 94 | O25: 39 | P25: 23 | Q25: 23
A26: EL CAIRO | B26: 9 | C26: 3492 | D26: 2160 | E26: 2083 | F26: 306 | G26: 14 | H26: 23 | I26: 208 | J26: 134 | K26: 709 | L26: 300 | M26: 59 | N26: 211 | O26: 119 | P26: 43 | Q26: 34
A27: LA ALEGRÍA | B27: 6 | C27: 2463 | D27: 1731 | E27: 1647 | F27: 182 | G27: 9 | H27: 21 | I27: 127 | J27: 218 | K27: 655 | L27: 200 | M27: 9 | N27: 150 | O27: 76 | P27: 47 | Q27: 37
A28: CANTÓN 4 TALAMANCA | B28: 38 | C28: 15029 | D28: 8898 | E28: 8358 | F28: 1850 | G28: 46 | H28: 49 | I28: 518 | J28: 302 | K28: 2629 | L28: 1182 | M28: 48 | N28: 1616 | O28: 118 | P28: 318 | Q28: 222
A29: BRATSI | B29: 10 | C29: 4068 | D29: 2542 | E29: 2386 | F29: 406 | G29: 16 | H29: 12 | I29: 150 | J29: 75 | K29: 922 | L29: 224 | M29: 19 | N29: 524 | O29: 38 | P29: 98 | Q29: 58
A30: SIXAOLA | B30: 9 | C30: 3492 | D30: 2018 | E30: 1887 | F30: 570 | G30: 16 | H30: 12 | I30: 146 | J30: 75 | K30: 506 | L30: 283 | M30: 8 | N30: 245 | O30: 26 | P30: 83 | Q30: 48
A31: CAHUITA | B31: 10 | C31: 3989 | D31: 2306 | E31: 2178 | F31: 440 | G31: 8 | H31: 13 | I31: 173 | J31: 90 | K31: 544 | L31: 600 | M31: 12 | N31: 259 | O31: 39 | P31: 80 | Q31: 48
A32: TELIRE | B32: 9 | C32: 3480 | D32: 2032 | E32: 1907 | F32: 434 | G32: 6 | H32: 12 | I32: 49 | J32: 62 | K32: 657 | L32: 75 | M32: 9 | N32: 588 | O32: 15 | P32: 57 | Q32: 68
A33: CANTÓN 5 MATINA | B33: 44 | C33: 17995 | D33: 11558 | E33: 10906 | F33: 2150 | G33: 50 | H33: 298 | I33: 2193 | J33: 791 | K33: 2704 | L33: 1336 | M33: 52 | N33: 1012 | O33: 320 | P33: 419 | Q33: 233
A34: MATINA | B34: 12 | C34: 4538 | D34: 2806 | E34: 2646 | F34: 450 | G34: 21 | H34: 30 | I34: 403 | J34: 308 | K34: 616 | L34: 342 | M34: 9 | N34: 411 | O34: 56 | P34: 103 | Q34: 57
A35: BATÁN | B35: 21 | C35: 8784 | D35: 5655 | E35: 5322 | F35: 1281 | G35: 19 | H35: 245 | I35: 1214 | J35: 412 | K35: 1091 | L35: 484 | M35: 28 | N35: 365 | O35: 183 | P35: 222 | Q35: 111
A36: CARRANDI | B36: 11 | C36: 4673 | D36: 3097 | E36: 2938 | F36: 419 | G36: 10 | H36: 23 | I36: 576 | J36: 71 | K36: 997 | L36: 510 | M36: 15 | N36: 236 | O36: 81 | P36: 94 | Q36: 65
A37: CANTÓN 6 GUÁCIMO | B37: 53 | C37: 23011 | D37: 14459 | E37: 13735 | F37: 789 | G37: 65 | H37: 113 | I37: 1209 | J37: 915 | K37: 4663 | L37: 3070 | M37: 252 | N37: 1899 | O37: 760 | P37: 457 | Q37: 267
A38: GUÁCIMO | B38: 22 | C38: 10067 | D38: 6253 | E38: 5990 | F38: 304 | G38: 22 | H38: 54 | I38: 435 | J38: 339 | K38: 1972 | L38: 1521 | M38: 63 | N38: 883 | O38: 397 | P38: 167 | Q38: 96
A39: MERCEDES | B39: 2 | C39: 754 | D39: 554 | E39: 541 | F39: 31 | G39: 5 | H39: 2 | I39: 12 | J39: 8 | K39: 255 | L39: 48 | M39: 7 | N39: 153 | O39: 20 | P39: 8 | Q39: 5
A40: POCORA | B40: 10 | C40: 3766 | D40: 2426 | E40: 2308 | F40: 229 | G40: 14 | H40: 26 | I40: 127 | J40: 201 | K40: 875 | L40: 442 | M40: 18 | N40: 287 | O40: 89 | P40: 65 | Q40: 53
A41: RÍO JIMÉNEZ | B41: 11 | C41: 5070 | D41: 3185 | E41: 2967 | F41: 160 | G41: 17 | H41: 18 | I41: 512 | J41: 172 | K41: 875 | L41: 645 | M41: 148 | N41: 257 | O41: 163 | P41: 150 | Q41: 68
A42: DUACARÍ | B42: 8 | C42: 3354 | D42: 2041 | E42: 1929 | F42: 65 | G42: 7 | H42: 13 | I42: 123 | J42: 195 | K42: 686 | L42: 414 | M42: 16 | N42: 319 | O42: 91 | P42: 67 | Q42: 45

Sheet C2.10
A2: CUADRO 2.10 SAN JOSÉ: JUNTAS, ELECTORADO, VOTOS POR PARTIDO, NULOS Y BLANCOS PARA DIPUTACIONES A LA ASAMBLEA LEGISLATIVA
A3: SEGÚN CANTÓN, DISTRITO ADMINISTRATIVO Y DISTRITO ELECTORAL, ELECCIONES 7 DE FEBRERO 2010
A5: CANTÓN, DISTRITO ADMINISTRATIVO Y DISTRITO ELECTORAL | B5: JUNTAS | C5: ELECTORADO | D5: VOTOS RECIBIDOS
D6: TOTAL GENERAL | E6: VOTOS VÁLIDOS | Q6: VOTOS NULOS | R6: VOTOS BLANCOS
E7: TOTAL | F7: UNIDAD SOCIAL CRISTIANA | G7: INTEGRACIÓN NACIONAL | H7: ALIANZA PATRIÓTICA | I7: RENOVACIÓN COSTARRICENSE | J7: FRENTE AMPLIO | K7: LIBERACIÓN NACIONAL | L7: MOVIMIENTO LIBERTARIO | M7: RESTAURACIÓN NACIONAL | N7: ALIANZA MAYOR | O7: ACCIÓN CIUDADANA | P7: ACCESIBILIDAD SIN EXCLUSIÓN
A9: SAN JOSÉ | B9: 2232 | C9: 1008177 | D9: 704257 | E9: 690336 | F9: 50880 | G9: 8537 | H9: 7510 | I9: 20563 | J9: 32247 | K9: 244763 | L9: 85139 | M9: 29530 | N9: 2724 | O9: 131476 | P9: 76967 | Q9: 8637 | R9: 5284
A10: CANTÓN 1 SAN JOSÉ | B10: 469 | C10: 226027 | D10: 153344 | E10: 150879 | F10: 11899 | G10: 1696 | H10: 1363 | I10: 6164 | J10: 7807 | K10: 52480 | L10: 19109 | M10: 6074 | N10: 766 | O10: 25569 | P10: 17952 | Q10: 1709 | R10: 756
A11: DISTRITO 1 CARMEN | B11: 11 | C11: 4665 | D11: 3115 | E11: 3060 | F11: 245 | G11: 82 | H11: 34 | I11: 42 | J11: 226 | K11: 1245 | L11: 362 | M11: 65 | N11: 8 | O11: 533 | P11: 218 | Q11: 27 | R11: 28
A12: CARMEN | B12: 3 | C12: 1107 | D12: 666 | E12: 657 | F12: 48 | G12: 21 | H12: 2 | I12: 12 | J12: 40 | K12: 266 | L12: 83 | M12: 10 | N12: 2 | O12: 118 | P12: 55 | Q12: 6 | R12: 3
A13: ARANJUEZ | B13: 8 | C13: 3558 | D13: 2449 | E13: 2403 | F13: 197 | G13: 61 | H13: 32 | I13: 30 | J13: 186 | K13: 979 | L13: 279 | M13: 55 | N13: 6 | O13: 415 | P13: 163 | Q13: 21 | R13: 25
A14: DISTRITO 2 MERCED | B14: 21 | C14: 9723 | D14: 6321 | E14: 6229 | F14: 553 | G14: 64 | H14: 59 | I14: 189 | J14: 292 | K14: 2204 | L14: 882 | M14: 242 | N14: 39 | O14: 1087 | P14: 618 | Q14: 55 | R14: 37
A15: BARRIO MÉXICO | B15: 17 | C15: 8164 | D15: 5255 | E15: 5177 | F15: 457 | G15: 53 | H15: 44 | I15: 165 | J15: 234 | K15: 1814 | L15: 756 | M15: 217 | N15: 32 | O15: 883 | P15: 522 | Q15: 46 | R15: 32
A16: PITAHAYA | B16: 4 | C16: 1559 | D16: 1066 | E16: 1052 | F16: 96 | G16: 11 | H16: 15 | I16: 24 | J16: 58 | K16: 390 | L16: 126 | M16: 25 | N16: 7 | O16: 204 | P16: 96 | Q16: 9 | R16: 5
A17: DISTRITO 3 HOSPITAL | B17: 40 | C17: 18596 | D17: 11809 | E17: 11600 | F17: 1068 | G17: 127 | H17: 92 | I17: 364 | J17: 692 | K17: 3913 | L17: 1584 | M17: 617 | N17: 36 | O17: 1654 | P17: 1453 | Q17: 128 | R17: 81
A18: HOSPITAL | B18: 3 | C18: 1353 | D18: 771 | E18: 756 | F18: 76 | G18: 12 | H18: 8 | I18: 11 | J18: 29 | K18: 282 | L18: 108 | M18: 30 | N18: 5 | O18: 124 | P18: 71 | Q18: 10 | R18: 5
A19: CRISTO REY | B19: 9 | C19: 4184 | D19: 2713 | E19: 2656 | F19: 252 | G19: 39 | H19: 18 | I19: 86 | J19: 151 | K19: 914 | L19: 391 | M19: 97 | N19: 12 | O19: 348 | P19: 348 | Q19: 37 | R19: 20
A20: OMAR DENGO | B20: 20 | C20: 9994 | D20: 6450 | E20: 6337 | F20: 587 | G20: 58 | H20: 53 | I20: 222 | J20: 404 | K20: 1979 | L20: 856 | M20: 420 | N20: 18 | O20: 890 | P20: 850 | Q20: 69 | R20: 44
A21: SAN BOSCO | B21: 6 | C21: 2623 | D21: 1814 | E21: 1792 | F21: 141 | G21: 16 | H21: 13 | I21: 43 | J21: 107 | K21: 715 | L21: 220 | M21: 68 | N21: 1 | O21: 290 | P21: 178 | Q21: 11 | R21: 11
A22: C.P. CRISTO REY | B22: 2 | C22: 442 | D22: 61 | E22: 59 | F22: 12 | G22: 2 | H22: 0 | I22: 2 | J22: 1 | K22: 23 | L22: 9 | M22: 2 | N22: 0 | O22: 2 | P22: 6 | Q22: 1 | R22: 1
A23: DISTRITO 4 CATEDRAL | B23: 32 | C23: 15318 | D23: 10339 | E23: 10191 | F23: 937 | G23: 153 | H23: 121 | I23: 261 | J23: 630 | K23: 3460 | L23: 1221 | M23: 338 | N23: 54 | O23: 1928 | P23: 1088 | Q23: 94 | R23: 54
A24: CATEDRAL | B24: 3 | C24: 1514 | D24: 897 | E24: 890 | F24: 88 | G24: 12 | H24: 11 | I24: 16 | J24: 45 | K24: 313 | L24: 123 | M24: 23 | N24: 6 | O24: 187 | P24: 66 | Q24: 4 | R24: 3
A25: GONZÁLEZ VÍQUEZ | B25: 14 | C25: 6730 | D25: 4496 | E25: 4421 | F25: 431 | G25: 70 | H25: 50 | I25: 131 | J25: 277 | K25: 1455 | L25: 464 | M25: 173 | N25: 23 | O25: 836 | P25: 511 | Q25: 46 | R25: 29
A26: NACIONES UNIDAS | B26: 4 | C26: 1809 | D26: 1263 | E26: 1247 | F26: 121 | G26: 11 | H26: 19 | I26: 29 | J26: 65 | K26: 398 | L26: 160 | M26: 46 | N26: 3 | O26: 229 | P26: 166 | Q26: 11 | R26: 5
A27: BARRIO LUJÁN | B27: 11 | C27: 5265 | D27: 3683 | E27: 3633 | F27: 297 | G27: 60 | H27: 41 | I27: 85 | J27: 243 | K27: 1294 | L27: 474 | M27: 96 | N27: 22 | O27: 676 | P27: 345 | Q27: 33 | R27: 17
A28: DISTRITO 5 ZAPOTE | B28: 36 | C28: 17556 | D28: 12912 | E28: 12776 | F28: 870 | G28: 167 | H28: 143 | I28: 272 | J28: 863 | K28: 4418 | L28: 1251 | M28: 524 | N28: 60 | O28: 2779 | P28: 1429 | Q28: 96 | R28: 40
A29: ZAPOTE | B29: 30 | C29: 14774 | D29: 10782 | E29: 10668 | F29: 741 | G29: 133 | H29: 118 | I29: 220 | J29: 708 | K29: 3658 | L29: 1060 | M29: 464 | N29: 42 | O29: 2324 | P29: 1200 | Q29: 78 | R29: 36
A30: CÓRDOBA | B30: 6 | C30: 2782 | D30: 2130 | E30: 2108 | F30: 129 | G30: 34 | H30: 25 | I30: 52 | J30: 155 | K30: 760 | L30: 191 | M30: 60 | N30: 18 | O30: 455 | P30: 229 | Q30: 18 | R30: 4
A31: DISTRITO 6 SAN FRANCISCO DE DOS RÍOS | B31: 38 | C31: 18426 | D31: 13552 | E31: 13416 | F31: 796 | G31: 219 | H31: 136 | I31: 312 | J31: 821 | K31: 4896 | L31: 1426 | M31: 412 | N31: 195 | O31: 2932 | P31: 1271 | Q31: 100 | R31: 36
A32: SAN FRANCISCO DE DOS RÍOS | B32: 30 | C32: 14797 | D32: 10792 | E32: 10687 | F32: 659 | G32: 180 | H32: 106 | I32: 253 | J32: 639 | K32: 3928 | L32: 1096 | M32: 335 | N32: 178 | O32: 2319 | P32: 994 | Q32: 78 | R32: 27
A33: SANTA MARTA | B33: 8 | C33: 3629 | D33: 2760 | E33: 2729 | F33: 137 | G33: 39 | H33: 30 | I33: 59 | J33: 182 | K33: 968 | L33: 330 | M33: 77 | N33: 17 | O33: 613 | P33: 277 | Q33: 22 | R33: 9
A34: DISTRITO 7 URUCA | B34: 29 | C34: 13229 | D34: 8903 | E34: 8731 | F34: 585 | G34: 79 | H34: 69 | I34: 324 | J34: 348 | K34: 3331 | L34: 1485 | M34: 353 | N34: 32 | O34: 1356 | P34: 769 | Q34: 117 | R34: 55
A35: URUCA | B35: 9 | C35: 4214 | D35: 2833 | E35: 2790 | F35: 196 | G35: 32 | H35: 16 | I35: 61 | J35: 141 | K35: 1043 | L35: 393 | M35: 117 | N35: 6 | O35: 519 | P35: 266 | Q35: 29 | R35: 14
A36: LA CAJA | B36: 6 | C36: 2916 | D36: 2155 | E36: 2133 | F36: 91 | G36: 28 | H36: 29 | I36: 39 | J36: 94 | K36: 980 | L36: 292 | M36: 35 | N36: 6 | O36: 404 | P36: 135 | Q36: 16 | R36: 6
A37: CORAZÓN DE JESÚS | B37: 2 | C37: 845 | D37: 583 | E37: 567 | F37: 59 | G37: 3 | H37: 7 | I37: 18 | J37: 6 | K37: 237 | L37: 133 | M37: 4 | N37: 3 | O37: 44 | P37: 53 | Q37: 9 | R37: 7
A38: ROSSITER CARBALLO (LAS BRISAS) | B38: 2 | C38: 917 | D38: 619 | E38: 600 | F38: 40 | G38: 5 | H38: 0 | I38: 106 | J38: 8 | K38: 173 | L38: 108 | M38: 48 | N38: 2 | O38: 37 | P38: 73 | Q38: 16 | R38: 3
A39: LA CARPIO | B39: 6 | C39: 2551 | D39: 1407 | E39: 1357 | F39: 115 | G39: 5 | H39: 12 | I39: 55 | J39: 19 | K39: 486 | L39: 375 | M39: 70 | N39: 8 | O39: 128 | P39: 84 | Q39: 30 | R39: 20
A40: PEREGRINA (INVU) | B40: 4 | C40: 1786 | D40: 1306 | E40: 1284 | F40: 84 | G40: 6 | H40: 5 | I40: 45 | J40: 80 | K40: 412 | L40: 184 | M40: 79 | N40: 7 | O40: 224 | P40: 158 | Q40: 17 | R40: 5
A41: DISTRITO 8 MATA REDONDA | B41: 15 | C41: 7347 | D41: 5160 | E41: 5103 | F41: 388 | G41: 54 | H41: 32 | I41: 106 | J41: 195 | K41: 2445 | L41: 594 | M41: 67 | N41: 17 | O41: 818 | P41: 387 | Q41: 44 | R41: 13
A42: MATA REDONDA | B42: 10 | C42: 4841 | D42: 3328 | E42: 3288 | F42: 251 | G42: 31 | H42: 23 | I42: 65 | J42: 107 | K42: 1695 | L42: 388 | M42: 38 | N42: 13 | O42: 484 | P42: 193 | Q42: 27 | R42: 13
A43: PERPETUO SOCORRO | B43: 5 | C43: 2506 | D43: 1832 | E43: 1815 | F43: 137 | G43: 23 | H43: 9 | I43: 41 | J43: 88 | K43: 750 | L43: 206 | M43: 29 | N43: 4 | O43: 334 | P43: 194 | Q43: 17 | R43: 0
A44: DISTRITO 9 PAVAS | B44: 97 | C44: 47928 | D44: 32031 | E44: 31411 | F44: 2626 | G44: 219 | H44: 257 | I44: 1920 | J44: 981 | K44: 11402 | L44: 4783 | M44: 1261 | N44: 131 | O44: 4414 | P44: 3417 | Q44: 445 | R44: 175
A45: PAVAS | B45: 30 | C45: 14728 | D45: 10331 | E45: 10209 | F45: 770 | G45: 75 | H45: 89 | I45: 191 | J45: 472 | K45: 4520 | L45: 1305 | M45: 238 | N45: 24 | O45: 1731 | P45: 794 | Q45: 85 | R45: 37
A46: RINCÓN GRANDE | B46: 38 | C46: 18921 | D46: 12057 | E46: 11742 | F46: 1015 | G46: 69 | H46: 92 | I46: 1304 | J46: 213 | K46: 3615 | L46: 2100 | M46: 589 | N46: 50 | O46: 1220 | P46: 1475 | Q46: 231 | R46: 84
A47: MARÍA REINA | B47: 11 | C47: 5420 | D47: 3920 | E47: 3888 | F47: 193 | G47: 34 | H47: 40 | I47: 122 | J47: 165 | K47: 1506 | L47: 430 | M47: 118 | N47: 12 | O47: 825 | P47: 443 | Q47: 23 | R47: 9
A48: VILLA ESPERANZA | B48: 18 | C48: 8859 | D48: 5723 | E48: 5572 | F48: 648 | G48: 41 | H48: 36 | I48: 303 | J48: 131 | K48: 1761 | L48: 948 | M48: 316 | N48: 45 | O48: 638 | P48: 705 | Q48: 106 | R48: 45
A49: DISTRITO 10 HATILLO | B49: 90 | C49: 43806 | D49: 28962 | E49: 28444 | F49: 2225 | G49: 264 | H49: 251 | I49: 1630 | J49: 1484 | K49: 8940 | L49: 3221 | M49: 1369 | N49: 118 | O49: 4438 | P49: 4504 | Q49: 379 | R49: 139
A50: HATILLO | B50: 52 | C50: 25647 | D50: 17242 | E50: 16971 | F50: 1264 | G50: 158 | H50: 163 | I50: 843 | J50: 952 | K50: 5424 | L50: 1756 | M50: 780 | N50: 65 | O50: 2879 | P50: 2687 | Q50: 189 | R50: 82
A51: SAGRADA FAMILIA | B51: 11 | C51: 5074 | D51: 2953 | E51: 2865 | F51: 275 | G51: 20 | H51: 15 | I51: 279 | J51: 73 | K51: 946 | L51: 414 | M51: 124 | N51: 12 | O51: 293 | P51: 414 | Q51: 71 | R51: 17
A52: INVU # 8 | B52: 20 | C52: 9946 | D52: 6688 | E52: 6583 | F52: 517 | G52: 67 | H52: 59 | I52: 298 | J52: 374 | K52: 1958 | L52: 816 | M52: 351 | N52: 27 | O52: 1026 | P52: 1090 | Q52: 76 | R52: 29
A53: COLONIA 15 DE SETIEMBRE | B53: 7 | C53: 3139 | D53: 2079 | E53: 2025 | F53: 169 | G53: 19 | H53: 14 | I53: 210 | J53: 85 | K53: 612 | L53: 235 | M53: 114 | N53: 14 | O53: 240 | P53: 313 | Q53: 43 | R53: 11
A54: DISTRITO 11 SAN SEBASTIÁN | B54: 60 | C54: 29433 | D54: 20240 | E54: 19918 | F54: 1606 | G54: 268 | H54: 169 | I54: 744 | J54: 1275 | K54: 6226 | L54: 2300 | M54: 826 | N54: 76 | O54: 3630 | P54: 2798 | Q54: 224 | R54: 98
A55: SAN SEBASTIÁN | B55: 24 | C55: 11869 | D55: 7987 | E55: 7848 | F55: 695 | G55: 115 | H55: 73 | I55: 357 | J55: 435 | K55: 2485 | L55: 895 | M55: 287 | N55: 26 | O55: 1360 | P55: 1120 | Q55: 110 | R55: 29
A56: PASO ANCHO SUR | B56: 19 | C56: 9511 | D56: 6728 | E56: 6631 | F56: 503 | G56: 78 | H56: 58 | I56: 197 | J56: 519 | K56: 2076 | L56: 789 | M56: 251 | N56: 22 | O56: 1220 | P56: 918 | Q56: 59 | R56: 38
A57: PASO ANCHO NORTE | B57: 13 | C57: 6191 | D57: 4231 | E57: 4162 | F57: 320 | G57: 60 | H57: 24 | I57: 143 | J57: 242 | K57: 1257 | L57: 458 | M57: 235 | N57: 22 | O57: 810 | P57: 591 | Q57: 44 | R57: 25
A58: COLONIA KENNEDY | B58: 4 | C58: 1862 | D58: 1294 | E58: 1277 | F58: 88 | G58: 15 | H58: 14 | I58: 47 | J58: 79 | K58: 408 | L58: 158 | M58: 53 | N58: 6 | O58: 240 | P58: 169 | Q58: 11 | R58: 6
A59: CANTÓN 2 ESCAZÚ | B59: 82 | C59: 39855 | D59: 28965 | E59: 28506 | F59: 1364 | G59: 135 | H59: 287 | I59: 625 | J59: 1294 | K59: 11910 | L59: 4925 | M59: 607 | N59: 69 | O59: 4326 | P59: 2964 | Q59: 299 | R59: 160
A60: DISTRITO 1 ESCAZÚ | B60: 23 | C60: 11404 | D60: 8436 | E60: 8291 | F60: 460 | G60: 46 | H60: 85 | I60: 171 | J60: 410 | K60: 3206 | L60: 1496 | M60: 181 | N60: 20 | O60: 1303 | P60: 913 | Q60: 96 | R60: 49
A61: ESCAZÚ | B61: 23 | C61: 11404 | D61: 8436 | E61: 8291 | F61: 460 | G61: 46 | H61: 85 | I61: 171 | J61: 410 | K61: 3206 | L61: 1496 | M61: 181 | N61: 20 | O61: 1303 | P61: 913 | Q61: 96 | R61: 49
A62: DISTRITO 2 SAN ANTONIO | B62: 26 | C62: 12763 | D62: 8897 | E62: 8707 | F62: 354 | G62: 52 | H62: 114 | I62: 269 | J62: 423 | K62: 2820 | L62: 1560 | M62: 263 | N62: 24 | O62: 1497 | P62: 1331 | Q62: 129 | R62: 61
A63: SAN ANTONIO | B63: 20 | C63: 10022 | D63: 7048 | E63: 6910 | F63: 294 | G63: 36 | H63: 84 | I63: 213 | J63: 324 | K63: 2242 | L63: 1228 | M63: 220 | N63: 20 | O63: 1178 | P63: 1071 | Q63: 97 | R63: 41
A64: BEBEDERO O SAN FRANCISCO | B64: 1 | C64: 397 | D64: 264 | E64: 254 | F64: 9 | G64: 1 | H64: 4 | I64: 10 | J64: 12 | K64: 82 | L64: 70 | M64: 2 | N64: 0 | O64: 27 | P64: 37 | Q64: 6 | R64: 4
A65: CARMEN (CHIVERRAL) | B65: 5 | C65: 2344 | D65: 1585 | E65: 1543 | F65: 51 | G65: 15 | H65: 26 | I65: 46 | J65: 87 | K65: 496 | L65: 262 | M65: 41 | N65: 4 | O65: 292 | P65: 223 | Q65: 26 | R65: 16
A66: DISTRITO 3 SAN RAFAEL | B66: 33 | C66: 15688 | D66: 11632 | E66: 11508 | F66: 550 | G66: 37 | H66: 88 | I66: 185 | J66: 461 | K66: 5884 | L66: 1869 | M66: 163 | N66: 25 | O66: 1526 | P66: 720 | Q66: 74 | R66: 50
A67: SAN RAFAEL | B67: 17 | C67: 8082 | D67: 5933 | E67: 5868 | F67: 277 | G67: 17 | H67: 36 | I67: 83 | J67: 212 | K67: 3294 | L67: 875 | M67: 66 | N67: 11 | O67: 721 | P67: 276 | Q67: 40 | R67: 25
A68: GUACHIPELÍN (SAN GABRIEL) | B68: 9 | C68: 4355 | D68: 3283 | E68: 3254 | F68: 159 | G68: 15 | H68: 32 | I68: 53 | J68: 123 | K68: 1628 | L68: 517 | M68: 53 | N68: 3 | O68: 430 | P68: 241 | Q68: 18 | R68: 11
A69: BELO HORIZONTE NORTE | B69: 7 | C69: 3251 | D69: 2416 | E69: 2386 | F69: 114 | G69: 5 | H69: 20 | I69: 49 | J69: 126 | K69: 962 | L69: 477 | M69: 44 | N69: 11 | O69: 375 | P69: 203 | Q69: 16 | R69: 14
A70: CANTÓN 3 DESAMPARADOS | B70: 308 | C70: 143636 | D70: 99988 | E70: 98082 | F70: 6555 | G70: 1774 | H70: 1331 | I70: 3233 | J70: 4525 | K70: 33280 | L70: 12758 | M70: 4855 | N70: 413 | O70: 16184 | P70: 13174 | Q70: 1272 | R70: 634
A71: DISTRITO 1 DESAMPARADOS | B71: 61 | C71: 29804 | D71: 21550 | E71: 21248 | F71: 1364 | G71: 351 | H71: 286 | I71: 740 | J71: 1175 | K71: 6937 | L71: 2530 | M71: 935 | N71: 95 | O71: 3987 | P71: 2848 | Q71: 216 | R71: 86
A72: DESAMPARADOS | B72: 20 | C72: 10050 | D72: 7387 | E72: 7289 | F72: 494 | G72: 151 | H72: 97 | I72: 147 | J72: 394 | K72: 2588 | L72: 796 | M72: 248 | N72: 33 | O72: 1485 | P72: 856 | Q72: 71 | R72: 27
A73: CALLE FALLAS | B73: 27 | C73: 13383 | D73: 9589 | E73: 9454 | F73: 572 | G73: 129 | H73: 126 | I73: 430 | J73: 553 | K73: 2981 | L73: 1123 | M73: 417 | N73: 40 | O73: 1719 | P73: 1364 | Q73: 101 | R73: 34
A74: SAN JERÓNIMO | B74: 13 | C74: 6266 | D74: 4508 | E74: 4446 | F74: 290 | G74: 71 | H74: 62 | I74: 163 | J74: 226 | K74: 1350 | L74: 600 | M74: 270 | N74: 19 | O74: 774 | P74: 621 | Q74: 44 | R74: 18
A75: H.A. OFELIA CARVAJAL DE NARANJO | B75: 1 | C75: 105 | D75: 66 | E75: 59 | F75: 8 | G75: 0 | H75: 1 | I75: 0 | J75: 2 | K75: 18 | L75: 11 | M75: 0 | N75: 3 | O75: 9 | P75: 7 | Q75: 0 | R75: 7
A76: DISTRITO 2 SAN MIGUEL | B76: 52 | C76: 23888 | D76: 15994 | E76: 15657 | F76: 1165 | G76: 654 | H76: 106 | I76: 561 | J76: 575 | K76: 5135 | L76: 2186 | M76: 920 | N76: 65 | O76: 2126 | P76: 2164 | Q76: 221 | R76: 116
A77: SAN MIGUEL | B77: 15 | C77: 7413 | D77: 4990 | E77: 4880 | F77: 373 | G77: 227 | H77: 42 | I77: 143 | J77: 199 | K77: 1522 | L77: 665 | M77: 321 | N77: 15 | O77: 707 | P77: 666 | Q77: 70 | R77: 40
A78: JERICÓ | B78: 2 | C78: 771 | D78: 523 | E78: 514 | F78: 22 | G78: 32 | H78: 4 | I78: 11 | J78: 16 | K78: 228 | L78: 60 | M78: 8 | N78: 2 | O78: 87 | P78: 44 | Q78: 5 | R78: 4
A79: HIGUITO | B79: 16 | C79: 7607 | D79: 5036 | E79: 4920 | F79: 295 | G79: 270 | H79: 33 | I79: 230 | J79: 164 | K79: 1607 | L79: 712 | M79: 204 | N79: 30 | O79: 688 | P79: 687 | Q79: 74 | R79: 42
A80: PACAYA | B80: 1 | C80: 75 | D80: 62 | E80: 59 | F80: 0 | G80: 0 | H80: 1 | I80: 0 | J80: 2 | K80: 52 | L80: 0 | M80: 3 | N80: 0 | O80: 0 | P80: 1 | Q80: 2 | R80: 1
A81: EL LLANO | B81: 6 | C81: 2566 | D81: 1767 | E81: 1744 | F81: 144 | G81: 57 | H81: 6 | I81: 52 | J81: 47 | K81: 663 | L81: 216 | M81: 82 | N81: 9 | O81: 249 | P81: 219 | Q81: 16 | R81: 7
A82: MANZANO (MANZANILLO) | B82: 1 | C82: 162 | D82: 104 | E82: 102 | F82: 9 | G82: 5 | H82: 1 | I82: 2 | J82: 4 | K82: 42 | L82: 10 | M82: 2 | N82: 0 | O82: 15 | P82: 12 | Q82: 1 | R82: 1
A83: LAS LOMAS | B83: 2 | C83: 843 | D83: 559 | E83: 543 | F83: 74 | G83: 2 | H83: 2 | I83: 17 | J83: 19 | K83: 157 | L83: 101 | M83: 27 | N83: 2 | O83: 66 | P83: 76 | Q83: 9 | R83: 7
A84: LA CAPRI | B84: 9 | C84: 4451 | D84: 2953 | E84: 2895 | F84: 248 | G84: 61 | H84: 17 | I84: 106 | J84: 124 | K84: 864 | L84: 422 | M84: 273 | N84: 7 | O84: 314 | P84: 459 | Q84: 44 | R84: 14
A85: DISTRITO 3 SAN JUAN DE DIOS | B85: 23 | C85: 11533 | D85: 7762 | E85: 7615 | F85: 538 | G85: 96 | H85: 57 | I85: 287 | J85: 278 | K85: 2278 | L85: 1225 | M85: 295 | N85: 27 | O85: 1120 | P85: 1414 | Q85: 112 | R85: 35
A86: SAN JUAN DE DIOS | B86: 23 | C86: 11533 | D86: 7762 | E86: 7615 | F86: 538 | G86: 96 | H86: 57 | I86: 287 | J86: 278 | K86: 2278 | L86: 1225 | M86: 295 | N86: 27 | O86: 1120 | P86: 1414 | Q86: 112 | R86: 35
A87: DISTRITO 4 SAN RAFAEL ARRIBA | B87: 23 | C87: 10180 | D87: 7155 | E87: 7030 | F87: 501 | G87: 86 | H87: 90 | I87: 223 | J87: 281 | K87: 2349 | L87: 849 | M87: 272 | N87: 18 | O87: 1332 | P87: 1029 | Q87: 86 | R87: 39
A88: SAN RAFAEL ARRIBA | B88: 20 | C88: 9729 | D88: 6946 | E88: 6827 | F88: 477 | G88: 85 | H88: 85 | I88: 223 | J88: 277 | K88: 2230 | L88: 831 | M88: 269 | N88: 16 | O88: 1313 | P88: 1021 | Q88: 81 | R88: 38
A89: C.P. SAN RAFAEL ARRIBA | B89: 2 | C89: 396 | D89: 172 | E89: 166 | F89: 24 | G89: 1 | H89: 5 | I89: 0 | J89: 4 | K89: 84 | L89: 18 | M89: 3 | N89: 1 | O89: 18 | P89: 8 | Q89: 5 | R89: 1
A90: H.A. SAN CAYETANO | B90: 1 | C90: 55 | D90: 37 | E90: 37 | F90: 0 | G90: 0 | H90: 0 | I90: 0 | J90: 0 | K90: 35 | L90: 0 | M90: 0 | N90: 1 | O90: 1 | P90: 0 | Q90: 0 | R90: 0
A91: DISTRITO 5 SAN ANTONIO | B91: 17 | C91: 8403 | D91: 6273 | E91: 6187 | F91: 368 | G91: 76 | H91: 68 | I91: 170 | J91: 466 | K91: 2254 | L91: 623 | M91: 235 | N91: 30 | O91: 1175 | P91: 722 | Q91: 65 | R91: 21
A92: SAN ANTONIO | B92: 17 | C92: 8403 | D92: 6273 | E92: 6187 | F92: 368 | G92: 76 | H92: 68 | I92: 170 | J92: 466 | K92: 2254 | L92: 623 | M92: 235 | N92: 30 | O92: 1175 | P92: 722 | Q92: 65 | R92: 21
A93: DISTRITO 6 FRAILES | B93: 7 | C93: 2593 | D93: 1833 | E93: 1769 | F93: 89 | G93: 21 | H93: 22 | I93: 20 | J93: 95 | K93: 1082 | L93: 131 | M93: 29 | N93: 4 | O93: 174 | P93: 102 | Q93: 22 | R93: 42
A94: FRAILES | B94: 4 | C94: 1609 | D94: 1119 | E94: 1077 | F94: 40 | G94: 9 | H94: 15 | I94: 14 | J94: 74 | K94: 643 | L94: 69 | M94: 17 | N94: 2 | O94: 130 | P94: 64 | Q94: 12 | R94: 30
A95: BUSTAMANTE O ALCIRA | B95: 2 | C95: 830 | D95: 596 | E95: 579 | F95: 39 | G95: 9 | H95: 6 | I95: 2 | J95: 19 | K95: 370 | L95: 51 | M95: 12 | N95: 2 | O95: 39 | P95: 30 | Q95: 9 | R95: 8
A96: VIOLETA (RINCÓN MORALES) | B96: 1 | C96: 154 | D96: 118 | E96: 113 | F96: 10 | G96: 3 | H96: 1 | I96: 4 | J96: 2 | K96: 69 | L96: 11 | M96: 0 | N96: 0 | O96: 5 | P96: 8 | Q96: 1 | R96: 4
A97: DISTRITO 7 PATARRÁ | B97: 12 | C97: 5383 | D97: 3537 | E97: 3464 | F97: 280 | G97: 47 | H97: 50 | I97: 97 | J97: 131 | K97: 1264 | L97: 457 | M97: 171 | N97: 18 | O97: 545 | P97: 404 | Q97: 48 | R97: 25
A98: PATARRÁ | B98: 6 | C98: 2726 | D98: 1903 | E98: 1873 | F98: 156 | G98: 24 | H98: 18 | I98: 48 | J98: 95 | K98: 720 | L98: 189 | M98: 64 | N98: 10 | O98: 341 | P98: 208 | Q98: 16 | R98: 14
A99: GUATUSO | B99: 6 | C99: 2657 | D99: 1634 | E99: 1591 | F99: 124 | G99: 23 | H99: 32 | I99: 49 | J99: 36 | K99: 544 | L99: 268 | M99: 107 | N99: 8 | O99: 204 | P99: 196 | Q99: 32 | R99: 11
A100: DISTRITO 8 SAN CRISTÓBAL | B100: 7 | C100: 2789 | D100: 2158 | E100: 2079 | F100: 43 | G100: 16 | H100: 61 | I100: 10 | J100: 46 | K100: 1276 | L100: 206 | M100: 8 | N100: 19 | O100: 229 | P100: 165 | Q100: 33 | R100: 46
A101: SAN CRISTÓBAL SUR | B101: 2 | C101: 698 | D101: 547 | E101: 521 | F101: 13 | G101: 7 | H101: 16 | I101: 0 | J101: 7 | K101: 325 | L101: 45 | M101: 7 | N101: 12 | O101: 56 | P101: 33 | Q101: 10 | R101: 16
A102: SAN CRISTÓBAL NORTE | B102: 2 | C102: 703 | D102: 537 | E102: 520 | F102: 22 | G102: 2 | H102: 3 | I102: 5 | J102: 8 | K102: 326 | L102: 54 | M102: 0 | N102: 1 | O102: 32 | P102: 67 | Q102: 7 | R102: 10
A103: CRISTO REY | B103: 2 | C103: 938 | D103: 736 | E103: 710 | F103: 7 | G103: 5 | H103: 40 | I103: 3 | J103: 30 | K103: 434 | L103: 48 | M103: 1 | N103: 5 | O103: 89 | P103: 48 | Q103: 12 | R103: 14
A104: EMPALME ARRIBA GUARIA (PARTE OESTE) | B104: 1 | C104: 450 | D104: 338 | E104: 328 | F104: 1 | G104: 2 | H104: 2 | I104: 2 | J104: 1 | K104: 191 | L104: 59 | M104: 0 | N104: 1 | O104: 52 | P104: 17 | Q104: 4 | R104: 6
A105: DISTRITO 9 ROSARIO | B105: 9 | C105: 2478 | D105: 1749 | E105: 1694 | F105: 77 | G105: 21 | H105: 9 | I105: 22 | J105: 49 | K105: 923 | L105: 245 | M105: 22 | N105: 8 | O105: 155 | P105: 163 | Q105: 29 | R105: 26
A106: ROSARIO | B106: 3 | C106: 1157 | D106: 815 | E106: 789 | F106: 35 | G106: 12 | H106: 5 | I106: 11 | J106: 27 | K106: 412 | L106: 117 | M106: 5 | N106: 2 | O106: 84 | P106: 79 | Q106: 8 | R106: 18
A107: GUADARRAMA | B107: 1 | C107: 359 | D107: 236 | E107: 227 | F107: 8 | G107: 3 | H107: 1 | I107: 5 | J107: 0 | K107: 162 | L107: 11 | M107: 0 | N107: 0 | O107: 15 | P107: 22 | Q107: 7 | R107: 2
A108: LA JOYA | B108: 1 | C108: 142 | D108: 96 | E108: 94 | F108: 3 | G108: 1 | H108: 1 | I108: 1 | J108: 1 | K108: 53 | L108: 5 | M108: 9 | N108: 4 | O108: 7 | P108: 9 | Q108: 1 | R108: 1
A109: TRINIDAD (PARTE ESTE) | B109: 2 | C109: 584 | D109: 407 | E109: 392 | F109: 29 | G109: 2 | H109: 2 | I109: 2 | J109: 18 | K109: 171 | L109: 95 | M109: 7 | N109: 1 | O109: 42 | P109: 23 | Q109: 11 | R109: 4
A110: LLANO BONITO | B110: 1 | C110: 91 | D110: 72 | E110: 71 | F110: 2 | G110: 2 | H110: 0 | I110: 0 | J110: 1 | K110: 46 | L110: 13 | M110: 0 | N110: 1 | O110: 1 | P110: 5 | Q110: 0 | R110: 1
A111: CHIROGRES | B111: 1 | C111: 145 | D111: 123 | E111: 121 | F111: 0 | G111: 1 | H111: 0 | I111: 3 | J111: 2 | K111: 79 | L111: 4 | M111: 1 | N111: 0 | O111: 6 | P111: 25 | Q111: 2 | R111: 0
A112: DISTRITO 10 DAMAS | B112: 18 | C112: 8436 | D112: 6109 | E112: 5991 | F112: 402 | G112: 92 | H112: 255 | I112: 240 | J112: 247 | K112: 1827 | L112: 636 | M112: 375 | N112: 34 | O112: 997 | P112: 886 | Q112: 82 | R112: 36
A113: FÁTIMA DE DAMAS | B113: 5 | C113: 2329 | D113: 1798 | E113: 1777 | F113: 117 | G113: 29 | H113: 21 | I113: 53 | J113: 87 | K113: 627 | L113: 147 | M113: 90 | N113: 10 | O113: 346 | P113: 250 | Q113: 10 | R113: 11
A114: SAN LORENZO | B114: 13 | C114: 6107 | D114: 4311 | E114: 4214 | F114: 285 | G114: 63 | H114: 234 | I114: 187 | J114: 160 | K114: 1200 | L114: 489 | M114: 285 | N114: 24 | O114: 651 | P114: 636 | Q114: 72 | R114: 25
A115: DISTRITO 11 SAN RAFAEL ABAJO | B115: 30 | C115: 14551 | D115: 10251 | E115: 10079 | F115: 651 | G115: 101 | H115: 79 | I115: 343 | J115: 458 | K115: 3090 | L115: 1458 | M115: 550 | N115: 39 | O115: 1852 | P115: 1458 | Q115: 124 | R115: 48
A116: SAN RAFAEL ABAJO | B116: 21 | C116: 10148 | D116: 7108 | E116: 6994 | F116: 447 | G116: 72 | H116: 54 | I116: 242 | J116: 331 | K116: 2152 | L116: 915 | M116: 412 | N116: 21 | O116: 1361 | P116: 987 | Q116: 80 | R116: 34
A117: VALENCIA | B117: 9 | C117: 4403 | D117: 3143 | E117: 3085 | F117: 204 | G117: 29 | H117: 25 | I117: 101 | J117: 127 | K117: 938 | L117: 543 | M117: 138 | N117: 18 | O117: 491 | P117: 471 | Q117: 44 | R117: 14
A118: DISTRITO 12 GRAVILIAS | B118: 26 | C118: 12489 | D118: 9292 | E118: 9180 | F118: 720 | G118: 148 | H118: 190 | I118: 255 | J118: 526 | K118: 2879 | L118: 1094 | M118: 319 | N118: 36 | O118: 1883 | P118: 1130 | Q118: 71 | R118: 41
A119: GRAVILIAS | B119: 15 | C119: 7125 | D119: 5286 | E119: 5221 | F119: 432 | G119: 75 | H119: 99 | I119: 132 | J119: 274 | K119: 1656 | L119: 651 | M119: 188 | N119: 24 | O119: 1023 | P119: 667 | Q119: 40 | R119: 25
A120: EL PORVENIR | B120: 11 | C120: 5364 | D120: 4006 | E120: 3959 | F120: 288 | G120: 73 | H120: 91 | I120: 123 | J120: 252 | K120: 1223 | L120: 443 | M120: 131 | N120: 12 | O120: 860 | P120: 463 | Q120: 31 | R120: 16
A121: DISTRITO 13 LOS GUIDO | B121: 23 | C121: 11109 | D121: 6325 | E121: 6089 | F121: 357 | G121: 65 | H121: 58 | I121: 265 | J121: 198 | K121: 1986 | L121: 1118 | M121: 724 | N121: 20 | O121: 609 | P121: 689 | Q121: 163 | R121: 73
A122: LOS GUIDO | B122: 23 | C122: 11109 | D122: 6325 | E122: 6089 | F122: 357 | G122: 65 | H122: 58 | I122: 265 | J122: 198 | K122: 1986 | L122: 1118 | M122: 724 | N122: 20 | O122: 609 | P122: 689 | Q122: 163 | R122: 73
A123: CANTÓN 4 PURISCAL | B123: 70 | C123: 24260 | D123: 17623 | E123: 17093 | F123: 1683 | G123: 48 | H123: 145 | I123: 167 | J123: 330 | K123: 7479 | L123: 2065 | M123: 410 | N123: 86 | O123: 3242 | P123: 1438 | Q123: 208 | R123: 322
A124: DISTRITO 1 SANTIAGO | B124: 21 | C124: 9303 | D124: 6867 | E124: 6712 | F124: 729 | G124: 15 | H124: 52 | I124: 73 | J124: 164 | K124: 2657 | L124: 794 | M124: 209 | N124: 30 | O124: 1349 | P124: 640 | Q124: 75 | R124: 80
A125: SANTIAGO | B125: 16 | C125: 7912 | D125: 5863 | E125: 5740 | F125: 602 | G125: 14 | H125: 44 | I125: 68 | J125: 137 | K125: 2249 | L125: 693 | M125: 185 | N125: 27 | O125: 1138 | P125: 583 | Q125: 61 | R125: 62
A126: POZOS | B126: 2 | C126: 753 | D126: 526 | E126: 510 | F126: 44 | G126: 1 | H126: 6 | I126: 3 | J126: 21 | K126: 218 | L126: 59 | M126: 12 | N126: 1 | O126: 111 | P126: 34 | Q126: 5 | R126: 11
A127: CARIT | B127: 1 | C127: 522 | D127: 399 | E127: 387 | F127: 66 | G127: 0 | H127: 2 | I127: 2 | J127: 6 | K127: 162 | L127: 36 | M127: 10 | N127: 2 | O127: 78 | P127: 23 | Q127: 8 | R127: 4
A128: BAJO BADILLA | B128: 1 | C128: 64 | D128: 34 | E128: 30 | F128: 6 | G128: 0 | H128: 0 | I128: 0 | J128: 0 | K128: 2 | L128: 1 | M128: 0 | N128: 0 | O128: 21 | P128: 0 | Q128: 1 | R128: 3
A129: H.A. CORAZÓN DE JESÚS | B129: 1 | C129: 52 | D129: 45 | E129: 45 | F129: 11 | G129: 0 | H129: 0 | I129: 0 | J129: 0 | K129: 26 | L129: 5 | M129: 2 | N129: 0 | O129: 1 | P129: 0 | Q129: 0 | R129: 0
A130: DISTRITO 2 MERCEDES SUR | B130: 13 | C130: 3683 | D130: 2711 | E130: 2612 | F130: 227 | G130: 7 | H130: 31 | I130: 40 | J130: 43 | K130: 1137 | L130: 355 | M130: 46 | N130: 15 | O130: 505 | P130: 206 | Q130: 35 | R130: 64
A131: MERCEDES SUR | B131: 1 | C131: 484 | D131: 336 | E131: 325 | F131: 27 | G131: 1 | H131: 7 | I131: 2 | J131: 2 | K131: 154 | L131: 27 | M131: 2 | N131: 1 | O131: 78 | P131: 24 | Q131: 6 | R131: 5
A132: MERCEDES NORTE | B132: 2 | C132: 903 | D132: 673 | E132: 655 | F132: 84 | G132: 3 | H132: 8 | I132: 17 | J132: 18 | K132: 268 | L132: 77 | M132: 25 | N132: 1 | O132: 111 | P132: 43 | Q132: 8 | R132: 10
A133: BOCANA | B133: 1 | C133: 103 | D133: 71 | E133: 70 | F133: 16 | G133: 0 | H133: 0 | I133: 0 | J133: 0 | K133: 35 | L133: 2 | M133: 0 | N133: 0 | O133: 16 | P133: 1 | Q133: 0 | R133: 1
A134: JILGUERAL | B134: 1 | C134: 160 | D134: 124 | E134: 116 | F134: 11 | G134: 0 | H134: 0 | I134: 0 | J134: 1 | K134: 57 | L134: 14 | M134: 1 | N134: 1 | O134: 26 | P134: 5 | Q134: 2 | R134: 6
A135: TÚFARES | B135: 1 | C135: 88 | D135: 54 | E135: 49 | F135: 0 | G135: 0 | H135: 1 | I135: 0 | J135: 0 | K135: 34 | L135: 3 | M135: 0 | N135: 0 | O135: 6 | P135: 5 | Q135: 0 | R135: 5
A136: SALITRALES | B136: 1 | C136: 185 | D136: 119 | E136: 115 | F136: 6 | G136: 0 | H136: 4 | I136: 0 | J136: 1 | K136: 46 | L136: 19 | M136: 1 | N136: 3 | O136: 30 | P136: 5 | Q136: 2 | R136: 2
A137: ALTO LA PALMA | B137: 1 | C137: 253 | D137: 191 | E137: 183 | F137: 19 | G137: 1 | H137: 1 | I137: 0 | J137: 1 | K137: 76 | L137: 31 | M137: 3 | N137: 0 | O137: 37 | P137: 14 | Q137: 2 | R137: 6
A138: LLANO GRANDE | B138: 1 | C138: 83 | D138: 43 | E138: 40 | F138: 4 | G138: 0 | H138: 1 | I138: 0 | J138: 0 | K138: 23 | L138: 10 | M138: 0 | N138: 0 | O138: 0 | P138: 2 | Q138: 3 | R138: 0
A139: SANTA MARTA | B139: 1 | C139: 304 | D139: 237 | E139: 230 | F139: 12 | G139: 0 | H139: 1 | I139: 0 | J139: 2 | K139: 110 | L139: 60 | M139: 0 | N139: 3 | O139: 28 | P139: 14 | Q139: 0 | R139: 7
A140: CERBATANA | B140: 3 | C140: 1120 | D140: 863 | E140: 829 | F140: 48 | G140: 2 | H140: 8 | I140: 21 | J140: 18 | K140: 334 | L140: 112 | M140: 14 | N140: 6 | O140: 173 | P140: 93 | Q140: 12 | R140: 22
A141: DISTRITO 3 BARBACOAS | B141: 8 | C141: 2894 | D141: 2211 | E141: 2134 | F141: 146 | G141: 11 | H141: 24 | I141: 13 | J141: 35 | K141: 1020 | L141: 260 | M141: 51 | N141: 10 | O141: 372 | P141: 192 | Q141: 28 | R141: 49
A142: BARBACOAS (SAN ISIDRO) | B142: 3 | C142: 1119 | D142: 867 | E142: 843 | F142: 69 | G142: 6 | H142: 11 | I142: 9 | J142: 22 | K142: 314 | L142: 110 | M142: 19 | N142: 5 | O142: 178 | P142: 100 | Q142: 12 | R142: 12
A143: PIEDADES | B143: 2 | C143: 622 | D143: 461 | E143: 444 | F143: 43 | G143: 0 | H143: 1 | I143: 2 | J143: 6 | K143: 196 | L143: 62 | M143: 19 | N143: 3 | O143: 75 | P143: 37 | Q143: 7 | R143: 10
A144: SAN JUAN | B144: 2 | C144: 855 | D144: 676 | E144: 650 | F144: 28 | G144: 4 | H144: 11 | I144: 2 | J144: 7 | K144: 369 | L144: 65 | M144: 11 | N144: 2 | O144: 104 | P144: 47 | Q144: 7 | R144: 19
A145: CORTEZAL | B145: 1 | C145: 298 | D145: 207 | E145: 197 | F145: 6 | G145: 1 | H145: 1 | I145: 0 | J145: 0 | K145: 141 | L145: 23 | M145: 2 | N145: 0 | O145: 15 | P145: 8 | Q145: 2 | R145: 8
A146: DISTRITO 4 GRIFO ALTO | B146: 3 | C146: 847 | D146: 600 | E146: 580 | F146: 105 | G146: 0 | H146: 4 | I146: 2 | J146: 15 | K146: 218 | L146: 51 | M146: 4 | N146: 4 | O146: 128 | P146: 49 | Q146: 5 | R146: 15
A147: GRIFO ALTO | B147: 2 | C147: 707 | D147: 500 | E147: 484 | F147: 83 | G147: 0 | H147: 3 | I147: 2 | J147: 12 | K147: 178 | L147: 45 | M147: 2 | N147: 3 | O147: 111 | P147: 45 | Q147: 4 | R147: 12
A148: GRIFO BAJO | B148: 1 | C148: 140 | D148: 100 | E148: 96 | F148: 22 | G148: 0 | H148: 1 | I148: 0 | J148: 3 | K148: 40 | L148: 6 | M148: 2 | N148: 1 | O148: 17 | P148: 4 | Q148: 1 | R148: 3
A149: DISTRITO 5 SAN RAFAEL | B149: 3 | C149: 1165 | D149: 796 | E149: 763 | F149: 163 | G149: 0 | H149: 4 | I149: 5 | J149: 12 | K149: 326 | L149: 77 | M149: 5 | N149: 3 | O149: 124 | P149: 44 | Q149: 13 | R149: 20
A150: SAN RAFAEL ARRIBA | B150: 2 | C150: 866 | D150: 595 | E150: 573 | F150: 76 | G150: 0 | H150: 3 | I150: 4 | J150: 11 | K150: 264 | L150: 72 | M150: 4 | N150: 2 | O150: 99 | P150: 38 | Q150: 9 | R150: 13
A151: FLORALIA | B151: 1 | C151: 299 | D151: 201 | E151: 190 | F151: 87 | G151: 0 | H151: 1 | I151: 1 | J151: 1 | K151: 62 | L151: 5 | M151: 1 | N151: 1 | O151: 25 | P151: 6 | Q151: 4 | R151: 7
A152: DISTRITO 6 CANDELARITA | B152: 4 | C152: 1268 | D152: 943 | E152: 896 | F152: 44 | G152: 2 | H152: 8 | I152: 4 | J152: 8 | K152: 546 | L152: 86 | M152: 5 | N152: 5 | O152: 142 | P152: 46 | Q152: 12 | R152: 35
A153: CANDELARITA | B153: 2 | C153: 685 | D153: 515 | E153: 487 | F153: 27 | G153: 1 | H153: 5 | I153: 0 | J153: 5 | K153: 293 | L153: 52 | M153: 3 | N153: 2 | O153: 82 | P153: 17 | Q153: 10 | R153: 18
A154: PEDERNAL O SAN PEDRO | B154: 2 | C154: 583 | D154: 428 | E154: 409 | F154: 17 | G154: 1 | H154: 3 | I154: 4 | J154: 3 | K154: 253 | L154: 34 | M154: 2 | N154: 3 | O154: 60 | P154: 29 | Q154: 2 | R154: 17
A155: DISTRITO 7 DESAMPARADITOS | B155: 1 | C155: 488 | D155: 353 | E155: 345 | F155: 47 | G155: 0 | H155: 2 | I155: 0 | J155: 5 | K155: 117 | L155: 51 | M155: 3 | N155: 0 | O155: 80 | P155: 40 | Q155: 3 | R155: 5
A156: DESAMPARADITOS | B156: 1 | C156: 488 | D156: 353 | E156: 345 | F156: 47 | G156: 0 | H156: 2 | I156: 0 | J156: 5 | K156: 117 | L156: 51 | M156: 3 | N156: 0 | O156: 80 | P156: 40 | Q156: 3 | R156: 5
A157: DISTRITO 8 SAN ANTONIO | B157: 6 | C157: 2501 | D157: 1745 | E157: 1706 | F157: 151 | G157: 9 | H157: 10 | I157: 18 | J157: 38 | K157: 733 | L157: 253 | M157: 44 | N157: 12 | O157: 266 | P157: 172 | Q157: 14 | R157: 25
A158: SAN ANTONIO | B158: 5 | C158: 2325 | D158: 1625 | E158: 1593 | F158: 147 | G158: 9 | H158: 10 | I158: 18 | J158: 36 | K158: 670 | L158: 230 | M158: 43 | N158: 9 | O158: 260 | P158: 161 | Q158: 13 | R158: 19
A159: CHARCÓN (RÍO VIEJO) | B159: 1 | C159: 176 | D159: 120 | E159: 113 | F159: 4 | G159: 0 | H159: 0 | I159: 0 | J159: 2 | K159: 63 | L159: 23 | M159: 1 | N159: 3 | O159: 6 | P159: 11 | Q159: 1 | R159: 6
A160: DISTRITO 9 CHIRES | B160: 11 | C160: 2111 | D160: 1397 | E160: 1345 | F160: 71 | G160: 4 | H160: 10 | I160: 12 | J160: 10 | K160: 725 | L160: 138 | M160: 43 | N160: 7 | O160: 276 | P160: 49 | Q160: 23 | R160: 29
A161: GUARUMAL | B161: 1 | C161: 189 | D161: 137 | E161: 130 | F161: 1 | G161: 0 | H161: 1 | I161: 0 | J161: 0 | K161: 82 | L161: 3 | M161: 0 | N161: 1 | O161: 36 | P161: 6 | Q161: 3 | R161: 4
A162: ZAPATÓN (SAN CARLOS) | B162: 1 | C162: 306 | D162: 214 | E162: 205 | F162: 23 | G162: 1 | H162: 2 | I162: 4 | J162: 2 | K162: 113 | L162: 13 | M162: 9 | N162: 0 | O162: 35 | P162: 3 | Q162: 2 | R162: 7
A163: GAMALOTILLO | B163: 1 | C163: 266 | D163: 168 | E163: 162 | F163: 9 | G163: 1 | H163: 1 | I163: 1 | J163: 2 | K163: 59 | L163: 22 | M163: 0 | N163: 1 | O163: 59 | P163: 7 | Q163: 1 | R163: 5
A164: LOS ÁNGELES | B164: 1 | C164: 140 | D164: 91 | E164: 86 | F164: 3 | G164: 0 | H164: 2 | I164: 1 | J164: 2 | K164: 36 | L164: 16 | M164: 1 | N164: 1 | O164: 20 | P164: 4 | Q164: 3 | R164: 2
A165: LA GLORIA | B165: 1 | C165: 191 | D165: 115 | E165: 113 | F165: 4 | G165: 2 | H165: 0 | I165: 0 | J165: 1 | K165: 53 | L165: 17 | M165: 4 | N165: 0 | O165: 28 | P165: 4 | Q165: 1 | R165: 1
A166: MASTATAL | B166: 1 | C166: 105 | D166: 72 | E166: 68 | F166: 0 | G166: 0 | H166: 0 | I166: 0 | J166: 0 | K166: 49 | L166: 10 | M166: 0 | N166: 1 | O166: 7 | P166: 1 | Q166: 2 | R166: 2
A167: SAN MARTÍN | B167: 1 | C167: 127 | D167: 74 | E167: 71 | F167: 9 | G167: 0 | H167: 2 | I167: 1 | J167: 2 | K167: 27 | L167: 8 | M167: 0 | N167: 1 | O167: 13 | P167: 8 | Q167: 1 | R167: 2
A168: CRISTO REY | B168: 1 | C168: 417 | D168: 291 | E168: 283 | F168: 7 | G168: 0 | H168: 1 | I168: 5 | J168: 1 | K168: 165 | L168: 18 | M168: 29 | N168: 2 | O168: 45 | P168: 10 | Q168: 6 | R168: 2
A169: SAN MIGUEL | B169: 1 | C169: 132 | D169: 80 | E169: 78 | F169: 2 | G169: 0 | H169: 1 | I169: 0 | J169: 0 | K169: 57 | L169: 4 | M169: 0 | N169: 0 | O169: 13 | P169: 1 | Q169: 1 | R169: 1
A170: VISTA DE MAR NORTE | B170: 1 | C170: 193 | D170: 130 | E170: 124 | F170: 10 | G170: 0 | H170: 0 | I170: 0 | J170: 0 | K170: 66 | L170: 24 | M170: 0 | N170: 0 | O170: 19 | P170: 5 | Q170: 3 | R170: 3
A171: BAJO REY | B171: 1 | C171: 45 | D171: 25 | E171: 25 | F171: 3 | G171: 0 | H171: 0 | I171: 0 | J171: 0 | K171: 18 | L171: 3 | M171: 0 | N171: 0 | O171: 1 | P171: 0 | Q171: 0 | R171: 0
A172: CANTÓN 5 TARRAZÚ | B172: 28 | C172: 10376 | D172: 6954 | E172: 6671 | F172: 1030 | G172: 126 | H172: 34 | I172: 100 | J172: 197 | K172: 2757 | L172: 752 | M172: 89 | N172: 26 | O172: 1179 | P172: 381 | Q172: 121 | R172: 162
A173: DISTRITO 1 SAN MARCOS | B173: 15 | C173: 6550 | D173: 4462 | E173: 4298 | F173: 623 | G173: 70 | H173: 25 | I173: 76 | J173: 162 | K173: 1716 | L173: 435 | M173: 76 | N173: 15 | O173: 813 | P173: 287 | Q173: 71 | R173: 93
A174: SAN MARCOS | B174: 9 | C174: 4226 | D174: 2914 | E174: 2821 | F174: 418 | G174: 39 | H174: 15 | I174: 61 | J174: 121 | K174: 1041 | L174: 300 | M174: 54 | N174: 10 | O174: 550 | P174: 212 | Q174: 44 | R174: 49
A175: SAN PEDRO | B175: 1 | C175: 366 | D175: 264 | E175: 253 | F175: 68 | G175: 10 | H175: 2 | I175: 0 | J175: 2 | K175: 73 | L175: 28 | M175: 8 | N175: 1 | O175: 43 | P175: 18 | Q175: 2 | R175: 9
A176: GUADALUPE | B176: 2 | C176: 946 | D176: 651 | E176: 621 | F176: 54 | G176: 10 | H176: 3 | I176: 12 | J176: 29 | K176: 272 | L176: 37 | M176: 10 | N176: 1 | O176: 164 | P176: 29 | Q176: 15 | R176: 15
A177: RODEO NORTE | B177: 2 | C177: 949 | D177: 602 | E177: 573 | F177: 81 | G177: 11 | H177: 5 | I177: 3 | J177: 10 | K177: 314 | L177: 70 | M177: 3 | N177: 3 | O177: 45 | P177: 28 | Q177: 10 | R177: 19
A178: H.A. LOS SANTOS | B178: 1 | C178: 63 | D178: 31 | E178: 30 | F178: 2 | G178: 0 | H178: 0 | I178: 0 | J178: 0 | K178: 16 | L178: 0 | M178: 1 | N178: 0 | O178: 11 | P178: 0 | Q178: 0 | R178: 1
A179: DISTRITO 2 SAN LORENZO | B179: 10 | C179: 2589 | D179: 1679 | E179: 1613 | F179: 233 | G179: 39 | H179: 7 | I179: 12 | J179: 30 | K179: 718 | L179: 196 | M179: 7 | N179: 7 | O179: 285 | P179: 79 | Q179: 27 | R179: 39
A180: SAN MARTÍN | B180: 1 | C180: 112 | D180: 72 | E180: 67 | F180: 4 | G180: 1 | H180: 0 | I180: 1 | J180: 1 | K180: 32 | L180: 20 | M180: 0 | N180: 0 | O180: 7 | P180: 1 | Q180: 2 | R180: 3
A181: SAN LORENZO | B181: 4 | C181: 1761 | D181: 1139 | E181: 1097 | F181: 155 | G181: 16 | H181: 4 | I181: 5 | J181: 25 | K181: 478 | L181: 116 | M181: 5 | N181: 6 | O181: 218 | P181: 69 | Q181: 15 | R181: 27
A182: ESQUIPULAS | B182: 1 | C182: 35 | D182: 13 | E182: 12 | F182: 1 | G182: 0 | H182: 0 | I182: 1 | J182: 0 | K182: 2 | L182: 6 | M182: 0 | N182: 0 | O182: 1 | P182: 1 | Q182: 0 | R182: 1
A183: SAN MIGUEL O SALADO | B183: 1 | C183: 131 | D183: 83 | E183: 80 | F183: 21 | G183: 5 | H183: 0 | I183: 0 | J183: 0 | K183: 34 | L183: 7 | M183: 1 | N183: 0 | O183: 11 | P183: 1 | Q183: 0 | R183: 3
A184: ZAPOTAL | B184: 1 | C184: 214 | D184: 138 | E184: 133 | F184: 10 | G184: 3 | H184: 1 | I184: 0 | J184: 2 | K184: 93 | L184: 10 | M184: 0 | N184: 0 | O184: 12 | P184: 2 | Q184: 5 | R184: 0
A185: NÁPOLES | B185: 1 | C185: 281 | D185: 194 | E185: 185 | F185: 39 | G185: 6 | H185: 1 | I185: 0 | J185: 1 | K185: 73 | L185: 31 | M185: 0 | N185: 1 | O185: 28 | P185: 5 | Q185: 5 | R185: 4
A186: QUEBRADA ARROYO | B186: 1 | C186: 55 | D186: 40 | E186: 39 | F186: 3 | G186: 8 | H186: 1 | I186: 5 | J186: 1 | K186: 6 | L186: 6 | M186: 1 | N186: 0 | O186: 8 | P186: 0 | Q186: 0 | R186: 1
A187: DISTRITO 3 SAN CARLOS | B187: 3 | C187: 1237 | D187: 813 | E187: 760 | F187: 174 | G187: 17 | H187: 2 | I187: 12 | J187: 5 | K187: 323 | L187: 121 | M187: 6 | N187: 4 | O187: 81 | P187: 15 | Q187: 23 | R187: 30
A188: SAN CARLOS | B188: 2 | C188: 809 | D188: 541 | E188: 505 | F188: 83 | G188: 17 | H188: 1 | I188: 3 | J188: 4 | K188: 213 | L188: 100 | M188: 2 | N188: 1 | O188: 69 | P188: 12 | Q188: 18 | R188: 18
A189: SAN JERÓNIMO | B189: 1 | C189: 428 | D189: 272 | E189: 255 | F189: 91 | G189: 0 | H189: 1 | I189: 9 | J189: 1 | K189: 110 | L189: 21 | M189: 4 | N189: 3 | O189: 12 | P189: 3 | Q189: 5 | R189: 12
A190: CANTÓN 6 ASERRÍ | B190: 86 | C190: 36900 | D190: 25386 | E190: 24658 | F190: 1657 | G190: 998 | H190: 219 | I190: 539 | J190: 1122 | K190: 8448 | L190: 3171 | M190: 698 | N190: 86 | O190: 4506 | P190: 3214 | Q190: 433 | R190: 295
A191: DISTRITO 1 ASERRÍ | B191: 44 | C191: 21006 | D191: 14366 | E191: 14025 | F191: 947 | G191: 640 | H191: 99 | I191: 351 | J191: 657 | K191: 4434 | L191: 1847 | M191: 431 | N191: 34 | O191: 2523 | P191: 2062 | Q191: 225 | R191: 116
A192: ASERRÍ | B192: 33 | C192: 16258 | D192: 11149 | E192: 10901 | F192: 699 | G192: 518 | H192: 77 | I192: 245 | J192: 550 | K192: 3467 | L192: 1428 | M192: 347 | N192: 28 | O192: 1973 | P192: 1569 | Q192: 161 | R192: 87
A193: POÁS | B193: 10 | C193: 4718 | D193: 3196 | E193: 3103 | F193: 247 | G193: 122 | H193: 22 | I193: 106 | J193: 105 | K193: 965 | L193: 406 | M193: 84 | N193: 5 | O193: 548 | P193: 493 | Q193: 64 | R193: 29
A194: H.A. SAN FRANCISCO DE ASÍS | B194: 1 | C194: 30 | D194: 21 | E194: 21 | F194: 1 | G194: 0 | H194: 0 | I194: 0 | J194: 2 | K194: 2 | L194: 13 | M194: 0 | N194: 1 | O194: 2 | P194: 0 | Q194: 0 | R194: 0
A195: DISTRITO 2 TARBACA | B195: 5 | C195: 1530 | D195: 1056 | E195: 1007 | F195: 70 | G195: 41 | H195: 14 | I195: 10 | J195: 30 | K195: 398 | L195: 118 | M195: 28 | N195: 3 | O195: 177 | P195: 118 | Q195: 17 | R195: 32
A196: TARBACA O PRAGA | B196: 3 | C196: 1084 | D196: 741 | E196: 708 | F196: 47 | G196: 36 | H196: 13 | I196: 8 | J196: 26 | K196: 273 | L196: 78 | M196: 24 | N196: 2 | O196: 114 | P196: 87 | Q196: 13 | R196: 20
A197: EL TIGRE | B197: 1 | C197: 168 | D197: 112 | E197: 104 | F197: 1 | G197: 5 | H197: 1 | I197: 2 | J197: 1 | K197: 55 | L197: 4 | M197: 2 | N197: 1 | O197: 21 | P197: 11 | Q197: 1 | R197: 7
A198: CEDRAL | B198: 1 | C198: 278 | D198: 203 | E198: 195 | F198: 22 | G198: 0 | H198: 0 | I198: 0 | J198: 3 | K198: 70 | L198: 36 | M198: 2 | N198: 0 | O198: 42 | P198: 20 | Q198: 3 | R198: 5
A199: DISTRITO 3 VUELTA DE JORCO | B199: 11 | C199: 4225 | D199: 3068 | E199: 2983 | F199: 238 | G199: 105 | H199: 43 | I199: 58 | J199: 77 | K199: 1041 | L199: 409 | M199: 57 | N199: 30 | O199: 609 | P199: 316 | Q199: 43 | R199: 42
A200: JOCOTAL ABAJO | B200: 1 | C200: 198 | D200: 121 | E200: 118 | F200: 5 | G200: 4 | H200: 1 | I200: 4 | J200: 3 | K200: 33 | L200: 26 | M200: 10 | N200: 0 | O200: 23 | P200: 9 | Q200: 1 | R200: 2
A201: VUELTA DE JORCO | B201: 6 | C201: 2719 | D201: 1992 | E201: 1946 | F201: 193 | G201: 64 | H201: 26 | I201: 41 | J201: 60 | K201: 576 | L201: 283 | M201: 29 | N201: 19 | O201: 416 | P201: 239 | Q201: 25 | R201: 21
A202: MONTE REDONDO | B202: 2 | C202: 593 | D202: 438 | E202: 423 | F202: 20 | G202: 12 | H202: 7 | I202: 4 | J202: 10 | K202: 145 | L202: 48 | M202: 16 | N202: 3 | O202: 115 | P202: 43 | Q202: 7 | R202: 8
A203: LEGUA DE LOS NARANJOS | B203: 1 | C203: 310 | D203: 201 | E203: 189 | F203: 9 | G203: 7 | H203: 2 | I203: 1 | J203: 0 | K203: 118 | L203: 26 | M203: 0 | N203: 3 | O203: 14 | P203: 9 | Q203: 6 | R203: 6
... 380 more rows

Sheet C2.11
A2: CUADRO 2.11 ALAJUELA: JUNTAS, ELECTORADO, VOTOS POR PARTIDO, NULOS Y BLANCOS PARA DIPUTACIONES A LA ASAMBLEA LEGISLATIVA
A3: SEGÚN CANTÓN, DISTRITO ADMINISTRATIVO Y DISTRITO ELECTORAL, ELECCIONES 7 DE FEBRERO 2010
A5: CANTÓN, DISTRITO ADMINISTRATIVO Y DISTRITO ELECTORAL | B5: JUNTAS | C5: ELECTORADO | D5: VOTOS RECIBIDOS
D6: TOTAL GENERAL | E6: VOTOS VÁLIDOS | Q6: VOTOS NULOS | R6: VOTOS BLANCOS
E7: TOTAL | F7: UNIDAD SOCIAL CRISTIANA | G7: FUERZA FAMILIAR ALAJUELENSE | H7: INTEGRACIÓN NACIONAL | I7: ALIANZA PATRIÓTICA | J7: RENOVACIÓN COSTARRICENSE | K7: FRENTE AMPLIO | L7: LIBERACIÓN NACIONAL | M7: RESTAURACIÓN ALAJUELENSE | N7: MOVIMIENTO LIBERTARIO | O7: ACCIÓN CIUDADANA | P7: ACCESIBILIDAD SIN EXCLUSIÓN
A9: ALAJUELA | B9: 1252 | C9: 524215 | D9: 374912 | E9: 365548 | F9: 23746 | G9: 1609 | H9: 1314 | I9: 6922 | J9: 16156 | K9: 4835 | L9: 139515 | M9: 7298 | N9: 60198 | O9: 72880 | P9: 31075 | Q9: 5412 | R9: 3952
A10: CANTÓN 1 ALAJUELA | B10: 376 | C10: 170966 | D10: 119817 | E10: 117283 | F10: 8020 | G10: 553 | H10: 600 | I10: 1144 | J10: 3679 | K10: 1809 | L10: 43565 | M10: 2590 | N10: 20442 | O10: 20680 | P10: 14201 | Q10: 1619 | R10: 915
A11: DISTRITO 1 ALAJUELA | B11: 78 | C11: 37877 | D11: 27038 | E11: 26603 | F11: 1689 | G11: 97 | H11: 128 | I11: 357 | J11: 760 | K11: 475 | L11: 10135 | M11: 586 | N11: 4283 | O11: 5331 | P11: 2762 | Q11: 259 | R11: 176
A12: ALAJUELA | B12: 24 | C12: 11960 | D12: 8513 | E12: 8413 | F12: 557 | G12: 21 | H12: 54 | I12: 135 | J12: 182 | K12: 180 | L12: 3376 | M12: 151 | N12: 1223 | O12: 1872 | P12: 662 | Q12: 61 | R12: 39
A13: CONCEPCIÓN O EL LLANO | B13: 18 | C13: 8984 | D13: 6687 | E13: 6578 | F13: 402 | G13: 22 | H13: 26 | I13: 108 | J13: 179 | K13: 127 | L13: 2481 | M13: 150 | N13: 1026 | O13: 1398 | P13: 659 | Q13: 60 | R13: 49
A14: CANOAS | B14: 15 | C14: 7523 | D14: 5239 | E14: 5134 | F14: 294 | G14: 25 | H14: 23 | I14: 35 | J14: 165 | K14: 71 | L14: 1777 | M14: 109 | N14: 900 | O14: 948 | P14: 787 | Q14: 64 | R14: 41
A15: MONTECILLOS (PARTE NORTE) | B15: 10 | C15: 4606 | D15: 3151 | E15: 3082 | F15: 182 | G15: 17 | H15: 11 | I15: 35 | J15: 136 | K15: 38 | L15: 1139 | M15: 93 | N15: 628 | O15: 429 | P15: 374 | Q15: 46 | R15: 23
A16: H.A. SANTIAGO CRESPO CALVO | B16: 1 | C16: 181 | D16: 103 | E16: 97 | F16: 12 | G16: 1 | H16: 0 | I16: 1 | J16: 2 | K16: 1 | L16: 49 | M16: 4 | N16: 15 | O16: 12 | P16: 0 | Q16: 2 | R16: 4
A17: CORAZÓN DE JESÚS | B17: 1 | C17: 526 | D17: 397 | E17: 392 | F17: 34 | G17: 1 | H17: 6 | I17: 4 | J17: 14 | K17: 9 | L17: 147 | M17: 7 | N17: 56 | O17: 77 | P17: 37 | Q17: 0 | R17: 5
A18: EL ARROYO | B18: 2 | C18: 761 | D18: 600 | E18: 594 | F18: 32 | G18: 1 | H18: 4 | I18: 8 | J18: 10 | K18: 18 | L18: 265 | M18: 21 | N18: 72 | O18: 134 | P18: 29 | Q18: 3 | R18: 3
A19: EL CARMEN | B19: 7 | C19: 3336 | D19: 2348 | E19: 2313 | F19: 176 | G19: 9 | H19: 4 | I19: 31 | J19: 72 | K19: 31 | L19: 901 | M19: 51 | N19: 363 | O19: 461 | P19: 214 | Q19: 23 | R19: 12
A20: DISTRITO 2 SAN JOSÉ | B20: 59 | C20: 28420 | D20: 19940 | E20: 19542 | F20: 1165 | G20: 122 | H20: 84 | I20: 144 | J20: 640 | K20: 366 | L20: 6673 | M20: 576 | N20: 3745 | O20: 3764 | P20: 2263 | Q20: 244 | R20: 154
A21: SAN JOSÉ | B21: 17 | C21: 8303 | D21: 5532 | E21: 5400 | F21: 331 | G21: 23 | H21: 15 | I21: 34 | J21: 211 | K21: 93 | L21: 1934 | M21: 193 | N21: 1056 | O21: 882 | P21: 628 | Q21: 82 | R21: 50
A22: EL COYOL | B22: 11 | C22: 5188 | D22: 3735 | E22: 3673 | F22: 168 | G22: 17 | H22: 23 | I22: 20 | J22: 131 | K22: 84 | L22: 1184 | M22: 86 | N22: 851 | O22: 672 | P22: 437 | Q22: 35 | R22: 27
A23: TUETAL SUR | B23: 3 | C23: 1338 | D23: 858 | E23: 831 | F23: 47 | G23: 4 | H23: 2 | I23: 3 | J23: 35 | K23: 4 | L23: 344 | M23: 30 | N23: 156 | O23: 118 | P23: 88 | Q23: 14 | R23: 13
A24: PUEBLO NUEVO | B24: 7 | C24: 3432 | D24: 2432 | E24: 2389 | F24: 211 | G24: 45 | H24: 12 | I24: 28 | J24: 77 | K24: 53 | L24: 722 | M24: 53 | N24: 408 | O24: 476 | P24: 304 | Q24: 28 | R24: 15
A25: PACTO DEL JOCOTE | B25: 21 | C25: 10159 | D25: 7383 | E25: 7249 | F25: 408 | G25: 33 | H25: 32 | I25: 59 | J25: 186 | K25: 132 | L25: 2489 | M25: 214 | N25: 1274 | O25: 1616 | P25: 806 | Q25: 85 | R25: 49
A26: DISTRITO 3 CARRIZAL | B26: 10 | C26: 4008 | D26: 2757 | E26: 2661 | F26: 274 | G26: 7 | H26: 11 | I26: 23 | J26: 61 | K26: 27 | L26: 950 | M26: 34 | N26: 375 | O26: 495 | P26: 404 | Q26: 64 | R26: 32
A27: CARRIZAL | B27: 5 | C27: 2195 | D27: 1573 | E27: 1518 | F27: 207 | G27: 5 | H27: 6 | I27: 14 | J27: 19 | K27: 18 | L27: 517 | M27: 23 | N27: 223 | O27: 295 | P27: 191 | Q27: 33 | R27: 22
A28: CINCO ESQUINAS | B28: 2 | C28: 631 | D28: 408 | E28: 387 | F28: 30 | G28: 0 | H28: 2 | I28: 2 | J28: 25 | K28: 2 | L28: 119 | M28: 4 | N28: 41 | O28: 49 | P28: 113 | Q28: 16 | R28: 5
A29: PAVAS (GUARARÍ) | B29: 3 | C29: 1182 | D29: 776 | E29: 756 | F29: 37 | G29: 2 | H29: 3 | I29: 7 | J29: 17 | K29: 7 | L29: 314 | M29: 7 | N29: 111 | O29: 151 | P29: 100 | Q29: 15 | R29: 5
A30: DISTRITO 4 SAN ANTONIO | B30: 39 | C30: 19195 | D30: 13335 | E30: 13066 | F30: 681 | G30: 79 | H30: 51 | I30: 124 | J30: 573 | K30: 174 | L30: 4877 | M30: 332 | N30: 2410 | O30: 2101 | P30: 1664 | Q30: 187 | R30: 82
A31: SAN ANTONIO DEL TEJAR | B31: 5 | C31: 2476 | D31: 1813 | E31: 1781 | F31: 75 | G31: 5 | H31: 8 | I31: 9 | J31: 46 | K31: 28 | L31: 717 | M31: 41 | N31: 306 | O31: 344 | P31: 202 | Q31: 25 | R31: 7
A32: EL ROBLE | B32: 15 | C32: 7440 | D32: 5095 | E32: 4992 | F32: 281 | G32: 25 | H32: 14 | I32: 40 | J32: 284 | K32: 62 | L32: 1774 | M32: 143 | N32: 894 | O32: 765 | P32: 710 | Q32: 73 | R32: 30
A33: VILLA BONITA (PARTE SUR) | B33: 12 | C33: 5907 | D33: 4086 | E33: 4016 | F33: 233 | G33: 18 | H33: 17 | I33: 60 | J33: 149 | K33: 59 | L33: 1520 | M33: 114 | N33: 701 | O33: 670 | P33: 475 | Q33: 42 | R33: 28
A34: CIRUELAS | B34: 7 | C34: 3372 | D34: 2341 | E34: 2277 | F34: 92 | G34: 31 | H34: 12 | I34: 15 | J34: 94 | K34: 25 | L34: 866 | M34: 34 | N34: 509 | O34: 322 | P34: 277 | Q34: 47 | R34: 17
A35: DISTRITO 5 GUÁCIMA | B35: 24 | C35: 10822 | D35: 7767 | E35: 7570 | F35: 509 | G35: 47 | H35: 34 | I35: 47 | J35: 302 | K35: 83 | L35: 2835 | M35: 139 | N35: 1229 | O35: 1216 | P35: 1129 | Q35: 146 | R35: 51
A36: GUÁCIMA (SANTIAGO OESTE) | B36: 8 | C36: 4039 | D36: 2957 | E36: 2902 | F36: 167 | G36: 9 | H36: 17 | I36: 19 | J36: 89 | K36: 33 | L36: 1139 | M36: 28 | N36: 403 | O36: 587 | P36: 411 | Q36: 43 | R36: 12
A37: EL COCO | B37: 7 | C37: 3060 | D37: 2069 | E37: 2006 | F37: 141 | G37: 12 | H37: 9 | I37: 11 | J37: 117 | K37: 24 | L37: 670 | M37: 55 | N37: 431 | O37: 275 | P37: 261 | Q37: 45 | R37: 18
A38: LAS VUELTAS | B38: 2 | C38: 930 | D38: 725 | E38: 709 | F38: 33 | G38: 0 | H38: 0 | I38: 6 | J38: 10 | K38: 10 | L38: 344 | M38: 5 | N38: 72 | O38: 128 | P38: 101 | Q38: 9 | R38: 7
A39: NUESTRO AMO | B39: 3 | C39: 1198 | D39: 970 | E39: 945 | F39: 117 | G39: 2 | H39: 5 | I39: 4 | J39: 17 | K39: 7 | L39: 354 | M39: 6 | N39: 138 | O39: 115 | P39: 180 | Q39: 21 | R39: 4
A40: RINCÓN CHIQUITO | B40: 4 | C40: 1595 | D40: 1046 | E40: 1008 | F40: 51 | G40: 24 | H40: 3 | I40: 7 | J40: 69 | K40: 9 | L40: 328 | M40: 45 | N40: 185 | O40: 111 | P40: 176 | Q40: 28 | R40: 10
A41: DISTRITO 6 SAN ISIDRO | B41: 23 | C41: 10208 | D41: 7097 | E41: 6902 | F41: 753 | G41: 38 | H41: 34 | I41: 58 | J41: 170 | K41: 92 | L41: 2376 | M41: 133 | N41: 1114 | O41: 1071 | P41: 1063 | Q41: 137 | R41: 58
A42: SAN ISIDRO | B42: 4 | C42: 1653 | D42: 1117 | E42: 1084 | F42: 85 | G42: 2 | H42: 4 | I42: 8 | J42: 8 | K42: 5 | L42: 394 | M42: 12 | N42: 165 | O42: 202 | P42: 199 | Q42: 24 | R42: 9
A43: ITIQUÍS | B43: 6 | C43: 2809 | D43: 1898 | E43: 1848 | F43: 209 | G43: 5 | H43: 5 | I43: 12 | J43: 37 | K43: 36 | L43: 713 | M43: 29 | N43: 317 | O43: 255 | P43: 230 | Q43: 35 | R43: 15
A44: DULCE NOMBRE DE LAGUNA | B44: 3 | C44: 1286 | D44: 872 | E44: 836 | F44: 31 | G44: 7 | H44: 0 | I44: 5 | J44: 39 | K44: 16 | L44: 294 | M44: 27 | N44: 159 | O44: 94 | P44: 164 | Q44: 27 | R44: 9
A45: SAN MARTÍN | B45: 4 | C45: 1922 | D45: 1418 | E45: 1388 | F45: 185 | G45: 10 | H45: 17 | I45: 21 | J45: 28 | K45: 18 | L45: 480 | M45: 33 | N45: 191 | O45: 237 | P45: 168 | Q45: 21 | R45: 9
A46: TACACORÍ | B46: 3 | C46: 1417 | D46: 993 | E46: 969 | F46: 177 | G46: 12 | H46: 3 | I46: 8 | J46: 40 | K46: 6 | L46: 289 | M46: 19 | N46: 176 | O46: 119 | P46: 120 | Q46: 11 | R46: 13
A47: CERRILLAL | B47: 1 | C47: 308 | D47: 208 | E47: 202 | F47: 14 | G47: 1 | H47: 2 | I47: 0 | J47: 2 | K47: 3 | L47: 49 | M47: 3 | N47: 32 | O47: 24 | P47: 72 | Q47: 4 | R47: 2
A48: LAS PILAS | B48: 2 | C48: 813 | D48: 591 | E48: 575 | F48: 52 | G48: 1 | H48: 3 | I48: 4 | J48: 16 | K48: 8 | L48: 157 | M48: 10 | N48: 74 | O48: 140 | P48: 110 | Q48: 15 | R48: 1
A49: DISTRITO 7 SABANILLA | B49: 12 | C49: 4480 | D49: 3108 | E49: 3020 | F49: 139 | G49: 14 | H49: 11 | I49: 18 | J49: 94 | K49: 31 | L49: 1321 | M49: 47 | N49: 486 | O49: 441 | P49: 418 | Q49: 54 | R49: 34
A50: SABANILLA | B50: 3 | C50: 1146 | D50: 825 | E50: 808 | F50: 28 | G50: 3 | H50: 1 | I50: 6 | J50: 24 | K50: 4 | L50: 372 | M50: 6 | N50: 119 | O50: 160 | P50: 85 | Q50: 6 | R50: 11
A51: SAN LUIS | B51: 2 | C51: 806 | D51: 588 | E51: 577 | F51: 20 | G51: 2 | H51: 3 | I51: 2 | J51: 17 | K51: 11 | L51: 299 | M51: 9 | N51: 76 | O51: 76 | P51: 62 | Q51: 7 | R51: 4
A52: LOS ÁNGELES | B52: 2 | C52: 773 | D52: 510 | E52: 489 | F52: 27 | G52: 1 | H52: 0 | I52: 2 | J52: 12 | K52: 2 | L52: 209 | M52: 14 | N52: 89 | O52: 63 | P52: 70 | Q52: 16 | R52: 5
A53: FRAIJANES | B53: 2 | C53: 616 | D53: 408 | E53: 395 | F53: 19 | G53: 1 | H53: 2 | I53: 2 | J53: 14 | K53: 6 | L53: 161 | M53: 1 | N53: 77 | O53: 51 | P53: 61 | Q53: 8 | R53: 5
A54: POASITO | B54: 2 | C54: 686 | D54: 469 | E54: 457 | F54: 29 | G54: 5 | H54: 5 | I54: 2 | J54: 22 | K54: 7 | L54: 171 | M54: 5 | N54: 84 | O54: 32 | P54: 95 | Q54: 11 | R54: 1
A55: EL CERRO | B55: 1 | C55: 453 | D55: 308 | E55: 294 | F55: 16 | G55: 2 | H55: 0 | I55: 4 | J55: 5 | K55: 1 | L55: 109 | M55: 12 | N55: 41 | O55: 59 | P55: 45 | Q55: 6 | R55: 8
A56: DISTRITO 8 SAN RAFAEL | B56: 39 | C56: 14357 | D56: 9545 | E56: 9342 | F56: 910 | G56: 23 | H56: 46 | I56: 91 | J56: 192 | K56: 143 | L56: 3770 | M56: 119 | N56: 1584 | O56: 1412 | P56: 1052 | Q56: 142 | R56: 61
A57: SAN RAFAEL ESTE | B57: 12 | C57: 6006 | D57: 4405 | E57: 4320 | F57: 444 | G57: 7 | H57: 18 | I57: 59 | J57: 68 | K57: 65 | L57: 1717 | M57: 55 | N57: 709 | O57: 729 | P57: 449 | Q57: 59 | R57: 26
A58: SAN RAFAEL OESTE | B58: 13 | C58: 6078 | D58: 4365 | E58: 4277 | F58: 351 | G58: 11 | H58: 24 | I58: 25 | J58: 108 | K58: 59 | L58: 1618 | M58: 59 | N58: 833 | O58: 627 | P58: 562 | Q58: 65 | R58: 23
A59: C.P. TALLERES INDUSTRIALES | B59: 1 | C59: 154 | D59: 60 | E59: 58 | F59: 2 | G59: 0 | H59: 0 | I59: 0 | J59: 1 | K59: 3 | L59: 38 | M59: 0 | N59: 4 | O59: 6 | P59: 4 | Q59: 1 | R59: 1
A60: C.P. SAN RAFAEL | B60: 2 | C60: 353 | D60: 102 | E60: 99 | F60: 18 | G60: 1 | H60: 0 | I60: 0 | J60: 1 | K60: 2 | L60: 57 | M60: 1 | N60: 7 | O60: 5 | P60: 7 | Q60: 3 | R60: 0
A61: C.P. ÁMBITO B (MÍNIMA) | B61: 2 | C61: 336 | D61: 87 | E61: 86 | F61: 21 | G61: 0 | H61: 0 | I61: 0 | J61: 4 | K61: 2 | L61: 42 | M61: 0 | N61: 7 | O61: 7 | P61: 3 | Q61: 0 | R61: 1
A62: C.P. ÁMBITO C (MEDIANA ABIERTA) | B62: 2 | C62: 356 | D62: 114 | E62: 108 | F62: 26 | G62: 0 | H62: 3 | I62: 1 | J62: 0 | K62: 4 | L62: 61 | M62: 1 | N62: 1 | O62: 10 | P62: 1 | Q62: 3 | R62: 3
A63: C.P. ÁMBITOS D (MED CERRADA) E (MÁXIMA) | B63: 2 | C63: 317 | D63: 118 | E63: 115 | F63: 15 | G63: 0 | H63: 1 | I63: 0 | J63: 2 | K63: 3 | L63: 73 | M63: 1 | N63: 6 | O63: 9 | P63: 5 | Q63: 3 | R63: 0
A64: C.P. GERARDO RODRÍGUEZ ECHEVERRÍA | B64: 3 | C64: 564 | D64: 181 | E64: 176 | F64: 17 | G64: 3 | H64: 0 | I64: 3 | J64: 5 | K64: 4 | L64: 112 | M64: 2 | N64: 8 | O64: 10 | P64: 12 | Q64: 1 | R64: 4
A65: C.P. ADULTO MAYOR | B65: 1 | C65: 147 | D65: 86 | E65: 83 | F65: 16 | G65: 1 | H65: 0 | I65: 3 | J65: 3 | K65: 1 | L65: 38 | M65: 0 | N65: 6 | O65: 9 | P65: 6 | Q65: 1 | R65: 2
A66: C.P. ADULTO JOVEN | B66: 1 | C66: 46 | D66: 27 | E66: 20 | F66: 0 | G66: 0 | H66: 0 | I66: 0 | J66: 0 | K66: 0 | L66: 14 | M66: 0 | N66: 3 | O66: 0 | P66: 3 | Q66: 6 | R66: 1
A67: DISTRITO 9 RÍO SEGUNDO | B67: 18 | C67: 8807 | D67: 6083 | E67: 5960 | F67: 319 | G67: 15 | H67: 31 | I67: 59 | J67: 247 | K67: 95 | L67: 2216 | M67: 129 | N67: 1140 | O67: 926 | P67: 783 | Q67: 72 | R67: 51
A68: RÍO SEGUNDO (SANTIAGO ESTE) | B68: 9 | C68: 4484 | D68: 3169 | E68: 3108 | F68: 167 | G68: 4 | H68: 16 | I68: 24 | J68: 119 | K68: 53 | L68: 1119 | M68: 73 | N68: 627 | O68: 471 | P68: 435 | Q68: 34 | R68: 27
A69: CACIQUE | B69: 5 | C69: 2478 | D69: 1711 | E69: 1681 | F69: 93 | G69: 8 | H69: 10 | I69: 25 | J69: 61 | K69: 25 | L69: 680 | M69: 32 | N69: 251 | O69: 299 | P69: 197 | Q69: 13 | R69: 17
A70: VILLA HELIA (FINCA HELIA) | B70: 2 | C70: 899 | D70: 632 | E70: 619 | F70: 28 | G70: 3 | H70: 4 | I70: 5 | J70: 41 | K70: 12 | L70: 203 | M70: 8 | N70: 123 | O70: 94 | P70: 98 | Q70: 9 | R70: 4
A71: CALIFORNIA | B71: 2 | C71: 946 | D71: 571 | E71: 552 | F71: 31 | G71: 0 | H71: 1 | I71: 5 | J71: 26 | K71: 5 | L71: 214 | M71: 16 | N71: 139 | O71: 62 | P71: 53 | Q71: 16 | R71: 3
A72: DISTRITO 10 DESAMPARADOS | B72: 31 | C72: 14840 | D72: 10430 | E72: 10208 | F72: 619 | G72: 39 | H72: 45 | I72: 109 | J72: 323 | K72: 150 | L72: 3626 | M72: 264 | N72: 2071 | O72: 1672 | P72: 1290 | Q72: 150 | R72: 72
A73: DESAMPARADOS | B73: 17 | C73: 8217 | D73: 5801 | E73: 5674 | F73: 346 | G73: 26 | H73: 31 | I73: 49 | J73: 163 | K73: 80 | L73: 1998 | M73: 127 | N73: 1243 | O73: 899 | P73: 712 | Q73: 88 | R73: 39
A74: INVU LOS RODRÍGUEZ | B74: 12 | C74: 5842 | D74: 4089 | E74: 4004 | F74: 254 | G74: 12 | H74: 12 | I74: 55 | J74: 149 | K74: 65 | L74: 1380 | M74: 129 | N74: 736 | O74: 682 | P74: 530 | Q74: 57 | R74: 28
A75: ROSALES | B75: 2 | C75: 781 | D75: 540 | E75: 530 | F75: 19 | G75: 1 | H75: 2 | I75: 5 | J75: 11 | K75: 5 | L75: 248 | M75: 8 | N75: 92 | O75: 91 | P75: 48 | Q75: 5 | R75: 5
A76: DISTRITO 11 TURRÚCARES | B76: 11 | C76: 4585 | D76: 3352 | E76: 3263 | F76: 258 | G76: 10 | H76: 84 | I76: 22 | J76: 77 | K76: 65 | L76: 1306 | M76: 40 | N76: 450 | O76: 643 | P76: 308 | Q76: 46 | R76: 43
A77: TURRÚCARES | B77: 6 | C77: 3040 | D77: 2219 | E77: 2158 | F77: 177 | G77: 9 | H77: 31 | I77: 13 | J77: 54 | K77: 34 | L77: 862 | M77: 31 | N77: 316 | O77: 398 | P77: 233 | Q77: 29 | R77: 32
A78: CEBADILLA | B78: 2 | C78: 736 | D78: 539 | E78: 530 | F78: 37 | G78: 1 | H78: 6 | I78: 7 | J78: 17 | K78: 25 | L78: 186 | M78: 2 | N78: 61 | O78: 156 | P78: 32 | Q78: 6 | R78: 3
A79: SAN MIGUEL O CERRILLOS | B79: 2 | C79: 623 | D79: 444 | E79: 429 | F79: 38 | G79: 0 | H79: 47 | I79: 2 | J79: 6 | K79: 3 | L79: 177 | M79: 6 | N79: 54 | O79: 62 | P79: 34 | Q79: 10 | R79: 5
A80: SIQUIARES | B80: 1 | C80: 186 | D80: 150 | E80: 146 | F80: 6 | G80: 0 | H80: 0 | I80: 0 | J80: 0 | K80: 3 | L80: 81 | M80: 1 | N80: 19 | O80: 27 | P80: 9 | Q80: 1 | R80: 3
A81: DISTRITO 12 TAMBOR | B81: 17 | C81: 7696 | D81: 5469 | E81: 5362 | F81: 380 | G81: 47 | H81: 23 | I81: 39 | J81: 144 | K81: 49 | L81: 1996 | M81: 114 | N81: 967 | O81: 919 | P81: 684 | Q81: 65 | R81: 42
A82: TAMBOR (SANTA ANA) | B82: 4 | C82: 1649 | D82: 1251 | E82: 1230 | F82: 145 | G82: 6 | H82: 4 | I82: 11 | J82: 44 | K82: 8 | L82: 438 | M82: 28 | N82: 148 | O82: 255 | P82: 143 | Q82: 17 | R82: 4
A83: CACAO | B83: 5 | C83: 2546 | D83: 1798 | E83: 1754 | F83: 86 | G83: 31 | H83: 10 | I83: 10 | J83: 56 | K83: 12 | L83: 630 | M83: 44 | N83: 408 | O83: 238 | P83: 229 | Q83: 25 | R83: 19
A84: TUETAL NORTE (PARTE) | B84: 5 | C84: 2412 | D84: 1588 | E84: 1559 | F84: 96 | G84: 7 | H84: 6 | I84: 12 | J84: 28 | K84: 17 | L84: 584 | M84: 29 | N84: 297 | O84: 243 | P84: 240 | Q84: 14 | R84: 15
A85: QUEBRADAS | B85: 3 | C85: 1089 | D85: 832 | E85: 819 | F85: 53 | G85: 3 | H85: 3 | I85: 6 | J85: 16 | K85: 12 | L85: 344 | M85: 13 | N85: 114 | O85: 183 | P85: 72 | Q85: 9 | R85: 4
A86: DISTRITO 13 GARITA | B86: 9 | C86: 4105 | D86: 2838 | E86: 2750 | F86: 250 | G86: 12 | H86: 15 | I86: 26 | J86: 62 | K86: 44 | L86: 993 | M86: 58 | N86: 445 | O86: 511 | P86: 334 | Q86: 44 | R86: 44
A87: GARITA | B87: 5 | C87: 2549 | D87: 1758 | E87: 1713 | F87: 170 | G87: 5 | H87: 9 | I87: 15 | J87: 35 | K87: 31 | L87: 590 | M87: 34 | N87: 281 | O87: 344 | P87: 199 | Q87: 20 | R87: 25
A88: DULCE NOMBRE O LAS ÁNIMAS | B88: 4 | C88: 1556 | D88: 1080 | E88: 1037 | F88: 80 | G88: 7 | H88: 6 | I88: 11 | J88: 27 | K88: 13 | L88: 403 | M88: 24 | N88: 164 | O88: 167 | P88: 135 | Q88: 24 | R88: 19
A89: DISTRITO 14 SARAPIQUÍ | B89: 6 | C89: 1566 | D89: 1058 | E89: 1034 | F89: 74 | G89: 3 | H89: 3 | I89: 27 | J89: 34 | K89: 15 | L89: 491 | M89: 19 | N89: 143 | O89: 178 | P89: 47 | Q89: 9 | R89: 15
A90: UJARRÁS | B90: 2 | C90: 636 | D90: 417 | E90: 405 | F90: 21 | G90: 0 | H90: 1 | I90: 0 | J90: 10 | K90: 3 | L90: 259 | M90: 6 | N90: 38 | O90: 51 | P90: 16 | Q90: 5 | R90: 7
A91: SAN MIGUEL DE SARAPIQUÍ | B91: 2 | C91: 801 | D91: 540 | E91: 528 | F91: 49 | G91: 3 | H91: 0 | I91: 22 | J91: 20 | K91: 10 | L91: 181 | M91: 11 | N91: 86 | O91: 119 | P91: 27 | Q91: 4 | R91: 8
A92: CORAZÓN DE JESÚS | B92: 1 | C92: 71 | D92: 54 | E92: 54 | F92: 2 | G92: 0 | H92: 0 | I92: 1 | J92: 1 | K92: 1 | L92: 32 | M92: 1 | N92: 7 | O92: 6 | P92: 3 | Q92: 0 | R92: 0
A93: EL PARAÍSO | B93: 1 | C93: 58 | D93: 47 | E93: 47 | F93: 2 | G93: 0 | H93: 2 | I93: 4 | J93: 3 | K93: 1 | L93: 19 | M93: 1 | N93: 12 | O93: 2 | P93: 1 | Q93: 0 | R93: 0
A94: CANTÓN 2 SAN RAMÓN | B94: 126 | C94: 52853 | D94: 38828 | E94: 37787 | F94: 1787 | G94: 118 | H94: 147 | I94: 2062 | J94: 3422 | K94: 628 | L94: 12914 | M94: 221 | N94: 3611 | O94: 10697 | P94: 2180 | Q94: 535 | R94: 506
A95: DISTRITO 1 SAN RAMÓN | B95: 27 | C95: 13065 | D95: 9885 | E95: 9705 | F95: 433 | G95: 20 | H95: 45 | I95: 507 | J95: 1339 | K95: 227 | L95: 3054 | M95: 30 | N95: 664 | O95: 2826 | P95: 560 | Q95: 104 | R95: 76
A96: SAN RAMÓN | B96: 27 | C96: 13065 | D96: 9885 | E96: 9705 | F96: 433 | G96: 20 | H96: 45 | I96: 507 | J96: 1339 | K96: 227 | L96: 3054 | M96: 30 | N96: 664 | O96: 2826 | P96: 560 | Q96: 104 | R96: 76
A97: DISTRITO 2 SANTIAGO | B97: 8 | C97: 2914 | D97: 2174 | E97: 2109 | F97: 62 | G97: 2 | H97: 6 | I97: 114 | J97: 95 | K97: 27 | L97: 919 | M97: 5 | N97: 172 | O97: 585 | P97: 122 | Q97: 30 | R97: 35
A98: SANTIAGO | B98: 4 | C98: 1863 | D98: 1403 | E98: 1372 | F98: 48 | G98: 1 | H98: 4 | I98: 90 | J98: 59 | K98: 14 | L98: 583 | M98: 4 | N98: 90 | O98: 392 | P98: 87 | Q98: 12 | R98: 19
A99: SAN JOSÉ (RÍO JESÚS) | B99: 1 | C99: 356 | D99: 244 | E99: 238 | F99: 6 | G99: 0 | H99: 0 | I99: 7 | J99: 5 | K99: 0 | L99: 118 | M99: 0 | N99: 24 | O99: 71 | P99: 7 | Q99: 1 | R99: 5
A100: ANGOSTURA | B100: 1 | C100: 161 | D100: 129 | E100: 125 | F100: 2 | G100: 0 | H100: 0 | I100: 1 | J100: 5 | K100: 0 | L100: 67 | M100: 0 | N100: 8 | O100: 38 | P100: 4 | Q100: 2 | R100: 2
A101: CALLE LEÓN | B101: 1 | C101: 227 | D101: 165 | E101: 157 | F101: 3 | G101: 1 | H101: 2 | I101: 10 | J101: 10 | K101: 1 | L101: 59 | M101: 1 | N101: 20 | O101: 43 | P101: 7 | Q101: 6 | R101: 2
A102: EMPALME | B102: 1 | C102: 307 | D102: 233 | E102: 217 | F102: 3 | G102: 0 | H102: 0 | I102: 6 | J102: 16 | K102: 12 | L102: 92 | M102: 0 | N102: 30 | O102: 41 | P102: 17 | Q102: 9 | R102: 7
A103: DISTRITO 3 SAN JUAN | B103: 18 | C103: 8195 | D103: 5799 | E103: 5671 | F103: 239 | G103: 17 | H103: 22 | I103: 239 | J103: 628 | K103: 121 | L103: 1746 | M103: 33 | N103: 635 | O103: 1530 | P103: 461 | Q103: 70 | R103: 58
A104: SAN JUAN | B104: 17 | C104: 8141 | D104: 5769 | E104: 5641 | F104: 234 | G104: 17 | H104: 22 | I104: 238 | J104: 627 | K104: 120 | L104: 1736 | M104: 31 | N104: 629 | O104: 1527 | P104: 460 | Q104: 70 | R104: 58
A105: H.A. SAN RAMÓN | B105: 1 | C105: 54 | D105: 30 | E105: 30 | F105: 5 | G105: 0 | H105: 0 | I105: 1 | J105: 1 | K105: 1 | L105: 10 | M105: 2 | N105: 6 | O105: 3 | P105: 1 | Q105: 0 | R105: 0
A106: DISTRITO 4 PIEDADES NORTE | B106: 11 | C106: 4335 | D106: 3249 | E106: 3155 | F106: 98 | G106: 9 | H106: 13 | I106: 170 | J106: 241 | K106: 43 | L106: 1052 | M106: 14 | N106: 395 | O106: 915 | P106: 205 | Q106: 44 | R106: 50
A107: PIEDADES NORTE | B107: 2 | C107: 788 | D107: 575 | E107: 556 | F107: 30 | G107: 1 | H107: 1 | I107: 23 | J107: 18 | K107: 5 | L107: 202 | M107: 1 | N107: 78 | O107: 169 | P107: 28 | Q107: 6 | R107: 13
A108: PIEDADES NOROESTE | B108: 1 | C108: 271 | D108: 222 | E108: 214 | F108: 1 | G108: 0 | H108: 2 | I108: 16 | J108: 1 | K108: 2 | L108: 92 | M108: 0 | N108: 24 | O108: 63 | P108: 13 | Q108: 2 | R108: 6
A109: BOLÍVAR (ESPERANZA) | B109: 5 | C109: 2120 | D109: 1510 | E109: 1469 | F109: 41 | G109: 4 | H109: 8 | I109: 47 | J109: 187 | K109: 29 | L109: 438 | M109: 12 | N109: 193 | O109: 398 | P109: 112 | Q109: 26 | R109: 15
A110: LA ESPERANZA | B110: 1 | C110: 527 | D110: 409 | E110: 397 | F110: 8 | G110: 1 | H110: 1 | I110: 37 | J110: 23 | K110: 5 | L110: 126 | M110: 0 | N110: 61 | O110: 116 | P110: 19 | Q110: 4 | R110: 8
A111: LA PAZ | B111: 2 | C111: 629 | D111: 533 | E111: 519 | F111: 18 | G111: 3 | H111: 1 | I111: 47 | J111: 12 | K111: 2 | L111: 194 | M111: 1 | N111: 39 | O111: 169 | P111: 33 | Q111: 6 | R111: 8
A112: DISTRITO 5 PIEDADES SUR | B112: 9 | C112: 2579 | D112: 1935 | E112: 1873 | F112: 57 | G112: 2 | H112: 5 | I112: 112 | J112: 57 | K112: 15 | L112: 702 | M112: 11 | N112: 135 | O112: 700 | P112: 77 | Q112: 24 | R112: 38
A113: PIEDADES SUR | B113: 3 | C113: 1083 | D113: 795 | E113: 767 | F113: 13 | G113: 2 | H113: 2 | I113: 51 | J113: 15 | K113: 8 | L113: 260 | M113: 7 | N113: 42 | O113: 330 | P113: 37 | Q113: 10 | R113: 18
A114: SALVADOR | B114: 1 | C114: 155 | D114: 130 | E114: 128 | F114: 1 | G114: 0 | H114: 0 | I114: 2 | J114: 0 | K114: 0 | L114: 81 | M114: 0 | N114: 4 | O114: 38 | P114: 2 | Q114: 0 | R114: 2
A115: SAN FRANCISCO | B115: 1 | C115: 175 | D115: 131 | E115: 125 | F115: 13 | G115: 0 | H115: 0 | I115: 6 | J115: 0 | K115: 0 | L115: 35 | M115: 1 | N115: 5 | O115: 61 | P115: 4 | Q115: 2 | R115: 4
A116: SAN MIGUEL | B116: 1 | C116: 534 | D116: 413 | E116: 404 | F116: 19 | G116: 0 | H116: 2 | I116: 21 | J116: 25 | K116: 2 | L116: 158 | M116: 1 | N116: 58 | O116: 95 | P116: 23 | Q116: 3 | R116: 6
A117: BUREAL | B117: 1 | C117: 105 | D117: 79 | E117: 76 | F117: 0 | G117: 0 | H117: 0 | I117: 1 | J117: 11 | K117: 0 | L117: 22 | M117: 1 | N117: 4 | O117: 35 | P117: 2 | Q117: 1 | R117: 2
A118: SOCORRO | B118: 1 | C118: 144 | D118: 107 | E118: 101 | F118: 1 | G118: 0 | H118: 0 | I118: 3 | J118: 4 | K118: 0 | L118: 33 | M118: 0 | N118: 9 | O118: 49 | P118: 2 | Q118: 2 | R118: 4
A119: LA GUARIA | B119: 1 | C119: 383 | D119: 280 | E119: 272 | F119: 10 | G119: 0 | H119: 1 | I119: 28 | J119: 2 | K119: 5 | L119: 113 | M119: 1 | N119: 13 | O119: 92 | P119: 7 | Q119: 6 | R119: 2
A120: DISTRITO 6 SAN RAFAEL | B120: 11 | C120: 4886 | D120: 3544 | E120: 3428 | F120: 172 | G120: 4 | H120: 14 | I120: 214 | J120: 344 | K120: 56 | L120: 1256 | M120: 13 | N120: 342 | O120: 806 | P120: 207 | Q120: 63 | R120: 53
A121: SAN RAFAEL | B121: 5 | C121: 2299 | D121: 1714 | E121: 1668 | F121: 49 | G121: 3 | H121: 12 | I121: 104 | J121: 226 | K121: 28 | L121: 524 | M121: 5 | N121: 126 | O121: 476 | P121: 115 | Q121: 23 | R121: 23
A122: BERLÍN | B122: 1 | C122: 493 | D122: 360 | E122: 345 | F122: 25 | G122: 0 | H122: 0 | I122: 6 | J122: 4 | K122: 5 | L122: 208 | M122: 1 | N122: 31 | O122: 53 | P122: 12 | Q122: 6 | R122: 9
A123: CALLE ZAMORA | B123: 4 | C123: 1649 | D123: 1136 | E123: 1096 | F123: 86 | G123: 1 | H123: 0 | I123: 62 | J123: 102 | K123: 14 | L123: 393 | M123: 4 | N123: 135 | O123: 230 | P123: 69 | Q123: 27 | R123: 13
A124: LLANO DE BRENES | B124: 1 | C124: 445 | D124: 334 | E124: 319 | F124: 12 | G124: 0 | H124: 2 | I124: 42 | J124: 12 | K124: 9 | L124: 131 | M124: 3 | N124: 50 | O124: 47 | P124: 11 | Q124: 7 | R124: 8
A125: DISTRITO 7 SAN ISIDRO | B125: 5 | C125: 2314 | D125: 1683 | E125: 1625 | F125: 53 | G125: 3 | H125: 5 | I125: 89 | J125: 70 | K125: 29 | L125: 601 | M125: 10 | N125: 165 | O125: 519 | P125: 81 | Q125: 27 | R125: 31
A126: SAN ISIDRO | B126: 3 | C126: 1512 | D126: 1137 | E126: 1102 | F126: 29 | G126: 2 | H126: 3 | I126: 66 | J126: 41 | K126: 22 | L126: 389 | M126: 9 | N126: 80 | O126: 401 | P126: 60 | Q126: 15 | R126: 20
A127: GUARIA (RÍO GRANDE) | B127: 2 | C127: 802 | D127: 546 | E127: 523 | F127: 24 | G127: 1 | H127: 2 | I127: 23 | J127: 29 | K127: 7 | L127: 212 | M127: 1 | N127: 85 | O127: 118 | P127: 21 | Q127: 12 | R127: 11
A128: DISTRITO 8 ÁNGELES | B128: 11 | C128: 4412 | D128: 3234 | E128: 3131 | F128: 213 | G128: 47 | H128: 11 | I128: 261 | J128: 197 | K128: 40 | L128: 850 | M128: 31 | N128: 374 | O128: 950 | P128: 157 | Q128: 62 | R128: 41
A129: LOS ÁNGELES SUR | B129: 2 | C129: 834 | D129: 618 | E129: 596 | F129: 45 | G129: 1 | H129: 5 | I129: 59 | J129: 20 | K129: 12 | L129: 195 | M129: 1 | N129: 62 | O129: 168 | P129: 28 | Q129: 7 | R129: 15
A130: BAJO CÓRDOBA | B130: 1 | C130: 62 | D130: 39 | E130: 34 | F130: 3 | G130: 0 | H130: 0 | I130: 1 | J130: 0 | K130: 1 | L130: 12 | M130: 0 | N130: 8 | O130: 9 | P130: 0 | Q130: 4 | R130: 1
A131: BAJO DE LOS RODRÍGUEZ | B131: 2 | C131: 978 | D131: 672 | E131: 648 | F131: 66 | G131: 31 | H131: 1 | I131: 66 | J131: 30 | K131: 7 | L131: 177 | M131: 4 | N131: 121 | O131: 125 | P131: 20 | Q131: 18 | R131: 6
A132: LOS CRIQUES | B132: 1 | C132: 363 | D132: 293 | E132: 284 | F132: 7 | G132: 1 | H132: 0 | I132: 51 | J132: 4 | K132: 1 | L132: 52 | M132: 2 | N132: 9 | O132: 149 | P132: 8 | Q132: 4 | R132: 5
A133: VALLE AZUL | B133: 2 | C133: 827 | D133: 637 | E133: 614 | F133: 33 | G133: 11 | H133: 1 | I133: 57 | J133: 37 | K133: 9 | L133: 145 | M133: 18 | N133: 59 | O133: 217 | P133: 27 | Q133: 16 | R133: 7
A134: BAJO ZÚÑIGA | B134: 1 | C134: 323 | D134: 242 | E134: 241 | F134: 26 | G134: 1 | H134: 4 | I134: 8 | J134: 10 | K134: 1 | L134: 51 | M134: 0 | N134: 27 | O134: 101 | P134: 12 | Q134: 0 | R134: 1
A135: CIUDADELA JARDINES | B135: 2 | C135: 1025 | D135: 733 | E135: 714 | F135: 33 | G135: 2 | H135: 0 | I135: 19 | J135: 96 | K135: 9 | L135: 218 | M135: 6 | N135: 88 | O135: 181 | P135: 62 | Q135: 13 | R135: 6
A136: DISTRITO 9 ALFARO | B136: 8 | C136: 3129 | D136: 2255 | E136: 2181 | F136: 112 | G136: 4 | H136: 16 | I136: 106 | J136: 166 | K136: 27 | L136: 770 | M136: 11 | N136: 194 | O136: 665 | P136: 110 | Q136: 34 | R136: 40
A137: ALFARO | B137: 5 | C137: 2410 | D137: 1783 | E137: 1738 | F137: 84 | G137: 4 | H137: 9 | I137: 65 | J137: 150 | K137: 23 | L137: 585 | M137: 10 | N137: 162 | O137: 548 | P137: 98 | Q137: 21 | R137: 24
A138: CATARATA | B138: 2 | C138: 630 | D138: 449 | E138: 421 | F138: 28 | G138: 0 | H138: 7 | I138: 41 | J138: 16 | K138: 4 | L138: 174 | M138: 1 | N138: 26 | O138: 114 | P138: 10 | Q138: 13 | R138: 15
A139: C.P. SAN RAMÓN | B139: 1 | C139: 89 | D139: 23 | E139: 22 | F139: 0 | G139: 0 | H139: 0 | I139: 0 | J139: 0 | K139: 0 | L139: 11 | M139: 0 | N139: 6 | O139: 3 | P139: 2 | Q139: 0 | R139: 1
A140: DISTRITO 10 VOLIO | B140: 3 | C140: 1275 | D140: 932 | E140: 904 | F140: 39 | G140: 4 | H140: 2 | I140: 31 | J140: 41 | K140: 10 | L140: 340 | M140: 4 | N140: 134 | O140: 239 | P140: 60 | Q140: 12 | R140: 16
A141: VOLIO | B141: 2 | C141: 1001 | D141: 719 | E141: 696 | F141: 30 | G141: 1 | H141: 2 | I141: 22 | J141: 39 | K141: 8 | L141: 240 | M141: 3 | N141: 111 | O141: 187 | P141: 53 | Q141: 9 | R141: 14
A142: ALTO VILLEGAS | B142: 1 | C142: 274 | D142: 213 | E142: 208 | F142: 9 | G142: 3 | H142: 0 | I142: 9 | J142: 2 | K142: 2 | L142: 100 | M142: 1 | N142: 23 | O142: 52 | P142: 7 | Q142: 3 | R142: 2
A143: DISTRITO 11 CONCEPCIÓN | B143: 3 | C143: 1459 | D143: 1082 | E143: 1045 | F143: 61 | G143: 1 | H143: 4 | I143: 121 | J143: 65 | K143: 14 | L143: 344 | M143: 4 | N143: 128 | O143: 239 | P143: 64 | Q143: 11 | R143: 26
A144: CONCEPCIÓN | B144: 3 | C144: 1459 | D144: 1082 | E144: 1045 | F144: 61 | G144: 1 | H144: 4 | I144: 121 | J144: 65 | K144: 14 | L144: 344 | M144: 4 | N144: 128 | O144: 239 | P144: 64 | Q144: 11 | R144: 26
A145: DISTRITO 12 ZAPOTAL | B145: 3 | C145: 303 | D145: 223 | E145: 211 | F145: 9 | G145: 1 | H145: 1 | I145: 4 | J145: 3 | K145: 0 | L145: 112 | M145: 3 | N145: 18 | O145: 58 | P145: 2 | Q145: 3 | R145: 9
A146: SAN ANTONIO DE ZAPOTAL | B146: 1 | C146: 130 | D146: 98 | E146: 93 | F146: 4 | G146: 1 | H146: 0 | I146: 0 | J146: 0 | K146: 0 | L146: 73 | M146: 1 | N146: 4 | O146: 10 | P146: 0 | Q146: 3 | R146: 2
A147: CARRERA BUENA | B147: 1 | C147: 116 | D147: 85 | E147: 81 | F147: 2 | G147: 0 | H147: 1 | I147: 3 | J147: 1 | K147: 0 | L147: 29 | M147: 2 | N147: 2 | O147: 40 | P147: 1 | Q147: 0 | R147: 4
A148: ZAPOTAL PARTE ESTE | B148: 1 | C148: 57 | D148: 40 | E148: 37 | F148: 3 | G148: 0 | H148: 0 | I148: 1 | J148: 2 | K148: 0 | L148: 10 | M148: 0 | N148: 12 | O148: 8 | P148: 1 | Q148: 0 | R148: 3
A149: DISTRITO 13 PEÑAS BLANCAS | B149: 9 | C149: 3987 | D149: 2833 | E149: 2749 | F149: 239 | G149: 4 | H149: 3 | I149: 94 | J149: 176 | K149: 19 | L149: 1168 | M149: 52 | N149: 255 | O149: 665 | P149: 74 | Q149: 51 | R149: 33
A150: SAN ISIDRO DE PEÑAS BLANCAS | B150: 2 | C150: 969 | D150: 673 | E150: 648 | F150: 125 | G150: 3 | H150: 0 | I150: 8 | J150: 41 | K150: 4 | L150: 235 | M150: 6 | N150: 56 | O150: 156 | P150: 14 | Q150: 11 | R150: 14
A151: CHACHAGUA | B151: 3 | C151: 1547 | D151: 1075 | E151: 1042 | F151: 33 | G151: 1 | H151: 1 | I151: 48 | J151: 77 | K151: 6 | L151: 487 | M151: 23 | N151: 86 | O151: 250 | P151: 30 | Q151: 20 | R151: 13
A152: COLONIA TRINIDAD | B152: 1 | C152: 476 | D152: 368 | E152: 357 | F152: 39 | G152: 0 | H152: 1 | I152: 19 | J152: 12 | K152: 7 | L152: 119 | M152: 5 | N152: 29 | O152: 107 | P152: 19 | Q152: 7 | R152: 4
A153: SECTOR LOS ÁNGELES | B153: 1 | C153: 450 | D153: 324 | E153: 318 | F153: 19 | G153: 0 | H153: 0 | I153: 12 | J153: 13 | K153: 0 | L153: 169 | M153: 7 | N153: 32 | O153: 61 | P153: 5 | Q153: 6 | R153: 0
A154: EL CASTILLO | B154: 1 | C154: 166 | D154: 112 | E154: 112 | F154: 7 | G154: 0 | H154: 0 | I154: 0 | J154: 13 | K154: 1 | L154: 50 | M154: 2 | N154: 20 | O154: 17 | P154: 2 | Q154: 0 | R154: 0
A155: SAN MARTIN (EL BOSQUE) | B155: 1 | C155: 379 | D155: 281 | E155: 272 | F155: 16 | G155: 0 | H155: 1 | I155: 7 | J155: 20 | K155: 1 | L155: 108 | M155: 9 | N155: 32 | O155: 74 | P155: 4 | Q155: 7 | R155: 2
A156: CANTÓN 3 GRECIA | B156: 119 | C156: 50109 | D156: 36833 | E156: 36002 | F156: 2180 | G156: 170 | H156: 127 | I156: 678 | J156: 1442 | K156: 463 | L156: 13860 | M156: 861 | N156: 5800 | O156: 6906 | P156: 3515 | Q156: 437 | R156: 394
A157: DISTRITO 1 GRECIA | B157: 28 | C157: 13674 | D157: 10070 | E157: 9899 | F157: 597 | G157: 53 | H157: 36 | I157: 113 | J157: 486 | K157: 171 | L157: 3820 | M157: 306 | N157: 1502 | O157: 1899 | P157: 916 | Q157: 88 | R157: 83
A158: GRECIA | B158: 22 | C158: 10973 | D158: 8200 | E158: 8077 | F158: 535 | G158: 8 | H158: 28 | I158: 100 | J158: 389 | K158: 140 | L158: 3137 | M158: 255 | N158: 1111 | O158: 1644 | P158: 730 | Q158: 63 | R158: 60
A159: RINCÓN DE ARIAS | B159: 4 | C159: 2027 | D159: 1423 | E159: 1384 | F159: 45 | G159: 0 | H159: 5 | I159: 11 | J159: 59 | K159: 20 | L159: 552 | M159: 36 | N159: 306 | O159: 206 | P159: 144 | Q159: 21 | R159: 18
A160: LOS LOTES (SAN VICENTE) | B160: 2 | C160: 674 | D160: 447 | E160: 438 | F160: 17 | G160: 45 | H160: 3 | I160: 2 | J160: 38 | K160: 11 | L160: 131 | M160: 15 | N160: 85 | O160: 49 | P160: 42 | Q160: 4 | R160: 5
A161: DISTRITO 2 SAN ISIDRO | B161: 10 | C161: 3716 | D161: 2798 | E161: 2731 | F161: 207 | G161: 13 | H161: 9 | I161: 25 | J161: 131 | K161: 25 | L161: 946 | M161: 61 | N161: 507 | O161: 527 | P161: 280 | Q161: 33 | R161: 34
A162: MESÓN O DULCE NOMBRE | B162: 4 | C162: 1553 | D162: 1184 | E162: 1153 | F162: 143 | G162: 8 | H162: 2 | I162: 10 | J162: 77 | K162: 10 | L162: 386 | M162: 43 | N162: 171 | O162: 175 | P162: 128 | Q162: 14 | R162: 17
A163: SAN FRANCISCO | B163: 2 | C163: 585 | D163: 398 | E163: 389 | F163: 18 | G163: 0 | H163: 1 | I163: 4 | J163: 8 | K163: 2 | L163: 176 | M163: 1 | N163: 74 | O163: 68 | P163: 37 | Q163: 6 | R163: 3
A164: CALLE ACHIOTE | B164: 2 | C164: 580 | D164: 435 | E164: 427 | F164: 17 | G164: 4 | H164: 3 | I164: 3 | J164: 13 | K164: 7 | L164: 137 | M164: 12 | N164: 96 | O164: 86 | P164: 49 | Q164: 5 | R164: 3
A165: SAN ISIDRO | B165: 2 | C165: 998 | D165: 781 | E165: 762 | F165: 29 | G165: 1 | H165: 3 | I165: 8 | J165: 33 | K165: 6 | L165: 247 | M165: 5 | N165: 166 | O165: 198 | P165: 66 | Q165: 8 | R165: 11
A166: DISTRITO 3 SAN JOSÉ | B166: 11 | C166: 5261 | D166: 4053 | E166: 3962 | F166: 221 | G166: 45 | H166: 15 | I166: 87 | J166: 92 | K166: 36 | L166: 1510 | M166: 34 | N166: 598 | O166: 927 | P166: 397 | Q166: 38 | R166: 53
A167: SAN JOSÉ Y SANTA GERTRUDIS NORTE | B167: 3 | C167: 1492 | D167: 1155 | E167: 1138 | F167: 65 | G167: 3 | H167: 5 | I167: 13 | J167: 30 | K167: 10 | L167: 464 | M167: 8 | N167: 162 | O167: 268 | P167: 110 | Q167: 6 | R167: 11
A168: SANTA GERTRUDIS SUR | B168: 3 | C168: 1313 | D168: 1045 | E168: 1022 | F168: 83 | G168: 10 | H168: 1 | I168: 4 | J168: 11 | K168: 7 | L168: 442 | M168: 8 | N168: 148 | O168: 203 | P168: 105 | Q168: 10 | R168: 13
A169: LA ARENA | B169: 2 | C169: 1019 | D169: 722 | E169: 700 | F169: 35 | G169: 30 | H169: 4 | I169: 50 | J169: 25 | K169: 10 | L169: 210 | M169: 10 | N169: 130 | O169: 137 | P169: 59 | Q169: 10 | R169: 12
A170: CALLE RODRÍGUEZ | B170: 1 | C170: 420 | D170: 301 | E170: 295 | F170: 10 | G170: 0 | H170: 2 | I170: 15 | J170: 7 | K170: 2 | L170: 70 | M170: 0 | N170: 31 | O170: 106 | P170: 52 | Q170: 3 | R170: 3
A171: CALLE SAN JOSÉ | B171: 1 | C171: 543 | D171: 419 | E171: 408 | F171: 10 | G171: 1 | H171: 3 | I171: 4 | J171: 14 | K171: 6 | L171: 147 | M171: 5 | N171: 75 | O171: 96 | P171: 47 | Q171: 3 | R171: 8
A172: CEDRO | B172: 1 | C172: 474 | D172: 411 | E172: 399 | F172: 18 | G172: 1 | H172: 0 | I172: 1 | J172: 5 | K172: 1 | L172: 177 | M172: 3 | N172: 52 | O172: 117 | P172: 24 | Q172: 6 | R172: 6
A173: DISTRITO 4 SAN ROQUE | B173: 18 | C173: 7196 | D173: 5730 | E173: 5596 | F173: 271 | G173: 11 | H173: 14 | I173: 127 | J173: 187 | K173: 66 | L173: 2159 | M173: 81 | N173: 750 | O173: 1346 | P173: 584 | Q173: 78 | R173: 56
A174: SAN ROQUE | B174: 7 | C174: 3368 | D174: 2707 | E174: 2638 | F174: 125 | G174: 6 | H174: 7 | I174: 17 | J174: 82 | K174: 24 | L174: 1047 | M174: 30 | N174: 400 | O174: 611 | P174: 289 | Q174: 41 | R174: 28
A175: SAN MIGUEL | B175: 1 | C175: 425 | D175: 355 | E175: 350 | F175: 18 | G175: 0 | H175: 0 | I175: 11 | J175: 7 | K175: 0 | L175: 128 | M175: 2 | N175: 37 | O175: 128 | P175: 19 | Q175: 2 | R175: 3
A176: BARRIO LATINO (AGUALOTE) | B176: 4 | C176: 1802 | D176: 1355 | E176: 1325 | F176: 61 | G176: 1 | H176: 3 | I176: 40 | J176: 51 | K176: 24 | L176: 469 | M176: 36 | N176: 190 | O176: 299 | P176: 151 | Q176: 16 | R176: 14
A177: CARBONAL (CRISTO REY) | B177: 2 | C177: 773 | D177: 663 | E177: 645 | F177: 37 | G177: 4 | H177: 1 | I177: 2 | J177: 21 | K177: 9 | L177: 295 | M177: 7 | N177: 49 | O177: 165 | P177: 55 | Q177: 14 | R177: 4
A178: SAN MIGUEL ARRIBA | B178: 1 | C178: 185 | D178: 154 | E178: 149 | F178: 4 | G178: 0 | H178: 0 | I178: 44 | J178: 0 | K178: 0 | L178: 42 | M178: 0 | N178: 7 | O178: 42 | P178: 10 | Q178: 3 | R178: 2
A179: LEÓN CORTÉS CASTRO | B179: 2 | C179: 565 | D179: 446 | E179: 439 | F179: 22 | G179: 0 | H179: 2 | I179: 13 | J179: 24 | K179: 9 | L179: 157 | M179: 5 | N179: 61 | O179: 86 | P179: 60 | Q179: 2 | R179: 5
A180: H.A. JAFETH JIMÉNEZ MORALES | B180: 1 | C180: 78 | D180: 50 | E180: 50 | F180: 4 | G180: 0 | H180: 1 | I180: 0 | J180: 2 | K180: 0 | L180: 21 | M180: 1 | N180: 6 | O180: 15 | P180: 0 | Q180: 0 | R180: 0
A181: DISTRITO 5 TACARES | B181: 10 | C181: 4682 | D181: 3395 | E181: 3322 | F181: 289 | G181: 11 | H181: 19 | I181: 24 | J181: 83 | K181: 51 | L181: 1383 | M181: 96 | N181: 666 | O181: 395 | P181: 305 | Q181: 39 | R181: 34
A182: TACARES | B182: 5 | C182: 2233 | D182: 1602 | E182: 1568 | F182: 172 | G182: 7 | H182: 11 | I182: 7 | J182: 44 | K182: 21 | L182: 598 | M182: 43 | N182: 343 | O182: 158 | P182: 164 | Q182: 19 | R182: 15
A183: CATALUÑA | B183: 2 | C183: 937 | D183: 707 | E183: 695 | F183: 45 | G183: 1 | H183: 3 | I183: 6 | J183: 9 | K183: 6 | L183: 397 | M183: 7 | N183: 110 | O183: 66 | P183: 45 | Q183: 7 | R183: 5
A184: BODEGAS | B184: 3 | C184: 1512 | D184: 1086 | E184: 1059 | F184: 72 | G184: 3 | H184: 5 | I184: 11 | J184: 30 | K184: 24 | L184: 388 | M184: 46 | N184: 213 | O184: 171 | P184: 96 | Q184: 13 | R184: 14
A185: DISTRITO 6 RÍO CUARTO | B185: 14 | C185: 4612 | D185: 2734 | E185: 2651 | F185: 107 | G185: 3 | H185: 9 | I185: 25 | J185: 86 | K185: 27 | L185: 1118 | M185: 80 | N185: 533 | O185: 529 | P185: 134 | Q185: 42 | R185: 41
A186: COLONIA AGRÍCOLA DEL TORO | B186: 1 | C186: 208 | D186: 160 | E186: 157 | F186: 6 | G186: 0 | H186: 0 | I186: 3 | J186: 4 | K186: 0 | L186: 55 | M186: 2 | N186: 11 | O186: 66 | P186: 10 | Q186: 2 | R186: 1
A187: RÍO CUARTO | B187: 3 | C187: 1384 | D187: 964 | E187: 930 | F187: 41 | G187: 0 | H187: 4 | I187: 5 | J187: 42 | K187: 11 | L187: 390 | M187: 22 | N187: 164 | O187: 202 | P187: 49 | Q187: 13 | R187: 21
A188: SAN RAFAEL DE RÍO CUARTO (CUCARACHO) | B188: 1 | C188: 321 | D188: 170 | E188: 165 | F188: 15 | G188: 0 | H188: 1 | I188: 3 | J188: 0 | K188: 2 | L188: 50 | M188: 2 | N188: 45 | O188: 39 | P188: 8 | Q188: 2 | R188: 3
A189: LA TABLA | B189: 1 | C189: 442 | D189: 221 | E189: 210 | F189: 7 | G189: 0 | H189: 0 | I189: 4 | J189: 9 | K189: 1 | L189: 80 | M189: 6 | N189: 45 | O189: 42 | P189: 16 | Q189: 10 | R189: 1
A190: LOS ÁNGELES | B190: 1 | C190: 120 | D190: 60 | E190: 59 | F190: 7 | G190: 1 | H190: 0 | I190: 1 | J190: 1 | K190: 0 | L190: 25 | M190: 1 | N190: 6 | O190: 12 | P190: 5 | Q190: 1 | R190: 0
A191: SANTA RITA | B191: 2 | C191: 1024 | D191: 525 | E191: 511 | F191: 10 | G191: 0 | H191: 1 | I191: 5 | J191: 19 | K191: 4 | L191: 264 | M191: 22 | N191: 102 | O191: 59 | P191: 25 | Q191: 9 | R191: 5
A192: SANTA ISABEL | B192: 1 | C192: 546 | D192: 310 | E192: 302 | F192: 5 | G192: 1 | H192: 1 | I192: 2 | J192: 7 | K192: 6 | L192: 124 | M192: 15 | N192: 73 | O192: 59 | P192: 9 | Q192: 3 | R192: 5
A193: LA VICTORIA | B193: 1 | C193: 271 | D193: 141 | E193: 139 | F193: 7 | G193: 0 | H193: 1 | I193: 2 | J193: 2 | K193: 1 | L193: 53 | M193: 6 | N193: 41 | O193: 23 | P193: 3 | Q193: 0 | R193: 2
A194: SAN VICENTE | B194: 1 | C194: 109 | D194: 60 | E194: 57 | F194: 2 | G194: 0 | H194: 1 | I194: 0 | J194: 0 | K194: 1 | L194: 17 | M194: 0 | N194: 19 | O194: 13 | P194: 4 | Q194: 1 | R194: 2
A195: LA ESPAÑOLITA | B195: 1 | C195: 154 | D195: 102 | E195: 100 | F195: 7 | G195: 1 | H195: 0 | I195: 0 | J195: 2 | K195: 1 | L195: 46 | M195: 4 | N195: 24 | O195: 12 | P195: 3 | Q195: 1 | R195: 1
A196: PATA DE GALLO | B196: 1 | C196: 33 | D196: 21 | E196: 21 | F196: 0 | G196: 0 | H196: 0 | I196: 0 | J196: 0 | K196: 0 | L196: 14 | M196: 0 | N196: 3 | O196: 2 | P196: 2 | Q196: 0 | R196: 0
A197: DISTRITO 7 PUENTE DE PIEDRA | B197: 16 | C197: 6392 | D197: 4770 | E197: 4658 | F197: 313 | G197: 29 | H197: 15 | I197: 29 | J197: 187 | K197: 51 | L197: 1886 | M197: 167 | N197: 808 | O197: 567 | P197: 606 | Q197: 68 | R197: 44
A198: PUENTE DE PIEDRA | B198: 3 | C198: 1285 | D198: 973 | E198: 950 | F198: 71 | G198: 8 | H198: 6 | I198: 11 | J198: 41 | K198: 10 | L198: 376 | M198: 35 | N198: 171 | O198: 123 | P198: 98 | Q198: 12 | R198: 11
A199: RINCÓN DE SALAS | B199: 3 | C199: 1122 | D199: 856 | E199: 843 | F199: 62 | G199: 7 | H199: 1 | I199: 7 | J199: 24 | K199: 8 | L199: 270 | M199: 22 | N199: 143 | O199: 128 | P199: 171 | Q199: 10 | R199: 3
A200: ALTOS DE PERALTA | B200: 4 | C200: 1605 | D200: 1180 | E200: 1153 | F200: 44 | G200: 1 | H200: 6 | I200: 4 | J200: 53 | K200: 7 | L200: 580 | M200: 32 | N200: 194 | O200: 93 | P200: 139 | Q200: 17 | R200: 10
A201: PORÓ | B201: 3 | C201: 1072 | D201: 795 | E201: 777 | F201: 48 | G201: 1 | H201: 2 | I201: 3 | J201: 33 | K201: 17 | L201: 293 | M201: 14 | N201: 129 | O201: 145 | P201: 92 | Q201: 12 | R201: 6
A202: BAJO ROSALES | B202: 1 | C202: 268 | D202: 185 | E202: 176 | F202: 60 | G202: 0 | H202: 0 | I202: 0 | J202: 3 | K202: 3 | L202: 51 | M202: 0 | N202: 35 | O202: 10 | P202: 14 | Q202: 5 | R202: 4
A203: LA ARGENTINA | B203: 2 | C203: 1040 | D203: 781 | E203: 759 | F203: 28 | G203: 12 | H203: 0 | I203: 4 | J203: 33 | K203: 6 | L203: 316 | M203: 64 | N203: 136 | O203: 68 | P203: 92 | Q203: 12 | R203: 10
... 365 more rows

Sheet C2.12
A2: CUADRO 2.12 CARTAGO: JUNTAS, ELECTORADO, VOTOS POR PARTIDO, NULOS Y BLANCOS PARA DIPUTACIONES A LA ASAMBLEA LEGISLATIVA
A3: SEGÚN CANTÓN, DISTRITO ADMINISTRATIVO Y DISTRITO ELECTORAL, ELECCIONES 7 DE FEBRERO 2010
A5: CANTÓN, DISTRITO ADMINISTRATIVO Y DISTRITO ELECTORAL | B5: JUNTAS | C5: ELECTORADO | D5: VOTOS RECIBIDOS
D6: TOTAL GENERAL | E6: VOTOS VÁLIDOS | R6: VOTOS NULOS | S6: VOTOS BLANCOS
E7: TOTAL | F7: UNIDAD SOCIAL CRISTIANA | G7: INTEGRACIÓN NACIONAL | H7: VERDE ECOLOGISTA | I7: ALIANZA PATRIÓTICA | J7: RENOVACIÓN COSTARRICENSE | K7: FRENTE AMPLIO | L7: LIBERACIÓN NACIONAL | M7: UNIÓN AGRÍCOLA CARTAGINÉS | N7: MOVIMIENTO LIBERTARIO | O7: ACCIÓN CIUDADANA | P7: TRASNSPARENCIA CARTAGINÉS | Q7: ACCESIBILIDAD SIN EXCLUSIÓN
A9: CARTAGO | B9: 746 | C9: 328782 | D9: 243682 | E9: 237267 | F9: 18121 | G9: 851 | H9: 2901 | I9: 2898 | J9: 6664 | K9: 6685 | L9: 92286 | M9: 11862 | N9: 31197 | O9: 40437 | P9: 4590 | Q9: 18775 | R9: 3960 | S9: 2455
A10: CANTÓN 1 CARTAGO | B10: 223 | C10: 104564 | D10: 79833 | E10: 78072 | F10: 5860 | G10: 274 | H10: 1011 | I10: 930 | J10: 2540 | K10: 2407 | L10: 31628 | M10: 2567 | N10: 10728 | O10: 13194 | P10: 874 | Q10: 6059 | R10: 1109 | S10: 652
A11: DISTRITO 1 ORIENTAL | B11: 27 | C11: 13347 | D11: 10489 | E11: 10311 | F11: 781 | G11: 34 | H11: 215 | I11: 182 | J11: 201 | K11: 346 | L11: 3960 | M11: 483 | N11: 1160 | O11: 2229 | P11: 75 | Q11: 645 | R11: 124 | S11: 54
A12: ORIENTAL | B12: 27 | C12: 13347 | D12: 10489 | E12: 10311 | F12: 781 | G12: 34 | H12: 215 | I12: 182 | J12: 201 | K12: 346 | L12: 3960 | M12: 483 | N12: 1160 | O12: 2229 | P12: 75 | Q12: 645 | R12: 124 | S12: 54
A13: DISTRITO 2 OCCIDENTAL | B13: 20 | C13: 9665 | D13: 7674 | E13: 7567 | F13: 526 | G13: 21 | H13: 123 | I13: 87 | J13: 230 | K13: 270 | L13: 2933 | M13: 361 | N13: 895 | O13: 1598 | P13: 55 | Q13: 468 | R13: 68 | S13: 39
A14: OCCIDENTAL | B14: 19 | C14: 9546 | D14: 7603 | E14: 7502 | F14: 520 | G14: 21 | H14: 123 | I14: 87 | J14: 230 | K14: 270 | L14: 2898 | M14: 360 | N14: 887 | O14: 1590 | P14: 52 | Q14: 464 | R14: 66 | S14: 35
A15: H.A. ASILO DE LA VEJEZ | B15: 1 | C15: 119 | D15: 71 | E15: 65 | F15: 6 | G15: 0 | H15: 0 | I15: 0 | J15: 0 | K15: 0 | L15: 35 | M15: 1 | N15: 8 | O15: 8 | P15: 3 | Q15: 4 | R15: 2 | S15: 4
A16: DISTRITO 3 CARMEN | B16: 25 | C16: 11878 | D16: 9070 | E16: 8888 | F16: 556 | G16: 25 | H16: 98 | I16: 104 | J16: 225 | K16: 463 | L16: 3437 | M16: 322 | N16: 1275 | O16: 1576 | P16: 65 | Q16: 742 | R16: 121 | S16: 61
A17: EL CARMEN | B17: 14 | C17: 6679 | D17: 5031 | E17: 4917 | F17: 294 | G17: 13 | H17: 54 | I17: 60 | J17: 125 | K17: 250 | L17: 1880 | M17: 196 | N17: 762 | O17: 883 | P17: 27 | Q17: 373 | R17: 74 | S17: 40
A18: SAN BLAS | B18: 11 | C18: 5199 | D18: 4039 | E18: 3971 | F18: 262 | G18: 12 | H18: 44 | I18: 44 | J18: 100 | K18: 213 | L18: 1557 | M18: 126 | N18: 513 | O18: 693 | P18: 38 | Q18: 369 | R18: 47 | S18: 21
A19: DISTRITO 4 SAN NICOLÁS | B19: 34 | C19: 16082 | D19: 12022 | E19: 11791 | F19: 969 | G19: 45 | H19: 157 | I19: 98 | J19: 428 | K19: 334 | L19: 4855 | M19: 299 | N19: 1802 | O19: 1598 | P19: 93 | Q19: 1113 | R19: 152 | S19: 79
A20: SAN NICOLÁS | B20: 12 | C20: 5825 | D20: 4451 | E20: 4389 | F20: 417 | G20: 15 | H20: 61 | I20: 50 | J20: 167 | K20: 160 | L20: 1731 | M20: 128 | N20: 618 | O20: 643 | P20: 30 | Q20: 369 | R20: 37 | S20: 25
A21: ALTO DE OCHOMOGO | B21: 5 | C21: 2121 | D21: 1508 | E21: 1468 | F21: 135 | G21: 5 | H21: 22 | I21: 14 | J21: 49 | K21: 22 | L21: 650 | M21: 37 | N21: 217 | O21: 176 | P21: 10 | Q21: 131 | R21: 22 | S21: 18
A22: LA LIMA | B22: 5 | C22: 2452 | D22: 1779 | E22: 1736 | F22: 128 | G22: 7 | H22: 32 | I22: 13 | J22: 53 | K22: 61 | L22: 718 | M22: 39 | N22: 292 | O22: 237 | P22: 18 | Q22: 138 | R22: 31 | S22: 12
A23: QUIRCOT | B23: 7 | C23: 3417 | D23: 2531 | E23: 2485 | F23: 165 | G23: 12 | H23: 18 | I23: 13 | J23: 123 | K23: 55 | L23: 1012 | M23: 46 | N23: 401 | O23: 303 | P23: 28 | Q23: 309 | R23: 36 | S23: 10
A24: PÓLVORA O LOYOLA | B24: 5 | C24: 2267 | D24: 1753 | E24: 1713 | F24: 124 | G24: 6 | H24: 24 | I24: 8 | J24: 36 | K24: 36 | L24: 744 | M24: 49 | N24: 274 | O24: 239 | P24: 7 | Q24: 166 | R24: 26 | S24: 14
A25: DISTRITO 5 AGUACALIENTE O SAN FRANCISCO | B25: 44 | C25: 20317 | D25: 15354 | E25: 15004 | F25: 1170 | G25: 48 | H25: 199 | I25: 197 | J25: 443 | K25: 362 | L25: 5907 | M25: 508 | N25: 2392 | O25: 2347 | P25: 120 | Q25: 1311 | R25: 234 | S25: 116
A26: SAN FRANCISCO | B26: 15 | C26: 7263 | D26: 5689 | E26: 5555 | F26: 435 | G26: 17 | H26: 74 | I26: 99 | J26: 171 | K26: 134 | L26: 2295 | M26: 161 | N26: 808 | O26: 757 | P26: 58 | Q26: 546 | R26: 85 | S26: 49
A27: LOURDES | B27: 5 | C27: 2436 | D27: 1906 | E27: 1850 | F27: 169 | G27: 6 | H27: 27 | I27: 25 | J27: 26 | K27: 25 | L27: 709 | M27: 37 | N27: 390 | O27: 256 | P27: 9 | Q27: 171 | R27: 38 | S27: 18
A28: PITAHAYA | B28: 13 | C28: 6149 | D28: 4783 | E28: 4702 | F28: 331 | G28: 16 | H28: 59 | I28: 47 | J28: 152 | K28: 132 | L28: 1625 | M28: 254 | N28: 653 | O28: 1025 | P28: 31 | Q28: 377 | R28: 55 | S28: 26
A29: MANUEL DE JESÚS JIMÉNEZ | B29: 8 | C29: 3999 | D29: 2780 | E29: 2705 | F29: 204 | G29: 9 | H29: 37 | I29: 25 | J29: 89 | K29: 65 | L29: 1172 | M29: 54 | N29: 523 | O29: 296 | P29: 21 | Q29: 210 | R29: 53 | S29: 22
A30: C.P. SAN FRANCISCO | B30: 3 | C30: 470 | D30: 196 | E30: 192 | F30: 31 | G30: 0 | H30: 2 | I30: 1 | J30: 5 | K30: 6 | L30: 106 | M30: 2 | N30: 18 | O30: 13 | P30: 1 | Q30: 7 | R30: 3 | S30: 1
A31: DISTRITO 6 GUADALUPE O ARENILLA | B31: 20 | C31: 10009 | D31: 7823 | E31: 7653 | F31: 468 | G31: 26 | H31: 90 | I31: 91 | J31: 200 | K31: 311 | L31: 3053 | M31: 238 | N31: 1229 | O31: 1167 | P31: 169 | Q31: 611 | R31: 109 | S31: 61
A32: GUADALUPE O ARENILLA | B32: 20 | C32: 10009 | D32: 7823 | E32: 7653 | F32: 468 | G32: 26 | H32: 90 | I32: 91 | J32: 200 | K32: 311 | L32: 3053 | M32: 238 | N32: 1229 | O32: 1167 | P32: 169 | Q32: 611 | R32: 109 | S32: 61
A33: DISTRITO 7 CORRALILLO | B33: 18 | C33: 7164 | D33: 5417 | E33: 5240 | F33: 226 | G33: 42 | H33: 25 | I33: 16 | J33: 656 | K33: 70 | L33: 2829 | M33: 49 | N33: 375 | O33: 558 | P33: 16 | Q33: 378 | R33: 94 | S33: 83
A34: CORRALILLO | B34: 3 | C34: 1303 | D34: 935 | E34: 891 | F34: 82 | G34: 6 | H34: 9 | I34: 3 | J34: 227 | K34: 6 | L34: 382 | M34: 2 | N34: 49 | O34: 90 | P34: 0 | Q34: 35 | R34: 26 | S34: 18
A35: SAN JUAN NORTE | B35: 1 | C35: 492 | D35: 397 | E35: 385 | F35: 5 | G35: 6 | H35: 0 | I35: 0 | J35: 7 | K35: 6 | L35: 231 | M35: 6 | N35: 25 | O35: 67 | P35: 0 | Q35: 32 | R35: 6 | S35: 6
A36: SAN JUAN SUR | B36: 3 | C36: 1286 | D36: 992 | E36: 965 | F36: 14 | G36: 8 | H36: 5 | I36: 2 | J36: 26 | K36: 18 | L36: 616 | M36: 6 | N36: 84 | O36: 100 | P36: 1 | Q36: 85 | R36: 12 | S36: 15
A37: SANTA ELENA ARRIBA | B37: 2 | C37: 977 | D37: 732 | E37: 710 | F37: 19 | G37: 10 | H37: 4 | I37: 3 | J37: 65 | K37: 5 | L37: 372 | M37: 10 | N37: 60 | O37: 62 | P37: 5 | Q37: 95 | R37: 11 | S37: 11
A38: LLANO DE LOS ÁNGELES | B38: 2 | C38: 934 | D38: 708 | E38: 679 | F38: 40 | G38: 1 | H38: 0 | I38: 4 | J38: 126 | K38: 4 | L38: 418 | M38: 7 | N38: 27 | O38: 31 | P38: 3 | Q38: 18 | R38: 16 | S38: 13
A39: SAN ANTONIO | B39: 2 | C39: 674 | D39: 559 | E39: 550 | F39: 38 | G39: 3 | H39: 1 | I39: 0 | J39: 49 | K39: 9 | L39: 266 | M39: 7 | N39: 57 | O39: 83 | P39: 5 | Q39: 32 | R39: 3 | S39: 6
A40: SAN ISIDRO O EL ALUMBRE | B40: 2 | C40: 586 | D40: 388 | E40: 369 | F40: 19 | G40: 5 | H40: 3 | I40: 0 | J40: 76 | K40: 8 | L40: 165 | M40: 1 | N40: 32 | O40: 50 | P40: 1 | Q40: 9 | R40: 11 | S40: 8
A41: RÍO CONEJO | B41: 2 | C41: 633 | D41: 476 | E41: 464 | F41: 5 | G41: 2 | H41: 2 | I41: 2 | J41: 60 | K41: 9 | L41: 257 | M41: 0 | N41: 23 | O41: 57 | P41: 0 | Q41: 47 | R41: 8 | S41: 4
A42: LOMA LARGA | B42: 1 | C42: 279 | D42: 230 | E42: 227 | F42: 4 | G42: 1 | H42: 1 | I42: 2 | J42: 20 | K42: 5 | L42: 122 | M42: 10 | N42: 18 | O42: 18 | P42: 1 | Q42: 25 | R42: 1 | S42: 2
A43: DISTRITO 8 TIERRA BLANCA | B43: 8 | C43: 3851 | D43: 2973 | E43: 2886 | F43: 351 | G43: 8 | H43: 22 | I43: 25 | J43: 13 | K43: 65 | L43: 1016 | M43: 84 | N43: 240 | O43: 691 | P43: 204 | Q43: 167 | R43: 57 | S43: 30
A44: TIERRA BLANCA | B44: 8 | C44: 3851 | D44: 2973 | E44: 2886 | F44: 351 | G44: 8 | H44: 22 | I44: 25 | J44: 13 | K44: 65 | L44: 1016 | M44: 84 | N44: 240 | O44: 691 | P44: 204 | Q44: 167 | R44: 57 | S44: 30
A45: DISTRITO 9 DULCE NOMBRE | B45: 13 | C45: 6049 | D45: 4672 | E45: 4559 | F45: 391 | G45: 11 | H45: 52 | I45: 101 | J45: 85 | K45: 104 | L45: 1826 | M45: 157 | N45: 659 | O45: 720 | P45: 46 | Q45: 407 | R45: 64 | S45: 49
A46: DULCE NOMBRE | B46: 7 | C46: 3359 | D46: 2665 | E46: 2595 | F46: 232 | G46: 8 | H46: 30 | I46: 44 | J46: 49 | K46: 56 | L46: 1042 | M46: 77 | N46: 377 | O46: 413 | P46: 19 | Q46: 248 | R46: 35 | S46: 35
A47: NAVARRO | B47: 1 | C47: 206 | D47: 150 | E47: 143 | F47: 11 | G47: 0 | H47: 1 | I47: 1 | J47: 4 | K47: 2 | L47: 88 | M47: 2 | N47: 12 | O47: 15 | P47: 1 | Q47: 6 | R47: 4 | S47: 3
A48: CABALLO BLANCO (SUR CARRETERA) | B48: 5 | C48: 2484 | D48: 1857 | E48: 1821 | F48: 148 | G48: 3 | H48: 21 | I48: 56 | J48: 32 | K48: 46 | L48: 696 | M48: 78 | N48: 270 | O48: 292 | P48: 26 | Q48: 153 | R48: 25 | S48: 11
A49: DISTRITO 10 LLANO GRANDE | B49: 6 | C49: 2763 | D49: 1915 | E49: 1852 | F49: 166 | G49: 11 | H49: 15 | I49: 12 | J49: 23 | K49: 42 | L49: 711 | M49: 43 | N49: 261 | O49: 410 | P49: 22 | Q49: 136 | R49: 31 | S49: 32
A50: LLANO GRANDE | B50: 4 | C50: 1918 | D50: 1267 | E50: 1228 | F50: 73 | G50: 7 | H50: 14 | I50: 9 | J50: 11 | K50: 36 | L50: 479 | M50: 31 | N50: 198 | O50: 276 | P50: 18 | Q50: 76 | R50: 19 | S50: 20
A51: AZAHAR (PÉNJAMO) | B51: 2 | C51: 845 | D51: 648 | E51: 624 | F51: 93 | G51: 4 | H51: 1 | I51: 3 | J51: 12 | K51: 6 | L51: 232 | M51: 12 | N51: 63 | O51: 134 | P51: 4 | Q51: 60 | R51: 12 | S51: 12
A52: DISTRITO 11 QUEBRADILLA | B52: 8 | C52: 3439 | D52: 2424 | E52: 2321 | F52: 256 | G52: 3 | H52: 15 | I52: 17 | J52: 36 | K52: 40 | L52: 1101 | M52: 23 | N52: 440 | O52: 300 | P52: 9 | Q52: 81 | R52: 55 | S52: 48
A53: QUEBRADILLA | B53: 5 | C53: 2210 | D53: 1626 | E53: 1569 | F53: 117 | G53: 2 | H53: 13 | I53: 13 | J53: 24 | K53: 34 | L53: 737 | M53: 18 | N53: 327 | O53: 207 | P53: 8 | Q53: 69 | R53: 26 | S53: 31
A54: BERMEJO | B54: 2 | C54: 995 | D54: 617 | E54: 582 | F54: 138 | G54: 0 | H54: 2 | I54: 4 | J54: 1 | K54: 5 | L54: 237 | M54: 4 | N54: 109 | O54: 72 | P54: 0 | Q54: 10 | R54: 22 | S54: 13
A55: COPALCHÍ | B55: 1 | C55: 234 | D55: 181 | E55: 170 | F55: 1 | G55: 1 | H55: 0 | I55: 0 | J55: 11 | K55: 1 | L55: 127 | M55: 1 | N55: 4 | O55: 21 | P55: 1 | Q55: 2 | R55: 7 | S55: 4
A56: CANTÓN 2 PARAÍSO | B56: 87 | C56: 39163 | D56: 28994 | E56: 28012 | F56: 2052 | G56: 73 | H56: 367 | I56: 241 | J56: 735 | K56: 1106 | L56: 9396 | M56: 3301 | N56: 3567 | O56: 4658 | P56: 359 | Q56: 2157 | R56: 600 | S56: 382
A57: DISTRITO 1 PARAÍSO | B57: 34 | C57: 16468 | D57: 12533 | E57: 12163 | F57: 771 | G57: 26 | H57: 178 | I57: 113 | J57: 206 | K57: 587 | L57: 3677 | M57: 1988 | N57: 1209 | O57: 2278 | P57: 117 | Q57: 1013 | R57: 215 | S57: 155
A58: PARAÍSO | B58: 29 | C58: 14322 | D58: 11045 | E58: 10740 | F58: 719 | G58: 24 | H58: 172 | I58: 96 | J58: 178 | K58: 560 | L58: 3180 | M58: 1645 | N58: 1051 | O58: 2125 | P58: 54 | Q58: 936 | R58: 175 | S58: 130
A59: BIRRISITO | B59: 3 | C59: 1385 | D59: 995 | E59: 954 | F59: 22 | G59: 0 | H59: 5 | I59: 13 | J59: 23 | K59: 17 | L59: 336 | M59: 263 | N59: 99 | O59: 110 | P59: 7 | Q59: 59 | R59: 22 | S59: 19
A60: UJARRÁS | B60: 2 | C60: 761 | D60: 493 | E60: 469 | F60: 30 | G60: 2 | H60: 1 | I60: 4 | J60: 5 | K60: 10 | L60: 161 | M60: 80 | N60: 59 | O60: 43 | P60: 56 | Q60: 18 | R60: 18 | S60: 6
A61: DISTRITO 2 SANTIAGO | B61: 9 | C61: 3381 | D61: 2440 | E61: 2336 | F61: 59 | G61: 6 | H61: 40 | I61: 24 | J61: 185 | K61: 81 | L61: 861 | M61: 496 | N61: 144 | O61: 204 | P61: 129 | Q61: 107 | R61: 69 | S61: 35
A62: SANTIAGO | B62: 3 | C62: 1158 | D62: 849 | E62: 809 | F62: 19 | G62: 2 | H62: 31 | I62: 6 | J62: 83 | K62: 57 | L62: 330 | M62: 143 | N62: 41 | O62: 55 | P62: 11 | Q62: 31 | R62: 20 | S62: 20
A63: EL YAS | B63: 3 | C63: 1142 | D63: 822 | E63: 791 | F63: 10 | G63: 2 | H63: 6 | I63: 13 | J63: 73 | K63: 10 | L63: 284 | M63: 170 | N63: 26 | O63: 66 | P63: 106 | Q63: 25 | R63: 27 | S63: 4
A64: LA FLOR | B64: 1 | C64: 433 | D64: 323 | E64: 309 | F64: 9 | G64: 0 | H64: 2 | I64: 3 | J64: 24 | K64: 5 | L64: 117 | M64: 72 | N64: 16 | O64: 39 | P64: 5 | Q64: 17 | R64: 7 | S64: 7
A65: AJENJAL | B65: 1 | C65: 466 | D65: 313 | E65: 302 | F65: 19 | G65: 1 | H65: 1 | I65: 2 | J65: 3 | K65: 7 | L65: 95 | M65: 58 | N65: 51 | O65: 31 | P65: 6 | Q65: 28 | R65: 8 | S65: 3
A66: LAPUENTE | B66: 1 | C66: 182 | D66: 133 | E66: 125 | F66: 2 | G66: 1 | H66: 0 | I66: 0 | J66: 2 | K66: 2 | L66: 35 | M66: 53 | N66: 10 | O66: 13 | P66: 1 | Q66: 6 | R66: 7 | S66: 1
A67: DISTRITO 3 OROSI | B67: 15 | C67: 6204 | D67: 4577 | E67: 4384 | F67: 372 | G67: 16 | H67: 31 | I67: 32 | J67: 39 | K67: 128 | L67: 1589 | M67: 236 | N67: 745 | O67: 867 | P67: 53 | Q67: 276 | R67: 124 | S67: 69
A68: OROSI | B68: 8 | C68: 3590 | D68: 2719 | E68: 2625 | F68: 208 | G68: 12 | H68: 15 | I68: 20 | J68: 33 | K68: 96 | L68: 882 | M68: 177 | N68: 380 | O68: 591 | P68: 21 | Q68: 190 | R68: 68 | S68: 26
A69: RÍO MACHO | B69: 2 | C69: 695 | D69: 468 | E69: 453 | F69: 28 | G69: 1 | H69: 1 | I69: 4 | J69: 1 | K69: 19 | L69: 166 | M69: 19 | N69: 88 | O69: 84 | P69: 2 | Q69: 40 | R69: 8 | S69: 7
A70: PALOMO | B70: 3 | C70: 1492 | D70: 1064 | E70: 997 | F70: 76 | G70: 0 | H70: 3 | I70: 5 | J70: 4 | K70: 10 | L70: 438 | M70: 28 | N70: 208 | O70: 161 | P70: 29 | Q70: 35 | R70: 38 | S70: 29
A71: PURISIL | B71: 1 | C71: 181 | D71: 142 | E71: 141 | F71: 50 | G71: 0 | H71: 4 | I71: 1 | J71: 0 | K71: 1 | L71: 52 | M71: 6 | N71: 21 | O71: 3 | P71: 1 | Q71: 2 | R71: 1 | S71: 0
A72: ALTO DE ARAYA | B72: 1 | C72: 246 | D72: 184 | E72: 168 | F72: 10 | G72: 3 | H72: 8 | I72: 2 | J72: 1 | K72: 2 | L72: 51 | M72: 6 | N72: 48 | O72: 28 | P72: 0 | Q72: 9 | R72: 9 | S72: 7
A73: DISTRITO 4 CACHÍ | B73: 10 | C73: 3917 | D73: 2969 | E73: 2876 | F73: 348 | G73: 3 | H73: 13 | I73: 12 | J73: 37 | K73: 92 | L73: 1165 | M73: 212 | N73: 282 | O73: 485 | P73: 23 | Q73: 204 | R73: 54 | S73: 39
A74: CACHÍ | B74: 6 | C74: 2769 | D74: 2098 | E74: 2046 | F74: 232 | G74: 2 | H74: 8 | I74: 9 | J74: 34 | K74: 67 | L74: 876 | M74: 129 | N74: 186 | O74: 351 | P74: 12 | Q74: 140 | R74: 30 | S74: 22
A75: URASCA | B75: 1 | C75: 442 | D75: 361 | E75: 353 | F75: 91 | G75: 1 | H75: 2 | I75: 0 | J75: 0 | K75: 10 | L75: 128 | M75: 13 | N75: 40 | O75: 51 | P75: 1 | Q75: 16 | R75: 3 | S75: 5
A76: LA LOAIZA | B76: 1 | C76: 239 | D76: 162 | E76: 147 | F76: 4 | G76: 0 | H76: 2 | I76: 1 | J76: 1 | K76: 8 | L76: 52 | M76: 29 | N76: 17 | O76: 25 | P76: 1 | Q76: 7 | R76: 8 | S76: 7
A77: SAN JERÓNIMO O GUATUSO | B77: 1 | C77: 374 | D77: 284 | E77: 271 | F77: 18 | G77: 0 | H77: 0 | I77: 2 | J77: 2 | K77: 5 | L77: 88 | M77: 35 | N77: 29 | O77: 53 | P77: 7 | Q77: 32 | R77: 9 | S77: 4
A78: SAN MIGUEL O HAMACA (PARTE OESTE) | B78: 1 | C78: 93 | D78: 64 | E78: 59 | F78: 3 | G78: 0 | H78: 1 | I78: 0 | J78: 0 | K78: 2 | L78: 21 | M78: 6 | N78: 10 | O78: 5 | P78: 2 | Q78: 9 | R78: 4 | S78: 1
A79: DISTRITO 5 LLANOS DE SANTA LUCÍA | B79: 19 | C79: 9193 | D79: 6475 | E79: 6253 | F79: 502 | G79: 22 | H79: 105 | I79: 60 | J79: 268 | K79: 218 | L79: 2104 | M79: 369 | N79: 1187 | O79: 824 | P79: 37 | Q79: 557 | R79: 138 | S79: 84
A80: LLANOS DE SANTA LUCÍA | B80: 19 | C80: 9193 | D80: 6475 | E80: 6253 | F80: 502 | G80: 22 | H80: 105 | I80: 60 | J80: 268 | K80: 218 | L80: 2104 | M80: 369 | N80: 1187 | O80: 824 | P80: 37 | Q80: 557 | R80: 138 | S80: 84
A81: CANTÓN 3 LA UNIÓN | B81: 123 | C81: 57841 | D81: 41468 | E81: 40679 | F81: 2747 | G81: 253 | H81: 627 | I81: 243 | J81: 1642 | K81: 1425 | L81: 13742 | M81: 1024 | N81: 6049 | O81: 7793 | P81: 237 | Q81: 4897 | R81: 535 | S81: 254
A82: DISTRITO 1 TRES RÍOS | B82: 21 | C82: 10238 | D82: 7842 | E82: 7739 | F82: 466 | G82: 44 | H82: 89 | I82: 40 | J82: 197 | K82: 207 | L82: 2639 | M82: 196 | N82: 1144 | O82: 1721 | P82: 37 | Q82: 959 | R82: 60 | S82: 43
A83: TRES RÍOS | B83: 21 | C83: 10238 | D83: 7842 | E83: 7739 | F83: 466 | G83: 44 | H83: 89 | I83: 40 | J83: 197 | K83: 207 | L83: 2639 | M83: 196 | N83: 1144 | O83: 1721 | P83: 37 | Q83: 959 | R83: 60 | S83: 43
A84: DISTRITO 2 SAN DIEGO | B84: 23 | C84: 11059 | D84: 7674 | E84: 7537 | F84: 700 | G84: 61 | H84: 241 | I84: 43 | J84: 342 | K84: 207 | L84: 2332 | M84: 187 | N84: 1073 | O84: 1360 | P84: 46 | Q84: 945 | R84: 91 | S84: 46
A85: SAN DIEGO | B85: 11 | C85: 5230 | D85: 3834 | E85: 3772 | F85: 315 | G85: 29 | H85: 66 | I85: 26 | J85: 140 | K85: 111 | L85: 1172 | M85: 78 | N85: 507 | O85: 815 | P85: 13 | Q85: 500 | R85: 35 | S85: 27
A86: SANTIAGO DEL MONTE | B86: 10 | C86: 4917 | D86: 3275 | E86: 3213 | F86: 337 | G86: 28 | H86: 169 | I86: 15 | J86: 173 | K86: 89 | L86: 982 | M86: 75 | N86: 466 | O86: 463 | P86: 28 | Q86: 388 | R86: 46 | S86: 16
A87: RINCÓN MESÉN ESTE | B87: 2 | C87: 912 | D87: 565 | E87: 552 | F87: 48 | G87: 4 | H87: 6 | I87: 2 | J87: 29 | K87: 7 | L87: 178 | M87: 34 | N87: 100 | O87: 82 | P87: 5 | Q87: 57 | R87: 10 | S87: 3
A88: DISTRITO 3 SAN JUAN | B88: 14 | C88: 6792 | D88: 5153 | E88: 5090 | F88: 249 | G88: 35 | H88: 37 | I88: 44 | J88: 205 | K88: 202 | L88: 1799 | M88: 110 | N88: 601 | O88: 1211 | P88: 31 | Q88: 566 | R88: 41 | S88: 22
A89: SAN JUAN | B89: 7 | C89: 3345 | D89: 2570 | E89: 2542 | F89: 117 | G89: 15 | H89: 20 | I89: 28 | J89: 76 | K89: 100 | L89: 999 | M89: 30 | N89: 271 | O89: 604 | P89: 15 | Q89: 267 | R89: 16 | S89: 12
A90: VILLAS DE AYARCO | B90: 7 | C90: 3447 | D90: 2583 | E90: 2548 | F90: 132 | G90: 20 | H90: 17 | I90: 16 | J90: 129 | K90: 102 | L90: 800 | M90: 80 | N90: 330 | O90: 607 | P90: 16 | Q90: 299 | R90: 25 | S90: 10
A91: DISTRITO 4 SAN RAFAEL | B91: 16 | C91: 7055 | D91: 5045 | E91: 4928 | F91: 258 | G91: 26 | H91: 60 | I91: 32 | J91: 301 | K91: 145 | L91: 1611 | M91: 194 | N91: 806 | O91: 781 | P91: 52 | Q91: 662 | R91: 92 | S91: 25
A92: SAN RAFAEL | B92: 7 | C92: 3077 | D92: 2363 | E92: 2323 | F92: 112 | G92: 14 | H92: 22 | I92: 15 | J92: 96 | K92: 86 | L92: 775 | M92: 102 | N92: 338 | O92: 451 | P92: 28 | Q92: 284 | R92: 29 | S92: 11
A93: QUEBRADA DE FIERRO | B93: 2 | C93: 1030 | D93: 680 | E93: 659 | F93: 31 | G93: 2 | H93: 7 | I93: 11 | J93: 27 | K93: 18 | L93: 246 | M93: 24 | N93: 154 | O93: 68 | P93: 7 | Q93: 64 | R93: 20 | S93: 1
A94: SAN VICENTE | B94: 4 | C94: 1870 | D94: 1231 | E94: 1188 | F94: 74 | G94: 4 | H94: 20 | I94: 2 | J94: 157 | K94: 17 | L94: 383 | M94: 21 | N94: 224 | O94: 119 | P94: 4 | Q94: 163 | R94: 32 | S94: 11
A95: YERBABUENA | B95: 3 | C95: 1078 | D95: 771 | E95: 758 | F95: 41 | G95: 6 | H95: 11 | I95: 4 | J95: 21 | K95: 24 | L95: 207 | M95: 47 | N95: 90 | O95: 143 | P95: 13 | Q95: 151 | R95: 11 | S95: 2
A96: DISTRITO 5 CONCEPCIÓN | B96: 20 | C96: 9234 | D96: 6765 | E96: 6623 | F96: 377 | G96: 26 | H96: 81 | I96: 32 | J96: 247 | K96: 340 | L96: 2217 | M96: 97 | N96: 1027 | O96: 1312 | P96: 32 | Q96: 835 | R96: 104 | S96: 38
A97: CONCEPCIÓN | B97: 15 | C97: 7059 | D97: 5221 | E97: 5124 | F97: 263 | G97: 22 | H97: 75 | I97: 26 | J97: 197 | K97: 272 | L97: 1731 | M97: 64 | N97: 755 | O97: 1061 | P97: 17 | Q97: 641 | R97: 72 | S97: 25
A98: SALITRILLO | B98: 1 | C98: 539 | D98: 414 | E98: 407 | F98: 46 | G98: 0 | H98: 2 | I98: 1 | J98: 21 | K98: 18 | L98: 136 | M98: 8 | N98: 40 | O98: 78 | P98: 6 | Q98: 51 | R98: 6 | S98: 1
A99: SAN FRANCISCO | B99: 3 | C99: 1490 | D99: 1028 | E99: 995 | F99: 54 | G99: 4 | H99: 3 | I99: 4 | J99: 26 | K99: 40 | L99: 321 | M99: 23 | N99: 224 | O99: 155 | P99: 8 | Q99: 133 | R99: 22 | S99: 11
A100: LA CIMA (PARTE OESTE) | B100: 1 | C100: 146 | D100: 102 | E100: 97 | F100: 14 | G100: 0 | H100: 1 | I100: 1 | J100: 3 | K100: 10 | L100: 29 | M100: 2 | N100: 8 | O100: 18 | P100: 1 | Q100: 10 | R100: 4 | S100: 1
A101: DISTRITO 6 DULCE NOMBRE | B101: 12 | C101: 5181 | D101: 3527 | E101: 3445 | F101: 413 | G101: 24 | H101: 52 | I101: 12 | J101: 108 | K101: 96 | L101: 1216 | M101: 98 | N101: 504 | O101: 513 | P101: 16 | Q101: 393 | R101: 55 | S101: 27
A102: DULCE NOMBRE | B102: 7 | C102: 3092 | D102: 2063 | E102: 2020 | F102: 251 | G102: 14 | H102: 19 | I102: 12 | J102: 54 | K102: 68 | L102: 661 | M102: 79 | N102: 267 | O102: 351 | P102: 10 | Q102: 234 | R102: 30 | S102: 13
A103: EL CARMEN | B103: 5 | C103: 2089 | D103: 1464 | E103: 1425 | F103: 162 | G103: 10 | H103: 33 | I103: 0 | J103: 54 | K103: 28 | L103: 555 | M103: 19 | N103: 237 | O103: 162 | P103: 6 | Q103: 159 | R103: 25 | S103: 14
A104: DISTRITO 7 SAN RAMÓN | B104: 6 | C104: 3018 | D104: 2212 | E104: 2180 | F104: 78 | G104: 11 | H104: 26 | I104: 12 | J104: 90 | K104: 145 | L104: 839 | M104: 15 | N104: 273 | O104: 518 | P104: 10 | Q104: 163 | R104: 19 | S104: 13
A105: SAN RAMÓN | B105: 6 | C105: 3018 | D105: 2212 | E105: 2180 | F105: 78 | G105: 11 | H105: 26 | I105: 12 | J105: 90 | K105: 145 | L105: 839 | M105: 15 | N105: 273 | O105: 518 | P105: 10 | Q105: 163 | R105: 19 | S105: 13
A106: DISTRITO 8 RÍO AZUL | B106: 11 | C106: 5264 | D106: 3250 | E106: 3137 | F106: 206 | G106: 26 | H106: 41 | I106: 28 | J106: 152 | K106: 83 | L106: 1089 | M106: 127 | N106: 621 | O106: 377 | P106: 13 | Q106: 374 | R106: 73 | S106: 40
A107: RÍO AZUL | B107: 5 | C107: 2388 | D107: 1501 | E107: 1450 | F107: 92 | G107: 11 | H107: 17 | I107: 19 | J107: 64 | K107: 39 | L107: 478 | M107: 15 | N107: 289 | O107: 206 | P107: 7 | Q107: 213 | R107: 28 | S107: 23
A108: LINDA VISTA | B108: 6 | C108: 2876 | D108: 1749 | E108: 1687 | F108: 114 | G108: 15 | H108: 24 | I108: 9 | J108: 88 | K108: 44 | L108: 611 | M108: 112 | N108: 332 | O108: 171 | P108: 6 | Q108: 161 | R108: 45 | S108: 17
A109: CANTÓN 4 JIMÉNEZ | B109: 28 | C109: 10397 | D109: 7783 | E109: 7508 | F109: 874 | G109: 26 | H109: 70 | I109: 113 | J109: 127 | K109: 84 | L109: 3285 | M109: 493 | N109: 803 | O109: 1094 | P109: 96 | Q109: 443 | R109: 165 | S109: 110
A110: DISTRITO 1 JUAN VIÑAS | B110: 14 | C110: 4872 | D110: 3649 | E110: 3529 | F110: 248 | G110: 7 | H110: 29 | I110: 79 | J110: 98 | K110: 41 | L110: 1705 | M110: 337 | N110: 297 | O110: 381 | P110: 54 | Q110: 253 | R110: 63 | S110: 57
A111: JUAN VIÑAS | B111: 6 | C111: 2715 | D111: 2059 | E111: 1987 | F111: 149 | G111: 4 | H111: 15 | I111: 59 | J111: 31 | K111: 23 | L111: 953 | M111: 232 | N111: 131 | O111: 229 | P111: 27 | Q111: 134 | R111: 36 | S111: 36
A112: ALTO VICTORIA | B112: 3 | C112: 1147 | D112: 878 | E112: 852 | F112: 54 | G112: 2 | H112: 5 | I112: 8 | J112: 33 | K112: 14 | L112: 411 | M112: 48 | N112: 84 | O112: 91 | P112: 16 | Q112: 86 | R112: 13 | S112: 13
A113: SANTA MARTA | B113: 1 | C113: 52 | D113: 44 | E113: 39 | F113: 0 | G113: 0 | H113: 0 | I113: 0 | J113: 0 | K113: 0 | L113: 19 | M113: 2 | N113: 13 | O113: 0 | P113: 2 | Q113: 3 | R113: 4 | S113: 1
A114: EL NARANJO | B114: 2 | C114: 627 | D114: 454 | E114: 445 | F114: 33 | G114: 1 | H114: 7 | I114: 12 | J114: 31 | K114: 3 | L114: 193 | M114: 49 | N114: 46 | O114: 44 | P114: 7 | Q114: 19 | R114: 6 | S114: 3
A115: LA GLORIA | B115: 1 | C115: 54 | D115: 25 | E115: 22 | F115: 5 | G115: 0 | H115: 0 | I115: 0 | J115: 0 | K115: 0 | L115: 10 | M115: 3 | N115: 0 | O115: 2 | P115: 1 | Q115: 1 | R115: 2 | S115: 1
A116: SAN MARTÍN | B116: 1 | C116: 277 | D116: 189 | E116: 184 | F116: 7 | G116: 0 | H116: 2 | I116: 0 | J116: 3 | K116: 1 | L116: 119 | M116: 3 | N116: 23 | O116: 15 | P116: 1 | Q116: 10 | R116: 2 | S116: 3
A117: DISTRITO 2 TUCURRIQUE | B117: 7 | C117: 3089 | D117: 2307 | E117: 2211 | F117: 515 | G117: 14 | H117: 13 | I117: 20 | J117: 9 | K117: 25 | L117: 756 | M117: 80 | N117: 324 | O117: 364 | P117: 17 | Q117: 74 | R117: 67 | S117: 29
A118: TUCURRIQUE | B118: 4 | C118: 1981 | D118: 1482 | E118: 1435 | F118: 383 | G118: 8 | H118: 8 | I118: 16 | J118: 6 | K118: 15 | L118: 444 | M118: 66 | N118: 199 | O118: 232 | P118: 13 | Q118: 45 | R118: 29 | S118: 18
A119: SABANILLA | B119: 2 | C119: 584 | D119: 438 | E119: 414 | F119: 85 | G119: 1 | H119: 3 | I119: 4 | J119: 2 | K119: 7 | L119: 174 | M119: 10 | N119: 55 | O119: 58 | P119: 3 | Q119: 12 | R119: 20 | S119: 4
A120: LAS VUELTAS | B120: 1 | C120: 524 | D120: 387 | E120: 362 | F120: 47 | G120: 5 | H120: 2 | I120: 0 | J120: 1 | K120: 3 | L120: 138 | M120: 4 | N120: 70 | O120: 74 | P120: 1 | Q120: 17 | R120: 18 | S120: 7
A121: DISTRITO 3 PEJIBAYE | B121: 7 | C121: 2436 | D121: 1827 | E121: 1768 | F121: 111 | G121: 5 | H121: 28 | I121: 14 | J121: 20 | K121: 18 | L121: 824 | M121: 76 | N121: 182 | O121: 349 | P121: 25 | Q121: 116 | R121: 35 | S121: 24
A122: PEJIBAYE | B122: 4 | C122: 1693 | D122: 1241 | E122: 1196 | F122: 99 | G122: 4 | H122: 6 | I122: 7 | J122: 14 | K122: 11 | L122: 521 | M122: 63 | N122: 98 | O122: 259 | P122: 23 | Q122: 91 | R122: 26 | S122: 19
A123: ORIENTE | B123: 1 | C123: 178 | D123: 111 | E123: 109 | F123: 3 | G123: 1 | H123: 3 | I123: 1 | J123: 2 | K123: 0 | L123: 59 | M123: 1 | N123: 20 | O123: 17 | P123: 0 | Q123: 2 | R123: 2 | S123: 0
A124: HUMO | B124: 2 | C124: 565 | D124: 475 | E124: 463 | F124: 9 | G124: 0 | H124: 19 | I124: 6 | J124: 4 | K124: 7 | L124: 244 | M124: 12 | N124: 64 | O124: 73 | P124: 2 | Q124: 23 | R124: 7 | S124: 5
A125: CANTÓN 5 TURRIALBA | B125: 140 | C125: 51433 | D125: 36203 | E125: 35097 | F125: 3519 | G125: 86 | H125: 399 | I125: 603 | J125: 477 | K125: 552 | L125: 15751 | M125: 1054 | N125: 3806 | O125: 6274 | P125: 838 | Q125: 1738 | R125: 619 | S125: 487
A126: DISTRITO 1 TURRIALBA | B126: 49 | C126: 20825 | D126: 15538 | E126: 15173 | F126: 1353 | G126: 34 | H126: 131 | I126: 301 | J126: 204 | K126: 338 | L126: 6654 | M126: 581 | N126: 1299 | O126: 3144 | P126: 426 | Q126: 708 | R126: 214 | S126: 151
A127: TURRIALBA | B127: 9 | C127: 4437 | D127: 3358 | E127: 3300 | F127: 316 | G127: 4 | H127: 28 | I127: 106 | J127: 36 | K127: 62 | L127: 1396 | M127: 123 | N127: 261 | O127: 770 | P127: 51 | Q127: 147 | R127: 36 | S127: 22
A128: EL PORÓ | B128: 5 | C128: 2177 | D128: 1612 | E128: 1566 | F128: 117 | G128: 5 | H128: 17 | I128: 21 | J128: 24 | K128: 32 | L128: 727 | M128: 32 | N128: 144 | O128: 329 | P128: 24 | Q128: 94 | R128: 26 | S128: 20
A129: SAN JUAN NORTE | B129: 2 | C129: 770 | D129: 567 | E129: 552 | F129: 64 | G129: 0 | H129: 3 | I129: 11 | J129: 1 | K129: 6 | L129: 288 | M129: 69 | N129: 40 | O129: 47 | P129: 6 | Q129: 17 | R129: 6 | S129: 9
A130: SAN JUAN SUR | B130: 2 | C130: 720 | D130: 539 | E130: 525 | F130: 40 | G130: 0 | H130: 0 | I130: 1 | J130: 1 | K130: 4 | L130: 359 | M130: 17 | N130: 40 | O130: 40 | P130: 3 | Q130: 20 | R130: 6 | S130: 8
A131: LAS AMÉRICAS | B131: 11 | C131: 5085 | D131: 3828 | E131: 3755 | F131: 346 | G131: 4 | H131: 34 | I131: 68 | J131: 59 | K131: 83 | L131: 1563 | M131: 162 | N131: 324 | O131: 866 | P131: 77 | Q131: 169 | R131: 46 | S131: 27
A132: FLORENCIA | B132: 1 | C132: 256 | D132: 173 | E132: 161 | F132: 32 | G132: 1 | H132: 0 | I132: 2 | J132: 2 | K132: 15 | L132: 70 | M132: 2 | N132: 9 | O132: 20 | P132: 3 | Q132: 5 | R132: 7 | S132: 5
A133: COLORADO | B133: 2 | C133: 676 | D133: 478 | E133: 464 | F133: 8 | G133: 1 | H133: 8 | I133: 9 | J133: 1 | K133: 33 | L133: 165 | M133: 6 | N133: 51 | O133: 68 | P133: 95 | Q133: 19 | R133: 8 | S133: 6
A134: ESMERALDA | B134: 1 | C134: 134 | D134: 82 | E134: 81 | F134: 6 | G134: 2 | H134: 1 | I134: 0 | J134: 0 | K134: 3 | L134: 34 | M134: 2 | N134: 6 | O134: 16 | P134: 6 | Q134: 5 | R134: 0 | S134: 1
A135: RECREO | B135: 2 | C135: 794 | D135: 610 | E135: 603 | F135: 60 | G135: 1 | H135: 3 | I135: 20 | J135: 3 | K135: 8 | L135: 245 | M135: 31 | N135: 37 | O135: 157 | P135: 7 | Q135: 31 | R135: 3 | S135: 4
A136: NOCHEBUENA | B136: 2 | C136: 606 | D136: 414 | E136: 398 | F136: 55 | G136: 1 | H136: 3 | I136: 3 | J136: 6 | K136: 7 | L136: 196 | M136: 16 | N136: 46 | O136: 41 | P136: 2 | Q136: 22 | R136: 9 | S136: 7
A137: CARMEN LYRA | B137: 7 | C137: 3078 | D137: 2278 | E137: 2205 | F137: 214 | G137: 6 | H137: 21 | I137: 36 | J137: 56 | K137: 56 | L137: 894 | M137: 76 | N137: 201 | O137: 424 | P137: 124 | Q137: 97 | R137: 45 | S137: 28
A138: H.A. SAN BUENAVENTURA | B138: 1 | C138: 68 | D138: 44 | E138: 41 | F138: 3 | G138: 1 | H138: 1 | I138: 0 | J138: 1 | K138: 1 | L138: 23 | M138: 1 | N138: 4 | O138: 5 | P138: 0 | Q138: 1 | R138: 1 | S138: 2
A139: MARGOT | B139: 4 | C139: 2024 | D139: 1555 | E139: 1522 | F139: 92 | G139: 8 | H139: 12 | I139: 24 | J139: 14 | K139: 28 | L139: 694 | M139: 44 | N139: 136 | O139: 361 | P139: 28 | Q139: 81 | R139: 21 | S139: 12
A140: DISTRITO 2 LA SUIZA | B140: 17 | C140: 6076 | D140: 4288 | E140: 4148 | F140: 428 | G140: 11 | H140: 28 | I140: 53 | J140: 56 | K140: 44 | L140: 1808 | M140: 113 | N140: 555 | O140: 718 | P140: 102 | Q140: 232 | R140: 78 | S140: 62
A141: PACAYITAS | B141: 1 | C141: 467 | D141: 358 | E141: 344 | F141: 29 | G141: 1 | H141: 1 | I141: 4 | J141: 1 | K141: 0 | L141: 205 | M141: 3 | N141: 43 | O141: 48 | P141: 3 | Q141: 6 | R141: 8 | S141: 6
A142: LA SUIZA | B142: 7 | C142: 3389 | D142: 2320 | E142: 2247 | F142: 269 | G142: 9 | H142: 15 | I142: 39 | J142: 32 | K142: 28 | L142: 802 | M142: 76 | N142: 296 | O142: 472 | P142: 43 | Q142: 166 | R142: 39 | S142: 34
A143: ATIRRO | B143: 1 | C143: 232 | D143: 134 | E143: 129 | F143: 11 | G143: 0 | H143: 0 | I143: 0 | J143: 2 | K143: 1 | L143: 68 | M143: 4 | N143: 13 | O143: 27 | P143: 1 | Q143: 2 | R143: 3 | S143: 2
A144: MOLLEJONES | B144: 1 | C144: 170 | D144: 130 | E144: 124 | F144: 3 | G144: 0 | H144: 2 | I144: 0 | J144: 0 | K144: 1 | L144: 80 | M144: 1 | N144: 15 | O144: 16 | P144: 1 | Q144: 5 | R144: 3 | S144: 3
A145: CARMEN | B145: 1 | C145: 215 | D145: 158 | E145: 148 | F145: 24 | G145: 0 | H145: 1 | I145: 0 | J145: 2 | K145: 1 | L145: 74 | M145: 5 | N145: 24 | O145: 12 | P145: 0 | Q145: 5 | R145: 4 | S145: 6
A146: SAN VICENTE | B146: 1 | C146: 126 | D146: 106 | E146: 104 | F146: 24 | G146: 0 | H146: 0 | I146: 0 | J146: 2 | K146: 0 | L146: 55 | M146: 1 | N146: 6 | O146: 11 | P146: 3 | Q146: 2 | R146: 0 | S146: 2
A147: EL SILENCIO | B147: 1 | C147: 242 | D147: 169 | E147: 165 | F147: 11 | G147: 0 | H147: 3 | I147: 2 | J147: 0 | K147: 2 | L147: 105 | M147: 2 | N147: 21 | O147: 13 | P147: 2 | Q147: 4 | R147: 2 | S147: 2
A148: CANADÁ | B148: 3 | C148: 1178 | D148: 879 | E148: 853 | F148: 55 | G148: 1 | H148: 3 | I148: 7 | J148: 17 | K148: 10 | L148: 404 | M148: 20 | N148: 130 | O148: 116 | P148: 49 | Q148: 41 | R148: 19 | S148: 7
A149: PACUARE | B149: 1 | C149: 57 | D149: 34 | E149: 34 | F149: 2 | G149: 0 | H149: 3 | I149: 1 | J149: 0 | K149: 1 | L149: 15 | M149: 1 | N149: 7 | O149: 3 | P149: 0 | Q149: 1 | R149: 0 | S149: 0
A150: DISTRITO 3 PERALTA | B150: 1 | C150: 296 | D150: 211 | E150: 202 | F150: 88 | G150: 0 | H150: 1 | I150: 0 | J150: 2 | K150: 1 | L150: 70 | M150: 3 | N150: 18 | O150: 17 | P150: 0 | Q150: 2 | R150: 3 | S150: 6
A151: PERALTA | B151: 1 | C151: 296 | D151: 211 | E151: 202 | F151: 88 | G151: 0 | H151: 1 | I151: 0 | J151: 2 | K151: 1 | L151: 70 | M151: 3 | N151: 18 | O151: 17 | P151: 0 | Q151: 2 | R151: 3 | S151: 6
A152: DISTRITO 4 SANTA CRUZ | B152: 9 | C152: 2413 | D152: 1580 | E152: 1535 | F152: 144 | G152: 6 | H152: 13 | I152: 19 | J152: 12 | K152: 25 | L152: 758 | M152: 38 | N152: 188 | O152: 261 | P152: 11 | Q152: 60 | R152: 24 | S152: 21
A153: SANTA CRUZ | B153: 2 | C153: 633 | D153: 425 | E153: 411 | F153: 64 | G153: 2 | H153: 9 | I153: 1 | J153: 6 | K153: 13 | L153: 183 | M153: 11 | N153: 31 | O153: 78 | P153: 2 | Q153: 11 | R153: 7 | S153: 7
A154: LA PASTORA | B154: 1 | C154: 330 | D154: 240 | E154: 239 | F154: 8 | G154: 0 | H154: 0 | I154: 1 | J154: 1 | K154: 1 | L154: 139 | M154: 4 | N154: 42 | O154: 31 | P154: 0 | Q154: 12 | R154: 1 | S154: 0
A155: SAN ANTONIO | B155: 2 | C155: 637 | D155: 420 | E155: 405 | F155: 33 | G155: 0 | H155: 0 | I155: 10 | J155: 4 | K155: 5 | L155: 200 | M155: 16 | N155: 55 | O155: 66 | P155: 3 | Q155: 13 | R155: 9 | S155: 6
A156: EL VOLCÁN | B156: 1 | C156: 69 | D156: 6 | E156: 6 | F156: 0 | G156: 0 | H156: 0 | I156: 0 | J156: 0 | K156: 0 | L156: 2 | M156: 0 | N156: 2 | O156: 1 | P156: 0 | Q156: 1 | R156: 0 | S156: 0
A157: CALLE VARGAS | B157: 1 | C157: 303 | D157: 175 | E157: 173 | F157: 8 | G157: 1 | H157: 0 | I157: 0 | J157: 0 | K157: 1 | L157: 99 | M157: 1 | N157: 18 | O157: 33 | P157: 2 | Q157: 10 | R157: 0 | S157: 2
A158: EL CARMEN DE SANTA CRUZ | B158: 1 | C158: 335 | D158: 241 | E158: 231 | F158: 20 | G158: 1 | H158: 4 | I158: 7 | J158: 1 | K158: 2 | L158: 97 | M158: 5 | N158: 35 | O158: 47 | P158: 3 | Q158: 9 | R158: 5 | S158: 5
A159: LAS VIRTUDES | B159: 1 | C159: 106 | D159: 73 | E159: 70 | F159: 11 | G159: 2 | H159: 0 | I159: 0 | J159: 0 | K159: 3 | L159: 38 | M159: 1 | N159: 5 | O159: 5 | P159: 1 | Q159: 4 | R159: 2 | S159: 1
A160: DISTRITO 5 SANTA TERESITA | B160: 12 | C160: 3468 | D160: 2404 | E160: 2318 | F160: 170 | G160: 3 | H160: 16 | I160: 19 | J160: 23 | K160: 13 | L160: 1180 | M160: 48 | N160: 399 | O160: 344 | P160: 12 | Q160: 91 | R160: 39 | S160: 47
A161: BONILLA ARRIBA | B161: 1 | C161: 53 | D161: 36 | E161: 36 | F161: 14 | G161: 0 | H161: 0 | I161: 0 | J161: 0 | K161: 0 | L161: 3 | M161: 1 | N161: 2 | O161: 16 | P161: 0 | Q161: 0 | R161: 0 | S161: 0
A162: TORITO ARRIBA O NORTE | B162: 1 | C162: 128 | D162: 86 | E162: 83 | F162: 26 | G162: 0 | H162: 1 | I162: 0 | J162: 0 | K162: 0 | L162: 28 | M162: 0 | N162: 13 | O162: 12 | P162: 1 | Q162: 2 | R162: 1 | S162: 2
A163: SANTA TERESITA (LAJAS) | B163: 3 | C163: 1068 | D163: 701 | E163: 671 | F163: 39 | G163: 2 | H163: 0 | I163: 7 | J163: 5 | K163: 4 | L163: 351 | M163: 11 | N163: 132 | O163: 90 | P163: 2 | Q163: 28 | R163: 13 | S163: 17
A164: COLONIA GUAYABO | B164: 1 | C164: 407 | D164: 304 | E164: 290 | F164: 20 | G164: 0 | H164: 4 | I164: 3 | J164: 0 | K164: 4 | L164: 123 | M164: 4 | N164: 59 | O164: 57 | P164: 1 | Q164: 15 | R164: 3 | S164: 11
A165: CIMARRONES | B165: 1 | C165: 346 | D165: 244 | E165: 237 | F165: 26 | G165: 0 | H165: 4 | I165: 3 | J165: 1 | K165: 3 | L165: 73 | M165: 18 | N165: 59 | O165: 34 | P165: 2 | Q165: 14 | R165: 6 | S165: 1
A166: PALOMO | B166: 1 | C166: 286 | D166: 201 | E166: 197 | F166: 2 | G166: 0 | H166: 2 | I166: 0 | J166: 2 | K166: 1 | L166: 142 | M166: 1 | N166: 28 | O166: 11 | P166: 0 | Q166: 8 | R166: 1 | S166: 3
A167: SAN RAMÓN | B167: 1 | C167: 274 | D167: 195 | E167: 192 | F167: 13 | G167: 0 | H167: 2 | I167: 2 | J167: 1 | K167: 0 | L167: 109 | M167: 4 | N167: 21 | O167: 31 | P167: 1 | Q167: 8 | R167: 0 | S167: 3
A168: FUENTE | B168: 1 | C168: 166 | D168: 112 | E168: 108 | F168: 9 | G168: 0 | H168: 0 | I168: 1 | J168: 0 | K168: 0 | L168: 38 | M168: 1 | N168: 22 | O168: 35 | P168: 1 | Q168: 1 | R168: 1 | S168: 3
A169: SAUCE | B169: 1 | C169: 513 | D169: 366 | E169: 351 | F169: 8 | G169: 0 | H169: 0 | I169: 0 | J169: 9 | K169: 1 | L169: 262 | M169: 7 | N169: 31 | O169: 25 | P169: 3 | Q169: 5 | R169: 9 | S169: 6
A170: GUAYABO ABAJO | B170: 1 | C170: 227 | D170: 159 | E170: 153 | F170: 13 | G170: 1 | H170: 3 | I170: 3 | J170: 5 | K170: 0 | L170: 51 | M170: 1 | N170: 32 | O170: 33 | P170: 1 | Q170: 10 | R170: 5 | S170: 1
A171: DISTRITO 6 PAVONES | B171: 7 | C171: 3205 | D171: 2182 | E171: 2118 | F171: 321 | G171: 7 | H171: 105 | I171: 14 | J171: 33 | K171: 22 | L171: 899 | M171: 35 | N171: 235 | O171: 315 | P171: 27 | Q171: 105 | R171: 32 | S171: 32
A172: PAVONES | B172: 2 | C172: 955 | D172: 605 | E172: 589 | F172: 80 | G172: 2 | H172: 33 | I172: 4 | J172: 8 | K172: 6 | L172: 270 | M172: 11 | N172: 50 | O172: 83 | P172: 7 | Q172: 35 | R172: 4 | S172: 12
A173: SITIO DE MATA | B173: 1 | C173: 429 | D173: 303 | E173: 297 | F173: 36 | G173: 0 | H173: 7 | I173: 0 | J173: 3 | K173: 3 | L173: 175 | M173: 5 | N173: 29 | O173: 26 | P173: 1 | Q173: 12 | R173: 2 | S173: 4
A174: CHITARÍA | B174: 1 | C174: 510 | D174: 369 | E174: 356 | F174: 91 | G174: 0 | H174: 10 | I174: 1 | J174: 9 | K174: 4 | L174: 136 | M174: 2 | N174: 54 | O174: 40 | P174: 2 | Q174: 7 | R174: 6 | S174: 7
A175: ESLABÓN | B175: 1 | C175: 457 | D175: 322 | E175: 316 | F175: 43 | G175: 1 | H175: 2 | I175: 4 | J175: 4 | K175: 5 | L175: 106 | M175: 7 | N175: 44 | O175: 68 | P175: 11 | Q175: 21 | R175: 6 | S175: 0
A176: JABILLOS | B176: 2 | C176: 854 | D176: 583 | E176: 560 | F176: 71 | G176: 4 | H176: 53 | I176: 5 | J176: 9 | K176: 4 | L176: 212 | M176: 10 | N176: 58 | O176: 98 | P176: 6 | Q176: 30 | R176: 14 | S176: 9
A177: DISTRITO 7 TUIS | B177: 6 | C177: 1710 | D177: 1207 | E177: 1157 | F177: 79 | G177: 3 | H177: 14 | I177: 44 | J177: 21 | K177: 7 | L177: 516 | M177: 21 | N177: 165 | O177: 215 | P177: 12 | Q177: 60 | R177: 30 | S177: 20
A178: TUIS | B178: 3 | C178: 1174 | D178: 817 | E178: 783 | F178: 59 | G178: 2 | H178: 11 | I178: 39 | J178: 12 | K178: 6 | L178: 326 | M178: 14 | N178: 120 | O178: 137 | P178: 11 | Q178: 46 | R178: 20 | S178: 14
A179: SAN JOAQUÍN (CABEZA DE BUEY) | B179: 1 | C179: 233 | D179: 172 | E179: 166 | F179: 11 | G179: 0 | H179: 0 | I179: 2 | J179: 7 | K179: 1 | L179: 81 | M179: 4 | N179: 24 | O179: 28 | P179: 1 | Q179: 7 | R179: 2 | S179: 4
A180: CIEN MANZANAS | B180: 1 | C180: 242 | D180: 183 | E180: 173 | F180: 0 | G180: 1 | H180: 3 | I180: 1 | J180: 2 | K180: 0 | L180: 99 | M180: 2 | N180: 15 | O180: 44 | P180: 0 | Q180: 6 | R180: 8 | S180: 2
A181: LAS NUBES | B181: 1 | C181: 61 | D181: 35 | E181: 35 | F181: 9 | G181: 0 | H181: 0 | I181: 2 | J181: 0 | K181: 0 | L181: 10 | M181: 1 | N181: 6 | O181: 6 | P181: 0 | Q181: 1 | R181: 0 | S181: 0
A182: DISTRITO 8 TAYUTIC | B182: 5 | C182: 1680 | D182: 1141 | E182: 1098 | F182: 60 | G182: 3 | H182: 11 | I182: 11 | J182: 15 | K182: 14 | L182: 562 | M182: 11 | N182: 99 | O182: 135 | P182: 6 | Q182: 171 | R182: 16 | S182: 27
A183: PLATANILLO | B183: 3 | C183: 1196 | D183: 837 | E183: 809 | F183: 41 | G183: 3 | H183: 9 | I183: 8 | J183: 6 | K183: 11 | L183: 380 | M183: 10 | N183: 75 | O183: 98 | P183: 5 | Q183: 163 | R183: 9 | S183: 19
A184: BAJO PACUARE O SUR | B184: 1 | C184: 186 | D184: 108 | E184: 99 | F184: 8 | G184: 0 | H184: 1 | I184: 1 | J184: 2 | K184: 1 | L184: 56 | M184: 0 | N184: 11 | O184: 18 | P184: 0 | Q184: 1 | R184: 5 | S184: 4
A185: JICOTEA | B185: 1 | C185: 298 | D185: 196 | E185: 190 | F185: 11 | G185: 0 | H185: 1 | I185: 2 | J185: 7 | K185: 2 | L185: 126 | M185: 1 | N185: 13 | O185: 19 | P185: 1 | Q185: 7 | R185: 2 | S185: 4
A186: DISTRITO 9 SANTA ROSA | B186: 8 | C186: 3757 | D186: 2826 | E186: 2746 | F186: 174 | G186: 4 | H186: 24 | I186: 63 | J186: 25 | K186: 33 | L186: 1416 | M186: 108 | N186: 290 | O186: 372 | P186: 129 | Q186: 108 | R186: 49 | S186: 31
A187: AQUIARES O LA ISLA | B187: 2 | C187: 1022 | D187: 775 | E187: 758 | F187: 40 | G187: 1 | H187: 9 | I187: 9 | J187: 6 | K187: 3 | L187: 481 | M187: 13 | N187: 71 | O187: 84 | P187: 16 | Q187: 25 | R187: 6 | S187: 11
A188: SANTA ROSA | B188: 4 | C188: 1995 | D188: 1454 | E188: 1409 | F188: 98 | G188: 0 | H188: 10 | I188: 44 | J188: 14 | K188: 20 | L188: 639 | M188: 82 | N188: 125 | O188: 221 | P188: 109 | Q188: 47 | R188: 32 | S188: 13
A189: VERBENA NORTE | B189: 1 | C189: 445 | D189: 353 | E189: 342 | F189: 17 | G189: 0 | H189: 3 | I189: 8 | J189: 2 | K189: 9 | L189: 166 | M189: 9 | N189: 66 | O189: 41 | P189: 3 | Q189: 18 | R189: 8 | S189: 3
A190: SAN RAFAEL | B190: 1 | C190: 295 | D190: 244 | E190: 237 | F190: 19 | G190: 3 | H190: 2 | I190: 2 | J190: 3 | K190: 1 | L190: 130 | M190: 4 | N190: 28 | O190: 26 | P190: 1 | Q190: 18 | R190: 3 | S190: 4
A191: DISTRITO 10 TRES EQUIS | B191: 4 | C191: 1248 | D191: 856 | E191: 815 | F191: 177 | G191: 2 | H191: 38 | I191: 2 | J191: 11 | K191: 4 | L191: 350 | M191: 1 | N191: 101 | O191: 95 | P191: 5 | Q191: 29 | R191: 26 | S191: 15
A192: LA FLOR DE TRES EQUIS | B192: 1 | C192: 197 | D192: 141 | E192: 135 | F192: 19 | G192: 0 | H192: 2 | I192: 0 | J192: 0 | K192: 1 | L192: 85 | M192: 0 | N192: 21 | O192: 6 | P192: 0 | Q192: 1 | R192: 5 | S192: 1
A193: TRES EQUIS | B193: 3 | C193: 1051 | D193: 715 | E193: 680 | F193: 158 | G193: 2 | H193: 36 | I193: 2 | J193: 11 | K193: 3 | L193: 265 | M193: 1 | N193: 80 | O193: 89 | P193: 5 | Q193: 28 | R193: 21 | S193: 14
A194: DISTRITO 11 LA ISABEL | B194: 11 | C194: 4359 | D194: 3129 | E194: 3019 | F194: 396 | G194: 11 | H194: 16 | I194: 72 | J194: 65 | K194: 39 | L194: 1217 | M194: 80 | N194: 361 | O194: 533 | P194: 104 | Q194: 125 | R194: 70 | S194: 40
A195: EL MORA | B195: 5 | C195: 2156 | D195: 1523 | E195: 1472 | F195: 139 | G195: 2 | H195: 4 | I195: 44 | J195: 26 | K195: 18 | L195: 641 | M195: 34 | N195: 191 | O195: 260 | P195: 37 | Q195: 76 | R195: 32 | S195: 19
A196: SAN MARTÍN | B196: 1 | C196: 442 | D196: 280 | E196: 268 | F196: 65 | G196: 2 | H196: 2 | I196: 6 | J196: 2 | K196: 8 | L196: 92 | M196: 13 | N196: 36 | O196: 25 | P196: 7 | Q196: 10 | R196: 5 | S196: 7
A197: ALTO VARAL | B197: 1 | C197: 196 | D197: 152 | E197: 146 | F197: 69 | G197: 0 | H197: 1 | I197: 1 | J197: 4 | K197: 1 | L197: 44 | M197: 4 | N197: 3 | O197: 16 | P197: 1 | Q197: 2 | R197: 3 | S197: 3
A198: AZUL | B198: 4 | C198: 1565 | D198: 1174 | E198: 1133 | F198: 123 | G198: 7 | H198: 9 | I198: 21 | J198: 33 | K198: 12 | L198: 440 | M198: 29 | N198: 131 | O198: 232 | P198: 59 | Q198: 37 | R198: 30 | S198: 11
A199: DISTRITO 12 CHIRRIPÓ | B199: 11 | C199: 2396 | D199: 841 | E199: 768 | F199: 129 | G199: 2 | H199: 2 | I199: 5 | J199: 10 | K199: 12 | L199: 321 | M199: 15 | N199: 96 | O199: 125 | P199: 4 | Q199: 47 | R199: 38 | S199: 35
A200: GRANO DE ORO O XARA | B200: 2 | C200: 575 | D200: 296 | E200: 278 | F200: 46 | G200: 0 | H200: 1 | I200: 3 | J200: 2 | K200: 1 | L200: 102 | M200: 10 | N200: 20 | O200: 49 | P200: 2 | Q200: 42 | R200: 7 | S200: 11
A201: SIMIRIÑAC (JACUY) | B201: 1 | C201: 195 | D201: 56 | E201: 49 | F201: 5 | G201: 0 | H201: 0 | I201: 0 | J201: 2 | K201: 0 | L201: 27 | M201: 2 | N201: 7 | O201: 6 | P201: 0 | Q201: 0 | R201: 1 | S201: 6
A202: DUCLAC (ALTO PACUARE) | B202: 1 | C202: 253 | D202: 23 | E202: 18 | F202: 5 | G202: 0 | H202: 0 | I202: 0 | J202: 0 | K202: 2 | L202: 5 | M202: 1 | N202: 3 | O202: 2 | P202: 0 | Q202: 0 | R202: 4 | S202: 1
A203: JAKI (CAPILLA DOS CHIRRIPÓ ARRIBA) | B203: 1 | C203: 277 | D203: 49 | E203: 37 | F203: 14 | G203: 1 | H203: 0 | I203: 0 | J203: 0 | K203: 2 | L203: 14 | M203: 0 | N203: 3 | O203: 2 | P203: 0 | Q203: 1 | R203: 12 | S203: 0
... 57 more rows

Sheet C2.13
A2: CUADRO 2.13 HEREDIA: JUNTAS, ELECTORADO, VOTOS POR PARTIDO, NULOS Y BLANCOS PARA DIPUTACIONES A LA ASAMBLEA LEGISLATIVA
A3: SEGÚN CANTÓN, DISTRITO ADMINISTRATIVO Y DISTRITO ELECTORAL, ELECCIONES 7 DE FEBRERO 2010
A5: CANTÓN, DISTRITO ADMINISTRATIVO Y DISTRITO ELECTORAL | B5: JUNTAS | C5: ELECTORADO | D5: VOTOS RECIBIDOS
D6: TOTAL GENERAL | E6: VOTOS VÁLIDOS | P6: VOTOS NULOS | Q6: VOTOS BLANCOS
E7: TOTAL | F7: UNIDAD SOCIAL CRISTIANA | G7: INTEGRACIÓN NACIONAL | H7: ALIANZA PATRIÓTICA | I7: RENOVACIÓN COSTARRICENSE | J7: FRENTE AMPLIO | K7: LIBERACIÓN NACIONAL | L7: MOVIMIENTO LIBERTARIO | M7: ACCIÓN CIUDADANA | N7: RESTAURACIÓN HEREDIANA | O7: ACCESIBILIDAD SIN EXCLUSIÓN
A9: HEREDIA | B9: 604 | C9: 278544 | D9: 203697 | E9: 199698 | F9: 14510 | G9: 950 | H9: 3785 | I9: 5724 | J9: 9523 | K9: 73929 | L9: 27766 | M9: 38143 | N9: 7953 | O9: 17415 | P9: 2466 | Q9: 1533
A10: CANTÓN 1 HEREDIA | B10: 176 | C10: 84511 | D10: 61372 | E10: 60460 | F10: 3832 | G10: 276 | H10: 1302 | I10: 1601 | J10: 3680 | K10: 22862 | L10: 7944 | M10: 11060 | N10: 2665 | O10: 5238 | P10: 590 | Q10: 322
A11: DISTRITO 1 HEREDIA | B11: 38 | C11: 18262 | D11: 13605 | E11: 13415 | F11: 1044 | G11: 63 | H11: 440 | I11: 204 | J11: 1081 | K11: 5164 | L11: 1394 | M11: 2660 | N11: 426 | O11: 939 | P11: 126 | Q11: 64
A12: HEREDIA | B12: 37 | C12: 18242 | D12: 13592 | E12: 13403 | F12: 1044 | G12: 63 | H12: 440 | I12: 204 | J12: 1081 | K12: 5153 | L12: 1394 | M12: 2659 | N12: 426 | O12: 939 | P12: 126 | Q12: 63
A13: C.P. SAN AGUSTÍN | B13: 1 | C13: 20 | D13: 13 | E13: 12 | F13: 0 | G13: 0 | H13: 0 | I13: 0 | J13: 0 | K13: 11 | L13: 0 | M13: 1 | N13: 0 | O13: 0 | P13: 0 | Q13: 1
A14: DISTRITO 2 MERCEDES | B14: 37 | C14: 18289 | D14: 14156 | E14: 13990 | F14: 737 | G14: 68 | H14: 324 | I14: 276 | J14: 974 | K14: 5169 | L14: 1689 | M14: 2999 | N14: 528 | O14: 1226 | P14: 92 | Q14: 74
A15: MERCEDES NORTE | B15: 17 | C15: 8349 | D15: 6561 | E15: 6479 | F15: 308 | G15: 27 | H15: 142 | I15: 100 | J15: 498 | K15: 2314 | L15: 769 | M15: 1404 | N15: 328 | O15: 589 | P15: 48 | Q15: 34
A16: MERCEDES SUR | B16: 20 | C16: 9940 | D16: 7595 | E16: 7511 | F16: 429 | G16: 41 | H16: 182 | I16: 176 | J16: 476 | K16: 2855 | L16: 920 | M16: 1595 | N16: 200 | O16: 637 | P16: 44 | Q16: 40
A17: DISTRITO 3 SAN FRANCISCO | B17: 64 | C17: 30848 | D17: 21382 | E17: 21008 | F17: 1203 | G17: 76 | H17: 299 | I17: 778 | J17: 1059 | K17: 7802 | L17: 3264 | M17: 3540 | N17: 1073 | O17: 1914 | P17: 248 | Q17: 126
A18: SAN FRANCISCO | B18: 27 | C18: 13229 | D18: 9677 | E18: 9540 | F18: 444 | G18: 29 | H18: 169 | I18: 304 | J18: 488 | K18: 3650 | L18: 1226 | M18: 1818 | N18: 575 | O18: 837 | P18: 102 | Q18: 35
A19: LOS LAGOS | B19: 9 | C19: 4169 | D19: 3023 | E19: 2979 | F19: 164 | G19: 18 | H19: 48 | I19: 96 | J19: 212 | K19: 1022 | L19: 467 | M19: 592 | N19: 76 | O19: 284 | P19: 27 | Q19: 17
A20: BERNARDO BENAVIDES (INVU) | B20: 9 | C20: 4220 | D20: 2970 | E20: 2921 | F20: 172 | G20: 12 | H20: 36 | I20: 125 | J20: 212 | K20: 1063 | L20: 388 | M20: 495 | N20: 133 | O20: 285 | P20: 32 | Q20: 17
A21: GUARARÍ | B21: 19 | C21: 9230 | D21: 5712 | E21: 5568 | F21: 423 | G21: 17 | H21: 46 | I21: 253 | J21: 147 | K21: 2067 | L21: 1183 | M21: 635 | N21: 289 | O21: 508 | P21: 87 | Q21: 57
A22: DISTRITO 4 ULLOA | B22: 35 | C22: 16621 | D22: 11918 | E22: 11749 | F22: 768 | G22: 68 | H22: 239 | I22: 340 | J22: 564 | K22: 4597 | L22: 1537 | M22: 1853 | N22: 628 | O22: 1155 | P22: 116 | Q22: 53
A23: BARREAL (SAN JOSÉ) | B23: 10 | C23: 4730 | D23: 3426 | E23: 3363 | F23: 289 | G23: 21 | H23: 33 | I23: 101 | J23: 194 | K23: 1343 | L23: 466 | M23: 448 | N23: 137 | O23: 331 | P23: 36 | Q23: 27
A24: LA AURORA (PARTE SUR) | B24: 17 | C24: 8200 | D24: 5795 | E24: 5716 | F24: 254 | G24: 34 | H24: 174 | I24: 160 | J24: 226 | K24: 2160 | L24: 716 | M24: 964 | N24: 409 | O24: 619 | P24: 60 | Q24: 19
A25: LAGUNILLA | B25: 8 | C25: 3691 | D25: 2697 | E25: 2670 | F25: 225 | G25: 13 | H25: 32 | I25: 79 | J25: 144 | K25: 1094 | L25: 355 | M25: 441 | N25: 82 | O25: 205 | P25: 20 | Q25: 7
A26: DISTRITO 5 VARABLANCA | B26: 2 | C26: 491 | D26: 311 | E26: 298 | F26: 80 | G26: 1 | H26: 0 | I26: 3 | J26: 2 | K26: 130 | L26: 60 | M26: 8 | N26: 10 | O26: 4 | P26: 8 | Q26: 5
A27: VARABLANCA | B27: 1 | C27: 344 | D27: 222 | E27: 213 | F27: 46 | G27: 0 | H27: 0 | I27: 3 | J27: 1 | K27: 101 | L27: 43 | M27: 7 | N27: 9 | O27: 3 | P27: 6 | Q27: 3
A28: SAN RAFAEL DE VARABLANCA | B28: 1 | C28: 147 | D28: 89 | E28: 85 | F28: 34 | G28: 1 | H28: 0 | I28: 0 | J28: 1 | K28: 29 | L28: 17 | M28: 1 | N28: 1 | O28: 1 | P28: 2 | Q28: 2
A29: CANTÓN 2 BARVA | B29: 58 | C29: 26982 | D29: 20375 | E29: 20040 | F29: 1089 | G29: 85 | H29: 266 | I29: 453 | J29: 1262 | K29: 6631 | L29: 3004 | M29: 4607 | N29: 937 | O29: 1706 | P29: 207 | Q29: 128
A30: DISTRITO 1 BARVA | B30: 12 | C30: 5798 | D30: 4484 | E30: 4411 | F30: 217 | G30: 12 | H30: 71 | I30: 92 | J30: 438 | K30: 1430 | L30: 599 | M30: 1039 | N30: 206 | O30: 307 | P30: 49 | Q30: 24
A31: BARVA | B31: 12 | C31: 5798 | D31: 4484 | E31: 4411 | F31: 217 | G31: 12 | H31: 71 | I31: 92 | J31: 438 | K31: 1430 | L31: 599 | M31: 1039 | N31: 206 | O31: 307 | P31: 49 | Q31: 24
A32: DISTRITO 2 SAN PEDRO | B32: 14 | C32: 6732 | D32: 4903 | E32: 4801 | F32: 266 | G32: 25 | H32: 48 | I32: 101 | J32: 218 | K32: 1585 | L32: 779 | M32: 1118 | N32: 259 | O32: 402 | P32: 67 | Q32: 35
A33: SAN PEDRO | B33: 9 | C33: 4294 | D33: 3196 | E33: 3132 | F33: 177 | G33: 19 | H33: 29 | I33: 55 | J33: 165 | K33: 1001 | L33: 464 | M33: 772 | N33: 183 | O33: 267 | P33: 40 | Q33: 24
A34: PUENTE DE SALAS | B34: 5 | C34: 2438 | D34: 1707 | E34: 1669 | F34: 89 | G34: 6 | H34: 19 | I34: 46 | J34: 53 | K34: 584 | L34: 315 | M34: 346 | N34: 76 | O34: 135 | P34: 27 | Q34: 11
A35: DISTRITO 3 SAN PABLO | B35: 10 | C35: 4660 | D35: 3506 | E35: 3456 | F35: 178 | G35: 19 | H35: 39 | I35: 93 | J35: 215 | K35: 1061 | L35: 561 | M35: 759 | N35: 172 | O35: 359 | P35: 25 | Q35: 25
A36: SAN PABLO | B36: 7 | C36: 3443 | D36: 2544 | E36: 2502 | F36: 116 | G36: 14 | H36: 33 | I36: 82 | J36: 153 | K36: 702 | L36: 436 | M36: 561 | N36: 145 | O36: 260 | P36: 21 | Q36: 21
A37: BUENAVISTA (ALTO DE ABRA) | B37: 3 | C37: 1217 | D37: 962 | E37: 954 | F37: 62 | G37: 5 | H37: 6 | I37: 11 | J37: 62 | K37: 359 | L37: 125 | M37: 198 | N37: 27 | O37: 99 | P37: 4 | Q37: 4
A38: DISTRITO 4 SAN ROQUE | B38: 4 | C38: 1944 | D38: 1505 | E38: 1491 | F38: 87 | G38: 8 | H38: 10 | I38: 22 | J38: 94 | K38: 490 | L38: 194 | M38: 352 | N38: 78 | O38: 156 | P38: 8 | Q38: 6
A39: SAN ROQUE | B39: 4 | C39: 1944 | D39: 1505 | E39: 1491 | F39: 87 | G39: 8 | H39: 10 | I39: 22 | J39: 94 | K39: 490 | L39: 194 | M39: 352 | N39: 78 | O39: 156 | P39: 8 | Q39: 6
A40: DISTRITO 5 SANTA LUCIA | B40: 9 | C40: 4271 | D40: 3324 | E40: 3281 | F40: 155 | G40: 9 | H40: 62 | I40: 58 | J40: 198 | K40: 1057 | L40: 476 | M40: 859 | N40: 133 | O40: 274 | P40: 29 | Q40: 14
A41: SANTA LUCÍA | B41: 9 | C41: 4271 | D41: 3324 | E41: 3281 | F41: 155 | G41: 9 | H41: 62 | I41: 58 | J41: 198 | K41: 1057 | L41: 476 | M41: 859 | N41: 133 | O41: 274 | P41: 29 | Q41: 14
A42: DISTRITO 6 SAN JOSÉ DE LA MONTAÑA | B42: 9 | C42: 3577 | D42: 2653 | E42: 2600 | F42: 186 | G42: 12 | H42: 36 | I42: 87 | J42: 99 | K42: 1008 | L42: 395 | M42: 480 | N42: 89 | O42: 208 | P42: 29 | Q42: 24
A43: SAN JOSÉ DE LA MONTAÑA | B43: 6 | C43: 2856 | D43: 2168 | E43: 2126 | F43: 130 | G43: 10 | H43: 32 | I43: 76 | J43: 86 | K43: 851 | L43: 292 | M43: 408 | N43: 84 | O43: 157 | P43: 24 | Q43: 18
A44: SACRAMENTO | B44: 1 | C44: 92 | D44: 59 | E44: 59 | F44: 7 | G44: 1 | H44: 2 | I44: 1 | J44: 0 | K44: 19 | L44: 9 | M44: 11 | N44: 0 | O44: 9 | P44: 0 | Q44: 0
A45: PASO LLANO O PORROSATÍ | B45: 1 | C45: 255 | D45: 160 | E45: 152 | F45: 17 | G45: 0 | H45: 0 | I45: 6 | J45: 5 | K45: 44 | L45: 48 | M45: 18 | N45: 0 | O45: 14 | P45: 3 | Q45: 5
A46: SAN MIGUEL | B46: 1 | C46: 374 | D46: 266 | E46: 263 | F46: 32 | G46: 1 | H46: 2 | I46: 4 | J46: 8 | K46: 94 | L46: 46 | M46: 43 | N46: 5 | O46: 28 | P46: 2 | Q46: 1
A47: CANTÓN 3 SANTO DOMINGO | B47: 63 | C47: 30208 | D47: 22872 | E47: 22518 | F47: 1330 | G47: 121 | H47: 231 | I47: 551 | J47: 906 | K47: 8575 | L47: 2829 | M47: 4555 | N47: 600 | O47: 2820 | P47: 231 | Q47: 123
A48: DISTRITO 1 SANTO DOMINGO | B48: 16 | C48: 7753 | D48: 5990 | E48: 5894 | F48: 394 | G48: 28 | H48: 54 | I48: 96 | J48: 317 | K48: 2519 | L48: 648 | M48: 1233 | N48: 117 | O48: 488 | P48: 59 | Q48: 37
A49: SANTO DOMINGO | B49: 16 | C49: 7753 | D49: 5990 | E49: 5894 | F49: 394 | G49: 28 | H49: 54 | I49: 96 | J49: 317 | K49: 2519 | L49: 648 | M49: 1233 | N49: 117 | O49: 488 | P49: 59 | Q49: 37
A50: DISTRITO 2 SAN VICENTE | B50: 7 | C50: 3468 | D50: 2739 | E50: 2710 | F50: 151 | G50: 8 | H50: 36 | I50: 52 | J50: 159 | K50: 1095 | L50: 277 | M50: 648 | N50: 65 | O50: 219 | P50: 18 | Q50: 11
A51: SAN VICENTE | B51: 7 | C51: 3468 | D51: 2739 | E51: 2710 | F51: 151 | G51: 8 | H51: 36 | I51: 52 | J51: 159 | K51: 1095 | L51: 277 | M51: 648 | N51: 65 | O51: 219 | P51: 18 | Q51: 11
A52: DISTRITO 3 SAN MIGUEL | B52: 10 | C52: 4534 | D52: 3458 | E52: 3411 | F52: 156 | G52: 24 | H52: 27 | I52: 117 | J52: 97 | K52: 1074 | L52: 617 | M52: 761 | N52: 97 | O52: 441 | P52: 32 | Q52: 15
A53: SAN MIGUEL | B53: 7 | C53: 3205 | D53: 2433 | E53: 2401 | F53: 102 | G53: 14 | H53: 19 | I53: 89 | J53: 70 | K53: 758 | L53: 458 | M53: 523 | N53: 67 | O53: 301 | P53: 22 | Q53: 10
A54: SOCORRO | B54: 1 | C54: 469 | D54: 361 | E54: 359 | F54: 26 | G54: 2 | H54: 3 | I54: 4 | J54: 10 | K54: 136 | L54: 36 | M54: 98 | N54: 5 | O54: 39 | P54: 1 | Q54: 1
A55: CASTILLA (EL CARMEN) | B55: 2 | C55: 860 | D55: 664 | E55: 651 | F55: 28 | G55: 8 | H55: 5 | I55: 24 | J55: 17 | K55: 180 | L55: 123 | M55: 140 | N55: 25 | O55: 101 | P55: 9 | Q55: 4
A56: DISTRITO 4 PARACITO | B56: 4 | C56: 1953 | D56: 1463 | E56: 1441 | F56: 67 | G56: 12 | H56: 8 | I56: 71 | J56: 37 | K56: 635 | L56: 223 | M56: 216 | N56: 25 | O56: 147 | P56: 14 | Q56: 8
A57: PARACITO | B57: 4 | C57: 1953 | D57: 1463 | E57: 1441 | F57: 67 | G57: 12 | H57: 8 | I57: 71 | J57: 37 | K57: 635 | L57: 223 | M57: 216 | N57: 25 | O57: 147 | P57: 14 | Q57: 8
A58: DISTRITO 5 SANTO TOMÁS | B58: 7 | C58: 3358 | D58: 2591 | E58: 2550 | F58: 186 | G58: 10 | H58: 24 | I58: 57 | J58: 97 | K58: 909 | L58: 298 | M58: 529 | N58: 97 | O58: 343 | P58: 29 | Q58: 12
A59: SANTO TOMÁS | B59: 7 | C59: 3358 | D59: 2591 | E59: 2550 | F59: 186 | G59: 10 | H59: 24 | I59: 57 | J59: 97 | K59: 909 | L59: 298 | M59: 529 | N59: 97 | O59: 343 | P59: 29 | Q59: 12
A60: DISTRITO 6 SANTA ROSA | B60: 9 | C60: 4402 | D60: 3146 | E60: 3096 | F60: 205 | G60: 24 | H60: 63 | I60: 82 | J60: 105 | K60: 1267 | L60: 426 | M60: 509 | N60: 79 | O60: 336 | P60: 30 | Q60: 20
A61: SANTA ROSA | B61: 9 | C61: 4402 | D61: 3146 | E61: 3096 | F61: 205 | G61: 24 | H61: 63 | I61: 82 | J61: 105 | K61: 1267 | L61: 426 | M61: 509 | N61: 79 | O61: 336 | P61: 30 | Q61: 20
A62: DISTRITO 7 TURES | B62: 5 | C62: 2474 | D62: 1833 | E62: 1790 | F62: 81 | G62: 7 | H62: 4 | I62: 32 | J62: 29 | K62: 538 | L62: 139 | M62: 270 | N62: 30 | O62: 660 | P62: 32 | Q62: 11
A63: LOS ÁNGELES | B63: 5 | C63: 2474 | D63: 1833 | E63: 1790 | F63: 81 | G63: 7 | H63: 4 | I63: 32 | J63: 29 | K63: 538 | L63: 139 | M63: 270 | N63: 30 | O63: 660 | P63: 32 | Q63: 11
A64: DISTRITO 8 PARÁ | B64: 5 | C64: 2266 | D64: 1652 | E64: 1626 | F64: 90 | G64: 8 | H64: 15 | I64: 44 | J64: 65 | K64: 538 | L64: 201 | M64: 389 | N64: 90 | O64: 186 | P64: 17 | Q64: 9
A65: SAN LUIS | B65: 5 | C65: 2266 | D65: 1652 | E65: 1626 | F65: 90 | G65: 8 | H65: 15 | I65: 44 | J65: 65 | K65: 538 | L65: 201 | M65: 389 | N65: 90 | O65: 186 | P65: 17 | Q65: 9
A66: CANTÓN 4 SANTA BÁRBARA | B66: 48 | C66: 22277 | D66: 16419 | E66: 16040 | F66: 822 | G66: 101 | H66: 220 | I66: 354 | J66: 665 | K66: 5749 | L66: 2775 | M66: 3008 | N66: 799 | O66: 1547 | P66: 216 | Q66: 163
A67: DISTRITO 1 SANTA BÁRBARA | B67: 12 | C67: 5928 | D67: 4457 | E67: 4358 | F67: 274 | G67: 24 | H67: 63 | I67: 92 | J67: 179 | K67: 1488 | L67: 735 | M67: 869 | N67: 251 | O67: 383 | P67: 51 | Q67: 48
A68: SANTA BÁRBARA | B68: 12 | C68: 5928 | D68: 4457 | E68: 4358 | F68: 274 | G68: 24 | H68: 63 | I68: 92 | J68: 179 | K68: 1488 | L68: 735 | M68: 869 | N68: 251 | O68: 383 | P68: 51 | Q68: 48
A69: DISTRITO 2 SAN PEDRO | B69: 5 | C69: 2357 | D69: 1760 | E69: 1730 | F69: 107 | G69: 5 | H69: 13 | I69: 22 | J69: 54 | K69: 689 | L69: 313 | M69: 342 | N69: 44 | O69: 141 | P69: 15 | Q69: 15
A70: SAN PEDRO | B70: 5 | C70: 2357 | D70: 1760 | E70: 1730 | F70: 107 | G70: 5 | H70: 13 | I70: 22 | J70: 54 | K70: 689 | L70: 313 | M70: 342 | N70: 44 | O70: 141 | P70: 15 | Q70: 15
A71: DISTRITO 3 SAN JUAN | B71: 9 | C71: 4423 | D71: 3345 | E71: 3277 | F71: 134 | G71: 20 | H71: 23 | I71: 61 | J71: 125 | K71: 1198 | L71: 650 | M71: 651 | N71: 87 | O71: 328 | P71: 33 | Q71: 35
A72: SAN JUAN ABAJO | B72: 9 | C72: 4423 | D72: 3345 | E72: 3277 | F72: 134 | G72: 20 | H72: 23 | I72: 61 | J72: 125 | K72: 1198 | L72: 650 | M72: 651 | N72: 87 | O72: 328 | P72: 33 | Q72: 35
A73: DISTRITO 4 JESÚS | B73: 11 | C73: 5033 | D73: 3608 | E73: 3502 | F73: 163 | G73: 19 | H73: 47 | I73: 102 | J73: 223 | K73: 1142 | L73: 579 | M73: 611 | N73: 243 | O73: 373 | P73: 68 | Q73: 38
A74: JESÚS | B74: 5 | C74: 2263 | D74: 1653 | E74: 1611 | F74: 89 | G74: 6 | H74: 24 | I74: 53 | J74: 157 | K74: 472 | L74: 274 | M74: 311 | N74: 57 | O74: 168 | P74: 29 | Q74: 13
A75: BIRRÍ | B75: 6 | C75: 2770 | D75: 1955 | E75: 1891 | F75: 74 | G75: 13 | H75: 23 | I75: 49 | J75: 66 | K75: 670 | L75: 305 | M75: 300 | N75: 186 | O75: 205 | P75: 39 | Q75: 25
A76: DISTRITO 5 SANTO DOMINGO | B76: 5 | C76: 2052 | D76: 1440 | E76: 1402 | F76: 75 | G76: 12 | H76: 60 | I76: 31 | J76: 22 | K76: 559 | L76: 224 | M76: 221 | N76: 91 | O76: 107 | P76: 21 | Q76: 17
A77: SANTO DOMINGO DEL ROBLE | B77: 3 | C77: 1330 | D77: 922 | E77: 892 | F77: 53 | G77: 9 | H77: 58 | I77: 22 | J77: 17 | K77: 312 | L77: 124 | M77: 150 | N77: 74 | O77: 73 | P77: 18 | Q77: 12
A78: CHAGÜITE | B78: 1 | C78: 529 | D78: 388 | E78: 381 | F78: 19 | G78: 3 | H78: 1 | I78: 8 | J78: 5 | K78: 174 | L78: 75 | M78: 60 | N78: 14 | O78: 22 | P78: 2 | Q78: 5
A79: LOS CARTAGOS | B79: 1 | C79: 193 | D79: 130 | E79: 129 | F79: 3 | G79: 0 | H79: 1 | I79: 1 | J79: 0 | K79: 73 | L79: 25 | M79: 11 | N79: 3 | O79: 12 | P79: 1 | Q79: 0
A80: DISTRITO 6 PURABÁ | B80: 6 | C80: 2484 | D80: 1809 | E80: 1771 | F80: 69 | G80: 21 | H80: 14 | I80: 46 | J80: 62 | K80: 673 | L80: 274 | M80: 314 | N80: 83 | O80: 215 | P80: 28 | Q80: 10
A81: SETILLAL | B81: 2 | C81: 844 | D81: 604 | E81: 590 | F81: 16 | G81: 7 | H81: 8 | I81: 6 | J81: 11 | K81: 242 | L81: 73 | M81: 122 | N81: 24 | O81: 81 | P81: 10 | Q81: 4
A82: SAN BOSCO | B82: 4 | C82: 1640 | D82: 1205 | E82: 1181 | F82: 53 | G82: 14 | H82: 6 | I82: 40 | J82: 51 | K82: 431 | L82: 201 | M82: 192 | N82: 59 | O82: 134 | P82: 18 | Q82: 6
A83: CANTÓN 5 SAN RAFAEL | B83: 62 | C83: 29077 | D83: 20851 | E83: 20391 | F83: 1161 | G83: 101 | H83: 391 | I83: 364 | J83: 1078 | K83: 7019 | L83: 3098 | M83: 4058 | N83: 1338 | O83: 1783 | P83: 283 | Q83: 177
A84: DISTRITO 1 SAN RAFAEL | B84: 17 | C84: 8090 | D84: 5966 | E84: 5853 | F84: 346 | G84: 24 | H84: 67 | I84: 105 | J84: 324 | K84: 2059 | L84: 826 | M84: 1252 | N84: 359 | O84: 491 | P84: 65 | Q84: 48
A85: SAN RAFAEL | B85: 17 | C85: 8090 | D85: 5966 | E85: 5853 | F85: 346 | G85: 24 | H85: 67 | I85: 105 | J85: 324 | K85: 2059 | L85: 826 | M85: 1252 | N85: 359 | O85: 491 | P85: 65 | Q85: 48
A86: DISTRITO 2 SAN JOSECITO | B86: 14 | C86: 6741 | D86: 4624 | E86: 4507 | F86: 333 | G86: 30 | H86: 132 | I86: 84 | J86: 243 | K86: 1473 | L86: 613 | M86: 844 | N86: 299 | O86: 456 | P86: 75 | Q86: 42
A87: SAN JOSECITO | B87: 14 | C87: 6741 | D87: 4624 | E87: 4507 | F87: 333 | G87: 30 | H87: 132 | I87: 84 | J87: 243 | K87: 1473 | L87: 613 | M87: 844 | N87: 299 | O87: 456 | P87: 75 | Q87: 42
A88: DISTRITO 3 SANTIAGO | B88: 10 | C88: 4859 | D88: 3637 | E88: 3567 | F88: 175 | G88: 19 | H88: 128 | I88: 90 | J88: 236 | K88: 1156 | L88: 503 | M88: 757 | N88: 224 | O88: 279 | P88: 47 | Q88: 23
A89: SANTIAGO | B89: 8 | C89: 3834 | D89: 2820 | E89: 2764 | F89: 126 | G89: 15 | H89: 112 | I89: 70 | J89: 195 | K89: 875 | L89: 390 | M89: 577 | N89: 187 | O89: 217 | P89: 36 | Q89: 20
A90: LA SUIZA | B90: 2 | C90: 1025 | D90: 817 | E90: 803 | F90: 49 | G90: 4 | H90: 16 | I90: 20 | J90: 41 | K90: 281 | L90: 113 | M90: 180 | N90: 37 | O90: 62 | P90: 11 | Q90: 3
A91: DISTRITO 4 LOS ÁNGELES | B91: 16 | C91: 7217 | D91: 5093 | E91: 4961 | F91: 235 | G91: 22 | H91: 45 | I91: 69 | J91: 204 | K91: 1699 | L91: 926 | M91: 916 | N91: 417 | O91: 428 | P91: 81 | Q91: 51
A92: LOS ÁNGELES | B92: 7 | C92: 3196 | D92: 2329 | E92: 2276 | F92: 104 | G92: 11 | H92: 11 | I92: 26 | J92: 118 | K92: 841 | L92: 372 | M92: 479 | N92: 124 | O92: 190 | P92: 23 | Q92: 30
A93: GETSEMANÍ (PARTE ESTE) | B93: 4 | C93: 1992 | D93: 1383 | E93: 1344 | F93: 65 | G93: 9 | H93: 21 | I93: 26 | J93: 52 | K93: 466 | L93: 289 | M93: 182 | N93: 97 | O93: 137 | P93: 25 | Q93: 14
A94: MONTECITO | B94: 1 | C94: 405 | D94: 299 | E94: 291 | F94: 12 | G94: 1 | H94: 4 | I94: 2 | J94: 10 | K94: 125 | L94: 61 | M94: 54 | N94: 10 | O94: 12 | P94: 6 | Q94: 2
A95: SAN MIGUEL O PALMAR (ESTE) | B95: 4 | C95: 1624 | D95: 1082 | E95: 1050 | F95: 54 | G95: 1 | H95: 9 | I95: 15 | J95: 24 | K95: 267 | L95: 204 | M95: 201 | N95: 186 | O95: 89 | P95: 27 | Q95: 5
A96: DISTRITO 5 CONCEPCIÓN | B96: 5 | C96: 2170 | D96: 1531 | E96: 1503 | F96: 72 | G96: 6 | H96: 19 | I96: 16 | J96: 71 | K96: 632 | L96: 230 | M96: 289 | N96: 39 | O96: 129 | P96: 15 | Q96: 13
A97: CONCEPCIÓN | B97: 5 | C97: 2170 | D97: 1531 | E97: 1503 | F97: 72 | G97: 6 | H97: 19 | I97: 16 | J97: 71 | K97: 632 | L97: 230 | M97: 289 | N97: 39 | O97: 129 | P97: 15 | Q97: 13
A98: CANTÓN 6 SAN ISIDRO | B98: 28 | C98: 12800 | D98: 9544 | E98: 9340 | F98: 571 | G98: 50 | H98: 99 | I98: 150 | J98: 272 | K98: 4120 | L98: 918 | M98: 2193 | N98: 193 | O98: 774 | P98: 112 | Q98: 92
A99: DISTRITO 1 SAN ISIDRO | B99: 14 | C99: 6686 | D99: 4978 | E99: 4876 | F99: 285 | G99: 30 | H99: 44 | I99: 90 | J99: 136 | K99: 2080 | L99: 457 | M99: 1235 | N99: 110 | O99: 409 | P99: 64 | Q99: 38
A100: SAN ISIDRO | B100: 14 | C100: 6686 | D100: 4978 | E100: 4876 | F100: 285 | G100: 30 | H100: 44 | I100: 90 | J100: 136 | K100: 2080 | L100: 457 | M100: 1235 | N100: 110 | O100: 409 | P100: 64 | Q100: 38
A101: DISTRITO 2 SAN JOSÉ | B101: 7 | C101: 3016 | D101: 2239 | E101: 2191 | F101: 126 | G101: 10 | H101: 39 | I101: 38 | J101: 76 | K101: 1009 | L101: 222 | M101: 449 | N101: 46 | O101: 176 | P101: 25 | Q101: 23
A102: SAN JOSECITO | B102: 5 | C102: 2297 | D102: 1729 | E102: 1691 | F102: 94 | G102: 8 | H102: 35 | I102: 28 | J102: 54 | K102: 785 | L102: 189 | M102: 335 | N102: 26 | O102: 137 | P102: 22 | Q102: 16
A103: SANTA ELENA | B103: 2 | C103: 719 | D103: 510 | E103: 500 | F103: 32 | G103: 2 | H103: 4 | I103: 10 | J103: 22 | K103: 224 | L103: 33 | M103: 114 | N103: 20 | O103: 39 | P103: 3 | Q103: 7
A104: DISTRITO 3 CONCEPCIÓN | B104: 4 | C104: 1665 | D104: 1254 | E104: 1221 | F104: 106 | G104: 6 | H104: 5 | I104: 11 | J104: 23 | K104: 625 | L104: 147 | M104: 200 | N104: 16 | O104: 82 | P104: 13 | Q104: 20
A105: CONCEPCIÓN | B105: 3 | C105: 1147 | D105: 864 | E105: 845 | F105: 95 | G105: 5 | H105: 2 | I105: 10 | J105: 10 | K105: 428 | L105: 84 | M105: 141 | N105: 14 | O105: 56 | P105: 9 | Q105: 10
A106: SANTA CECILIA (ALHAJAS) | B106: 1 | C106: 518 | D106: 390 | E106: 376 | F106: 11 | G106: 1 | H106: 3 | I106: 1 | J106: 13 | K106: 197 | L106: 63 | M106: 59 | N106: 2 | O106: 26 | P106: 4 | Q106: 10
A107: DISTRITO 4 SAN FRANCISCO | B107: 3 | C107: 1433 | D107: 1073 | E107: 1052 | F107: 54 | G107: 4 | H107: 11 | I107: 11 | J107: 37 | K107: 406 | L107: 92 | M107: 309 | N107: 21 | O107: 107 | P107: 10 | Q107: 11
A108: SAN FRANCISCO | B108: 3 | C108: 1433 | D108: 1073 | E108: 1052 | F108: 54 | G108: 4 | H108: 11 | I108: 11 | J108: 37 | K108: 406 | L108: 92 | M108: 309 | N108: 21 | O108: 107 | P108: 10 | Q108: 11
A109: CANTÓN 7 BELÉN | B109: 32 | C109: 15687 | D109: 12012 | E109: 11790 | F109: 1239 | G109: 42 | H109: 214 | I109: 129 | J109: 319 | K109: 5117 | L109: 1537 | M109: 2020 | N109: 240 | O109: 933 | P109: 134 | Q109: 88
A110: DISTRITO 1 SAN ANTONIO | B110: 15 | C110: 7381 | D110: 5622 | E110: 5518 | F110: 491 | G110: 19 | H110: 90 | I110: 56 | J110: 156 | K110: 2308 | L110: 764 | M110: 1035 | N110: 102 | O110: 497 | P110: 62 | Q110: 42
A111: SAN ANTONIO | B111: 15 | C111: 7381 | D111: 5622 | E111: 5518 | F111: 491 | G111: 19 | H111: 90 | I111: 56 | J111: 156 | K111: 2308 | L111: 764 | M111: 1035 | N111: 102 | O111: 497 | P111: 62 | Q111: 42
A112: DISTRITO 2 LA RIBERA | B112: 11 | C112: 5344 | D112: 4071 | E112: 3982 | F112: 468 | G112: 17 | H112: 79 | I112: 44 | J112: 101 | K112: 1687 | L112: 532 | M112: 619 | N112: 116 | O112: 319 | P112: 61 | Q112: 28
A113: LA RIBERA | B113: 11 | C113: 5344 | D113: 4071 | E113: 3982 | F113: 468 | G113: 17 | H113: 79 | I113: 44 | J113: 101 | K113: 1687 | L113: 532 | M113: 619 | N113: 116 | O113: 319 | P113: 61 | Q113: 28
A114: DISTRITO 3 LA ASUNCIÓN | B114: 6 | C114: 2962 | D114: 2319 | E114: 2290 | F114: 280 | G114: 6 | H114: 45 | I114: 29 | J114: 62 | K114: 1122 | L114: 241 | M114: 366 | N114: 22 | O114: 117 | P114: 11 | Q114: 18
A115: LA ASUNCIÓN | B115: 6 | C115: 2962 | D115: 2319 | E115: 2290 | F115: 280 | G115: 6 | H115: 45 | I115: 29 | J115: 62 | K115: 1122 | L115: 241 | M115: 366 | N115: 22 | O115: 117 | P115: 11 | Q115: 18
A116: CANTÓN 8 FLORES | B116: 27 | C116: 13404 | D116: 10272 | E116: 10053 | F116: 645 | G116: 35 | H116: 358 | I116: 148 | J116: 334 | K116: 4172 | L116: 1339 | M116: 1955 | N116: 309 | O116: 758 | P116: 128 | Q116: 91
A117: DISTRITO 1 SAN JOAQUÍN | B117: 14 | C117: 6977 | D117: 5287 | E117: 5171 | F117: 305 | G117: 19 | H117: 190 | I117: 81 | J117: 221 | K117: 2101 | L117: 684 | M117: 1083 | N117: 123 | O117: 364 | P117: 72 | Q117: 44
A118: SAN JOAQUÍN | B118: 14 | C118: 6977 | D118: 5287 | E118: 5171 | F118: 305 | G118: 19 | H118: 190 | I118: 81 | J118: 221 | K118: 2101 | L118: 684 | M118: 1083 | N118: 123 | O118: 364 | P118: 72 | Q118: 44
A119: DISTRITO 2 BARRANTES | B119: 4 | C119: 2046 | D119: 1688 | E119: 1645 | F119: 90 | G119: 3 | H119: 54 | I119: 18 | J119: 50 | K119: 719 | L119: 197 | M119: 370 | N119: 30 | O119: 114 | P119: 19 | Q119: 24
A120: SAN LORENZO | B120: 4 | C120: 2046 | D120: 1688 | E120: 1645 | F120: 90 | G120: 3 | H120: 54 | I120: 18 | J120: 50 | K120: 719 | L120: 197 | M120: 370 | N120: 30 | O120: 114 | P120: 19 | Q120: 24
A121: DISTRITO 3 LLORENTE | B121: 9 | C121: 4381 | D121: 3297 | E121: 3237 | F121: 250 | G121: 13 | H121: 114 | I121: 49 | J121: 63 | K121: 1352 | L121: 458 | M121: 502 | N121: 156 | O121: 280 | P121: 37 | Q121: 23
A122: LLORENTE | B122: 9 | C122: 4381 | D122: 3297 | E122: 3237 | F122: 250 | G122: 13 | H122: 114 | I122: 49 | J122: 63 | K122: 1352 | L122: 458 | M122: 502 | N122: 156 | O122: 280 | P122: 37 | Q122: 23
A123: CANTÓN 9 SAN PABLO | B123: 38 | C123: 17791 | D123: 13468 | E123: 13256 | F123: 2607 | G123: 70 | H123: 150 | I123: 272 | J123: 608 | K123: 4400 | L123: 1287 | M123: 2490 | N123: 441 | O123: 931 | P123: 143 | Q123: 69
A124: DISTRITO 1 SAN PABLO | B124: 27 | C124: 13371 | D124: 10169 | E124: 10005 | F124: 1889 | G124: 58 | H124: 111 | I124: 198 | J124: 474 | K124: 3378 | L124: 956 | M124: 1889 | N124: 365 | O124: 687 | P124: 112 | Q124: 52
A125: SAN PABLO | B125: 27 | C125: 13371 | D125: 10169 | E125: 10005 | F125: 1889 | G125: 58 | H125: 111 | I125: 198 | J125: 474 | K125: 3378 | L125: 956 | M125: 1889 | N125: 365 | O125: 687 | P125: 112 | Q125: 52
A126: DISTRITO 2 RINCÓN DE SABANILLA | B126: 11 | C126: 4420 | D126: 3299 | E126: 3251 | F126: 718 | G126: 12 | H126: 39 | I126: 74 | J126: 134 | K126: 1022 | L126: 331 | M126: 601 | N126: 76 | O126: 244 | P126: 31 | Q126: 17
A127: RINCÓN DE RICARDO | B127: 3 | C127: 1196 | D127: 865 | E127: 853 | F127: 244 | G127: 4 | H127: 12 | I127: 17 | J127: 25 | K127: 256 | L127: 110 | M127: 105 | N127: 24 | O127: 56 | P127: 8 | Q127: 4
A128: MIRAFLORES | B128: 7 | C128: 3102 | D128: 2375 | E128: 2340 | F128: 470 | G128: 8 | H128: 25 | I128: 56 | J128: 109 | K128: 730 | L128: 218 | M128: 488 | N128: 50 | O128: 186 | P128: 23 | Q128: 12
A129: H.A.ALFREDO Y DELIA GONZÁLEZ FLORES | B129: 1 | C129: 122 | D129: 59 | E129: 58 | F129: 4 | G129: 0 | H129: 2 | I129: 1 | J129: 0 | K129: 36 | L129: 3 | M129: 8 | N129: 2 | O129: 2 | P129: 0 | Q129: 1
A130: CANTÓN 10 SARAPIQUÍ | B130: 72 | C130: 25807 | D130: 16512 | E130: 15810 | F130: 1214 | G130: 69 | H130: 554 | I130: 1702 | J130: 399 | K130: 5284 | L130: 3035 | M130: 2197 | N130: 431 | O130: 925 | P130: 422 | Q130: 280
A131: DISTRITO 1 PUERTO VIEJO | B131: 22 | C131: 7889 | D131: 4507 | E131: 4330 | F131: 521 | G131: 17 | H131: 163 | I131: 321 | J131: 72 | K131: 1463 | L131: 957 | M131: 547 | N131: 70 | O131: 199 | P131: 104 | Q131: 73
A132: PUERTO VIEJO | B132: 5 | C132: 2243 | D132: 1430 | E132: 1381 | F132: 97 | G132: 3 | H132: 89 | I132: 90 | J132: 22 | K132: 517 | L132: 262 | M132: 192 | N132: 17 | O132: 92 | P132: 30 | Q132: 19
A133: SAN JOSÉ DE RÍO SARAPIQUÍ | B133: 1 | C133: 45 | D133: 16 | E133: 14 | F133: 4 | G133: 0 | H133: 0 | I133: 1 | J133: 0 | K133: 6 | L133: 1 | M133: 2 | N133: 0 | O133: 0 | P133: 0 | Q133: 2
A134: LA CEIBA | B134: 1 | C134: 106 | D134: 46 | E134: 44 | F134: 2 | G134: 1 | H134: 0 | I134: 2 | J134: 0 | K134: 23 | L134: 11 | M134: 3 | N134: 0 | O134: 2 | P134: 0 | Q134: 2
A135: CHILAMATE ESTE ALTOS | B135: 3 | C135: 1428 | D135: 814 | E135: 783 | F135: 61 | G135: 1 | H135: 22 | I135: 50 | J135: 14 | K135: 241 | L135: 251 | M135: 88 | N135: 18 | O135: 37 | P135: 18 | Q135: 13
A136: SAN JULIÁN | B136: 1 | C136: 286 | D136: 170 | E136: 165 | F136: 2 | G136: 1 | H136: 2 | I136: 83 | J136: 1 | K136: 21 | L136: 18 | M136: 27 | N136: 0 | O136: 10 | P136: 5 | Q136: 0
A137: LOS ARBOLITOS (PARTE ESTE) | B137: 1 | C137: 122 | D137: 73 | E137: 71 | F137: 5 | G137: 0 | H137: 1 | I137: 2 | J137: 1 | K137: 31 | L137: 12 | M137: 16 | N137: 0 | O137: 3 | P137: 0 | Q137: 2
A138: ZAPOTE | B138: 2 | C138: 576 | D138: 279 | E138: 267 | F138: 14 | G138: 0 | H138: 4 | I138: 25 | J138: 5 | K138: 102 | L138: 78 | M138: 24 | N138: 4 | O138: 11 | P138: 3 | Q138: 9
A139: COLONIA SAN JOSÉ | B139: 2 | C139: 827 | D139: 373 | E139: 364 | F139: 12 | G139: 2 | H139: 9 | I139: 14 | J139: 6 | K139: 170 | L139: 101 | M139: 40 | N139: 1 | O139: 9 | P139: 2 | Q139: 7
A140: LAS MARÍAS | B140: 1 | C140: 328 | D140: 157 | E140: 146 | F140: 4 | G140: 5 | H140: 6 | I140: 1 | J140: 2 | K140: 66 | L140: 23 | M140: 29 | N140: 4 | O140: 6 | P140: 9 | Q140: 2
A141: ESTERO GRANDE | B141: 1 | C141: 438 | D141: 244 | E141: 224 | F141: 82 | G141: 1 | H141: 15 | I141: 13 | J141: 5 | K141: 32 | L141: 32 | M141: 26 | N141: 16 | O141: 2 | P141: 13 | Q141: 7
A142: GUARIA | B142: 2 | C142: 931 | D142: 551 | E142: 523 | F142: 215 | G142: 3 | H142: 11 | I142: 28 | J142: 3 | K142: 117 | L142: 81 | M142: 43 | N142: 4 | O142: 18 | P142: 21 | Q142: 7
A143: COLONIA LA GATA | B143: 1 | C143: 133 | D143: 105 | E143: 104 | F143: 8 | G143: 0 | H143: 1 | I143: 0 | J143: 2 | K143: 49 | L143: 9 | M143: 30 | N143: 4 | O143: 1 | P143: 1 | Q143: 0
A144: NARANJAL | B144: 1 | C144: 426 | D144: 249 | E144: 244 | F144: 15 | G144: 0 | H144: 3 | I144: 12 | J144: 11 | K144: 88 | L144: 78 | M144: 27 | N144: 2 | O144: 8 | P144: 2 | Q144: 3
A145: DISTRITO 2 LA VIRGEN | B145: 14 | C145: 4698 | D145: 3077 | E145: 2957 | F145: 286 | G145: 12 | H145: 63 | I145: 340 | J145: 44 | K145: 1076 | L145: 543 | M145: 312 | N145: 150 | O145: 131 | P145: 71 | Q145: 49
A146: LA VIRGEN | B146: 5 | C146: 2527 | D146: 1723 | E146: 1657 | F146: 163 | G146: 4 | H146: 36 | I146: 198 | J146: 32 | K146: 614 | L146: 254 | M146: 157 | N146: 126 | O146: 73 | P146: 40 | Q146: 26
A147: PANGOLA O SAN JUAN | B147: 1 | C147: 183 | D147: 120 | E147: 112 | F147: 34 | G147: 0 | H147: 2 | I147: 1 | J147: 2 | K147: 27 | L147: 25 | M147: 13 | N147: 0 | O147: 8 | P147: 4 | Q147: 4
A148: DESAMPARADOS O LLANO GRANDE | B148: 1 | C148: 204 | D148: 121 | E148: 118 | F148: 5 | G148: 1 | H148: 2 | I148: 9 | J148: 0 | K148: 50 | L148: 30 | M148: 10 | N148: 3 | O148: 8 | P148: 0 | Q148: 3
A149: SAN RAMÓN | B149: 1 | C149: 380 | D149: 270 | E149: 263 | F149: 25 | G149: 2 | H149: 8 | I149: 13 | J149: 4 | K149: 108 | L149: 53 | M149: 35 | N149: 7 | O149: 8 | P149: 6 | Q149: 1
A150: LOS ÁNGELES DE COLONIA CARVAJAL | B150: 1 | C150: 127 | D150: 81 | E150: 80 | F150: 8 | G150: 0 | H150: 0 | I150: 1 | J150: 1 | K150: 24 | L150: 25 | M150: 18 | N150: 0 | O150: 3 | P150: 0 | Q150: 1
A151: SARDINAL O PUEBLO NUEVO | B151: 1 | C151: 498 | D151: 286 | E151: 270 | F151: 24 | G151: 0 | H151: 3 | I151: 90 | J151: 0 | K151: 69 | L151: 48 | M151: 20 | N151: 4 | O151: 12 | P151: 11 | Q151: 5
A152: EL ROBLE | B152: 1 | C152: 517 | D152: 338 | E152: 324 | F152: 20 | G152: 5 | H152: 5 | I152: 23 | J152: 5 | K152: 136 | L152: 69 | M152: 41 | N152: 6 | O152: 14 | P152: 8 | Q152: 6
A153: TIRIMBINA | B153: 1 | C153: 64 | D153: 38 | E153: 34 | F153: 2 | G153: 0 | H153: 0 | I153: 1 | J153: 0 | K153: 13 | L153: 10 | M153: 6 | N153: 2 | O153: 0 | P153: 2 | Q153: 2
A154: SANTA DELIA | B154: 1 | C154: 56 | D154: 25 | E154: 24 | F154: 1 | G154: 0 | H154: 5 | I154: 0 | J154: 0 | K154: 16 | L154: 0 | M154: 2 | N154: 0 | O154: 0 | P154: 0 | Q154: 1
A155: RANCHO CHILAMATE | B155: 1 | C155: 142 | D155: 75 | E155: 75 | F155: 4 | G155: 0 | H155: 2 | I155: 4 | J155: 0 | K155: 19 | L155: 29 | M155: 10 | N155: 2 | O155: 5 | P155: 0 | Q155: 0
A156: DISTRITO 3 HORQUETAS | B156: 33 | C156: 12701 | D156: 8632 | E156: 8237 | F156: 355 | G156: 39 | H156: 321 | I156: 1038 | J156: 276 | K156: 2650 | L156: 1467 | M156: 1295 | N156: 206 | O156: 590 | P156: 240 | Q156: 155
A157: LAS HORQUETAS | B157: 4 | C157: 2007 | D157: 1305 | E157: 1243 | F157: 59 | G157: 5 | H157: 35 | I157: 137 | J157: 29 | K157: 367 | L157: 271 | M157: 185 | N157: 64 | O157: 91 | P157: 33 | Q157: 29
A158: RÍO FRÍO | B158: 6 | C158: 2911 | D158: 1897 | E158: 1845 | F158: 71 | G158: 6 | H158: 23 | I158: 249 | J158: 64 | K158: 630 | L158: 349 | M158: 250 | N158: 37 | O158: 166 | P158: 35 | Q158: 17
A159: EL TIGRE SUR | B159: 2 | C159: 675 | D159: 436 | E159: 414 | F159: 25 | G159: 1 | H159: 14 | I159: 34 | J159: 10 | K159: 120 | L159: 102 | M159: 61 | N159: 20 | O159: 27 | P159: 18 | Q159: 4
A160: LA RAMBLA | B160: 1 | C160: 471 | D160: 327 | E160: 308 | F160: 12 | G160: 3 | H160: 18 | I160: 47 | J160: 3 | K160: 115 | L160: 43 | M160: 51 | N160: 2 | O160: 14 | P160: 14 | Q160: 5
A161: FINCA DIEZ | B161: 2 | C161: 961 | D161: 653 | E161: 617 | F161: 25 | G161: 5 | H161: 21 | I161: 51 | J161: 20 | K161: 236 | L161: 138 | M161: 66 | N161: 10 | O161: 45 | P161: 19 | Q161: 17
A162: FINCA DOS | B162: 2 | C162: 1015 | D162: 704 | E162: 656 | F162: 23 | G162: 5 | H162: 48 | I162: 140 | J162: 11 | K162: 156 | L162: 124 | M162: 96 | N162: 11 | O162: 42 | P162: 27 | Q162: 21
A163: COLONIA CUBUJUQUÍ | B163: 1 | C163: 291 | D163: 217 | E163: 204 | F163: 7 | G163: 1 | H163: 5 | I163: 31 | J163: 39 | K163: 60 | L163: 17 | M163: 25 | N163: 8 | O163: 11 | P163: 6 | Q163: 7
A164: CERRO NEGRO (PARTE SUR) | B164: 1 | C164: 78 | D164: 52 | E164: 50 | F164: 1 | G164: 1 | H164: 2 | I164: 13 | J164: 0 | K164: 4 | L164: 14 | M164: 14 | N164: 1 | O164: 0 | P164: 1 | Q164: 1
A165: COLONIA VICTORIA | B165: 4 | C165: 1700 | D165: 1228 | E165: 1180 | F165: 24 | G165: 6 | H165: 35 | I165: 146 | J165: 60 | K165: 397 | L165: 152 | M165: 262 | N165: 26 | O165: 72 | P165: 26 | Q165: 22
A166: EL PALMAR | B166: 1 | C166: 141 | D166: 92 | E166: 85 | F166: 10 | G166: 0 | H166: 3 | I166: 9 | J166: 1 | K166: 21 | L166: 13 | M166: 13 | N166: 8 | O166: 7 | P166: 5 | Q166: 2
A167: COLONIA VILLALOBOS | B167: 1 | C167: 400 | D167: 300 | E167: 288 | F167: 13 | G167: 1 | H167: 4 | I167: 24 | J167: 7 | K167: 127 | L167: 34 | M167: 46 | N167: 3 | O167: 29 | P167: 8 | Q167: 4
A168: SAN BERNARDINO | B168: 1 | C168: 220 | D168: 145 | E168: 142 | F168: 3 | G168: 1 | H168: 6 | I168: 13 | J168: 3 | K168: 44 | L168: 24 | M168: 32 | N168: 2 | O168: 14 | P168: 3 | Q168: 0
A169: LA CHAVES | B169: 2 | C169: 563 | D169: 375 | E169: 353 | F169: 55 | G169: 2 | H169: 25 | I169: 56 | J169: 3 | K169: 96 | L169: 42 | M169: 50 | N169: 5 | O169: 19 | P169: 15 | Q169: 7
A170: LA CONQUISTA | B170: 1 | C170: 263 | D170: 181 | E170: 179 | F170: 5 | G170: 0 | H170: 9 | I170: 25 | J170: 2 | K170: 79 | L170: 24 | M170: 23 | N170: 2 | O170: 10 | P170: 1 | Q170: 1
